{"text_format":"3","workbook":"xlsx","n_sheets":8,"sheets":["I1_Erläuterung","E1_Projektdaten","E2_Wärmepreis","E3_Verbraucher","B1_Berechnungen","A1_Ergebnisse","A2_Planerfolgsrechnung","A9_NPV-Daten"],"not_rendered":{"charts":6,"images":5,"external_links":1,"defined_names":467,"comments":1},"read":"whole","date_system":"1900"}

{"sheet":"I1_Erläuterung","index":0,"n_rows":289,"n_cols":2,"rows_kept":289}
[null,"Erläuterungen zum QM Holzheizwerke Wirtschaftlichkeitstool"]
[null,"Version: 6 EUR (August 2025)"]
[null,"Erläuterung"]
[null,"Prinzipielles zu diesem Werkzeug:\nHaftungsausschluss\nDas Excel-Werkzeug wurde sehr sorgfältig erstellt, trotzdem können die Hersteller keinerlei Garantie oder Gewährleistung für die ermittelten Ergebnisse und daraus abgeleitete Schlüsse übernehmen. Durch die getroffenen Vereinfachungen ergeben sich aufgrund der Art der Berechnung bestimmte \"Fehler\", z.B. wird nicht berücksichtigt, ob eine Zahlung zu Jahresbeginn oder Jahresende erfolgt, da ein Jahr als eine Periode angesehen wird.\nAchtung: Auch wenn Warnungs-Rückmeldungen bezüglich diverser Eingabegrenzen durch das Werkzeug erfolgen, ist nicht auszuschliessen, dass durch falsche Eingabewerte eine falsche Darstellung des Endergebnisses erfolgt. Die richtige Abschätzung der Folgen bestimmter Annahmen obliegt dem Benutzer des Werkzeugs.\n\nFormeln:\nDie Arbeitsblätter dieser Arbeitsmappe sind mit einem Schreibschutz gesichert, alle Formeln und Berechnungen sind jedoch ersichtlich. Bitte beachten Sie, dass Änderungen daran zu Fehlern an anderen Stellen und damit zu falschen Aussagen des Werkzeugs führen können.\n\nSensitivitätsanalyse / Was-Wäre-Wenn Rechnung:\nDurch Variation der Eingabeparameter und Speicherung der einzelnen Ergebnisse der \nWirtschaftlichkeitsberechnung ist es möglich, Aussagen bezüglich des Einflusses einzelner \nParameter auf die wirtschaftliche Entwicklung des Projekts zu erhalten.\n\nFeedback:\nDas Team von QM Holzheizwerke freut sich über Verbesserungsvorschläge und Anregungen zu \ndiesem Werkzeug, bitte übermitteln Sie diese an info@qmholzheizwerke.ch"]
[null,"Dank\nDie Erstellung des vorliegenden Werkzeuges erfolgte im Auftrag von Energieschweiz. Die Weiterentwicklung ermöglichte Holzenergie Schweiz und die Arbeitsgemeinschaft QM Holzheizwerke."]
[null,"Registerblätter: Die Datei ist aufgeteilt auf verschiedene Registerblätter\nBenennung: Die Benennung der Registerblätter unterscheidet auch die hauptsächliche Funktion des Arbeitsblattes:\nI = Information (Arbeitsblatt enthält Infos und Erläuterungen zur Anwendung der Datei)\nE = Eingabeblatt (Eingabe von Daten, die für die Berechnung notwendig sind)\nB = Berechnung\nA = Ausgabeblatt (Darstellung von ausgewählten Ergebnissen zum Drucken oder für den Datenexport)"]
[100,"Registerblatt \"E1_Projektdaten\"\nEingabe von Projektdaten, Termine, Investitionskosten, Förderung, Darlehen, Betriebskosten etc."]
[101,"allgemeine Informationen"]
["101a","Eingabefelder sind hellgelb unterlegt"]
["101b","Eingabefelder mit Standardwerten und/oder Berechnungen sind hellblau unterlegt\nBitte beachten Sie, dass das Überschreiben dieser Felder zu Fehlern an anderen Stellen und damit zu falschen Aussagen des Werkzeuges führen können."]
["101c","Eingabefelder in welche Daten aus der QMH Excel-Datei Situationserfassung übernommen werden können\nHinweis: Damit keine Formeln kopiert werden, ist die Funktion \"Einfügen - Werte\" zu wählen."]
["101d","Ausgabefelder, deren Inhalt kopiert werden und in einer externen Datei eingefügt werden können\nDie Felder sind überschreibbar. Bitte beachten Sie, dass das Überschreiben dieser Felder zu Fehlern an anderen Stellen und damit zu Fehlern führen können."]
["101e","Vorgabewert von blauen Eingabefeldern\nWert oder Formel kann bei Bedarf zur Wiederherstellung des Ausgangswertes in die zugehörige blaue Zelle übertragen können."]
["101k","Alle EUR - Beträge müssen ohne Mehrwertsteuer angegeben werden."]
[105,"Vorgabewerte oder -Formeln aus blauen Feldern\nAbweichungen werden in den blauen feldern gekennzeichnet."]
[106,"Eingabefeld für Name und Bezeichnung von Projekt und/oder Variante"]
[107,"Bearbeitende Person des Wirtschaftlichkeitsmodelles"]
[108,"Warnungen: Im Feld Warnungen erscheint ein kurzer Erläuterungstext, wenn bei der Eingabe unplausible Angaben gemacht werden (z.B. Netzverluste = 80% oder ähnlich)"]
[110,"Wärmemengen, Netzverluste und allgemeine Angaben zum Projekt"]
["110a","Maximal verkaufte Wärmemenge in MWh/a (Berechnet aus dem maximalen Wärmeabsatz aus der Spalte \"Wärmebedarf\" im Register \"B1_Berechnungen\" Pkt. 532 abzüglich Netzverluste Pkt. 110b"]
["110b","Netzverluste des Fernwärmenetzes bezogen auf die dem Netz zugeführte Wärmemenge (Q-Forderung QMH ≤10%). Bei Netzen im Wachstum ist allenfalls ein mittlerer Verlust anzugeben."]
["110c","Jährliche Abnahme des Wärmebedarfes. Durchschnittliche jährliche Abnahme des Wärmebedarfes  durch Effizienzmassnahmen (z.B. verbesserte Gebäudehüllen) der Wärmebezüger ab der Inbetriebnahme. Dieser Wert wird im Gesamtwärmebedarf berücksichtigt."]
["110g","Basisjahr für Investitionen - wird als Jahr 0 für die Wirtschaftlichkeitsrechnung herangezogen"]
["110h","Jahr der ersten Wärmelieferung - ab diesem Jahr werden Einnahmen generiert. (Übernahme des ersten Jahres mit Wärmelieferung aus dem Register \"Verbraucher\""]
[115,"Erfassung der Energiemengen und der Nutzungsgrade"]
[null,{"$error":"#VALUE!"}]
["115a","Anteil der erzeugten Nutzwärme (Pkt. 170 a), die mit Holzschnitzeln erzeugt wird in Prozent.\n100% steht für eine monovalente Anlage. Der Anteil der Abgaskondensation wird separat erfasst."]
["115b","Anteil der erzeugten Nutzwärme (Pkt. 170 a), die aus der direkten Abgaskondensation erzeugt wird in Prozent."]
["115c","Anteil der erzeugten Nutzwärme (Pkt. 170 a), die mit einer WKK-Anlage erzeugt wird in Prozent."]
["115d","Anteil der erzeugten Nutzwärme (Pkt. 170 a), die mit einer Wärmepumpe erzeugt wird in Prozent."]
["115e","Anteil der erzeugten Nutzwärme (Pkt. 170 a), die mit einem Zusatzwärmeerzeuger erzeugt wird in Prozent.\nDer Zusatzwärmeerzeuger ist technologieoffen"]
["115f","Anteil der erzeugten Nutzwärme (Pkt. 170 a), die mit Abwärme erzeugt wird in Prozent."]
["115g","Anteil der erzeugten Nutzwärme (Pkt. 170 a), die fossil erzeugt wird in Prozent. Wird aus den Anteilen 115a - 115f berechnet"]
["115l","thermischer Jahresnutzungsgrad der WKK-Anlage\nDer Gesamtnutzungsgrad der WKK-Anlage berechnet sich aus der Summe des thermischen und des elektrischen Nutzungsgrades (siehe Abbildung)"]
["115m","elektrischer Jahresnutzungsgrad der WKK-Anlage\nDer Gesamtnutzungsgrad der WKK-Anlage berechnet sich aus der Summe des thermischen und des elektrischen Nutzungsgrades (siehe Abbildung)"]
["115n","Jahresnutzungsgrad des Zusatzwärmeerzeugers"]
["115o","Jahresarbeitszahl (JAZ) der Wärmepumpe"]
["115q","Jahresnutzungsgrad des fossilen Spitzenlastkessels.\nWird zur Spitzenlastdeckung ein Erdgaskessel eingebaut und unter Punkt 124 der Preis in MWho eingegeben, ist zusätzlich die Umrechnung von Ho zu Hu (0.9) zu berücksichtigen."]
["115u","Anteil des Strombedarfes der Wärmepumpe, welcher aus der Stromproduktion der WKK gedeckt wird. Es ist der Anteil des Strombedarfes der Wärmepumpe und nicht der Anteil der Produktion der WKK einzutragen."]
["115v","Anteil Hilfsenergie (Strom) bezogen auf die produzierte Wärmemenge. Diese wird sowohl bei der Wärmeerzeugung als auch bei der Wärmeverteilung benötigt.\nEmpfehlung QMH: Für die Wärmeerzeugung wird 1 - 1.5% der produzierten Wärme benötigt, für die Wärmeverteilung 0.5 - 1% der verteilten Wärme."]
["115w","Anteil des Strombedarfes der Hilfsenergie, welcher aus der Stromproduktion der WKK gedeckt wird. Es ist der Anteil des Strombedarfes der Hilfsenergie für alle Anlagenteile und nicht der Anteil der Produktion der WKK einzutragen."]
["115x","Mit der WKK produzierte Pflanzenkohle in m³/a. Es ist nur die vermarktbare Pflanzenkohle und keine Asche einzutragen."]
[120,"Erfassung der Energiepreise"]
["120a","Einkaufspreis für den Brennstoff Biomasse (Holzlschnitzel) in EUR/MWh Nutzenergie (gemessen am Wärmezähler des Holzkessels)"]
["120c","Preis des eingesetzten Brennstoffs für die WKK-Anlage in EUR/MWh (Endenergie)"]
["120d","Preis des eingesetzten Brennstoffs für den Zusatzwärmeerzeuger in EUR/MWh (Endenergie)"]
["120e","Preis des eingesetzten fossilen Brennstoffs (Heizöl oder Erdgas) in EUR/MWh (Endenergie). Sollte ein nicht-fossiler Brennstoff zur Spitzenlastabdeckung eingesetzt werden, muss dieser auch hier eingesetzt werden."]
["120f","Strompreis in EUR/kWh (inkl. Anteil Anschlusskosten etc.) (Empfehlung wenn nicht bekannt: 30 ct/kWhel)"]
["120g","Strompreis der Wärmepumpe in EUR/kWh (inkl. Anteil Anschlusskosten etc.) Der Vorgabewert entspricht dem allgemeinen Strompreis Pkt. 120f"]
["120j","Preis der Abwärmenutzung in EUR/MWh"]
["120m","mittlerer Einspeisetarif in EUR/kWh für die ins Netz eingespeiste Energie inkl. Herkunftsnachweis (HKN)"]
["120n","mittlerer Verkaufspreis der Pflanzenkohle in EUR/m³"]
[125,"Erfassung der Betriebskosten und sonstigen Aufwendungen (wesentliche Aufwendungen für das Projekt)"]
["125a","Betriebskosten: Personalkosten für Bedienung, Reinigung, Wartung ohne Verwaltungsaufwand\nVorgabewert = Richtwert QMH PHB: 1.5% der Investitionskosten Wärmeerzeugung (Pkt. 145b–145h)"]
["125b","externe Betriebskosten für Kaminfeger, Abgasmessung, Service-Verträge etc. (Ascheentsorgung, sofern nicht im Brennstoffpreis enthalten)"]
["125c","Unterhaltskosten: Ersatzteile, Reparaturen (prozentualer Anteil der Investition gem. QMH, siehe Punkt 142)"]
["125g","Jährliche Kosten für Miete,  Pacht oder  Liegenschaft (effektive Kosten eintragen)"]
["125h","Sonstige jährliche Kosten (Verwaltung, Versicherung, Steuern, Homepage, Telefonie, öffentliche Gebühren, ...... etc.)\nVorgabewert: 1% der Gesamtinvestition Pkt. 145 (Richtwert QMH PHB :0.5–1.5%)"]
["125m","allgemeine jährliche Teuerung in %: Es kann ein Globalwert eingegeben werden, der als Vorgabe in die individuellen Teuerungen im Register B1_Berechnungen (Pkt. 511) übernommen wird."]
["125n","Nominalzins: aktueller Nominalzinssatz"]
["125o","Realzins: berechnet aus Nominalzinssatz (125n) und mittlerer Teuerung (125m)"]
[140,"Kostenstruktur"]
[141,"Eingabespalte der Investitionskosten"]
[142,"spez. Unterhaltskosten: Prozentualer Anteil der Investitionskosten (siehe auch QMH Planungshandbuch)\nHinweis: Die Werte können zum Ausgleich ausseroerdentlcher Preisschwankungen manuell angepasst werden."]
[143,"Abschreibedauer der Anlagenteile (siehe auch QMH Planungshandbuch)"]
[145,"Investitionskosten"]
["145a","Baukosten für die Heizzentrale und das Brennstofflager"]
["145b","Kosten für die holzspezifischen Anlagenteile (Kesselanlage komplett)"]
["145c","Kosten für die WKK-Anlage"]
["145d","Kosten für die Wärmepumpenanlage"]
["145e","Kosten für den Bau von Erdsonden oder eine Grundwassernutzung"]
["145f","Kosten für den Zusatzwärmeerzeuger (nicht fossil)"]
["145g","Kosten für die Abwärmenutzung"]
["145h","Kosten für die spitzenlastspezifischen Anlagenteile (fossile Kesselanlage)"]
["145i","Installationskosten für Heizung, Lüftung, Klima, Sanitär und Elektro (HLKSE)"]
["145j","Kosten für Wärmenetz inkl. Tiefbaukosten"]
["145k","Kosten für die Wärmezähler und die Regelung bei den Verbrauchern (im Besitz des Wärmeverbundes), inklusive der Wärmezähler der Erzeuger. Bei dieser Position fallen üblicherweise nach ca. 15 Jahren Ersatzinvestitionen an."]
["145l","Kosten für die Wärmeübergabestationen bei den Verbrauchern\nAnteil Kunden, wird üblicherweise mit den einmaligen Anschlusskosten (Pkt. 325) an den Wärmeverbund zurückbezahlt. In dieser Position fallen üblicherweise keine Ersatzinvestitionen für den Wärmeverbund an.\nDiese Position wird nicht in die Restwertbetrachtung eingerechnet!"]
["145m","Kosten für Planung und Unvorhergesehenes (Abschreibung über mittlere Abschreibedauer)\nDiese Position wird in der Restwertbetrachtung nicht eingerechnet!"]
["145z","Berechnete Gesamtinvestitionen für das Projekt und mittlere Abschreibedauer"]
[150,"Aufteilung der Investitionen auf max. fünf Etappen in % der Gesamtinvestition (Pkt. 145z)\nHinweis: Die Unterhaltskosten (Pkt. 142) werden nach dem selben Verteiler abgestuft. Bei Abweichungen zwischen den effektiven Unterhaltskosten und den in Pkt. 574b ausgewiesenen Aufwendungen, sind die Prozentsätze in Pkt. 142 entsprechend anzupassen."]
["150a","Etappe 1: Startjahr des Projektes (Pkt.: 110g) ist immer das Jahr der ersten Investitionen: Feld kann nicht bearbeitet werden; Investitionen, die nicht in den Folgeetappen (Punkte 150b ff) getätigt werden, fallen im Startjahr an.\n(Formel: 100% Gesamtinvestition - Investitionsanteile Pkt. 150b ff)"]
["150b\n-\n150e","Etappe 2 ff: Jahr und Investitionsanteil der weiteren Etappen. Standardmässig folgt jede Etappe im Folgejahr der vorgängien Etappe.\nDas Feld kann überschrieben werden.\nHinweis: es darf kein Jahr doppelt geführt werden\nAchtung: Das Überschreiben des Feldes löscht die Formel!"]
[151,"Anteil der Position der Gesamtinvestitionen.\nHinweis: Die Summe aller Anteile kann über 100% betragen, weil beispielsweise die Anschlussgebühren über die Jahre verzögert eingehen und somit vorfinanziert werden müssen."]
[155,"Eingabe des Eigenkapitals resp. des Aktienkapitals\nwird für die Berechnung der Investitionsdeckung benötigt."]
[156,"Berechnung der Summe aller Anschlussbeiträge (Summe aus E3_Verbraucher Pkt. 325)"]
[160,"Angaben zur Fremdfinanzierung des Projektes\nEs können zwei Kredite /  Darlehen eingetragen werden."]
["160a","Summe des fremdfinanzierten Betrages"]
["160b","Laufzeit des Kredits, in dieser Berechnung werden konstante Raten über die gesamte Laufzeit angenommen. Die Laufzeit des Kredits sollte gegenüber der Bank so lange als möglich vereinbart werden (ideal 20... 25 Jahre) und die Möglichkeit einer vorzeitigen kostenfreien Rückzahlung im Kreditvertrag festgehalten werden. So bleibt die verpflichtete Rate so tief wie möglich, bei höheren Einnahmen kann der Betreiber  vorauszahlen und damit den Kredit rascher amortisieren.\nUnbefristete Kredite ohne Rückzahlraten (z.B. Hypotheken ohne Amortisation) werden mit der Laufzeit \"0\" eingetragen."]
["160c","Startjahr des Darlehens. In Startjahr wird das Darlehen an das Projekt ausgezahlt. Die Zinszahlung beginnt im Folgejahr."]
["160d","Im Jahr vom Beginn der Amortistation des Darlehens ist die erste Amortisationsrate fällig"]
["160e","jährlicher Bruttokreditzinssatz (vor Abzug der Verrechungssteuer) über die gesamte Laufzeit (mittlerer Zinssatz)"]
[165,"Angaben zu Fördergeldern"]
[166,"Einmalige Förderung\nEs können drei \"Pakete\" von einmaligen Förderbeiträgen (z.B. kantonale Förderung, EnergieZukunftSchweiz, Klimastiftung, Berghilfe etc.) mit unterschiedlichen Auszahlungsjahren  eingegeben werden."]
["166a","Einmalig ausbezahlter Förderbeitrag des Pakets"]
["166b","Jahr der Förderauszahlung des Pakets. Es wird empfohlen, die Auszahlung frühestens nach der Inbetriebnahme, besser nach dem ersten Betriebsjahr in die Kalkulation einzubeziehen. Durch eine verzögerte Auszahlung entstehen zusätzliche Zinsen für das zwischenzeitlich benötigte Fremdkapital."]
[167,"jährliche Förderung\nNebst den einmaligen Förderungen kann auch eine befristete jährliche Förderung (z.B. KliK) eingegeben werden"]
["167a","Durchschnittliche Auszahlung pro Jahr innerhalb der Förderlaufzeit."]
["167b","Laufzeit der jährlichen Förderung (Anzahl Auszahlungen)"]
["167c","Jahr der ersten Auszahlung. Bitte berücksichtigen Sie die Bearbeitungsdauer für die Berechnung der jährlichen Auszahlung. Es wird empfohlen die erste Auszahlung frühestens im Jahr nach der IBN einzurechnen."]
[170,"Berechnete Werte\nZahlenwerte, die sich aus den obigen Eingaben errechnen lassen und zur Kontrolle der Eingabe und Darstellung der Berechnung der Energiemengen dienen."]
["170a","mittlere erzeugte Jahreswärmemenge: Berechnt aus der produzierten Jahreswärmemenge gem. Register \"B1_Berechnungen\" Spalte \"Wärmebedarf\" (Pkt. 532) (Betrachtung über die Projektlauftzeit von 25 Jahren."]
["170b","Mit Biomasse (Holzschnitzeln) erzeugte Nutzwärmemenge, berechnet aus Pkt. 115a"]
["170c","Mit der direkten Kondensation erzeugte Nutzwärme, berechnet aus Pkt. 115b"]
["170d","Brennstoffbedarf für die WKK, berechnet aus Pkt. 115c und 115l"]
["170e","Mit der Wärmepumpe erzeugte Nutzwärmemenge, berechnet aus Pkt. 115d"]
["170f","Endenegiebedarf des Zusatzwärmeerzeugers, berechnet aus Pkt. 115e und 115n"]
["170g","Jährlicher Nutzwärmebedarf aus Abwärme, berchnet aus Pkt 115f"]
["170h","Fossiler Endenergiebedarf für die Spitzenlastdeckung, berechnet aus Pkt. 115g und Pkt. 115q"]
["170i","jährliche Stromproduktion aus WKK, berechnet aus Pkt. 115c, 115m"]
["170j","Eigenverbrauch der Stromproduktion aus WKK für WP und Hilfsenergie, berechnet aus Pkt. 115d,o,u,v,w; 170a,i,j"]
["170k","jährlicher Netzbezug der Wärmepumpe, berechnet aus, 115d, u, 170 a, j"]
["170l","jährlicher Netzbezug Hilfsenergie, berechnet aus 115w, 170a, j"]
["170m","jährliche Stromeinspeisung ins Netz, berechnet aus Pkt. 170i, 115u, 115w"]
["170n","jährliche Pflanzenkohleproduktion, Pkt. 115x"]
[175,"Energiekosten\nbezogen auf den mittleren Verbrauch Pkt. 170a"]
["175a","jährlichen Energiekoste Biomasse (Holzschnitzel), berechnet aus Pkt. 170b, 120a"]
["175b","jährliche Energiekosten WKK, berechnet aus Pkt. 170d, 120c"]
["175c","jährliche Energiekosten Zustazwärmeerzeuger, berechnet aus Pkt. 170f, 120d"]
["175d","jährliche Energiekosten für die Abwärmenutzung, berechnet aus Pkt. 170g, 120h"]
["175e","jährliche Energiekosten für den Einkauf der fossilen Spitzenlastenergie, berechnet aus Pkt. 170h, 120e"]
["175f","jährliche Stromkosten für die WP (Bezug vom Netz), berechnet aus Pkt. 170k, 120g"]
["175h","jährliche Stromkosten für Hilfsenergie (Netzbezug), berechnet aus Pkt. 170l, 120f"]
[177,"Ertrag aus Energie- und Pflanzenkohleverkauf"]
["177a","Ertrag aus der Stromeinspeisung, berechnet aus Pkt. 170m, 120i"]
["177b","Ertrag aus dem Verkauf der Pflanzenkohle, berechnet aus Pkt. 115x, 120j"]
[179,"Gesamtmenge der Fördermittel, berechnet aus den einmaligen Förderbeiträgen (Pkt. 166) und der jährlichen Förderung (Pkt. 167)"]
[190,"Jahreskosten und Wärmegestehungskosten\nJahreskosten =  mittlere jährliche Kosten, berechnet aus Pkt. 170 - 179\nWärmegestehungskosten = spezifiische Kosten je kWh abgegebener Nutzwärme, berechnet aus den Jahreskosten dividiert durch die mittlere erzeugte Nutzwärme (Pkt. 170a)"]
["190a","Jahreskosten berechnt aus der Kapitalisierung der Investitionskosten für die Wärmeerzeugung inkl. Zentralengebäude best. aus den Punkten 145a–145h und 50% der Planungskosten (Pkt. 145m), dem Realzinssatz und der Abschreibedauer"]
["190b","Jahreskosten berechnte aus der Kapitalisierung der Investitionskosten für die Wärmeverteilung inkl. Hausstationen best. aus den Punkten 145i–145l und 50% der Planungskosten (Pkt. 145m), dem Realzinssatz und der Abschreibedauer"]
["190c","Wartungs- und Unterhaltskosten für die Wärmeerzeugung\nUnterhaltskosten berechnet aus den Investionen aus Pkt. 145a–145h + 50% aus Pkt. 145m und den spezifiischen Unterhaltskosten (Pkt. 142)\nWartungskosten berechnet aus dem Anteil der Unterhaltskosten für die Wärmeerzeugung an den Gesamtunterhaltskosten aus Pkt. 125"]
["190d","Wartungs- und Unterhaltskosten für die Wärmeverteilung\nUnterhaltskosten berechnet aus den Investionen aus Pkt. 145i–145l + 50% aus Pkt. 145m und den spezifiischen Unterhaltskosten (Pkt. 142)\nWartungskosten berechnet aus dem Anteil der Unterhaltskosten für die Wärmeverteilung an den Gesamtunterhaltskosten aus Pkt. 125"]
["190e","Jährliche Energiekosten berechnet aus Pkt. 175"]
["190f","Ertrag aus Strom- und Pflanzenkohleverkauf, berechnet aus Pkt. 177"]
["190g","Summe der Jahreskosten und Wärmegestehungskosten aus Pkt. 190a–190f"]
["190h","Reduktion der Jahreskosten aufgrund der Förderung. Die Summe der Förderungen kapitalisiert über 25 Jahre."]
["190i","Reduzierte Jahreskosten aufgrund der Förderung"]
[]
[200,"Registerblatt \"E2_Wärmepreis\"\nAngaben zu den Wärmepreisen und Tarifbildung"]
[null,{"$error":"#VALUE!"}]
[206,"Feld für Name und Bezeichnung von Projekt und/oder Variante: wird von Pkt. 106 übernommen"]
[207,"Bearbeitende Person: wird von Pkt. 107 übernommen"]
[210,"Tarifstruktur: Es können für vier Tarifstufen individuelle Preise eingetragen werden"]
["211ff","Tarifstufen\nIm Eingabefeld ist ein Name für die Tarifstufe einzutragen\nIm Feld  \"% der Wärmemenge\" wird der Anteil der Wärmemenge dieser Tarifstufe anhand der Angaben im Register E3_Verbraucher berechnet."]
["a","Grundpreis der Tarifstufe: Grundpreis in EUR pro Jahr je kW abonnierte Wärmeleistung gemäss Wärmeliefervertrag.\nUm eine Berechnung ohne Grundpreis durchzuführen, ist in dieses Feld gleich Null zu setzen.\nÜblicherweise werden die Grundpreise je kW installierte Leistung mit zunehmender Leistung des Anschlusses etwas geringer."]
["b","Arbeitspreis Tarifstufe: Arbeitspreis in EUR je kWh für die verkaufte Wärmemenge."]
["c","Vertragslaufzeit Tarifstufe: Die übliche (durchschnittliche) Vertragslaufzeit für Wärmeverträge dieser Tarifstufe. Nach Ablauf dieser Laufzeit kann ein neuer Vertrag mit anderen Tarifen ausgehandelt werden. Da die Verträge üblicherweise stillschweigend erneuert werden, hat der Vertragsablauf keinen Einfluss auf die Berechnungen im Registerblatt \"B1_Berechnungen\".\nDie Vertragslaufzeit wird für die Berechnung der Kapitalkosten der Wärmebezüger (Pkt. 330) verwendet. "]
[]
[300,"Registerblatt \"E3_Verbraucher\"\nAngaben zu den Wärmeverbrauchern (Wärmekunden) im Wärmeverbund"]
[310,"Eingaben Verbraucher\nIn dieser Tabelle können für jeden Wärmekunden die entsprechenden Daten eingetragen werden. Diejenigen Angaben, die mit den Daten der Excel-Situationserfassung von QM Holzheizwerke korrespondieren (Pkt. 311 - 314)  können aus dieser Tabelle übernommen werden. Für die Übernahme der Daten werden die entsprechenden Zeilen kopiert und mit \"Werte Einfügen\" in die entsprechenden Zellen des Wirtschaftlichkeitsmodells eingefügt.\nAchtung: Im Unterschied zur Excel-Datei Situationserfassung können in dieser Tabelle nur maximal 180 Objekte erfasst werden.\nHinweis: Um die Dateneingabe zu vereinfachen können auch die Summenwerte der jährlichen Ausbauetappen erfasst werden."]
[311,"Nummer: Fortlaufende Nummer (Übernahme aus der Excel-Tabelle Situationserfassung möglich)\nHinweis: Damit keine Formeln kopiert werden, ist die Funktion \"Einfügen - Werte\" zu wählen."]
[312,"Bezeichnung: Drei Zeilen für die Objekt oder Etappenbenennung (Übernahme aus der Excel-Tabelle Situationserfassung möglich)\nHinweis: Damit keine Formeln kopiert werden, ist die Funktion \"Einfügen - Werte\" zu wählen."]
[320,"Gesamtwärmebedarf des Wärmekunden bestehend aus dem Wärmebedarf für Raumwärme, Warmwasser und Prozesswärme (Ab Situationserfassung V34 könnnen die Werte direkt aus dem Regiesterblatt \"Verbraucher\" übernommen werden. Bei älteren Situationserfassungen kann die Summe der einzelnen Werte übernommen werden.)"]
[321,"Abonnierte Leistung gemäss Wärmeliefervertrag\nAchtung: Hier ist die abonnierte Leistung einzutragen, die für die Verrechnung der Grundgebühr benötigt wird. Diese kann von der berechneten nötigen Leistung gemäss Excel-Tabelle Situationserfassung abweichen!"]
[322,"Anschlusszeitpunkt: Prozentualer Anteil des Wärmebedarfes im Anschlussjahr (Pkt. 323) des Gesamtwärmebedarfes (Pkt. 320)\nBeispiel: Erfolgt der Anschluss auf Beginn der Heizperiode, beträgt der Wärmebedarf im Anschlussjahr z.B. ca. 40%. Im Anschlussjahr wird dann mit einem Wärmeverkauf von 40% gerechnet und im Folgejahr 100%"]
[323,"Anschlussjahr: Kalenderjahr, in dem der Verbraucher erstmals mit Wärme versorgt wird"]
[324,"Tarifstufe des Wärmepreises für den Verbraucher (Auswahlfeld: es können die in E2_Wärmepreis definierten Tarifstufen gewählt werden)"]
[325,"Anschlusskosten: einmalige Anschlusskosten, die der Verbraucher an den Wärmeverbund entrichtet. Die Kosten werden im Anschlussjahr (Pkt. 323) als Ertrag für den Wärmeverbund verbucht."]
[326,"Förderbeitrag: einmaliger Förderbeitrag für den Anschluss an das Wärmenetz. Der Betrag wird direkt an den Wärmekunden ausbezahlt. Der Betrag ist poisitiv einzutragen. Der Förderbeitrag wird in den Kapitalkosten des Wärmebezügers (Pkt.330) berücksichtigt."]
[330,"jährliche Kapitalkosten Wärmebezüger: lineare, unverzinste Abschreibung der einmaligen Anschlusspauschale (Pkt. 325) abzüglich dem Förderbeitrag für den Anschluss (Pkt. 326) über die Vertragslaufzeit (Pkt. 21Xc)"]
[331,"jährliche Grundkosten für den Verbraucher: Berechnet aus der abonnierten Leistung und den Grundkosen der gewählten Tarifstufe"]
[332,"jährliche Energiekosten für den Verbraucher: Berechnet aus dem Jahreswärmebedarf und dem Arbeitspreis der gewählten Tarifstufe"]
[333,"jährliche Grund- und Energiekosten für den Verbraucher: Summe aus Pkt. 331 + 332 (Dieser Wert wird als jährlicher Ertrag für den Wärmeverbund verbucht)"]
[334,"Jahreskosten für den Verbraucher: Summe aus Kapital-, Grund- und Energiekosten (Pkt. 330-332)"]
[335,"Wärmegestehungspreis der Verbraucher: Berechnet aus den Jahreskosten (Pkt. 334) und dem Wärmebezug (Pkt. 320)"]
[]
[500,"Registerblatt \"B1_Berechnungen\"\nKalkulationsblatt: Darstellung der vereinfachten finanziellen Entwicklung des Projekts innerhalb von 25 Jahren.\nDer Abschnitt Betriebskosten (Pkt. 510) basiert auf den berechneten Werten aus dem Register \"E1_Projektdaten\". \nDie Verfahren der dynamischen Investitionsrechnung berücksichtigen den Zahlungszeitpunkt der einzelnen Einnahmen und Ausgaben per Ende Jahr.\n"]
[501,"Warnungshinweis: Wenn in den Eingabeblättern E1 und E2 noch Warnungen anstehend sind, wird in diesem Feld ein \"Sammelalarm\" ausgegeben."]
[505,"Diagramm Wirtschaftliche Entwicklung  im Verlauf der Perioden 1-25. \n"]
[506,"Diagramm mit der Darstellung der Entwicklung des Kreditstandes und des Restwertes der Anlage im Verlauf der Perioden 1-25. \nHinweis: Um den Kredit sichern zu können darf der Restwert nicht kleiner als der Kreditstand sein!"]
[510,"Zusammenstellung der Betriebskosten: Es werden jeweils die theoretischen Gesamtkosten beim Vollausbau (100% Anschluss) im ersten Betriebsjahr (ohne Teuerung) dargestellt."]
["510a","Total der Betriebskosten: Berechnet aus der Summe der Punkte: 510a-510k.\nDie Teuerung entspricht dem gewichteten Mittelwert der Teuerungen von Pkt. 510a-510k "]
["510b","Brennstoff Biomasse: Summe Pkt. 175a + 175b"]
["510c","Energieksoten Zusatzwärmeerzeuger: Pkt. 175c"]
["510d","Energieksoten Abwärmenutzung: Pkt. 175d"]
["510e","Brennstoffkosten fossil: Pkt. 175e"]
["510f","Stromkosten Netzbezug: Summe Pkt. 175f + 175g"]
["510g","Betriebskosten: siehe Pkt. 125a"]
["510h","Administration: siehe Pkt. 125b"]
["510i","Unterhaltskosten: siehe Pkt. 125c"]
["510j","Miete /Pacht / Grundstückskosten: siehe Pkt. 125g"]
["510k","Sonstige (Versicherung etc.): siehe Pkt. 125h"]
["510q","Ertrag aus Stromverkauf: siehe Pkt. 177a"]
["510r","Ertrag aus dem Pflanzenkohleverkauf: siehe Pkt. 177b"]
["510w","Teuerung des Wärmeverkaufspreises: Übernimmt den gewichteten Mittelwert der Teuerungen von Pkt. 510a-510k (Der Wert kann überschrieben werden. Das Überschreiben des berechneten Wertes löscht die hinterlegte Formel!)"]
[511,"Teuerungsspalte: Als Standard wird die allgemeine Teuerung, die im Register E1_Projektdaten (Pkt. 125m) erfasst wird eingesetzt.\nEs kann jedoch für jede Kostenposition eine individuelle jährliche Teuerung eingesetzt werden.\nIn Pkt. 510b Biomasse ist auch der Brennstoff und die Teuerung der WKK-Anlage enthalten.\nIn Pkt. 510w (Wärmepreis) wird die Teuerung aufgrund des gewichteten Mittelwertes berechnet. Der Wert kann bei Bedarf überschrieben werden\nAchtung: Das Überschreiben des berechneten Wertes löscht die hinterlegte Formel!"]
[530,"Berechnungen über die Projektlaufzeit von 25 Jahren"]
[531,"Jahr - die Periodisierung dieses Berechnungswerkzeugs ist 1 Periode = 1 Betriebsjahr."]
[532,"Wärmebedarf der zum aktuellen Zeitpunkt angeschlossenen Verbraucher inkl. prozentualem Zuschlag für Netzverluste (Pkt. 110b) und Berücksichtigung des jährlichen Rückganges des Wärmebedarfes (Pkt. 110c)"]
[533,"Auslastung des Heizwerks bzw. Wärmenetzes bezogen auf den mittleren Wärmebezug"]
[541,"Investitionen: Die Erstinvestition wird zum prozentualen Anteil (Pkt. 150) im ersten Jahr in dieser Spalte verbucht. Die weiteren Investitionen, werden anteilsmässig in den entsprechenden Jahren verbucht.\nErsatzinvestitionen werden nach Ablauf der Nutzungsdauer (Pkt. 143) inkl. Einrechnung der allgemeinen Teuerung (Pkt. 125m) erneut investiert. "]
[542,"Auszahlung von Fördergeldern die einmalig ausbezahlt werden (Pkt. 166). Diese Fördergelder  werden als Finanzierungshilfe und nicht als Ertrag berücksichtigt. \nAchtung: Das Überschreiben der Formeln löscht die Berechnung"]
[543,"Anschlussbeiträge der Verbraucher (Pkt. 325) werden im Jahr des Anschlusses (Pkt. 323) eingerechnet. Anschlussbeiträge dienen der Finanzierung und werden nicht als Ertrag berücksichtigt.\nDie Beträge können in den Jahren geschoben werden, sofern dies im Vertrag so vorgesehen ist.\nHinweis: Wenn die Summe der Anschlussbeiträge in Pkt 543 von der Summe in Pkt. 325 abweicht, wird der Spaltenkopf rot eingefärbt."]
[544,"Netto-Investitiopnskosten, die im betreffenden Jahr aufgewendet werden müssen. Berechnet aus Pkt. 541 bis 543)"]
[551,"benötigte Eigenmittel (siehe Pkt. 155) im betreffenden Jahr zur Deckung der Nettoinvestitionen (Pkt. 544).\nDie Beträge können manuell verändert werden.\nHinweis: Wenn die Summe der Eigenmittel in Pkt 551 die Summe in Pkt. 155 übersteigt, wird der Spaltenkopf rot eingefärbt."]
[552,"Kredite / Darlehen: Die Auszahlung von Krediten und Darlehen erfolgen ab dem Startjahr (Pkt. 160c) bis der Kredit (Pkt. 160a) ausgeschöpft ist.\nDie Kreditammortisation erfolgt unter Pkt. 580 im Rahmen der Cashflow Berechnung (Pkt. 581)\nDie Zinszahlungen (Pkt. 578) werden in der Aufwandsberechnung verbucht."]
[555,"Finanzierungslücke Berechnung einer allfälligen Finanzierungslücke. Diese wird kummuliert und kann mit dem kummulierten Cashflow (Pkt. 582) in der Spalte daneben verglichen werden."]
[561,"Ertrag aus dem Fernwärmeverkauf: Grundpreis und Wärmeverkauf"]
[562,"Ertrag aus der Stromeinspeisung inkl. HKN"]
[563,"Ertrag aus dem Verkauf von Pflanzenkohle"]
[564,"Auszahlung von jährlich wiederkehrenden Fördergelder (Pkt. 167)\nDie Werte können überschrieben werden.\nAchtung: Das Überschreiben der Formeln löscht die Berechnung"]
[566,"Zusätzliche Erträge - Spalte für freie Eingabe (Der Spaltentitel kann überschrieben werden)\nAchtung NPV: Diese Erträge werden im Registerblatt \"A2_NPV-Daten\" unter 930 aufgeführt.  Sie müssen manuell an die richtigen Stellen  übertragen werden!"]
[567,"Effektiver Ertrag: Für die laufende Nachkalkulation können in dieser Spalte die effektiven Jahreserträge eingetragen werden.\nIst in der Spalte ein Wert >0 eingetragen, werden im betreffenden Jahr für die weiteren Auswertungen die Einträge in den Spalten 561 bis 566 ignoriert.\nAchtung NPV: Diese Erträge werden nicht automatisch ins Registerblatt \"A2_NPV-Daten\" übernommen."]
[569,"Gesamtertrag des Projektes"]
["571a","Brennstoffkosten Holzschnitzel, Teuerung eingerechnet"]
["571b","Brennstoffkosten der WKK,  Teuerung eingerechnet"]
["571c","Energiekosten des Zusatzwärmeerzeugers, Teuerung eingerechnet"]
["571d","Energiekosten der Abwärmenutzung, Teuerung eingerechnet"]
["571e","Kosten fossiler Brennstoffe, Teuerung eingerechnet"]
["572a","Stromkosten für die Wärmepumpe, Teuerung eingerechnet"]
["572b","Stromkosten für die Hilfsenergie, Teuerung eingerechnet"]
["574a","Kosten für Betrieb (Pkt. 125b; 510g)  und Administration (Pkt.125a; 510h) , Teuerung eingerechnet, die Kosten werden erst ab dem Jahr der ersten Wärmelieferung berechnet"]
["574b","Unterhaltskosten: siehe auch Pkt. 125c, Teuerung eingerechnet, die Kosten werden erst ab dem Jahr der ersten Wärmelieferung berechnet\nHinweis: Die Unterhaltskosten werden im Tool nach dem selben Verteiler gestaffelt wie die Investitionskosten (siehe Pkt. 150 Inbvestitionsstaffelung). Bei Abweichungen zwischen den effektiven Unterhaltskosten und den in Pkt. 574b ausgewiesenen Aufwendungen, sind die Prozentsätze in Pkt. 142 entsprechend anzupassen oder Korrekturbeträge in der Spalte \"zusätzlicher Aufwand\" Pkt. 576 einzutragen."]
[575,"sonstige Kosten und Miet- und Pachtaufwand, Teuerung eingerechnet, diese Kosten fallen ab dem ersten Jahr an"]
[576,"Zusätzliche Aufwendungen oder Korrekturen der berechneten Aufwendungen (Differenzen) können in dieser Spalte eingetragen werden. Zur Verbesserung der Verständlichkeit ist der Spaltentitel überschreibbar.\nHinweis: Diese Aufwendungen werden nicht als Wertmehrung im Anlagenwert verbucht.\nAchtung NPV: Diese Aufwendungen werden im Registerblatt \"A2_NPV-Daten\" unter Pkt. 930 aufgeführt. Sie müssen manuell an die richtigen Stellen  übertragen werden!"]
[577,"Effektiver Aufwand: Für die laufende Nachkalkulation können in dieser Spalte die effektiven Jahreskosten eingetragen werden.\nIst in der Spalte ein Wert >0 eingetragen, werden im betreffenden Jahr für die weiteren Auswertungen die Einträge in den Spalten 571a bis 576 ignoriert\nAchtung NPV: Diese Aufwendungen werden nicht ins Registerblatt \"A2_NPV-Daten\" übernommen."]
[578,"Zinskosten von Krediten und Darlehen\nDie erste Zinszahlung ist im Auszahlungsjahr fällig"]
[579,"Summe der Aufwendungen des Wärmeverbundes"]
[580,"Kreditamortisation Ab dem Jahr der Kreditrückzahlung (Beginn Amortisation, Pkt. 160d), wird der Kredit (Pkt. 160a) bis zum Ablauf der Laufzeit (Pkt. 160b) linear amortisiert."]
[581,"Cashflow: Berechnung der flüssigen Mittel (Nettozu- / -abfluss) aus Gesamtertrag (Pkt. 569), Gesamtaufwand vor Abschreibungen (Pkt. 579), Kreditamortisation (Pkt. 580)"]
[582,"Kumulierter Cashflow"]
[585,"Abschreibung der Investitionen (Pkt. 145) über die Abschreibedauer (Pkt. 143)\nHinweis: Fällige Ersatzinvestitionen werden ebenfalls abgeschrieben"]
[588,"Erfolgsrechnung: Jahresgewinn / Verlust aus Ertrag (Pkt. 569), Aufwand (Pkt. 579), und Abschreibungen (Pkt. 585)"]
[589,"Erfolgsrechnung: Kumulierter Überschuss / Fehlbetrag"]
[591,"Restwert der Anlage unter Berücksichtigung der Abschreibung\nDer Restwert berechnet sich aus dem prozentualen Investitionsanteil und der entsprechenden Abschreibung.\nHinweis: Die Kosten für die Hausstationen und die Planung sind nicht eingerechnet."]
[592,"Kreditstand (informativ) - Reine netto-Berechnung des Kreditstands, ohne Kosten für Bankgebühren, Errichtung etc.\nBedingte Formatierung: Wenn der Kreditstand durch den Restwert der Anlage nicht gesichert ist, wird das Feld rot hinterlegt."]
[599,"Betriebsjahr: Jahr der Inbetriebnahme (Pkt. 110h) = Jahr 1 (informativ). Aus diesem Wert wird der Zeitpunkt von Erneuerungsinvestitionen errechnet."]
[]
[600,"Registerblatt \"A1_Ergebnisse\"\nIn diesem Registerblatt sind die wichtigsten Ergebnisse zusammengefasst und ausgewertet"]
[610,"Investitionskosten: Zusammenstellung"]
[612,"Wärmeerzeugungsanlagen und Installationen: Berechnete Summe aus den Punkten 145a bis 145i"]
[613,"Hausstationen inkl. Wärmemessungen: Berechnete Summe aus den Punkten 145k und 145l"]
[615,"Finanzierung: Zusammenstellung"]
[620,"Jahreskosten: Die Auswertung erfolgt einerseits für das Jahr der Inbetriebnahme (Pkt. 110h), für ein wählbares Jahr innerhalb des Betrachtungsraumes und als Summe über die gesamte Projektlaufzeit."]
[621,"Energiekosten: Berechnete Summe aus den Punkten 571 und 572.\nAchtung: Diese Auswertung wird nicht angepasst, wenn im Eingabefeld von Pkt. 577 ein effektiver Aufwand eingetragen wird!"]
[622,"Betrieb und Unterhalt: Berechnete Summe aus den Punkten 574, 575 und 576\nAchtung: Diese Auswertung wird nicht angepasst, wenn im Eingabefeld von Pkt. 577 ein effektiver Aufwand eingetragen wird!"]
[623,"Verzinsung des Fremdkapitals: Übertrag aus dem Punkt 578"]
[624,"Total Aufwand: Berechnete Summe aus den Punkten 621 bis 623\nAchtung: Diese Auswertung wird nicht angepasst, wenn im Eingabefeld von Pkt. 577 ein effektiver Aufwand eingetragen wird!"]
[625,"Wärme- und Energieverkauf sowie Ertrag aus dem Pflanzenkohleverkauf: Berechnete Summe aus den Punkten 561, 562 und 563\nAchtung: Diese Auswertung wird nicht angepasst, wenn im Eingabefeld von Pkt. 567 ein effektiver Aufwand eingetragen wird!"]
[626,"jährliche Fördergelder und sonstiges: Berechnete Summe aus den Punkten 564 und 566\nAchtung: Diese Auswertung wird nicht angepasst, wenn im Eingabefeld von Pkt. 567 ein effektiver Aufwand eingetragen wird!"]
[627,"Total Ertrag: Berechnete Summe aus den Punkten 625 und 626\nAchtung: Diese Auswertung wird nicht angepasst, wenn im Eingabefeld von Pkt. 567 ein effektiver Aufwand eingetragen wird!"]
[650,"Auswertungen Energie: Die Auswertungen erfolgen für die gleichen Betrachtungsräume wie in Pkt. 620 beschrieben"]
[655,"Grafik: Entwicklung der Netzauslastung über den Projektzeitraum (Diagramm)"]
[690,"Bemerkungen: Feld für die Eingabe von Bemerkungen und Interpretationen."]
[]
[700,"Registerblatt \"A2_Planerfolgsrechnung\""]
[710,"Bruttoergebnis Berechnet aus Gesamtertrag (Pkt. 569) abzüglich Energiekosten (Pkt. 571a-572b)"]
[711,"EBITDA (Earnings Before Interest, Taxes, Deprecation and Amortization) Gewinn vor Zinsen, Steuern, Abschreibungen\nBruttoergebnis (Pkt. 710) abzüglich Kosten für Betrieb und Unterhalt (Pkt. 574a,b, 575 und 576)"]
[712,"EBIT (Earnings Before Interest and Taxes) Gewinn vor Zinsen und Steuern\nEBITDA (Pkt. 711) abzüglich Abschreibungen (Pkt. 585)"]
[713,"übriger Finanzaufwand (Eingabefeld für individuelle Eingabe)"]
[714,"Steuern (Eingabefeld für individuelle Eingabe)"]
[715,"Reingewinn /-Verlust: EBIT (Pkt. 712) abzüglich Zinsen (Pkt. 578), Steuern (Pkt. 713) und übriger Finanzaufwand (Pkt. 714)"]
[716,"kummulierter Reingewinn /-Verlust"]
[]
[800,"Registerblatt \"A8_Sensitivität\"\nIn diesem Registerblatt kann die Sensitiviät unterschiedlicher Parameter berechnet werden"]
[811,"Sensitivität Wärmegestehungspreis\nAuswirkungen von Änderungen verschiedener Parameter auf den Wärmegestehungspreis\nIn der Tabelle wird der jeweils resultierende Wärmegestehungspreis inkl. Förderung Pkt. 190i ausgegeben"]
["81xa","Auswahl der zu beeinflussenden Grösse für den Zeilenbezug der Sensitivitätsanalyse"]
["81xb","Änderung der zu beeinflussenden Grösse in %"]
["81xc","Auswahl der zu beeinflussenden Grösse für den Spaltenbezug der Sensitivitätsanalyse und Änderung der zu beeinflussenden Grösse in %"]
[]
[900,"Registerblatt NPV-Daten\nExportvorlage für NPV-Rechner: Das Registerblatt stellt diejenigen Daten aus dem Tool zusammen, die für die Berechnung des NPV benötigt werden. Die Darstellung ist an das  KliK-Tool \"Tool für den Nachweis der Zusätzlichkeit von Fernwärmeprojekten\" (Version 3.2 vom 10. Februar 2016) angepasst.\nAngaben für das KliK-Tool, die nicht aus der vorliegenden Datei übernommen werden können, sind im Export nicht enthalten.\nÄnderungen im Tool oder andere Ansichten werden durch das QMH-Wirtschaftlichkeits-Tool nicht automatisch geändert."]
[910,"KliK-Register Inputgrössen"]
[911,"Schlüsselkunden: Die Daten der Spalten \"Bezeichnung\", \"Leistung\" und \"Jahreswärmebedarf\"  werden aus dem Registerblatt \"E3_Verbraucher\" übernommen. Die Spalte \"Gebäudetyp & Bezugscharakteristik\" muss noch nachgeführt werden.\nAchtung: Das KliK-Tool verfügt lediglich über 15 Verbraucher. Es werden die ersten 15 Verbraucher übernommen. Bei mehr Verbrauchern sind die Verbraucher zu gruppieren, so dass der Gesamtverbrauch abgedeckt ist."]
[912,"Schlüsselkunden: Die Daten der Spalten \"Jahr Anschluss\"  werden aus dem Registerblatt \"E3_Verbraucher\" übernommen. Die Spalte \"Leistung im Vollausbau\" übernimmt die Werte aus der Spalte \"Leistung\" von Pkt. 911. Die Werte können überschrieben werten.\nAchtung: Das Überschreiben der Zelle löscht die Formel."]
[920,"KliK-Register Wärmebezug; Abschnitt Referenzentwicklung"]
[921,"Wärmebezug: Der Nutzwärmebedarf wird in Abhängigkeit des Anschlusszeitpunktes aus dem Registerblatt \"E3_Verbruacher\" übernommen\nIm Unterschied zum vorliegenden Tool beträgt der Betrachtungszeitraum 15 Jahre."]
[922,"Elektrizitätsverbrauch: Der Strombedarf als Hilfsenergie wird aus dem Registerblatt \"B1_Berechnungen\" (Pkt. 556) übernommen."]
[923,"Fernwärmenetz (40a): Die Investitionskosten für das Wärmenetz werden aus dem Registerblatt \"B1_Berechnungen\" übernommen. Die Aufteilung der jährlichen Kosten Fernwärmenetz / Heizzentrale erfolgt im Verhältnis der Gesamtinvestitionskosten.\nAchtung: Aufwendungen aus der Spalte \"übrige Aufwendungen\" (Pkt. 651) werden nicht automatisch ins Registerblatt \"A2_NPV-Daten\" übernommen. Sie müssen manuell an die richtigen Stelle  übertragen werden!"]
[924,"Heizzentrale bzw. dezentrale Wärmesysteme (15 Jahre): Die Investitionskosten für die Heizzentrale werden aus dem Registerblatt \"B1_Berechnungen\" übernommen. Die Aufteilung der jährlichen Kosten Fernwärmenetz / Heizzentrale erfolgt im Verhältnis der Gesamtinvestitionskosten.\nAchtung: Aufwendungen aus der Spalte \"übrige Aufwendungen\" (Pkt. 651) werden nicht automatisch ins Registerblatt \"A2_NPV-Daten\" übernommen. Sie müssen manuell an die richtigen Stelle  übertragen werden!"]
[925,"Betrieb und Unterhalt: Die Jahreskosten für Betrieb und Unterhalt werden aus dem Registerblatt \"B1_Berechnungen\" (Punkte 557, 558 und 559) übernommen.\nAchtung: Aufwendungen aus der Spalte \"übrige Aufwendungen\" (Pkt. 651) werden nicht automatisch ins Registerblatt \"A2_NPV-Daten\" übernommen. Sie müssen manuell an die richtigen Stelle  übertragen werden!"]
[926,"Energiekosten: Die Energiekosten werden aus dem Registerblatt \"B1_Berechnungen\" (Punkte 554, 555 und 556) übernommen.\nAchtung: Aufwendungen aus der Spalte \"übrige Aufwendungen\" (Pkt. 651) werden nicht automatisch ins Registerblatt \"A2_NPV-Daten\" übernommen. Sie müssen manuell an die richtigen Stelle  übertragen werden!"]
[927,"Anschlussbeiträge / einmalige Erträge: Die Anschlussbeiträge werden aus dem Registerblatt \"B1_Berechnungen\" (Pkt. 572) übernommen.\nAchtung: Aufwendungen aus der Spalte \"übrige Aufwendungen\" (Pkt. 651) werden nicht automatisch ins Registerblatt \"A2_NPV-Daten\" übernommen. Sie müssen manuell an die richtigen Stelle  übertragen werden!"]
[928,"Wärmeverkauf / wiederkehrende Erträge: Die Erträge aus dem Wärmeverkauf werden aus dem Registerblatt \"B1_Berechnungen\" (Pkt. 571) übernommen.\nAchtung: Aufwendungen aus der Spalte \"übrige Aufwendungen\" (Pkt. 651) werden nicht automatisch ins Registerblatt \"A2_NPV-Daten\" übernommen. Sie müssen manuell an die richtigen Stelle  übertragen werden!"]
[929,"Förderbeiträge Dritter (Kanton, Bund, Gemeinde): Die Auszahlung der einmaligen Fördergelder werden aus dem Registerblatt \"E1_Projektdaten\" (Punkte 172 und 174) übernommen und im entsprechenden Auszahlungsjahr (Punkte 173 und 175) eingetragen.\nHinweis: Mehrjährige Förderungen (ausser KliK-Beträge) müssen manuell nachgetragen werden!"]
[930,"nicht eingerechneter Aufwand und Ertrag:\nDie Beträge aus den Spalten \"Zusätzlicher Aufwand\" (Pkt. 561) und \"Zusätzlicher Ertrag\" (Pkt. 574) werden hier ausgewiesen. Da bei diesen Beträge nicht definiert ist, welchen Zeilen sie zuzuordnen sind, müssen die Beträge vor dem Export manuell in den entsprechenden Feldern ergänzt werden."]
[]
[null,"Einheiten"]
["MWh","Megawattstunde thermisch bzw. Wärme"]
["kWh","Kilowattstunde thermisch bzw. Wärme"]
["MWhel","Megawattstunde elektrisch bzw. Strom"]
["kWhel","Kilowattstunde elektrisch bzw. Strom"]
["a","Jahr (anno)"]
["EUR","Euro"]
["%","Prozent"]
[]
[null,"Abkürzungen"]
["VJ","Vorjahr"]
["lfd.","laufende"]
["ÜS","Überschuss"]

{"sheet":"E1_Projektdaten","index":1,"n_rows":163,"n_cols":34,"rows_kept":163}
[100,"QM Holzheizwerke - Wirtschaftlichkeitsmodell - Projektdaten"]
[{"$nulls":10},105,null,105]
["101a",null,"Eingabefeld",{"$nulls":7},"Vorgabewerte",{"$nulls":3},"Bemerkungen",null,"Hinweise"]
["b",null,"Standardwert oder Berechnung (kann geändert werden)"]
["e",null,"Vorgabewert des Standardwertes"]
["101k","(exkl. MWST)"]
[]
[106,"Projekt/Variante:"]
[]
[]
[]
[107,"Erfasst von:"]
[]
[108,"Warnungen\nHinweise:",{"$f":"IF(W14>10,X15,IF(W14>0,X14,\"\"))","v":"Mehr als 10 Hinweise!"},{"$nulls":19},{"$f":"COUNTIF(U17:W164,\">0\")","v":21},{"$f":"_xlfn.TEXTJOIN(\", \",TRUE,X18:X164)","v":"110a: Der Gesamtwärmebezug ist sehr klein, 110c: Keine jährliche Abnahme des Wärmeabsatzes eingegeben., 110g: Das Jahr des Projektbeginns liegt vor 2000 , 115a: Der mit dem Holzkessel erzeugte Anteil an der Jahreswärmemenge ist gering, 115q: Der Jahresnutzungsgrad des fossilen Kessels ist sehr tief, 120e: Der Preis des fossilen Brennstoffs ist sehr tief, 120f: Der Strompreis ist sehr tief120f: Der Strompreis ist Null. , 125a: Die jährlichen Personalkosten sind sehr tief, 125b: Der jährlichen externen Betriebskosten sind sehr tief, 125c: Die jährlichen Unterhaltskosten sind sehr tief, 125g: Die jährlichen Grundstückskosten sind sehr tief, 125h: Die sonstigen Kosten sind sehr tief, 145a: Die Baukosten für die Heizzentrale sind sehr tief, 145b: Die Kosten für holzspezifische Anlagenteile sind sehr tief, 145h: Die Kosten für spitzenlastspezifische Anlagenteile sind sehr tief, 145i: Die Kosten für die Installationen in der Zentrale sind sehr tief, 145j: Die Baukosten für das Wärmenetz sind sehr tief, 145k: Die Kosten für die Wärmemessung sind sehr tief, 145l: Die Kosten für die Hausstationen sind sehr tief"}]
[{"$nulls":23},"Mehr als 10 Hinweise!","Es existieren Warnungen im Register 'E1_Projektdaten'!"]
[{"$nulls":18},"Min","Max","Unters.","Übers.","S.Fehler","Warnung","MinText","MaxText","SonstText"]
[110,"Wärmemengen, Netz, Projektstart"]
["a",null,"max. Gesamtwärmebezug der Abnehmer",{"$f":"SUM(E3_Verbraucher!$D$18:$XFD$18)","v":0},"MWh/a",{"$nulls":13},10,9999999999,{"$f":"IF($D18<S18,1,0)","v":1},{"$f":"IF($D18>T18,1,0)","v":0},null,{"$f":"IF(U18=1,Y18,IF(V18=1,Z18,IF(W18=1,AA18,\"\")))","v":"110a: Der Gesamtwärmebezug ist sehr klein"},"110a: Der Gesamtwärmebezug ist sehr klein","110a: Der Wärmebezug ist sehr gross"]
["b",null,"Netzverluste",10,"%",{"$nulls":5},10,{"$nulls":7},4,20,{"$f":"IF($D19<S19,1,0)","v":0},{"$f":"IF($D19>T19,1,0)","v":0},{"$f":"IF(D19=\"\",1,0)","v":0},{"$f":"IF(U19>0,Y19,\"\")&IF(V19>0,Z19,\"\")&IF(W19>0,AA19,\"\")","v":""},"110b: Die Netzverluste des Wärmenetzes sind sehr niedrig","110b: Die Netzverluste des Wärmenetzes sind sehr hoch","110b: Keine Netzverluste eingegeben."]
["c",null,"Abnahme des Wärmebedarfes (Effizienzsteigerung) ",null,"%",{"$nulls":13},0,5,{"$f":"IF($D20<S20,1,0)","v":0},{"$f":"IF($D20>T20,1,0)","v":0},{"$f":"IF(D20=\"\",1,0)","v":1},{"$f":"IF(U20>0,Y20,\"\")&IF(V20>0,Z20,\"\")&IF(W20>0,AA20,\"\")","v":"110c: Keine jährliche Abnahme des Wärmeabsatzes eingegeben."},"110c: Die Abnahme des Wärmeabsatzes der Wärmebezüger ist negativ; Mehrverbrauch. ","110c: Die jährliche Abnahme des Wärmeabsatzes ist sehr hoch. ","110c: Keine jährliche Abnahme des Wärmeabsatzes eingegeben."]
[]
["g",null,"Jahr des Projektbeginns",{"$nulls":15},2000,2100,{"$f":"IF($D22<S22,1,0)","v":1},{"$f":"IF($D22>T22,1,0)","v":0},null,{"$f":"IF(U22>0,Y22,\"\")&IF(V22>0,Z22,\"\")&IF(W22>0,AA22,\"\")","v":"110g: Das Jahr des Projektbeginns liegt vor 2000 "},"110g: Das Jahr des Projektbeginns liegt vor 2000 ","110g: Das Jahr des Projektbeginns liegt nach 2100. "]
["h",null,"Jahr der Inbetriebnahme / erste Wärmelieferung",{"$f":"MIN(E3_Verbraucher!D21:XFD21)","v":0},{"$nulls":6},{"$f":"MIN(E3_Verbraucher!D21:XFD21)","v":0},{"$nulls":7},{"$f":"Eing_Beginnjahr","v":0},{"$f":"S23+3","v":3},{"$f":"IF($D23<S23,D23,0)","v":0},{"$f":"IF($D23>T23,1,0)","v":0},null,{"$f":"IF(U23>0,Y23,\"\")&IF(V23>0,Z23,\"\")&IF(W23>0,AA23,\"\")","v":""},"110h: Das Jahr Inbetriebnahme liegt vor dem Projektbeginn. ","110h: Das Jahr der Inbetriebnahme liegt mehr als 3 Jahre nach dem Projektbeginn. Erste Wärmelieferung im Register Verbraucher anpassen. "]
[]
[115,"Energiemengen, Produktion"]
["a",null,"Anteil der mit Holzschnitzelkesseln erzeugten Nutzwärme",null,"%",{"$nulls":13},70,100,{"$f":"IF($D26<S26,1,0)","v":1},{"$f":"IF($D26>T26,1,0)","v":0},null,{"$f":"IF(U26>0,Y26,\"\")&IF(V26>0,Z26,\"\")&IF(W26>0,AA26,\"\")","v":"115a: Der mit dem Holzkessel erzeugte Anteil an der Jahreswärmemenge ist gering"},"115a: Der mit dem Holzkessel erzeugte Anteil an der Jahreswärmemenge ist gering","115a: Der mit dem Holzkessel erzeugte Anteil an der Jahreswärmemenge ist über 100%"]
["b",null,"Anteil der erzeugten Nutzwärme aus Abgaskondensation",null,"%",{"$nulls":13},0,{"$f":"0.2*Eing_Anteil_Biomasse","v":0},0,0,null,"","115b: Der mit der Abgaskondensation erzeugte Anteil an der Jahreswärmemenge ist gering","115b: Der mit der Abgaskondensation erzeugte Anteil an der Jahreswärmemenge ist sehr hoch"]
["c",null,"Anteil der mit WKK erzeugten Nutzwärme",null,"%",{"$nulls":13},10,100,{"$f":"IF(AND($D28>0,$D28<S28),1,0)","v":0},0,null,"","115c: Der mit der WKK erzeugte Anteil an der Jahreswärmemenge ist gering","115c: Der mit der WKK erzeugte Anteil an der Jahreswärmemenge ist über 100%"]
["d",null,"Anteil der mit Wärmepumpen erzeugten Nutzwärme",null,"%",{"$nulls":13},5,100,{"$f":"IF(AND($D29>0,$D29<S29),1,0)","v":0},0,null,"","115d: Der mit der WP erzeugte Anteil an der Jahreswärmemenge ist gering","115d: Der mit der WP erzeugte Anteil an der Jahreswärmemenge ist über 100%"]
["e",null,"Anteil der mit Zusatzwärmeerzeuger erzeugten Nutzwärme",null,"%",{"$nulls":13},10,100,0,0,null,"","115e: Der mit dem Zusatzwärmeerzeuger erzeugte Anteil an der Jahreswärmemenge ist gering","115e: Der mit dem Zusatzwärmeerzeuger erzeugte Anteil an der Jahreswärmemenge ist über 100%"]
["f",null,"Anteil der erzeugten Nutzwärme aus Abwärme",null,"%",{"$nulls":13},5,100,0,0,null,"","115f: Der mit Abwärme erzeugte Anteil an der Jahreswärmemenge ist gering","115f: Der mit Abwärme erzeugte Anteil an der Jahreswärmemenge ist über 100%"]
["g",null,"Anteil der fossil erzeugten Nutzwärme",{"$f":"100-SUM(D26:D31)","v":{"v":100,"d":"100.00"}},"%"]
["l",null,"Jahresnutzungsgrad WKK thermisch",null,"%",{"$nulls":13},30,100,{"$f":"IF(Eing_Anteil_WKK=0,0,IF($D33<S33,1,0))","v":0},{"$f":"IF(Eing_Anteil_WKK=0,0,IF($D33>T33,1,0))","v":0},null,{"$f":"IF(U33>0,Y33,\"\")&IF(V33>0,Z33,\"\")&IF(W33>0,AA33,\"\")","v":""},"115l: Der thermische Jahresnutzungsgrad der WKK ist sehr tief ","115l: Der thermische Jahresnutzungsgrad der WKK ist sehr hoch "]
["m",null,"Jahresnutzungsgrad WKK elektrisch",null,"%",{"$nulls":13},10,50,{"$f":"IF(Eing_Anteil_WKK=0,0,IF($D34<S34,1,0))","v":0},{"$f":"IF(Eing_Anteil_WKK=0,0,IF($D34>T34,1,0))","v":0},null,"","115m: Der elektrische Jahresnutzungsgrad der WKK ist sehr tief ","115m: Der elektrische Jahresnutzungsgrad der WKK ist sehr hoch "]
["n",null,"Jahresnutzungsgrad Zusatzwärmeerzeuger",null,"%",{"$nulls":13},40,90,{"$f":"IF(Eing_Anteil_WP=0,0,IF($D35<S35,1,0))","v":0},{"$f":"IF(Eing_Anteil_WP=0,0,IF($D35>T35,1,0))","v":0},null,{"$f":"IF(U35>0,Y35,\"\")&IF(V35>0,Z35,\"\")&IF(W35>0,AA35,\"\")","v":""},"115n: Der Jahresnutzungsgrad des Zusatzwärmerzeugung ist sehr tief","115n: Der Jahresnutzungsgrad des Zusatzwärmeerzeugers ist sehr hoch"]
["o",null,"Jahresarbeitszahl JAZ der Wärmepumpe",null,"-",{"$nulls":13},1,10,{"$f":"IF(Eing_Anteil_WP=0,0,IF($D36<S36,1,0))","v":0},{"$f":"IF(Eing_Anteil_WP=0,0,IF($D36>T36,1,0))","v":0},null,"","115o: Die Jahresarbeitszahl der WP ist sehr tief ","115o: Der Jahresarbeitszahl der WP ist sehr hoch"]
["q",null,"Jahresnutzungsgrad Kessel fossil",null,"%",{"$nulls":13},40,98,{"$f":"IF(Anteil_fossil_erzeugt=0,0,IF($D37<S37,1,0))","v":1},{"$f":"IF(Anteil_fossil_erzeugt=0,0,IF($D37>T37,1,0))","v":0},{"$f":"IF(Anteil_fossil_erzeugt=0,0,IF(D37=\"\",1,0))","v":1},{"$f":"IF(U37>0,Y37,\"\")&IF(V37>0,Z37,\"\")&IF(W37>0,AA37,\"\")","v":"115q: Der Jahresnutzungsgrad des fossilen Kessels ist sehr tief"},"115q: Der Jahresnutzungsgrad des fossilen Kessels ist sehr tief","115q: Der Jahresnutzungsgrad des fossilen Kessels ist sehr hoch"]
["u",null,"Anteil Eigenverbrauch für WP",null,"%",{"$nulls":13},0,100,{"$f":"IF($D38<S38,1,0)","v":0},{"$f":"IF($D38>T38,1,0)","v":0},null,{"$f":"IF(U38>0,Y38,\"\")&IF(V38>0,Z38,\"\")&IF(W38>0,AA38,\"\")","v":""},"115u: Der Anteil Eigenverbrauch ist negativ","115u: Der Anteil Eigenverbrauch ist über 100%"]
["v",null,"Hilfsenergie (Strom)",{"v":2,"d":"2.00"},"% der produzierten Wärme",{"$nulls":5},{"v":2,"d":"2.00"},{"$nulls":7},1,3,{"$f":"IF($D39<S39,1,0)","v":0},{"$f":"IF($D39>T39,1,0)","v":0},{"$f":"IF(Eing_Spez_Stromverbrauch=0,1,0)","v":0},{"$f":"IF(U39>0,Y39,\"\")&IF(V39>0,Z39,\"\")&IF(W39>0,AA39,\"\")","v":""},"115v: Der spezifische Stromverbrauch wurde sehr niedrig angenommen. ","115v: Der spezifische Stromverbrauch wurde sehr hoch angenommen. ","115v: Der spezifische Stromverbrauch wurde Null gesetzt. "]
["w",null,"Anteil Eigenverbrauch für Hilfsenergie",null,"%",{"$nulls":13},0,100,{"$f":"IF(0<$D40<S40,1,0)","v":0},{"$f":"IF($D40>T40,1,0)","v":0},null,{"$f":"IF(U40>0,Y40,\"\")&IF(V40>0,Z40,\"\")&IF(W40>0,AA40,\"\")","v":""},"115w: Der Anteil Eigenverbrauch ist negativ","115w: Der Anteil Eigenverbrauch ist über 100%"]
["x",null,"Produktion Pflanzenkohle",null,"m³/a",{"$nulls":13},0,{"$f":"5*max_verkaufteWM*Eing_Anteil_WKK*1000","v":0},{"$f":"IF(0<$D41<S41,1,0)","v":0},{"$f":"IF($D41>T41,1,0)","v":0},null,"","115x: Die Pflanzenkohleproduktion ist negativ ","115x: Die Pflanzenkohleproduktion ist sehr hoch",{"$nulls":6},"m³/a","EUR/m³"]
[{"$nulls":32},"t/a","EUR/t"]
[120,"Einkaufspreise Energie"]
["a",null,"Brennstoffpreis Holzschnitzel (ab Wärmezähler)",null,"EUR/MWh erzeugte Energie",{"$nulls":13},0,200,{"$f":"IF($D44<S44,1,0)","v":0},{"$f":"IF($D44>T44,1,0)","v":0},null,{"$f":"IF(U44>0,Y44,\"\")&IF(V44>0,Z44,\"\")&IF(W44>0,AA44,\"\")","v":""},"120a: Der Schnitzelpres ist negativ","120a: Der Schnitzelpeis ist sehr hoch"]
["c",null,"Brennstoffpreis für WKK",null,"EUR/MWh Endenergie",{"$nulls":13},30,200,{"$f":"IF(Eing_Anteil_WKK=0,0,IF($D45<S45,1,0))","v":0},{"$f":"IF(Eing_Anteil_WKK=0,0,IF($D45>T45,1,0))","v":0},null,{"$f":"IF(U45>0,Y45,\"\")&IF(V45>0,Z45,\"\")&IF(W45>0,AA45,\"\")","v":""},"120c: Der Brennstoffpreis der WKK ist sehr tief","120c: Der Brennstoffpreis WKK ist sehr hoch"]
["d",null,"Brennstoffpreis für Zusatzwärmeerzeuger",null,"EUR/MWh Endenergie",{"$nulls":13},30,300,{"$f":"IF(Eing_Anteil_WKK=0,0,IF($D46<S46,1,0))","v":0},{"$f":"IF(Eing_Anteil_WKK=0,0,IF($D46>T46,1,0))","v":0},null,{"$f":"IF(U46>0,Y46,\"\")&IF(V46>0,Z46,\"\")&IF(W46>0,AA46,\"\")","v":""},"120d: Der Brennstoffpreis der Zusatzwärmeerzeugung ist sehr tief","120d: Der Brennstoffpreis der Zusatzwärmeerzeugung ist sehr hoch"]
["e",null,"Preis fossiler Brennstoff ",null,"EUR/MWh Endenergie",{"$nulls":13},30,300,{"$f":"IF(Anteil_fossil_erzeugt=0,0,IF($D47<S47,1,0))","v":1},{"$f":"IF(Anteil_fossil_erzeugt=0,0,IF($D47>T47,1,0))","v":0},{"$f":"IF(Anteil_fossil_erzeugt=0,0,IF(Eing_Rohstoffpreis_fossil<Eing_Rohstoffpreis_Biomasse,1,0))","v":0},{"$f":"IF(U47>0,Y47,\"\")&IF(V47>0,Z47,\"\")&IF(W47>0,AA47,\"\")","v":"120e: Der Preis des fossilen Brennstoffs ist sehr tief"},"120e: Der Preis des fossilen Brennstoffs ist sehr tief","120e: Der Preis für den fossilen Brennstoff ist sehr hoch","120e: Der Preis für den fossilen Brennstoff liegt niedriger als der Schnitzelpreis "]
["f",null,"Strompreis",null,"ct/kWhel",{"$nulls":13},5,80,{"$f":"IF($D48<S48,1,0)","v":1},{"$f":"IF($D48>T48,1,0)","v":0},{"$f":"IF(Eing_Strompreis=0,1,0)","v":1},{"$f":"IF(U48>0,Y48,\"\")&IF(V48>0,Z48,\"\")&IF(W48>0,AA48,\"\")","v":"120f: Der Strompreis ist sehr tief120f: Der Strompreis ist Null. "},"120f: Der Strompreis ist sehr tief","120f: Der Strompreis ist sehr hoch","120f: Der Strompreis ist Null. "]
["g",null,"Strompreis WP",{"$f":"Eing_Strompreis","v":{"v":0,"d":"0.00"}},"ct/kWhel",{"$nulls":5},{"$f":"Eing_Strompreis","v":{"v":0,"d":"0.00"}},{"$nulls":7},5,80,{"$f":"IF(Eing_Anteil_WP=0,0,IF(0<$D49<S49,1,0))","v":0},{"$f":"IF(Eing_Anteil_WP=0,0,IF(0<$D49>T49,1,0))","v":0},{"$f":"IF(Eing_Anteil_WP=0,0,IF(Eing_Strompreis_WP>Eing_Strompreis,1,0))","v":0},{"$f":"IF(U49>0,Y49,\"\")&IF(V49>0,Z49,\"\")&IF(W49>0,AA49,\"\")","v":""},"120g:Der Strompreis WP ist sehr tief","12=g: Der Strompreis WP ist sehr hoch","120g: Der Strompreis WP ist höher als der Strompreis allgeimen"]
["j",null,"Preis Abwärmenutzung",null,"EUR/MWh",{"$nulls":13},0,100,{"$f":"IF(Eing_Anteil_AWN=0,0,IF(0<$D50<S50,1,0))","v":0},{"$f":"IF(Eing_Anteil_AWN=0,0,IF(0<$D50>T50,1,0))","v":0},null,"","120j:Der Abwärmepreis ist sehr tief","120j: Der Abwärmepreis ist sehr hoch"]
["m",null,"mittl. Einspeisetarif elektrisch",null,"ct/kWhel",{"$nulls":13},5,80,{"$f":"IF(AND($D51>0,$D51<S51),1,0)","v":0},{"$f":"IF($D51>T51,1,0)","v":0},{"$f":"IF(Eing_Jahresnutzungsgrad_WKKel=0,0,IF($D51=0,1,0))","v":0},"","120m:Der Einspeisetarif ist sehr niedrig","120m: Der Einspeisetarif ist sehr hoch","120m: Es wurde kein Stromeinspeisepreis eingegeben"]
["n",null,"Verkaufspreis Pflanzenkohle",null,{"$f":"_xlfn.XLOOKUP(E41,AG41:AG42,AH41:AH42)","v":"EUR/m³"},{"$nulls":13},200,1000,{"$f":"IF(Eing_Prod_Pflanzenkohle=0,0,IF($D52<S52,1,0))","v":0},{"$f":"IF($D52>T52,1,0)","v":0},{"$f":"IF(Eing_Prod_Pflanzenkohle=0,0,IF($D52<S52,1,0))","v":0},"","120n: Der Pflanzenkohlepreis ist sehr tief","120n: Der Pflanzenkohlepreis ist sehr hoch","120n: Es wurde kein Pflanzenkohlepreis eingegeben"]
[]
[125,"Betriebskosten und übrige Aufwendungen"]
["a",null,"Personalkosten (für Bedienung, Reinigung, etc.)",{"$f":"ROUND(1.5%*SUM(D69:D76),-2)","v":0},"EUR/a",{"$nulls":5},{"$f":"ROUND(1.5%*SUM(D69:D76),-2)","v":0},{"$nulls":7},1000,{"$f":"5%*SUM(D69:D76)","v":0},{"$f":"IF($D55<S55,1,0)","v":1},{"$f":"IF($D55>T55,1,0)","v":0},null,{"$f":"IF(U55>0,Y55,\"\")&IF(V55>0,Z55,\"\")&IF(W55>0,AA55,\"\")","v":"125a: Die jährlichen Personalkosten sind sehr tief"},"125a: Die jährlichen Personalkosten sind sehr tief","125a: Die jährlichen Personalkosten sind sehr hoch"]
["b",null,"externe Betriebskosten (Service, Kaminfeger etc.)",null,"EUR/a",{"$nulls":13},1000,{"$f":"10%*SUM(D69:D75)","v":0},1,0,null,{"$f":"IF(U56>0,Y56,\"\")&IF(V56>0,Z56,\"\")&IF(W56>0,AA56,\"\")","v":"125b: Der jährlichen externen Betriebskosten sind sehr tief"},"125b: Der jährlichen externen Betriebskosten sind sehr tief","125b: Die jährlichen externen Betriebskosten sind sehr hoch"]
["c",null,"Unterhaltskosten",{"$f":"SUMPRODUCT(D68:D80,F68:F80)/100","v":0},"EUR/a",{"$nulls":5},{"$f":"SUMPRODUCT(D68:D80,F68:F80)/100","v":0},{"$nulls":7},1000,{"$f":"10%*Gesamtinvestition","v":0},1,0,null,{"$f":"IF(U57>0,Y57,\"\")&IF(V57>0,Z57,\"\")&IF(W57>0,AA57,\"\")","v":"125c: Die jährlichen Unterhaltskosten sind sehr tief"},"125c: Die jährlichen Unterhaltskosten sind sehr tief","125c: Die jährlichen Unterhaltskosten sind sehr hoch"]
[]
["g",null,"Kosten für Miete / Pacht / Grundstück/Steuern",null,"EUR/a",{"$nulls":13},1000,{"$f":"Gesamtinvestition/20","v":0},{"$f":"IF($D59<S59,1,0)","v":1},{"$f":"IF($D59>T59,1,0)","v":0},null,{"$f":"IF(U59>0,Y59,\"\")&IF(V59>0,Z59,\"\")&IF(W59>0,AA59,\"\")","v":"125g: Die jährlichen Grundstückskosten sind sehr tief"},"125g: Die jährlichen Grundstückskosten sind sehr tief","125g: Die jährlichen Grundstückskosten sind sehr hoch"]
["h",null,"Sonstige Kosten (Verwaltung, Versicherungen etc.)",{"$f":"ROUND(1%*Gesamtinvestition,-2)","v":0},"EUR/a",{"$nulls":5},{"$f":"ROUND(1%*Gesamtinvestition,-2)","v":0},{"$nulls":7},1000,{"$f":"5%*Gesamtinvestition","v":0},{"$f":"IF($D60<S60,1,0)","v":1},{"$f":"IF($D60>T60,1,0)","v":0},null,{"$f":"IF(U60>0,Y60,\"\")&IF(V60>0,Z60,\"\")&IF(W60>0,AA60,\"\")","v":"125h: Die sonstigen Kosten sind sehr tief"},"125h: Die sonstigen Kosten sind sehr tief","125h: Die sonstigen Kosten sind sehr hoch","125h: Es wurden keine sonstigen Kosten eingetragen"]
["m",null,"Allgemeine Teuerung",null,"%",{"$nulls":13},0,5,{"$f":"IF($D61<S61,1,0)","v":0},{"$f":"IF($D61>T61,1,0)","v":0},null,{"$f":"IF(U61>0,Y61,\"\")&IF(V61>0,Z61,\"\")&IF(W61>0,AA61,\"\")","v":""},"125m: Die allgemeine Teuerung ist sehr tief","125m: Die allgemeine Teuerung ist sehr hoch"]
["n",null,"Nominalzins",null,"%",{"$nulls":13},0,10,{"$f":"IF($D62<S62,1,0)","v":0},{"$f":"IF($D62>T62,1,0)","v":0},null,{"$f":"IF(U62>0,Y62,\"\")&IF(V62>0,Z62,\"\")&IF(W62>0,AA62,\"\")","v":""},"125n: Der nominale Zinssatz wurde negativ angenommen","125n: Der Nominalzinssatz ist sehr hoch"]
["o",null,"Realzinssatz",{"$f":"Eing_Nominalzins-Eing_allg_Teuerung","v":{"v":0,"d":"0.00"}},"%",{"$nulls":5},{"$f":"Eing_Nominalzins-Eing_allg_Teuerung","v":{"v":0,"d":"0.00"}},{"$nulls":7},0,8,{"$f":"IF($D63<S63,1,0)","v":0},{"$f":"IF($D63>T63,1,0)","v":0},null,"","125o: Der Realzinssatz ist negativ","125o: Der Realzinssatz ist sehr hoch "]
[]
[140,"Investitionen, Abschreibung etc.",null,141,null,142,null,null,143]
[{"$nulls":6},"spezifische",null,"Nutzungsdauer"]
[145,"Investitionskosten","(inkl. Ausbauten)",{"$nulls":3},"Unterhaltskosten",null,"Abschreibung",{"$nulls":24},"Kapitalkosten"]
["a",null,"Baukosten Gebäude Umgebung",null,"EUR",{"v":1,"d":"1.00"},"%",null,50,"Jahre",{"v":1,"d":"1.00"},null,50,{"$nulls":5},10000,999999999,{"$f":"IF($D68<S68,1,0)","v":1},{"$f":"IF($D68>T68,1,0)","v":0},null,{"$f":"IF(U68>0,Y68,\"\")&IF(V68>0,Z68,\"\")&IF(W68>0,AA68,\"\")","v":"145a: Die Baukosten für die Heizzentrale sind sehr tief"},"145a: Die Baukosten für die Heizzentrale sind sehr tief","145a: Die Baukosten für die Heizzentrale sind sehr hoch",{"$nulls":7},{"$f":"IF(I68=0,D68*Eing_Realzins/100,-PMT(Eing_Realzins/100,I68,D68))","v":0}]
["b",null,"Holzspezifische Anlagenteile",null,"EUR",{"v":3,"d":"3.00"},"%",null,20,"Jahre",{"v":3,"d":"3.00"},null,20,{"$nulls":5},10000,999999999,1,0,null,"145b: Die Kosten für holzspezifische Anlagenteile sind sehr tief","145b: Die Kosten für holzspezifische Anlagenteile sind sehr tief","145b: Die Kosten für holzspezifische Anlagenteile sind sehr hoch",{"$nulls":7},0]
["c",null,"WKK-Anlage",null,"EUR",{"v":3,"d":"3.00"},"%",null,20,"Jahre",{"v":3,"d":"3.00"},null,20,{"$nulls":5},10000,999999999,{"$f":"IF(Eing_Anteil_WKK=0,0,IF($D70<S70,1,0))","v":0},0,null,"","145c: Die Kosten für die WKK-Ablage sind sehr tief","145c: Die Kosten für die WKK-Anlage sind sehr hoch",{"$nulls":7},0]
["d",null,"Wärmepumpen-Anlage",null,"EUR",{"v":2,"d":"2.00"},"%",null,20,"Jahre",{"v":2,"d":"2.00"},null,20,{"$nulls":5},10000,999999999,{"$f":"IF(Eing_Anteil_WP=0,0,IF($D71<S71,1,0))","v":0},0,null,"","145d: Die Kosten für die WP sind sehr tief","145d: Die Kosten für die WP sind sehr hoch. ",{"$nulls":7},0]
["e",null,"Erdsonden / Grundwassernutzung",null,"EUR",{"v":1,"d":"1.00"},"%",null,40,"Jahre",{"v":1,"d":"1.00"},null,40,{"$nulls":5},10000,999999999,{"$f":"IF(Eing_Anteil_WP=0,0,IF($D72<S72,1,0))","v":0},0,null,"","145e: Die Kosten für die Erdsonden/Grundwassernutzung sind sehr tief","145e: Die Kosten für die Erdsonden/Grundwassernutzung sind sehr hoch. ",{"$nulls":7},0]
["f",null,"Anlagenteile Zustzwärmeerzeuger",null,"EUR",{"v":2,"d":"2.00"},"%",null,20,"Jahre",{"v":2,"d":"2.00"},null,20,{"$nulls":5},10000,999999999,{"$f":"IF(Eing_Anteil_AWN=0,0,IF($D73<S73,1,0))","v":0},{"$f":"IF($D73>T73,1,0)","v":0},null,{"$f":"IF(U73>0,Y73,\"\")&IF(V73>0,Z73,\"\")&IF(W73>0,AA73,\"\")","v":""},"145f: Die Kosten für die Zusatzwärmeerzeugung sind sehr tief","145f: Die Kosten für Zusatzwärmeerzeugung sind sehr hoch",{"$nulls":7},0]
["g",null,"Abwärmenutzung",null,"EUR",{"v":2,"d":"2.00"},"%",null,20,"Jahre",{"v":2,"d":"2.00"},null,20,{"$nulls":5},10000,999999999,{"$f":"IF(Eing_Anteil_AWN=0,0,IF($D74<S74,1,0))","v":0},0,null,"","145g: Die Kosten für die AWN sind sehr tief","145g: Die Kosten für die AWN sind sehr hoch",{"$nulls":7},0]
["h",null,"Spitzenlastspezifische Anlagenteile",null,"EUR",{"v":2,"d":"2.00"},"%",null,20,"Jahre",{"v":2,"d":"2.00"},null,20,{"$nulls":5},10000,999999999,{"$f":"IF(Anteil_fossil_erzeugt=0,0,IF($D75<S75,1,0))","v":1},0,null,"145h: Die Kosten für spitzenlastspezifische Anlagenteile sind sehr tief","145h: Die Kosten für spitzenlastspezifische Anlagenteile sind sehr tief","145h: Die Kosten für spitzenlastspezifische Anlagenteile sind sehr hoch",{"$nulls":7},0]
["i",null,"Installationen Zentrale",null,"EUR",{"v":2,"d":"2.00"},"%",null,20,"Jahre",{"v":2,"d":"2.00"},null,20,{"$nulls":5},10000,999999999,{"$f":"IF($D76<S76,1,0)","v":1},0,null,"145i: Die Kosten für die Installationen in der Zentrale sind sehr tief","145i: Die Kosten für die Installationen in der Zentrale sind sehr tief","145i: Die Kosten für die Installationen in der Zentrale sind sehr hoch",{"$nulls":7},0]
["j",null,"Wärmenetz inkl. Tiefbau",null,"EUR",{"v":1,"d":"1.00"},"%",null,40,"Jahre",{"v":1,"d":"1.00"},null,40,{"$nulls":5},10000,999999999,{"$f":"IF(Eing_Netzverluste<=0,0,IF($D77<S77,1,0))","v":1},0,null,"145j: Die Baukosten für das Wärmenetz sind sehr tief","145j: Die Baukosten für das Wärmenetz sind sehr tief","145j: Die Baukosten für das Wärmenetz sind sind sehr hoch",{"$nulls":7},0]
["k",null,"Wärmemessung und Regelarmaturen",null,"EUR",{"v":2,"d":"2.00"},"%",null,15,"Jahre",{"v":2,"d":"2.00"},null,15,{"$nulls":5},10000,999999999,1,0,null,"145k: Die Kosten für die Wärmemessung sind sehr tief","145k: Die Kosten für die Wärmemessung sind sehr tief","145k: Die Kosten für die Wärmemessung sind sind sehr hoch",{"$nulls":7},0]
["l",null,"Hausstationen",null,"EUR",{"v":2,"d":"2.00"},"%",null,30,"Jahre",{"v":2,"d":"2.00"},null,30,{"$nulls":5},10000,999999999,{"$f":"IF(Eing_Netzverluste<=0,0,IF($D79<S79,1,0))","v":1},0,null,"145l: Die Kosten für die Hausstationen sind sehr tief","145l: Die Kosten für die Hausstationen sind sehr tief","145l: Die Kosten für die Hausstationen sind sind sehr hoch",{"$nulls":7},0]
["m",null,"Planung und Unvorhergesehenes",null,"EUR",{"v":0,"d":"0.00"},"%",null,{"$f":"IF(SUM(D68:D79)=0,1,SUMPRODUCT(D68:D79,I68:I79)/SUM(D68:D79))","v":1},"Jahre",{"v":0,"d":"0.00"},null,{"$f":"IF(SUM(D68:D79)=0,1,SUMPRODUCT(D68:D79,I68:I79)/SUM(D68:D79))","v":1},{"$nulls":5},0,999999999,0,0,{"$f":"IF(Eing_Kosten_Planung_QM<Gesamtinvestition/20,1,0)","v":0},"","145m: Die Kosten für Planung und Unvorhergesehenes sind sehr tief","145m: Die Kosten für Planung und Unvorhergesehenes sind sehr hoch","145m: Die Kosten für Planung und Unvorhergesehenes sind unter 5% der Investitionskosten",{"$nulls":6},0]
["z",null,"Gesamte Investitionskosten",{"$f":"SUM(D68:D80)","v":0},"EUR",{"$nulls":3},{"$f":"IF(SUM(D68:D80)=0,\"\",SUMPRODUCT(D68:D80,I68:I80)/SUM(D68:D80))","v":""},"Jahre",{"$nulls":8},0,999999999,0,0,null,"","145z: Die Investitionskosten sind sehr tief","145z: Die Investitionskosten sind sehr hoch"]
[150,"Investitionsstaffelung",null,"Jahr",null,"Anteil"]
["a",null,"Ausbaustufe / Etappe 1",{"$f":"Eing_Beginnjahr","v":0},null,{"$f":"100-SUM(F84:F87)","v":100},"%",null,{"$f":"F83","v":100},"%"]
["b",null,"Ausbaustufe / Etappe 2",{"$f":"D83+1","v":1},null,null,"%",null,{"$f":"I83+F84","v":100},"%",{"$f":"D83+1","v":1}]
["c",null,"Ausbaustufe / Etappe 3",{"$f":"D84+1","v":2},null,null,"%",null,{"$f":"I84+F85","v":100},"%",{"$f":"D84+1","v":2}]
["d",null,"Ausbaustufe / Etappe 4",3,null,null,"%",null,{"$f":"I85+F86","v":100},"%",3]
["e",null,"Ausbaustufe / Etappe 5",4,null,null,"%",null,{"$f":"I86+F87","v":100},"%",4]
[{"$nulls":5},151]
[155,"Eigenkapital","Eigenkapital / Aktienkapital",null,"EUR",{"$f":"IF(Gesamtinvestition>0,ROUND(Eing_Eigenkapital/Gesamtinvestition*100,0),\"\")","v":""},"%",null,"Invest",{"$nulls":9},{"$f":"5%*Gesamtinvestition","v":0},{"$f":"Gesamtinvestition","v":0},{"$f":"IF($D89<S89,1,0)","v":0},{"$f":"IF($D89>T89,1,0)","v":0},null,{"$f":"IF(U89>0,Y89,\"\")&IF(V89>0,Z89,\"\")&IF(W89>0,AA89,\"\")","v":""},"155: Das Eigenkapital ist sehr tief","155: Das Eigenkapital ist hoch"]
[156,null,"Summe einmalige Anschlusskosten",{"$f":"SUM(E3_Verbraucher!$D$23:$XFD$23)","v":0},"EUR",{"$f":"IF(Gesamtinvestition>0,ROUND(Summe_einmalige_Anschlusskosten/Gesamtinvestition*100,0),\"\")","v":""},"%",null,"Invest",null,{"$f":"SUM(E3_Verbraucher!$D$23:$XFD$23)","v":0}]
[]
[160,"Fremdfinanzierung","Kredit 1",{"$nulls":20},{"$f":"X93&X94&X97&X95","v":""}]
["a",null,"Kredit/Darlehen",null,"EUR",{"$f":"IF(Gesamtinvestition>0,ROUND(Eing_Kredit_1/Gesamtinvestition*100,0),\"\")","v":""},"%",null,"Invest",{"$nulls":9},0,{"$f":"Gesamtinvestition","v":0},{"$f":"IF($D93<S93,1,0)","v":0},{"$f":"IF($D93>T93,1,0)","v":0},null,{"$f":"IF(U93>0,Y93,\"\")&IF(V93>0,Z93,\"\")&IF(W93>0,AA93,\"\")","v":""},"160a: Der Kredit ist negativ","160a: Der Kredit ist höher als die gesamten Investitionskosten"]
["b",null,"Laufzeit des Kredits in Jahren",null,"Jahre",{"$nulls":13},0,25,{"$f":"IF($D94<S94,Eing_Kredit_1,0)","v":0},{"$f":"IF($D94>T94,Eing_Kredit_1,0)","v":0},null,{"$f":"IF(U94>0,Y94,\"\")&IF(V94>0,Z94,\"\")&IF(W94>0,AA94,\"\")","v":""},"160b: Die Kreditlaufzeit ist sehr kurz","160b: Die Kreditlaufzeit sollte nicht über 25 Jahren liegen!"]
["c",null,"Startjahr",{"$nulls":15},{"$f":"Eing_Beginnjahr-1","v":-1},{"$f":"S95+20","v":19},{"$f":"IF($D95<=S95,Eing_Kredit_1,0)","v":0},{"$f":"IF($D95>T95,Eing_Kredit_1,0)","v":0},null,{"$f":"IF(U95>0,Y95,\"\")&IF(V95>0,Z95,\"\")&IF(W95>0,AA95,\"\")","v":""},"160c: Das Startjahr der Finanzierung ist vor Projektbeginn","160c: Das Startjahr der Finanzierung ist weit nach Projektbeginn"]
["d",null,"Beginn Amortisation",{"$f":"Eing_Kreditstartjahr_1+1","v":1},{"$nulls":6},{"$f":"Eing_Kreditstartjahr_1+1","v":1},{"$nulls":7},{"$f":"Eing_Kreditstartjahr_1-1","v":-1},{"$f":"Eing_Kreditstartjahr_1+5","v":5},{"$f":"IF($D96<=S96,Eing_Kredit_1,0)","v":0},{"$f":"IF($D96>T96,Eing_Kredit_1,0)","v":0},null,{"$f":"IF(U96>0,Y96,\"\")&IF(V96>0,Z96,\"\")&IF(W96>0,AA96,\"\")","v":""},"160d: Der Beginn der Amortisation ist vor der Kreditauszahlung","160d: Die Amortisation des Kredits erfolgt sehr spät."]
["e",null,"Kreditzinssatz",null,"%",{"$nulls":13},2,10,{"$f":"IF($D97<=S97,Eing_Kredit_1,0)","v":0},{"$f":"IF($D97>T97,Eing_Kredit_1,0)","v":0},null,{"$f":"IF(U97>0,Y97,\"\")&IF(V97>0,Z97,\"\")&IF(W97>0,AA97,\"\")","v":""},"160e: Der angegebene Kreditzinssatz ist sehr niedrig","160e: Der Kreditzinssatz ist sehr hoch"]
[]
[null,null,"Kredit 2",{"$nulls":20},{"$f":"X100&X101&X104&X102","v":""}]
["a",null,"Kredit/Darlehen",null,"EUR",{"$f":"IF(Gesamtinvestition>0,ROUND(Eing_Kredit_2/Gesamtinvestition*100,0),\"\")","v":""},"%",null,"Invest",{"$nulls":9},0,{"$f":"Gesamtinvestition","v":0},{"$f":"IF($D100<S100,1,0)","v":0},{"$f":"IF($D100>T100,1,0)","v":0},null,{"$f":"IF(U100>0,Y100,\"\")&IF(V100>0,Z100,\"\")&IF(W100>0,AA100,\"\")","v":""},"160a: Der Kredit ist negativ","160a: Der Kredit ist höher als die gesamten Investitionskosten"]
["b",null,"Laufzeit des Kredits in Jahren",null,"Jahre",{"$nulls":13},0,25,{"$f":"IF($D101<S101,Eing_Kredit_2,0)","v":0},{"$f":"IF($D101>T101,Eing_Kredit_2,0)","v":0},null,{"$f":"IF(U101>0,Y101,\"\")&IF(V101>0,Z101,\"\")&IF(W101>0,AA101,\"\")","v":""},"160b: Die Kreditlaufzeit ist sehr kurz","160b: Die Kreditlaufzeit sollte nicht über 25 Jahren liegen!"]
["c",null,"Startjahr",{"$nulls":15},{"$f":"Eing_Beginnjahr-1","v":-1},{"$f":"S102+20","v":19},{"$f":"IF($D102<=S102,Eing_Kredit_2,0)","v":0},{"$f":"IF($D102>T102,Eing_Kredit_2,0)","v":0},null,{"$f":"IF(U102>0,Y102,\"\")&IF(V102>0,Z102,\"\")&IF(W102>0,AA102,\"\")","v":""},"160c: Das Startjahr der Finanzierung ist vor Projektbeginn","160c: Das Startjahr der Finanzierung ist weit nach Projektbeginn"]
["d",null,"Beginn Amortisation",{"$f":"Eing_Kreditstartjahr_2+1","v":1},{"$nulls":6},{"$f":"Eing_Kreditstartjahr_2+1","v":1},{"$nulls":7},{"$f":"Eing_Kreditstartjahr_2-1","v":-1},{"$f":"Eing_Kreditstartjahr_2+5","v":5},{"$f":"IF($D103<=S103,Eing_Kredit_2,0)","v":0},{"$f":"IF($D103>T103,Eing_Kredit_2,0)","v":0},null,{"$f":"IF(U103>0,Y103,\"\")&IF(V103>0,Z103,\"\")&IF(W103>0,AA103,\"\")","v":""},"160d: Der Beginn der Amortisation ist vor der Kreditauszahlung","160d: Die Amortisation des Kredits erfolgt sehr spät."]
["e",null,"Kreditzinssatz",null,"%",{"$nulls":13},2,10,{"$f":"IF($D104<=S104,Eing_Kredit_2,0)","v":0},{"$f":"IF($D104>T104,Eing_Kredit_2,0)","v":0},null,{"$f":"IF(U104>0,Y104,\"\")&IF(V104>0,Z104,\"\")&IF(W104>0,AA104,\"\")","v":""},"160e: Der angegebene Kreditzinssatz ist sehr niedrig","160e: Der Kreditzinssatz ist sehr hoch"]
[]
[165,"Förderung"]
[166,null,"Einmalige Förderung (z.B. Kantonale Förderung)"]
["a",null,"Einmaliger Förderbeitrag Paket 1",null,"EUR",{"$f":"IF(Gesamtinvestition>0,ROUND(Einmaliger_Förderbeitrag_1/Gesamtinvestition*100,0),\"\")","v":""},"%",null,"Invest",{"$nulls":9},0,{"$f":"Gesamtinvestition","v":0},{"$f":"IF($D108<S108,1,0)","v":0},{"$f":"IF($D108>T108,1,0)","v":0},null,{"$f":"IF(U108>0,Y108,\"\")&IF(V108>0,Z108,\"\")&IF(W108>0,AA108,\"\")","v":""},"166a: Der eingegebene Förderbeitrag Paket 1 ist sehr tief","166a: Der eingegebene Förderbeitrag Paket 1 ist zu hoch"]
["b",null,"Jahr der Förderungsauszahlung",{"$nulls":15},{"$f":"Eing_Beginnjahr","v":0},{"$f":"S109+10","v":10},{"$f":"IF($D109<S109,Einmaliger_Förderbeitrag_1,0)","v":0},{"$f":"IF($D109>T109,Einmaliger_Förderbeitrag_1,0)","v":0},null,{"$f":"IF(U109>0,Y109,\"\")&IF(V109>0,Z109,\"\")&IF(W109>0,AA109,\"\")","v":""},"166b: Die Förderauszahlung von Paket 1 kann erst nach Projektbeginn erfolgen","166b: Die Förderauszahlung von Paket 1 wurde mehr als 10 Jahre nach Projektbeginn eingegeben"]
["a",null,"Einmaliger Förderbeitrag Paket 2",null,"EUR",{"$f":"IF(Gesamtinvestition>0,ROUND(Einmaliger_Förderbeitrag_2/Gesamtinvestition*100,0),\"\")","v":""},"%",null,"Invest",{"$nulls":9},0,{"$f":"Gesamtinvestition","v":0},{"$f":"IF($D110<S110,1,0)","v":0},{"$f":"IF($D110>T110,1,0)","v":0},null,{"$f":"IF(U110>0,Y110,\"\")&IF(V110>0,Z110,\"\")&IF(W110>0,AA110,\"\")","v":""},"166a: Der eingegebene Förderbeitrag Paket 2 ist sehr tief","166a: Der eingegebene Förderbeitrag Paket 2 ist zu hoch"]
["b",null,"Jahr der Förderungsauszahlung",{"$nulls":15},{"$f":"Eing_Beginnjahr","v":0},{"$f":"S111+10","v":10},{"$f":"IF($D111<S111,Einmaliger_Förderbeitrag_2,0)","v":0},{"$f":"IF($D111>T111,Einmaliger_Förderbeitrag_2,0)","v":0},null,{"$f":"IF(U111>0,Y111,\"\")&IF(V111>0,Z111,\"\")&IF(W111>0,AA111,\"\")","v":""},"166b: Die Förderauszahlung von Paket 2 kann erst nach Projektbeginn erfolgen","166b: Die Förderauszahlung von Paket 2 wurde mehr als 10 Jahre nach Projektbeginn eingegeben"]
["a",null,"Einmaliger Förderbeitrag Paket 3",null,"EUR",{"$f":"IF(Gesamtinvestition>0,ROUND(Einmaliger_Förderbeitrag_3/Gesamtinvestition*100,0),\"\")","v":""},"%",null,"Invest",{"$nulls":9},0,{"$f":"Gesamtinvestition","v":0},{"$f":"IF($D112<S112,1,0)","v":0},{"$f":"IF($D112>T112,1,0)","v":0},null,{"$f":"IF(U112>0,Y112,\"\")&IF(V112>0,Z112,\"\")&IF(W112>0,AA112,\"\")","v":""},"166a: Der eingegebene Förderbeitrag Paket 3 ist sehr tief","166a: Der eingegebene Förderbeitrag Paket 3 ist zu hoch"]
["b",null,"Jahr der Förderungsauszahlung",{"$nulls":15},{"$f":"Eing_Beginnjahr","v":0},{"$f":"S113+10","v":10},{"$f":"IF($D113<S113,Einmaliger_Förderbeitrag_3,0)","v":0},{"$f":"IF($D113>T113,Einmaliger_Förderbeitrag_3,0)","v":0},null,"","166b: Die Förderauszahlung von Paket 3 kann erst nach Projektbeginn erfolgen","166b: Die Förderauszahlung von Paket 3 wurde mehr als 10 Jahre nach Projektbeginn eingegeben"]
[167,null,"Mehrjährige Förderung (z.B. KliK)"]
["a",null,"Durchschnittliche jährliche Förderung 1",null,"EUR/a",{"$f":"IF(Gesamtinvestition>0,ROUND(Eing_jährlicher_Förderbeitrag_1*Eing_Förderung_wiederholend_Laufzeit_1/Gesamtinvestition*100,0),\"\")","v":""},"%",null,"Invest",{"$nulls":9},0,{"$f":"IF(Eing_Förderung_wiederholend_Laufzeit_1=0,0,Gesamtinvestition/Eing_Förderung_wiederholend_Laufzeit_1)","v":0},{"$f":"IF($D115<S115,1,0)","v":0},{"$f":"IF($D115>T115,1,0)","v":0},null,{"$f":"IF(U115>0,Y115,\"\")&IF(V115>0,Z115,\"\")&IF(W115>0,AA115,\"\")","v":""},"167a: Der eingegebene jährliche Förderbeitrag 1 sehr tief","167a: Der eingegebene jährliche Förderbeitrag 1 ist sehr hoch"]
["b",null,"Förderlaufzeit 1",null,"a",{"$nulls":13},2,25,{"$f":"IF(0<$D116<S116,1,0)","v":0},0,null,{"$f":"IF(U116>0,Y116,\"\")&IF(V116>0,Z116,\"\")&IF(W116>0,AA116,\"\")","v":""},"167b: Die Dauer der jährlichen Förderung 1 ist sehr kurz","167b: Die Dauer der jährlichen Förderung 1 ist sehr lang"]
["c",null,"Jahr der ersten Auszahlung 1",{"$nulls":15},{"$f":"Eing_Beginnjahr","v":0},{"$f":"S117+10","v":10},{"$f":"IF($D117<S117,Eing_jährlicher_Förderbeitrag_1,0)","v":0},0,null,{"$f":"IF(U117>0,Y117,\"\")&IF(V117>0,Z117,\"\")&IF(W117>0,AA117,\"\")","v":""},"167c: Die jährliche Förderauszahlung 1 kann erst nach Projektbeginn erfolgen","167c: Die jährliche Förderauszahlung 1 beginnt erst mehr als 10 Jahre nach Projektbeginn"]
["a",null,"Durchschnittliche jährliche Förderung 2",null,"EUR/a",{"$f":"IF(Gesamtinvestition>0,ROUND(Eing_jährlicher_Förderbeitrag_2*Eing_Förderung_wiederholend_Laufzeit_2/Gesamtinvestition*100,0),\"\")","v":""},"%",null,"Invest",{"$nulls":9},0,{"$f":"IF(Eing_Förderung_wiederholend_Laufzeit_2=0,0,Gesamtinvestition/Eing_Förderung_wiederholend_Laufzeit_2)","v":0},{"$f":"IF($D118<S118,1,0)","v":0},0,null,{"$f":"IF(U118>0,Y118,\"\")&IF(V118>0,Z118,\"\")&IF(W118>0,AA118,\"\")","v":""},"167a: Der eingegebene jährliche Förderbeitrag 2 sehr tief","167a: Der eingegebene jährliche Förderbeitrag 2 ist sehr hoch"]
["b",null,"Förderlaufzeit 2",null,"a",{"$nulls":13},2,25,{"$f":"IF(0<$D119<S119,1,0)","v":0},0,null,"","167b: Die Dauer der jährlichen Förderung 2 ist sehr kurz","167b: Die Dauer der jährlichen Förderung 2 ist sehr lang"]
["c",null,"Jahr der ersten Auszahlung 2",{"$nulls":15},{"$f":"Eing_Beginnjahr","v":0},{"$f":"S120+10","v":10},{"$f":"IF($D120<S120,Eing_jährlicher_Förderbeitrag_2,0)","v":0},0,null,"","167c: Die jährliche Förderauszahlung 2 kann erst nach Projektbeginn erfolgen","167c: Die jährliche Förderauszahlung 2 beginnt erst mehr als 10 Jahre nach Projektbeginn"]
[]
[170,"Berechnete Werte"]
["a",null,"mittlere erzeugte Wärmemenge",{"$f":"AVERAGE(B1_Berechnungen!C43:C67)","v":0},"MWh/a"]
["b",null," jährliche Nutzwärmemenge aus Holzschnitzeln",{"$f":"mittl_Erzeugte_Wärmemenge*Eing_Anteil_Biomasse/100","v":0},"MWh/a"]
["c",null," jährliche Nutzwärme aus Kondensation",{"$f":"IF(Eing_Anteil_Kondensation=0,0,mittl_Erzeugte_Wärmemenge*(Eing_Anteil_Kondensation/100))","v":0},"MWh/a"]
["d",null," jährlicher Brennstoffbedarf für WKK",{"$f":"IF(Eing_Anteil_WKK=0,0,mittl_Erzeugte_Wärmemenge*(Eing_Anteil_WKK/100)/(Eing_Jahresnutzungsgrad_WKKtherm/100))","v":0},"MWh/a"]
["e",null," jährliche Nutzwärmemenge von WP",{"$f":"IF(Eing_Anteil_WP=0,0,mittl_Erzeugte_Wärmemenge*Eing_Anteil_WP/100)","v":0},"MWh/a"]
["f",null," jährliche Endenergiemenge von Zusatzwärmeerzeuger",{"$f":"IF(Eing_Anteil_Zusatz=0,0,mittl_Erzeugte_Wärmemenge*(Eing_Anteil_Zusatz/100)/(Eing_Jahresnutzungsgrad_Zusatz/100))","v":0},"MWh/a"]
["g",null," jährliche Nutzwärmemenge Abwärme",{"$f":"IF(Eing_Anteil_AWN=0,0,mittl_Erzeugte_Wärmemenge*Eing_Anteil_AWN/100)","v":0},"MWh/a"]
["h",null,"jährlicher Brennstoffbedarf fossil",{"$f":"IF(Eing_Jahresnutzungsgrad_Kessel=0,0,mittl_Erzeugte_Wärmemenge*(Anteil_fossil_erzeugt/100)/Eing_Jahresnutzungsgrad_Kessel*100)","v":0},"MWh/a"]
["i",null,"jährliche Stromproduktion aus WKK",{"$f":"IF(Eing_Anteil_WKK=0,0,Wärme_WKK/Eing_Jahresnutzungsgrad_WKKtherm*Eing_Jahresnutzungsgrad_WKKel)","v":0},"MWh/a"]
["j",null,"Eigenverbrauch für WP",{"$f":"IF(Eing_AnteilEigen_WP=0,0,MIN(Stromproduktion_WKK,(Eing_AnteilEigen_WP/100)*(mittl_Erzeugte_Wärmemenge*(Eing_Anteil_WP/100)/Eing_JAZ_WP)))","v":0},"MWh/a"]
["j",null,"Eigenverbrauch für Hilfsenergie",{"$f":"IF(Eing_AnteilEigen_Hilfsenergie=0,0,MIN(Stromproduktion_WKK-D132,(Eing_AnteilEigen_Hilfsenergie/100)*(mittl_Erzeugte_Wärmemenge*Eing_Spez_Stromverbrauch/100)))","v":0},"MWh/a"]
["k",null,"jährlicher Netzbezug für Wärmepumpe",{"$f":"IF(Eing_Anteil_WP=0,0,(mittl_Erzeugte_Wärmemenge*(Eing_Anteil_WP/100)/Eing_JAZ_WP)-D132)","v":0},"MWh/a"]
["l",null,"jährlicher Netzbezug Hilfsenergie",{"$f":"(mittl_Erzeugte_Wärmemenge*Eing_Spez_Stromverbrauch/100)-Eigenverbrauch_HE","v":0},"MWh/a"]
["m",null,"Stromeinspeisung ins Netz",{"$f":"IF(Eing_Anteil_WKK=0,0,Stromproduktion_WKK-SUM(Eigenverbrauch_HE,Eigenverbrauch_WP))","v":0},"MWh/a"]
["n",null,"jährliche Pflanzenkohleproduktion",{"$f":"Eing_Prod_Pflanzenkohle","v":0},{"$f":"E41","v":"m³/a"}]
[]
[175,"Energiekosten"]
["a",null,"jährliche Energiekosten Holzschnitzel",{"$f":"Nutzwärme_Biomasse*Eing_Rohstoffpreis_Biomasse","v":0},"EUR/a"]
["b",null," jährliche Energiekosten für WKK",{"$f":"Wärme_WKK*Eing_Brennstoffpreis_WKK","v":0},"EUR/a"]
["c",null,"jährliche Energiekosten Zusatzwärmeerzeugung",{"$f":"Eing_Preis_Zusatz*Endenergie_Zusatz","v":0},"EUR/a"]
["d",null,"jährliche Energiekosten für Abwärme",{"$f":"Eing_Preis_AWN*Nutzwärme_AWN","v":0},"EUR/a"]
["e",null,"jährliche Energiekosten fossil",{"$f":"Endenergie_fossil*Eing_Rohstoffpreis_fossil","v":0},"EUR/a"]
["f",null,"jährliche Stromkosten Wärmepumpe",{"$f":"Netzbezug_WP*Eing_Strompreis_WP*10","v":0},"EUR/a"]
["h",null,"jährliche Stromkosten Hilfsenergie",{"$f":"Netzbezug_Hilfsenergie*Eing_Strompreis*10","v":0},"EUR/a"]
[177,"Ertrag"]
["a",null,"jährlicher Ertrag aus Stromeinspeisung",{"$f":"Stromeinspeisung_Netz*Eing_Strompreis_Einspeisung*10","v":0},"EUR/a"]
["b",null,"jährlicher Ertrag aus Pflanzenkohle",{"$f":"Produktion_Pflanzenkohle*Eing_Verkaufspreis_Pflanzenkohle","v":0},"EUR/a"]
[]
["145z",null,"Gesamte Investitionskosten",{"$f":"Gesamtinvestition","v":0},"EUR"]
[179,null,"Gesamtsumme Förderung",{"$f":"SUM(Einmaliger_Förderbeitrag_1,Einmaliger_Förderbeitrag_2,Einmaliger_Förderbeitrag_3,(Eing_jährlicher_Förderbeitrag_1*Eing_Förderung_wiederholend_Laufzeit_1),(Eing_jährlicher_Förderbeitrag_2*Eing_Förderung_wiederholend_Laufzeit_2))","v":0},"EUR"]
[]
[190,"Jahreskosten / Wärmegestehungskosten",null,"Jahreskosten",null,"Wärmegestehungskosten"]
["a","(ohne Förderung)","Kapitalkosten Wärmeerzeugung",{"$f":"IF(SUM(AH68:AH76)=0,0,ROUND(SUM(AH68:AH76,0.5*AH80),0))","v":0},"EUR/a",{"$f":"IF(mittl_Erzeugte_Wärmemenge=0,0,ROUND(D155/mittl_Erzeugte_Wärmemenge/10,2))","v":{"v":0,"d":"0.00"}},"ct/kWh"]
["b",null,"Kapitalkosten Wärmeverteilung",{"$f":"IF(SUM(AH77:AH79)=0,0,ROUND(SUM(AH77:AH79,0.5*AH80),0))","v":0},"EUR/a",{"v":0,"d":"0.00"},"ct/kWh"]
["c",null,"Wartung und Unterhalt Wärmeerzeugung",{"$f":"SUM(D55:D57,D59:D60)-D158","v":0},"EUR/a",{"v":0,"d":"0.00"},"ct/kWh"]
["d",null,"Wartung und Unterhalt Wärmeverteilung",{"$f":"IF(Eing_Unterhaltskosten=0,0,\n(SUMPRODUCT(D77:D79,F77:F79)+0.5*Eing_Kosten_Planung_QM*F80)/SUMPRODUCT(D68:D80,F68:F80)*SUM(D55:D57,D59:D60))","v":0},"EUR/a",{"v":0,"d":"0.00"},"ct/kWh"]
["e",null,"Energiekosten",{"$f":"SUM(D140:D146)","v":0},"EUR/a",{"v":0,"d":"0.00"},"ct/kWh"]
["f",null,"Ertrag Strom- und Pflanzenkohleverkauf",{"$f":"-SUM(D148:D149)","v":0},"EUR/a",{"v":0,"d":"0.00"},"ct/kWh"]
["g",null,"Jahreskosten",{"$f":"SUM(D155:D160)","v":0},"EUR/a",{"v":0,"d":"0.00"},"ct/kWh"]
["h",null,"Förderung (über 25 Jahre kapitalisiert)",{"$f":"ROUND(PMT(Eing_Realzins/100,25,Gesamtsumme_Förderung),0)","v":0},"EUR/a",{"v":0,"d":"0.00"},"ct/kWh"]
["i",null,"Jahreskosten inkl. Förderung",{"$f":"SUM(D161:D162)","v":0},"EUR/a",{"v":0,"d":"0.00"},"ct/kWh"]

{"sheet":"E2_Wärmepreis","index":2,"n_rows":49,"n_cols":11,"rows_kept":49,"merged":[[5,3,5,8],[6,3,6,8],[7,3,7,8],[9,3,9,8]]}
[200,"QM Holzheizwerke - Wirtschaftlichkeitsmodell - Wärmepreis "]
[]
["101a",null,null,"Eingabefeld"]
["101k","(exkl. MWST)"]
[]
[206,"Projekt/Variante:",null,{"$f":"IF(E1_Projektdaten!C8=0,\"\",E1_Projektdaten!C8)","v":""}]
[{"$nulls":3},{"$f":"IF(E1_Projektdaten!C9=0,\"\",E1_Projektdaten!C9)","v":""}]
[{"$nulls":3},{"$f":"IF(E1_Projektdaten!C10=0,\"\",E1_Projektdaten!C10)","v":""}]
[]
[207,"Erfasst von:",null,{"$f":"IF(E1_Projektdaten!C12=0,\"\",E1_Projektdaten!C12)","v":""}]
[]
[210,"Eingabe Grund- und Arbeitspreis",{"$nulls":8},"Bemerkungen"]
[]
[211,"Tarif 1",{"$nulls":4},{"$f":"SUMPRODUCT(E3_Verbraucher!$D$18:$XFD$18*(E3_Verbraucher!$D$22:$XFD$22=\"T 1: \"&Eing_Abnehmerart1))/max_verkaufteWM*100","v":{"$error":"#DIV/0!"}},"% der Wärmemenge"]
["a",{"$nulls":4},"jährlicher Grundpreis",null,"EUR/kW a"]
["b",{"$nulls":4},"Arbeitspreis",null,"EUR/kWh"]
["c",{"$nulls":4},"Vertragslaufzeit",null,"Jahre"]
[]
[]
[212,"Tarif 2",{"$nulls":4},{"$f":"SUMPRODUCT(E3_Verbraucher!$D$18:$XFD$18*(E3_Verbraucher!$D$22:$XFD$22=\"T 2: \"&Eing_Abnehmerart2))/max_verkaufteWM*100","v":{"$error":"#DIV/0!"}},"% der Wärmemenge"]
["a",{"$nulls":4}," jährlicher Grundpreis",null,"EUR/kW a"]
["b",{"$nulls":4},"Arbeitspreis",null,"EUR/kWh"]
["c",{"$nulls":4},"Vertragslaufzeit",null,"Jahre"]
[]
[]
[213,"Tarif 3",{"$nulls":4},{"$f":"SUMPRODUCT(E3_Verbraucher!$D$18:$XFD$18*(E3_Verbraucher!$D$22:$XFD$22=\"T 3: \"&Eing_Abnehmerart3))/max_verkaufteWM*100","v":{"$error":"#DIV/0!"}},"% der Wärmemenge"]
["a",{"$nulls":4}," jährlicher Grundpreis",null,"EUR/kW a"]
["b",{"$nulls":4},"Arbeitspreis",null,"EUR/kWh"]
["c",{"$nulls":4},"Vertragslaufzeit",null,"Jahre"]
[]
[]
[214,"Tarif 4",{"$nulls":4},{"$f":"SUMPRODUCT(E3_Verbraucher!$D$18:$XFD$18*(E3_Verbraucher!$D$22:$XFD$22=\"T 4: \"&Eing_Abnehmerart4))/max_verkaufteWM*100","v":{"$error":"#DIV/0!"}},"% der Wärmemenge"]
["a",{"$nulls":4},"jährlicher Grundpreis",null,"EUR/kW a"]
["b",{"$nulls":4},"Arbeitspreis",null,"EUR/kWh"]
["c",{"$nulls":4},"Vertragslaufzeit",null,"Jahre"]
[]
[]
[]
[215,"Tarif 5",{"$nulls":4},{"$f":"SUMPRODUCT(E3_Verbraucher!$D$18:$XFD$18*(E3_Verbraucher!$D$22:$XFD$22=\"T 5: \"&Eing_Abnehmerart5))/max_verkaufteWM*100","v":{"$error":"#DIV/0!"}},"% der Wärmemenge"]
["a",{"$nulls":4},"jährlicher Grundpreis",null,"EUR/kW a"]
["b",{"$nulls":4},"Arbeitspreis",null,"EUR/kWh"]
["c",{"$nulls":4},"Vertragslaufzeit",null,"Jahre"]
[]
[]
[]
[216,"Tarif 6",{"$nulls":4},{"$f":"SUMPRODUCT(E3_Verbraucher!$D$18:$XFD$18*(E3_Verbraucher!$D$22:$XFD$22=\"T 6: \"&Eing_Abnehmerart6))/max_verkaufteWM*100","v":{"$error":"#DIV/0!"}},"% der Wärmemenge"]
["a",{"$nulls":4},"jährlicher Grundpreis",null,"EUR/kW a"]
["b",{"$nulls":4},"Arbeitspreis",null,"EUR/kWh"]
["c",{"$nulls":4},"Vertragslaufzeit",null,"Jahre"]

{"sheet":"E3_Verbraucher","index":3,"n_rows":41,"n_cols":260,"rows_kept":41}
[300,"QM Holzheizwerke - Wirtschaftlichkeitsmodell - Eingabe Verbraucher"]
[]
["101a",null,"Eingabefeld"]
["101b",null,"Standardwert oder Berechnung (kann geändert werden)"]
["101c",null,"Feld für Übertrag aus Situationserfassung"]
[206,"Projekt/Variante:",{"$f":"IF(E1_Projektdaten!C8=0,\"\",E1_Projektdaten!C8)","v":""}]
[null,null,{"$f":"IF(E1_Projektdaten!C9=0,\"\",E1_Projektdaten!C9)","v":""}]
[null,null,{"$f":"IF(E1_Projektdaten!C10=0,\"\",E1_Projektdaten!C10)","v":""}]
[]
[207,"Erfasst von:",{"$f":"IF(E1_Projektdaten!C12=0,\"\",E1_Projektdaten!C12)","v":""}]
[]
[310,"Eingaben Verbraucher"]
[]
[311,"Allgemeines","Nummer"]
[312,null,"Bezeichnung"]
[null,null," "]
[null,null," "]
[320,"Wärmebedarf","Gesamtwärmebedarf [MWh/a]"]
[321,null,"abonnierte Leistung [kW]"]
[322,"Anschluss","Wärmebedarf im Anschlussjahr [%]"]
[323,null,"Anschlussjahr"]
[324,"Tarif","Wärmepreis-Tarif"]
[325,"(exkl. MWSt.)","Anschlusskosten (einmalig) [EUR]"]
[326,"Förderung","einm. Förderung des Anschlusses"]
[330,null,"jährliche Kapitalkosten [EUR/a]",{"$f":"IF(ISBLANK(D22),0,SUM(D23,-D24)/VLOOKUP(D22,$B$36:$E$41,4,0))","v":0},{"$f":"IF(ISBLANK(E22),0,SUM(E23,-E24)/VLOOKUP(E22,$B$36:$E$41,4,0))","v":0},0,0,0,0,0,0,0,0,0,0,0,0,0,0,0,0,0,0,0,0,0,0,0,0,0,0,0,0,0,0,0,0,0,0,0,0,0,0,0,0,0,0,0,0,0,0,0,0,0,0,0,0,0,0,0,0,0,0,0,0,0,0,0,{"$f":"IF(ISBLANK(BQ22),0,SUM(BQ23,-BQ24)/VLOOKUP(BQ22,$B$36:$E$41,4,0))","v":0},0,0,0,0,0,0,0,0,0,0,0,0,0,0,0,0,0,0,0,0,0,0,0,0,0,0,0,0,0,0,0,0,0,0,0,0,0,0,0,0,0,0,0,0,0,0,0,0,0,0,0,0,0,0,0,0,0,0,0,0,0,0,0,{"$f":"IF(ISBLANK(EC22),0,SUM(EC23,-EC24)/VLOOKUP(EC22,$B$36:$E$41,4,0))","v":0},0,0,0,0,0,0,0,0,0,0,0,0,0,0,0,0,0,0,0,0,0,0,0,0,0,0,0,0,0,0,0,0,0,0,0,0,0,0,0,0,0,0,0,0,0,0,0,0,0,0,0,0,0,0,0,0,0,0,0,0,0,0,0,{"$f":"IF(ISBLANK(GO22),0,SUM(GO23,-GO24)/VLOOKUP(GO22,$B$36:$E$41,4,0))","v":0},0,0,0,0,0,0,0,0,0,0,0,0,0,0,0,0,0,0,0,0,0,0,0,0,0,0,0,0,0,0,0,0,0,0,0,0,0,0,0,0,0,0,0,0,0,0,0,0,0,0,0,0,0,0,0,0,0,0,0,0,0,0,0]
[331,null,"jährliche Grundkosten [EUR/a]",{"$f":"IF(ISBLANK(D22),0,(D19*VLOOKUP(D22,$B$36:$D$41,3,0)))","v":0},{"$f":"IF(ISBLANK(E22),0,(E19*VLOOKUP(E22,$B$36:$D$41,3,0)))","v":0},0,0,0,0,0,0,0,0,0,0,0,0,0,0,0,0,0,0,0,0,0,0,0,0,0,0,0,0,0,0,0,0,0,0,0,0,0,0,0,0,0,0,0,0,0,0,0,0,0,0,0,0,0,0,0,0,0,0,0,0,0,0,0,{"$f":"IF(ISBLANK(BQ22),0,(BQ19*VLOOKUP(BQ22,$B$36:$D$41,3,0)))","v":0},0,0,0,0,0,0,0,0,0,0,0,0,0,0,0,0,0,0,0,0,0,0,0,0,0,0,0,0,0,0,0,0,0,0,0,0,0,0,0,0,0,0,0,0,0,0,0,0,0,0,0,0,0,0,0,0,0,0,0,0,0,0,0,{"$f":"IF(ISBLANK(EC22),0,(EC19*VLOOKUP(EC22,$B$36:$D$41,3,0)))","v":0},0,0,0,0,0,0,0,0,0,0,0,0,0,0,0,0,0,0,0,0,0,0,0,0,0,0,0,0,0,0,0,0,0,0,0,0,0,0,0,0,0,0,0,0,0,0,0,0,0,0,{"$f":"IF(ISBLANK(GB22),0,(GB19*VLOOKUP(GB22,$B$36:$D$41,3,0)))","v":0},0,0,0,0,0,0,0,0,0,0,0,0,0,0,0,0,0,0,0,0,0,0,0,0,0,0,0,0,0,0,0,0,0,0,0,0,0,0,0,0,0,0,0,0,0,0,0,0,0,0,0,0,0,0,0,0,0,0,0,0,0,0,0,{"$f":"IF(ISBLANK(IN22),0,(IN19*VLOOKUP(IN22,$B$36:$D$41,3,0)))","v":0},0,0,0,0,0,0,0,0,0,0,0,0]
[332,null,"jährliche Energiekosten [EUR/a]",{"$f":"IF(ISBLANK(D22),0,(D18*1000*VLOOKUP(D22,$B$36:$D$41,2,0)))","v":0},{"$f":"IF(ISBLANK(E22),0,(E18*1000*VLOOKUP(E22,$B$36:$D$41,2,0)))","v":0},0,0,0,0,0,0,0,0,0,0,0,0,0,0,0,0,0,0,0,0,0,0,0,0,0,0,0,0,0,0,0,0,0,0,0,0,0,0,0,0,0,0,0,0,0,0,0,0,0,0,0,0,0,0,0,0,0,0,0,0,0,0,0,{"$f":"IF(ISBLANK(BQ22),0,(BQ18*1000*VLOOKUP(BQ22,$B$36:$D$41,2,0)))","v":0},0,0,0,0,0,0,0,0,0,0,0,0,0,0,0,0,0,0,0,0,0,0,0,0,0,0,0,0,0,0,0,0,0,0,0,0,0,0,0,0,0,0,0,0,0,0,0,0,0,0,0,0,0,0,0,0,0,0,0,0,0,0,0,{"$f":"IF(ISBLANK(EC22),0,(EC18*1000*VLOOKUP(EC22,$B$36:$D$41,2,0)))","v":0},0,0,0,0,0,0,0,0,0,0,0,0,0,0,0,0,0,0,0,0,0,0,0,0,0,0,0,0,0,0,0,0,0,0,0,0,0,0,0,0,0,0,0,0,0,0,0,0,0,0,{"$f":"IF(ISBLANK(GB22),0,(GB18*1000*VLOOKUP(GB22,$B$36:$D$41,2,0)))","v":0},0,0,0,0,0,0,0,0,0,0,0,0,0,0,0,0,0,0,0,0,0,0,0,0,0,0,0,0,0,0,0,0,0,0,0,0,0,0,0,0,0,0,0,0,0,0,0,0,0,0,0,0,0,0,0,0,0,0,0,0,0,0,0,{"$f":"IF(ISBLANK(IN22),0,(IN18*1000*VLOOKUP(IN22,$B$36:$D$41,2,0)))","v":0},0,0,0,0,0,0,0,0,0,0,0,0]
[333,null,"Grund- und Energiekosten [EUR/a]",{"$f":"IF(ISBLANK(D22),0,SUM(D26:D27))","v":0},{"$f":"IF(ISBLANK(E22),0,SUM(E26:E27))","v":0},0,0,0,0,0,0,0,0,0,0,0,0,0,0,0,0,0,0,0,0,0,0,0,0,0,0,0,0,0,0,0,0,0,0,0,0,0,0,0,0,0,0,0,0,0,0,0,0,0,0,0,0,0,0,0,0,0,0,0,0,0,0,0,{"$f":"IF(ISBLANK(BQ22),0,SUM(BQ26:BQ27))","v":0},0,0,0,0,0,0,0,0,0,0,0,0,0,0,0,0,0,0,0,0,0,0,0,0,0,0,0,0,0,0,0,0,0,0,0,0,0,0,0,0,0,0,0,0,0,0,0,0,0,0,0,0,0,0,0,0,0,0,0,0,0,0,0,{"$f":"IF(ISBLANK(EC22),0,SUM(EC26:EC27))","v":0},0,0,0,0,0,0,0,0,0,0,0,0,0,0,0,0,0,0,0,0,0,0,0,0,0,0,0,0,0,0,0,0,0,0,0,0,0,0,0,0,0,0,0,0,0,0,0,0,0,0,{"$f":"IF(ISBLANK(GB22),0,SUM(GB26:GB27))","v":0},0,0,0,0,0,0,0,0,0,0,0,0,0,0,0,0,0,0,0,0,0,0,0,0,0,0,0,0,0,0,0,0,0,0,0,0,0,0,0,0,0,0,0,0,0,0,0,0,0,0,0,0,0,0,0,0,0,0,0,0,0,0,0,{"$f":"IF(ISBLANK(IN22),0,SUM(IN26:IN27))","v":0},0,0,0,0,0,0,0,0,0,0,0,0]
[334,null,"Jahreskosten [EUR/a]",{"$f":"IF(ISBLANK(D23),0,SUM(D25:D27))","v":0},{"$f":"IF(ISBLANK(E23),0,SUM(E25:E27))","v":0},0,0,0,0,0,0,0,0,0,0,0,0,0,0,0,0,0,0,0,0,0,0,0,0,0,0,0,0,0,0,0,0,0,0,0,0,0,0,0,0,0,0,0,0,0,0,0,0,0,0,0,0,0,0,0,0,0,0,0,0,0,0,0,{"$f":"IF(ISBLANK(BQ23),0,SUM(BQ25:BQ27))","v":0},0,0,0,0,0,0,0,0,0,0,0,0,0,0,0,0,0,0,0,0,0,0,0,0,0,0,0,0,0,0,0,0,0,0,0,0,0,0,0,0,0,0,0,0,0,0,0,0,0,0,0,0,0,0,0,0,0,0,0,0,0,0,0,{"$f":"IF(ISBLANK(EC23),0,SUM(EC25:EC27))","v":0},0,0,0,0,0,0,0,0,0,0,0,0,0,0,0,0,0,0,0,0,0,0,0,0,0,0,0,0,0,0,0,0,0,0,0,0,0,0,0,0,0,0,0,0,0,0,0,0,0,0,{"$f":"IF(ISBLANK(GB23),0,SUM(GB25:GB27))","v":0},0,0,0,0,0,0,0,0,0,0,0,0,0,0,0,0,0,0,0,0,0,0,0,0,0,0,0,0,0,0,0,0,0,0,0,0,0,0,0,0,0,0,0,0,0,0,0,0,0,0,0,0,0,0,0,0,0,0,0,0,0,0,0,{"$f":"IF(ISBLANK(IN23),0,SUM(IN25:IN27))","v":0},0,0,0,0,0,0,0,0,0,0,0,0]
[335,null,"Wärmegestehungspreis [ct/kWh]",{"$f":"IF(ISBLANK(D18),0,(D29/D18/10))","v":0},{"$f":"IF(ISBLANK(E18),0,(E29/E18/10))","v":0},0,0,0,0,0,0,0,0,0,0,0,0,0,0,0,0,0,0,0,0,0,0,0,0,0,0,0,0,0,0,0,0,0,0,0,0,0,0,0,0,0,0,0,0,0,0,0,0,0,0,0,0,0,0,0,0,0,0,0,0,0,0,0,{"$f":"IF(ISBLANK(BQ18),0,(BQ29/BQ18/10))","v":0},0,0,0,0,0,0,0,0,0,0,0,0,0,0,0,0,0,0,0,0,0,0,0,0,0,0,0,0,0,0,0,0,0,0,0,0,0,0,0,0,0,0,0,0,0,0,0,0,0,0,0,0,0,0,0,0,0,0,0,0,0,0,0,{"$f":"IF(ISBLANK(EC18),0,(EC29/EC18/10))","v":0},0,0,0,0,0,0,0,0,0,0,0,0,0,0,0,0,0,0,0,0,0,0,0,0,0,0,0,0,0,0,0,0,0,0,0,0,0,0,0,0,0,0,0,0,0,0,0,0,0,0,{"$f":"IF(ISBLANK(GB18),0,(GB29/GB18/10))","v":0},0,0,0,0,0,0,0,0,0,0,0,0,0,0,0,0,0,0,0,0,0,0,0,0,0,0,0,0,0,0,0,0,0,0,0,0,0,0,0,0,0,0,0,0,0,0,0,0,0,0,0,0,0,0,0,0,0,0,0,0,0,0,0,{"$f":"IF(ISBLANK(IN18),0,(IN29/IN18/10))","v":0},0,0,0,0,0,0,0,0,0,0,0,0]
[]
[]
[]
[]
[null,"Tarifname","Arbeitstarif [EUR/kWh a]","Leistungstarif [EUR/kW]","Vertragslaufzeit [Jahre]"]
[null,{"$f":"\"T 1: \"&Eing_Abnehmerart1","v":"T 1: "},{"$f":"Eing_Arbeitspreis1","v":0},{"$f":"Eing_Leistungspreis1","v":0},{"$f":"Eing_Vertragslaufzeit1","v":0}]
[null,{"$f":"\"T 2: \"&Eing_Abnehmerart2","v":"T 2: "},{"$f":"Eing_Arbeitspreis2","v":0},{"$f":"Eing_Leistungspreis2","v":0},{"$f":"Eing_Vertragslaufzeit2","v":0}]
[null,{"$f":"\"T 3: \"&Eing_Abnehmerart3","v":"T 3: "},{"$f":"Eing_Arbeitspreis3","v":0},{"$f":"Eing_Leistungspreis3","v":0},{"$f":"Eing_Vertragslaufzeit3","v":0}]
[null,{"$f":"\"T 4: \"&Eing_Abnehmerart4","v":"T 4: "},{"$f":"Eing_Arbeitspreis4","v":0},{"$f":"Eing_Leistungspreis4","v":0},{"$f":"Eing_Vertragslaufzeit4","v":0}]
[null,{"$f":"\"T 5: \"&Eing_Abnehmerart5","v":"T 5: "},{"$f":"Eing_Arbeitspreis5","v":0},{"$f":"Eing_Leistungspreis5","v":0},{"$f":"Eing_Vertragslaufzeit5","v":0}]
[null,{"$f":"\"T 6: \"&Eing_Abnehmerart6","v":"T 6: "},{"$f":"Eing_Arbeitspreis6","v":0},{"$f":"Eing_Leistungspreis6","v":0},{"$f":"Eing_Vertragslaufzeit6","v":0}]

{"sheet":"B1_Berechnungen","index":4,"n_rows":67,"n_cols":56,"rows_kept":67,"merged":[[2,3,2,8],[3,3,3,8],[5,3,5,8],[6,3,6,8],[7,3,7,8],[9,3,9,8],[11,3,11,8],[14,1,14,4],[15,2,15,4],[16,2,16,4],[17,2,17,4],[18,2,18,4],[19,2,19,4],[20,2,20,4],[21,2,21,4],[22,2,22,4],[23,2,23,4],[24,2,24,4],[31,2,31,4],[32,2,32,4]]}
[500,"QM Holzheizwerke - Wirtschaftlichkeitsmodell - Ergebnis"]
[]
["101a",null,null,"Eingabefeld"]
["101b",null,null,"Standardwert oder Berechnung (kann geändert werden)"]
[]
[206,"Projekt/Variante:",null,{"$f":"IF(E1_Projektdaten!C8=0,\"\",E1_Projektdaten!C8)","v":""},{"$nulls":5},505,"Wirtschaftliche Entwicklung (Diagramme)",{"$nulls":22},506,"Entwicklung Kreditstand / Restwert (Diagramm)"]
[{"$nulls":3},{"$f":"IF(E1_Projektdaten!C9=0,\"\",E1_Projektdaten!C9)","v":""}]
[{"$nulls":3},{"$f":"IF(E1_Projektdaten!C10=0,\"\",E1_Projektdaten!C10)","v":""}]
[]
[207,"Erfasst von:",null,{"$f":"IF(E1_Projektdaten!C12=0,\"\",E1_Projektdaten!C12)","v":""}]
[]
[501,"Warnungen:",null,{"$f":"IF(E1_Projektdaten!C14<>\"\",E1_Projektdaten!Y15,\"\")","v":"Es existieren Warnungen im Register 'E1_Projektdaten'!"}]
[{"$nulls":6},511]
[510,"Betriebskosten",null,null," (100% Auslastung; Jahr 1)"," [EUR/a]","Teuerung [%]"]
["a","Total Betriebskosten",{"$nulls":3},{"$f":"SUM(F16:F25)","v":0},{"$f":"IF(F15=0,0,SUMPRODUCT(F16:F25*G16:G25)/SUM(F16:F25))","v":{"v":0,"d":"0.00%"}}]
["b",null,"Brennstoff Biomasse",null,null,{"$f":"SUM(Energiekosten_Holzschnitzel,Energiekosten_WKK)","v":0},{"$f":"Eing_allg_Teuerung/100","v":{"v":0,"d":"0.00%"}}]
["c",null,"Energiekosten Zusatzwärmeerzeuger",null,null,{"$f":"Energiekosten_Zusatz","v":0},{"v":0,"d":"0.00%"}]
["d",null,"Energiekosten Abwärmenutzung",null,null,{"$f":"Energiekosten_AWN","v":0},{"$f":"Eing_allg_Teuerung/100","v":{"v":0,"d":"0.00%"}}]
["e",null,"Brennstoff fossil",null,null,{"$f":"Energiekosten_fossil","v":0},{"v":0,"d":"0.00%"}]
["f",null,"Strom (Hilfsenergie + WP)",null,null,{"$f":"SUM(Stromkosten_Hilfsenergie,Stromkosten_WP)","v":0},{"v":0,"d":"0.00%"}]
["g",null,"Betriebskosten",null,null,{"$f":"Eing_Betriebskosten","v":0},{"v":0,"d":"0.00%"}]
["h",null,"Administration",null,null,{"$f":"Eing_Administration","v":0},{"$f":"Eing_allg_Teuerung/100","v":{"v":0,"d":"0.00%"}}]
["i",null,"Unterhaltskosten",null,null,{"$f":"Eing_Unterhaltskosten","v":0},{"v":0,"d":"0.00%"}]
["j",null,"Miete /Pacht / Grundstückskosten",null,null,{"$f":"Eing_Kosten_Grundstück","v":0},{"v":0,"d":"0.00%"}]
["k",null,"Sonstige (Versicherung etc.)",null,null,{"$f":"Eing_Sonstige_Kosten","v":0},{"v":0,"d":"0.00%"}]
[]
["q",{"$nulls":3},"Ertrag Stromverkauf",{"$f":"-Ertrag_Stromeinspeisung","v":0},{"$f":"Eing_allg_Teuerung/100","v":{"v":0,"d":"0.00%"}}]
["r",{"$nulls":3},"Ertrag Pflanzenkohle",{"$f":"-Ertrag_Pflanzenkohle","v":0},{"$f":"Eing_allg_Teuerung/100","v":{"v":0,"d":"0.00%"}}]
["w","Wärmepreis",{"$nulls":4},{"$f":"G15","v":{"v":0,"d":"0.00%"}}]
[]
[null,"Projektdaten",{"$nulls":3},"EUR"]
[145,null,"Gesamtinvestitionsumme",null,null,{"$f":"Gesamtinvestition","v":0}]
[165,null,"Total Förderung",null,null,{"$f":"Gesamtsumme_Förderung","v":0}]
[543,{"$nulls":3},"Total Anschlussbeiträge",{"$f":"SUM(G43:G67)","v":0}]
[155,{"$nulls":3},"Eigenkapital",{"$f":"Eing_Eigenkapital","v":0}]
[160,{"$nulls":3},"Total Fremdkapital",{"$f":"SUM(Eing_Kredit_1,Eing_Kredit_2)","v":0}]
[]
[530,{"$nulls":3},"Anlagekosten",{"$nulls":3},"Finanzierung",{"$nulls":4},"Ertrag",{"$nulls":6},"Aufwand","Energiekosten",{"$nulls":5},"Betrieb- und Unterhalt",{"$nulls":6},"Cashflow",{"$nulls":3},"Erfolgsrechnung",{"$nulls":3},"Restwert",null,null,"Hilfsberechnungen"]
[]
[null,"Jahr","Wärmebedarf inkl. Netzverluste","Aus-lastung","Investitionen","Förderung\neinmalig","Anschluss-beitreäge","Netto Investitionen","Eigenmittel ","Kredit","Finanzie-rungslücke","kumulierter Cashflow (Vergleich)","Verzinsung Investitions-\nsumme","Wärme-verkauf\n(inkl. jährl. Grundpreis)","Strom-einspeisung","Pflanzen-kohle","Förderung\njährlich","Zusätzlicher Ertrag","Effektiver Ertrag","Gesamt-ertrag","Holz-schnitzel","WKK"," Zusatzwärmeerzeuger","Abwärme-nutzung","Brennstoff fossil","Strom WP","Strom (Hilfsenergie)","Betrieb + Administra-tion","Unterhalt","Sonstige\n+ Miete/\nPacht","Zusätzlicher Aufwand","Effektiver Aufwand","Zins Kredite","Gesamt-aufwand vor Abschreibungen","Amortisation Kredite","Gesamt-aufwand inkl. Kredit-amortisation","Cashflow","Kumulierter Cashflow","Ab-schreibung","Gesamt-aufwand inkl. Abschreibungen","Reingewinn/\n-verlust","Kumulierter Gewinn / Verlust","Restwert der Anlagen","Kreditstand","Jahr nach IBN","Stand Eigenmittel","Kreditguthaben 1","Kreditbedarf 1","Amortisation Kredit 1","Kreditstand 1","Kreditguthaben 2","Kreditbedarf 2","Amortisation Kredit 2","Kreditstand 2","Invest; Restwert; CashFlow","Invest; CashFlow"]
[null,531,532,533,541,542,543,544,551,552,555,582,559,561,562,563,564,566,567,569,"571a","571b","571c","571d","571e","572a","572b","574a","574b",575,576,577,578,579,580,null,581,582,585,null,588,589,591,592,599]
[null,"[JJJJ]","MWh","%","EUR","EUR","EUR","EUR","EUR","EUR","EUR","EUR","%","EUR","EUR","EUR","EUR","EUR","EUR","EUR","EUR","EUR","EUR","EUR","EUR","EUR","EUR","EUR","EUR","EUR","EUR","EUR","EUR","EUR","EUR","EUR","EUR","EUR","EUR","EUR","EUR","EUR","EUR","EUR",null,"EUR","EUR","EUR","EUR","EUR","EUR","EUR","EUR","EUR"]
[null,{"$f":"Eing_Beginnjahr","v":0},{"$f":"(SUMPRODUCT((E3_Verbraucher!$D$21:$XFD$21<B1_Berechnungen!B43)*E3_Verbraucher!$D$18:$XFD$18)+SUMPRODUCT((E3_Verbraucher!$D$21:$XFD$21=B1_Berechnungen!B43)*E3_Verbraucher!$D$18:$XFD$18*E3_Verbraucher!$D$20:$XFD$20))/(100-Eing_Netzverluste)*100*(1-Eing_AbnW/100)^(B1_Berechnungen!B43-Eing_Beginnjahr)","v":0},{"$f":"IF(mittl_Erzeugte_Wärmemenge=0,0,C43/mittl_Erzeugte_Wärmemenge*100)","v":{"v":0,"d":"0.00"}},{"$f":"IF(AS43=0,0,\n(Eing_Kosten_Bau*(MOD((AS43),Eing_Nutzungsdauer_Bau)=0)\n+Eing_Invest_HolzAnlage*(MOD((AS43),Eing_Nutzungsdauer_Holz)=0)\n+Eing_Invest_WKKAnlage*(MOD((AS43),Eing_Nutzungsdauer_WKK)=0)\n+Eing_Invest_WPAnlage*(MOD((AS43),Eing_Nutzungsdauer_WP)=0)\n+Eing_Invest_SondenGrundwasser*(MOD((AS43),Eing_Nutzungsdauer_SondenGW)=0)\n+Eing_Invest_Zusatz*(MOD((AS43),Eing_Nutzungsdauer_Zusatz)=0)\n+Eing_Invest_AWN*(MOD((AS43),Eing_Nutzungsdauer_AWN)=0)\n+Eing_Invest_Spitzenlast*(MOD((AS43),Eing_Nutzungsdauer_Spitzenlast)=0)\n+Eing_Invest_Installationen*(MOD((AS43),Eing_Nutzungsdauer_Installationen)=0)\n+Eing_Invest_Wärmenetz*(MOD((AS43),Eing_Nutzungsdauer_Netz)=0)\n+Eing_Invest_Messung*(MOD((AS43),Eing_Nutzungsdauer_Messung)=0))*(1+Eing_allg_Teuerung/100)^(AS43))\n+Gesamtinvestition*SUMPRODUCT((E1_Projektdaten!$D$83:$D$87=B43)*E1_Projektdaten!$F$83:$F$87)/100","v":0},{"$f":"-SUM(Einmaliger_Förderbeitrag_1*(B43=Förderungsauszahlung_1),Einmaliger_Förderbeitrag_2*(B43=Förderungsauszahlung_2),Einmaliger_Förderbeitrag_3*(B43=Förderungsauszahlung_3))","v":0},{"$f":"-SUMPRODUCT((E3_Verbraucher!$D$21:$XFD$21=B1_Berechnungen!B43)*E3_Verbraucher!$D$23:$XFD$23)","v":0},{"$f":"SUM(E43:G43)","v":0},{"$f":"IF(H43<=0,0,MIN(Eing_Eigenkapital,H43))","v":0},{"$f":"AV43+AZ43","v":0},{"$f":"-H43+SUM(I43:J43)","v":0},{"$f":"AL43","v":0},{"$f":"IF(ISNUMBER(IRR(BC43)),IRR(BC43),\"-\")","v":"-"},{"$f":"SUM((SUMPRODUCT((E3_Verbraucher!$D$21:$XFD$21<B1_Berechnungen!B43)*E3_Verbraucher!$D$26:$XFD$26)+SUMPRODUCT((E3_Verbraucher!$D$21:$XFD$21=B1_Berechnungen!B43)*E3_Verbraucher!$D$26:$XFD$26*E3_Verbraucher!$D$20:$XFD$20))*(1+$G$29)^(B43-B$43),(SUMPRODUCT((E3_Verbraucher!$D$21:$XFD$21<B1_Berechnungen!B43)*E3_Verbraucher!$D$27:$XFD$27)+SUMPRODUCT((E3_Verbraucher!$D$21:$XFD$21=B1_Berechnungen!B43)*E3_Verbraucher!$D$27:$XFD$27*E3_Verbraucher!$D$20:$XFD$20))*((1+$G$29)*(1-E1_Projektdaten!$D$20/100))^(B43-B$43))","v":0},{"$f":"-$F$27*D43/100*((1+$G$27)^(B43-$B$43))","v":0},{"$f":"-$F$28*D43/100*((1+$G$28)^(B43-$B$43))","v":0},{"$f":"SUM(Eing_jährlicher_Förderbeitrag_1*((B43-Eing_Erstauszahlung_jährlFörderung_1)<=(Eing_Förderung_wiederholend_Laufzeit_1-1))*(B43>=Eing_Erstauszahlung_jährlFörderung_1),Eing_jährlicher_Förderbeitrag_2*((B43-Eing_Erstauszahlung_jährlFörderung_2)<=(Eing_Förderung_wiederholend_Laufzeit_2-1))*(B43>=Eing_Erstauszahlung_jährlFörderung_2))","v":0},null,null,{"$f":"IF(S43,S43,SUM(N43:R43))","v":0},{"$f":"BrennstoffkostenBiomasse*D43/100*((1+$G$16)^(B43-$B$43))","v":0},{"$f":"Energiekosten_WKK*D43/100*((1+$G$16)^(B43-$B$43))","v":0},{"$f":"Energiekosten_Zusatz*D43/100*((1+$G$17)^(B43-$B$43))","v":0},{"$f":"Energiekosten_AWN*D43/100*((1+$G$18)^(B43-$B$43))","v":0},{"$f":"Energiekosten_fossil*D43/100*(1+$G$19)^(B43-$B$43)","v":0},{"$f":"Stromkosten_WP*D43/100*((1+$G$20)^(B43-$B$43))","v":0},{"$f":"Stromkosten_Hilfsenergie*D43/100*((1+$G$20)^(B43-$B$43))","v":0},{"$f":"($F$21*(1+$G$21)^(B43-B$43)+$F$22*(1+$G$22)^(B43-B$43))*(B43>=Eing_JahrBegWLief)*VLOOKUP(B43,E1_Projektdaten!$D$83:$I$87,6)/100","v":0},{"$f":"$F$23*(1+$G$23)^(B43-B$43)*(B43>=Eing_JahrBegWLief)*VLOOKUP(B43,E1_Projektdaten!$D$83:$I$87,6)/100","v":0},{"$f":"Eing_Kosten_Grundstück*(1+$G$24)^(B43-B$43)+Eing_Sonstige_Kosten*(1+$G$25)^(B43-B$43)","v":0},null,null,{"$f":"SUM(AX43*Eing_Kreditzinssatz_1/100,BB43*Eing_Kreditzinssatz_2/100)","v":0},{"$f":"IF(AF43,SUM(AF43:AG43),SUM(U43:AG43))","v":0},{"$f":"SUM(AW43,BA43)","v":0},{"$f":"SUM(AH43,AI43)","v":0},{"$f":"SUM(-AJ43,T43)","v":0},{"$f":"AK43","v":0},{"$f":"(E1_Projektdaten!$D$68*(1+Eing_allg_Teuerung/100)^(E1_Projektdaten!$I$68*ROUNDDOWN((AS43-1)/E1_Projektdaten!$I$68,0))/E1_Projektdaten!$I$68\n+E1_Projektdaten!$D$69*(1+Eing_allg_Teuerung/100)^(E1_Projektdaten!$I$69*ROUNDDOWN((AS43-1)/E1_Projektdaten!$I$69,0))/E1_Projektdaten!$I$69\n+E1_Projektdaten!$D$70*(1+Eing_allg_Teuerung/100)^(E1_Projektdaten!$I$70*ROUNDDOWN((AS43-1)/E1_Projektdaten!$I$69,0))/E1_Projektdaten!$I$70\n+E1_Projektdaten!$D$71*(1+Eing_allg_Teuerung/100)^(E1_Projektdaten!$I$71*ROUNDDOWN((AS43-1)/E1_Projektdaten!$I$69,0))/E1_Projektdaten!$I$71\n+E1_Projektdaten!$D$72*(1+Eing_allg_Teuerung/100)^(E1_Projektdaten!$I$72*ROUNDDOWN((AS43-1)/E1_Projektdaten!$I$69,0))/E1_Projektdaten!$I$72\n+E1_Projektdaten!$D$74*(1+Eing_allg_Teuerung/100)^(E1_Projektdaten!$I$74*ROUNDDOWN((AS43-1)/E1_Projektdaten!$I$69,0))/E1_Projektdaten!$I$74\n+E1_Projektdaten!$D$75*(1+Eing_allg_Teuerung/100)^(E1_Projektdaten!$I$75*ROUNDDOWN((AS43-1)/E1_Projektdaten!$I$75,0))/E1_Projektdaten!$I$75\n+E1_Projektdaten!$D$76*(1+Eing_allg_Teuerung/100)^(E1_Projektdaten!$I$76*ROUNDDOWN((AS43-1)/E1_Projektdaten!$I$76,0))/E1_Projektdaten!$I$76\n+E1_Projektdaten!$D$77*(1+Eing_allg_Teuerung/100)^(E1_Projektdaten!$I$77*ROUNDDOWN((AS43-1)/E1_Projektdaten!$I$77,0))/E1_Projektdaten!$I$77\n+E1_Projektdaten!$D$78*(1+Eing_allg_Teuerung/100)^(E1_Projektdaten!$I$78*ROUNDDOWN((AS43-1)/E1_Projektdaten!$I$78,0))/E1_Projektdaten!$I$78\n+E1_Projektdaten!$D$80*(1+Eing_allg_Teuerung/100)^(E1_Projektdaten!$I$80*ROUNDDOWN((AS43-1)/E1_Projektdaten!$I$69,0))/E1_Projektdaten!$I$80\n)*((AS43)>0)*VLOOKUP(B43,E1_Projektdaten!$D$83:$I$87,6\n)/100","v":0},{"$f":"SUM(AH43,AM43)","v":0},{"$f":"SUM(T43,-AN43)","v":0},{"$f":"AO43","v":0},{"$f":"IF(AS43-1<=0,0,\n(Eing_Kosten_Bau*(MOD((AS43-1),Eing_Nutzungsdauer_Bau)=0)\n+Eing_Invest_HolzAnlage*(MOD((AS43-1),Eing_Nutzungsdauer_Holz)=0)\n+Eing_Invest_WKKAnlage*(MOD((AS43-1),Eing_Nutzungsdauer_WKK)=0)\n+Eing_Invest_WPAnlage*(MOD((AS43-1),Eing_Nutzungsdauer_WP)=0)\n+Eing_Invest_SondenGrundwasser*(MOD((AS43-1),Eing_Nutzungsdauer_SondenGW)=0)\n+Eing_Invest_AWN*(MOD((AS43-1),Eing_Nutzungsdauer_AWN)=0)\n+Eing_Invest_Spitzenlast*(MOD((AS43-1),Eing_Nutzungsdauer_Spitzenlast)=0)\n+Eing_Invest_Installationen*(MOD((AS43-1),Eing_Nutzungsdauer_Installationen)=0)\n+Eing_Invest_Wärmenetz*(MOD((AS43-1),Eing_Nutzungsdauer_Netz)=0)\n+Eing_Invest_Messung*(MOD((AS43-1),Eing_Nutzungsdauer_Messung)=0))*(1+Eing_allg_Teuerung/100)^(AS43-1))\n+(Gesamtinvestition-SUM(E1_Projektdaten!$D$79:$D$80))*SUMPRODUCT((E1_Projektdaten!$D$83:$D$87=B43)*E1_Projektdaten!$F$83:$F$87)/100-AM43","v":0},{"$f":"-SUM(AX43,BB43)","v":0},{"$f":"MAX(B1_Berechnungen!B43-E1_Projektdaten!$D$23,0)","v":0},{"$f":"Eing_Eigenkapital-B1_Berechnungen!I43","v":0},{"$f":"(Eing_Kredit_1*(B43=Eing_Kreditstartjahr_1))","v":0},{"$f":"IF((SUM(H$43:H43)-SUM(I$43:I43))<=AU43,MAX((SUM(H$43:H43)-SUM(I$43:I43)),0),AU43)","v":0},{"$f":"IF(Eing_Kreditlaufzeit_1=0,0,(IF(Eing_Kreditlaufzeit_1<>0,(Eing_Kredit_1/(Eing_Kreditlaufzeit_1+Eing_Kreditstartjahr_1-Eing_StartAmortisation_Kredit1))*(Eing_Kreditlaufzeit_1>B43-Eing_Kreditstartjahr_1)*(B43>=Eing_StartAmortisation_Kredit1))))","v":0},{"$f":"AV43-AW43","v":0},{"$f":"(Eing_Kredit_2*(B43=Eing_Kreditstartjahr_2))","v":0},{"$f":"IF((SUM(H$43:H43)-SUM(I$43:I43)-AV43)<=AY43,MAX((SUM(H$43:H43)-SUM(I$43:I43)-AV43),0),AY43)","v":0},{"$f":"IF(Eing_Kreditlaufzeit_2=0,0,(IF(Eing_Kreditlaufzeit_2<>0,(Eing_Kredit_2/(Eing_Kreditlaufzeit_2+Eing_Kreditstartjahr_2-Eing_StartAmortisation_Kredit2))*(Eing_Kreditlaufzeit_2>B43-Eing_Kreditstartjahr_2)*(B43>=Eing_StartAmortisation_Kredit2))))","v":0},{"$f":"AZ43-BA43","v":0},{"$f":"SUM(-H43,AK43,AQ43)","v":0},{"$f":"SUM(-H43,AK43)","v":0}]
[null,{"$f":"B43+1","v":1},{"$f":"(SUMPRODUCT((E3_Verbraucher!$D$21:$XFD$21<B1_Berechnungen!B44)*E3_Verbraucher!$D$18:$XFD$18)+SUMPRODUCT((E3_Verbraucher!$D$21:$XFD$21=B1_Berechnungen!B44)*E3_Verbraucher!$D$18:$XFD$18*E3_Verbraucher!$D$20:$XFD$20))/(100-Eing_Netzverluste)*100*(1-Eing_AbnW/100)^(B1_Berechnungen!B44-Eing_Beginnjahr)","v":0},{"$f":"IF(mittl_Erzeugte_Wärmemenge=0,0,C44/mittl_Erzeugte_Wärmemenge*100)","v":{"v":0,"d":"0.00"}},{"$f":"IF(AS44=0,0,\n(Eing_Kosten_Bau*(MOD((AS44),Eing_Nutzungsdauer_Bau)=0)\n+Eing_Invest_HolzAnlage*(MOD((AS44),Eing_Nutzungsdauer_Holz)=0)\n+Eing_Invest_WKKAnlage*(MOD((AS44),Eing_Nutzungsdauer_WKK)=0)\n+Eing_Invest_WPAnlage*(MOD((AS44),Eing_Nutzungsdauer_WP)=0)\n+Eing_Invest_SondenGrundwasser*(MOD((AS44),Eing_Nutzungsdauer_SondenGW)=0)\n+Eing_Invest_Zusatz*(MOD((AS44),Eing_Nutzungsdauer_Zusatz)=0)\n+Eing_Invest_AWN*(MOD((AS44),Eing_Nutzungsdauer_AWN)=0)\n+Eing_Invest_Spitzenlast*(MOD((AS44),Eing_Nutzungsdauer_Spitzenlast)=0)\n+Eing_Invest_Installationen*(MOD((AS44),Eing_Nutzungsdauer_Installationen)=0)\n+Eing_Invest_Wärmenetz*(MOD((AS44),Eing_Nutzungsdauer_Netz)=0)\n+Eing_Invest_Messung*(MOD((AS44),Eing_Nutzungsdauer_Messung)=0))*(1+Eing_allg_Teuerung/100)^(AS44))\n+Gesamtinvestition*SUMPRODUCT((E1_Projektdaten!$D$83:$D$87=B44)*E1_Projektdaten!$F$83:$F$87)/100","v":0},0,{"$f":"-SUMPRODUCT((E3_Verbraucher!$D$21:$XFD$21=B1_Berechnungen!B44)*E3_Verbraucher!$D$23:$XFD$23)","v":0},{"$f":"SUM(E44:G44)","v":0},{"$f":"IF(H44<=0,0,MIN(AT43,H44))","v":0},{"$f":"AV44+AZ44","v":0},{"$f":"K43-H44+SUM(I44:J44)","v":0},{"$f":"AL44","v":0},{"$f":"IF(ISNUMBER(IRR((BD$43:BD43,BC44))),IRR((BD$43:BD43,BC44)),\"-\")","v":"-"},{"$f":"SUM((SUMPRODUCT((E3_Verbraucher!$D$21:$XFD$21<B1_Berechnungen!B44)*E3_Verbraucher!$D$26:$XFD$26)+SUMPRODUCT((E3_Verbraucher!$D$21:$XFD$21=B1_Berechnungen!B44)*E3_Verbraucher!$D$26:$XFD$26*E3_Verbraucher!$D$20:$XFD$20))*(1+$G$29)^(B44-B$43),(SUMPRODUCT((E3_Verbraucher!$D$21:$XFD$21<B1_Berechnungen!B44)*E3_Verbraucher!$D$27:$XFD$27)+SUMPRODUCT((E3_Verbraucher!$D$21:$XFD$21=B1_Berechnungen!B44)*E3_Verbraucher!$D$27:$XFD$27*E3_Verbraucher!$D$20:$XFD$20))*((1+$G$29)*(1-E1_Projektdaten!$D$20/100))^(B44-B$43))","v":0},0,0,0,null,null,0,0,0,0,0,0,0,0,{"$f":"($F$21*(1+$G$21)^(B44-B$43)+$F$22*(1+$G$22)^(B44-B$43))*(B44>=Eing_JahrBegWLief)*VLOOKUP(B44,E1_Projektdaten!$D$83:$I$87,6)/100","v":0},{"$f":"$F$23*(1+$G$23)^(B44-B$43)*(B44>=Eing_JahrBegWLief)*VLOOKUP(B44,E1_Projektdaten!$D$83:$I$87,6)/100","v":0},0,null,null,0,{"$f":"IF(AF44,SUM(AF44:AG44),SUM(U44:AG44))","v":0},{"$f":"SUM(AW44,BA44)","v":0},{"$f":"SUM(AH44,AI44)","v":0},{"$f":"SUM(-AJ44,T44)","v":0},{"$f":"AL43+AK44","v":0},{"$f":"(E1_Projektdaten!$D$68*(1+Eing_allg_Teuerung/100)^(E1_Projektdaten!$I$68*ROUNDDOWN((AS44-1)/E1_Projektdaten!$I$68,0))/E1_Projektdaten!$I$68\n+E1_Projektdaten!$D$69*(1+Eing_allg_Teuerung/100)^(E1_Projektdaten!$I$69*ROUNDDOWN((AS44-1)/E1_Projektdaten!$I$69,0))/E1_Projektdaten!$I$69\n+E1_Projektdaten!$D$70*(1+Eing_allg_Teuerung/100)^(E1_Projektdaten!$I$70*ROUNDDOWN((AS44-1)/E1_Projektdaten!$I$69,0))/E1_Projektdaten!$I$70\n+E1_Projektdaten!$D$71*(1+Eing_allg_Teuerung/100)^(E1_Projektdaten!$I$71*ROUNDDOWN((AS44-1)/E1_Projektdaten!$I$69,0))/E1_Projektdaten!$I$71\n+E1_Projektdaten!$D$72*(1+Eing_allg_Teuerung/100)^(E1_Projektdaten!$I$72*ROUNDDOWN((AS44-1)/E1_Projektdaten!$I$69,0))/E1_Projektdaten!$I$72\n+E1_Projektdaten!$D$74*(1+Eing_allg_Teuerung/100)^(E1_Projektdaten!$I$74*ROUNDDOWN((AS44-1)/E1_Projektdaten!$I$69,0))/E1_Projektdaten!$I$74\n+E1_Projektdaten!$D$75*(1+Eing_allg_Teuerung/100)^(E1_Projektdaten!$I$75*ROUNDDOWN((AS44-1)/E1_Projektdaten!$I$75,0))/E1_Projektdaten!$I$75\n+E1_Projektdaten!$D$76*(1+Eing_allg_Teuerung/100)^(E1_Projektdaten!$I$76*ROUNDDOWN((AS44-1)/E1_Projektdaten!$I$76,0))/E1_Projektdaten!$I$76\n+E1_Projektdaten!$D$77*(1+Eing_allg_Teuerung/100)^(E1_Projektdaten!$I$77*ROUNDDOWN((AS44-1)/E1_Projektdaten!$I$77,0))/E1_Projektdaten!$I$77\n+E1_Projektdaten!$D$78*(1+Eing_allg_Teuerung/100)^(E1_Projektdaten!$I$78*ROUNDDOWN((AS44-1)/E1_Projektdaten!$I$78,0))/E1_Projektdaten!$I$78\n+E1_Projektdaten!$D$80*(1+Eing_allg_Teuerung/100)^(E1_Projektdaten!$I$80*ROUNDDOWN((AS44-1)/E1_Projektdaten!$I$69,0))/E1_Projektdaten!$I$80\n)*((AS44)>0)*VLOOKUP(B44,E1_Projektdaten!$D$83:$I$87,6\n)/100","v":0},{"$f":"SUM(AH44,AM44)","v":0},{"$f":"SUM(T44,-AN44)","v":0},{"$f":"AP43+AO44","v":0},{"$f":"IF(AS44-1<=0,0,\n(Eing_Kosten_Bau*(MOD((AS44-1),Eing_Nutzungsdauer_Bau)=0)\n+Eing_Invest_HolzAnlage*(MOD((AS44-1),Eing_Nutzungsdauer_Holz)=0)\n+Eing_Invest_WKKAnlage*(MOD((AS44-1),Eing_Nutzungsdauer_WKK)=0)\n+Eing_Invest_WPAnlage*(MOD((AS44-1),Eing_Nutzungsdauer_WP)=0)\n+Eing_Invest_SondenGrundwasser*(MOD((AS44-1),Eing_Nutzungsdauer_SondenGW)=0)\n+Eing_Invest_AWN*(MOD((AS44-1),Eing_Nutzungsdauer_AWN)=0)\n+Eing_Invest_Spitzenlast*(MOD((AS44-1),Eing_Nutzungsdauer_Spitzenlast)=0)\n+Eing_Invest_Installationen*(MOD((AS44-1),Eing_Nutzungsdauer_Installationen)=0)\n+Eing_Invest_Wärmenetz*(MOD((AS44-1),Eing_Nutzungsdauer_Netz)=0)\n+Eing_Invest_Messung*(MOD((AS44-1),Eing_Nutzungsdauer_Messung)=0))*(1+Eing_allg_Teuerung/100)^(AS44-1))\n+(Gesamtinvestition-SUM(E1_Projektdaten!$D$79:$D$80))*SUMPRODUCT((E1_Projektdaten!$D$83:$D$87=B44)*E1_Projektdaten!$F$83:$F$87)/100-AM44\n+AQ43","v":0},{"$f":"-SUM(AX44,BB44)","v":0},{"$f":"MAX(B1_Berechnungen!B44-E1_Projektdaten!$D$23,0)","v":1},{"$f":"AT43-B1_Berechnungen!I44","v":0},{"$f":"AU43-AV43+(Eing_Kredit_1*(B44=Eing_Kreditstartjahr_1))","v":0},{"$f":"IF((SUM(H$43:H44)-SUM(I$43:I44))<=AU44,MAX((SUM(H$43:H44)-SUM(I$43:I44)),0),AU44)","v":0},0,{"$f":"AX43+AV44-AW44","v":0},{"$f":"AY43-AZ43+(Eing_Kredit_2*(B44=Eing_Kreditstartjahr_2))","v":0},{"$f":"IF((SUM(H$43:H44)-SUM(I$43:I44)-AV44)<=AY44,MAX((SUM(H$43:H44)-SUM(I$43:I44)-AV44),0),AY44)","v":0},0,{"$f":"BB43+AZ44-BA44","v":0},0,0]
[null,{"$f":"B44+1","v":2},{"$f":"(SUMPRODUCT((E3_Verbraucher!$D$21:$XFD$21<B1_Berechnungen!B45)*E3_Verbraucher!$D$18:$XFD$18)+SUMPRODUCT((E3_Verbraucher!$D$21:$XFD$21=B1_Berechnungen!B45)*E3_Verbraucher!$D$18:$XFD$18*E3_Verbraucher!$D$20:$XFD$20))/(100-Eing_Netzverluste)*100*(1-Eing_AbnW/100)^(B1_Berechnungen!B45-Eing_Beginnjahr)","v":0},{"v":0,"d":"0.00"},{"$f":"IF(AS45=0,0,\n(Eing_Kosten_Bau*(MOD((AS45),Eing_Nutzungsdauer_Bau)=0)\n+Eing_Invest_HolzAnlage*(MOD((AS45),Eing_Nutzungsdauer_Holz)=0)\n+Eing_Invest_WKKAnlage*(MOD((AS45),Eing_Nutzungsdauer_WKK)=0)\n+Eing_Invest_WPAnlage*(MOD((AS45),Eing_Nutzungsdauer_WP)=0)\n+Eing_Invest_SondenGrundwasser*(MOD((AS45),Eing_Nutzungsdauer_SondenGW)=0)\n+Eing_Invest_Zusatz*(MOD((AS45),Eing_Nutzungsdauer_Zusatz)=0)\n+Eing_Invest_AWN*(MOD((AS45),Eing_Nutzungsdauer_AWN)=0)\n+Eing_Invest_Spitzenlast*(MOD((AS45),Eing_Nutzungsdauer_Spitzenlast)=0)\n+Eing_Invest_Installationen*(MOD((AS45),Eing_Nutzungsdauer_Installationen)=0)\n+Eing_Invest_Wärmenetz*(MOD((AS45),Eing_Nutzungsdauer_Netz)=0)\n+Eing_Invest_Messung*(MOD((AS45),Eing_Nutzungsdauer_Messung)=0))*(1+Eing_allg_Teuerung/100)^(AS45))\n+Gesamtinvestition*SUMPRODUCT((E1_Projektdaten!$D$83:$D$87=B45)*E1_Projektdaten!$F$83:$F$87)/100","v":0},0,{"$f":"-SUMPRODUCT((E3_Verbraucher!$D$21:$XFD$21=B1_Berechnungen!B45)*E3_Verbraucher!$D$23:$XFD$23)","v":0},0,{"$f":"IF(H45<=0,0,MIN(AT44,H45))","v":0},0,{"$f":"K44-H45+SUM(I45:J45)","v":0},0,{"$f":"IF(ISNUMBER(IRR((BD$43:BD44,BC45))),IRR((BD$43:BD44,BC45)),\"-\")","v":"-"},{"$f":"SUM((SUMPRODUCT((E3_Verbraucher!$D$21:$XFD$21<B1_Berechnungen!B45)*E3_Verbraucher!$D$26:$XFD$26)+SUMPRODUCT((E3_Verbraucher!$D$21:$XFD$21=B1_Berechnungen!B45)*E3_Verbraucher!$D$26:$XFD$26*E3_Verbraucher!$D$20:$XFD$20))*(1+$G$29)^(B45-B$43),(SUMPRODUCT((E3_Verbraucher!$D$21:$XFD$21<B1_Berechnungen!B45)*E3_Verbraucher!$D$27:$XFD$27)+SUMPRODUCT((E3_Verbraucher!$D$21:$XFD$21=B1_Berechnungen!B45)*E3_Verbraucher!$D$27:$XFD$27*E3_Verbraucher!$D$20:$XFD$20))*((1+$G$29)*(1-E1_Projektdaten!$D$20/100))^(B45-B$43))","v":0},0,0,0,null,null,0,0,0,0,0,0,0,0,{"$f":"($F$21*(1+$G$21)^(B45-B$43)+$F$22*(1+$G$22)^(B45-B$43))*(B45>=Eing_JahrBegWLief)*VLOOKUP(B45,E1_Projektdaten!$D$83:$I$87,6)/100","v":0},{"$f":"$F$23*(1+$G$23)^(B45-B$43)*(B45>=Eing_JahrBegWLief)*VLOOKUP(B45,E1_Projektdaten!$D$83:$I$87,6)/100","v":0},0,null,null,0,0,0,0,0,0,{"$f":"(E1_Projektdaten!$D$68*(1+Eing_allg_Teuerung/100)^(E1_Projektdaten!$I$68*ROUNDDOWN((AS45-1)/E1_Projektdaten!$I$68,0))/E1_Projektdaten!$I$68\n+E1_Projektdaten!$D$69*(1+Eing_allg_Teuerung/100)^(E1_Projektdaten!$I$69*ROUNDDOWN((AS45-1)/E1_Projektdaten!$I$69,0))/E1_Projektdaten!$I$69\n+E1_Projektdaten!$D$70*(1+Eing_allg_Teuerung/100)^(E1_Projektdaten!$I$70*ROUNDDOWN((AS45-1)/E1_Projektdaten!$I$69,0))/E1_Projektdaten!$I$70\n+E1_Projektdaten!$D$71*(1+Eing_allg_Teuerung/100)^(E1_Projektdaten!$I$71*ROUNDDOWN((AS45-1)/E1_Projektdaten!$I$69,0))/E1_Projektdaten!$I$71\n+E1_Projektdaten!$D$72*(1+Eing_allg_Teuerung/100)^(E1_Projektdaten!$I$72*ROUNDDOWN((AS45-1)/E1_Projektdaten!$I$69,0))/E1_Projektdaten!$I$72\n+E1_Projektdaten!$D$74*(1+Eing_allg_Teuerung/100)^(E1_Projektdaten!$I$74*ROUNDDOWN((AS45-1)/E1_Projektdaten!$I$69,0))/E1_Projektdaten!$I$74\n+E1_Projektdaten!$D$75*(1+Eing_allg_Teuerung/100)^(E1_Projektdaten!$I$75*ROUNDDOWN((AS45-1)/E1_Projektdaten!$I$75,0))/E1_Projektdaten!$I$75\n+E1_Projektdaten!$D$76*(1+Eing_allg_Teuerung/100)^(E1_Projektdaten!$I$76*ROUNDDOWN((AS45-1)/E1_Projektdaten!$I$76,0))/E1_Projektdaten!$I$76\n+E1_Projektdaten!$D$77*(1+Eing_allg_Teuerung/100)^(E1_Projektdaten!$I$77*ROUNDDOWN((AS45-1)/E1_Projektdaten!$I$77,0))/E1_Projektdaten!$I$77\n+E1_Projektdaten!$D$78*(1+Eing_allg_Teuerung/100)^(E1_Projektdaten!$I$78*ROUNDDOWN((AS45-1)/E1_Projektdaten!$I$78,0))/E1_Projektdaten!$I$78\n+E1_Projektdaten!$D$80*(1+Eing_allg_Teuerung/100)^(E1_Projektdaten!$I$80*ROUNDDOWN((AS45-1)/E1_Projektdaten!$I$69,0))/E1_Projektdaten!$I$80\n)*((AS45)>0)*VLOOKUP(B45,E1_Projektdaten!$D$83:$I$87,6\n)/100","v":0},0,0,{"$f":"AP44+AO45","v":0},{"$f":"IF(AS45-1<=0,0,\n(Eing_Kosten_Bau*(MOD((AS45-1),Eing_Nutzungsdauer_Bau)=0)\n+Eing_Invest_HolzAnlage*(MOD((AS45-1),Eing_Nutzungsdauer_Holz)=0)\n+Eing_Invest_WKKAnlage*(MOD((AS45-1),Eing_Nutzungsdauer_WKK)=0)\n+Eing_Invest_WPAnlage*(MOD((AS45-1),Eing_Nutzungsdauer_WP)=0)\n+Eing_Invest_SondenGrundwasser*(MOD((AS45-1),Eing_Nutzungsdauer_SondenGW)=0)\n+Eing_Invest_AWN*(MOD((AS45-1),Eing_Nutzungsdauer_AWN)=0)\n+Eing_Invest_Spitzenlast*(MOD((AS45-1),Eing_Nutzungsdauer_Spitzenlast)=0)\n+Eing_Invest_Installationen*(MOD((AS45-1),Eing_Nutzungsdauer_Installationen)=0)\n+Eing_Invest_Wärmenetz*(MOD((AS45-1),Eing_Nutzungsdauer_Netz)=0)\n+Eing_Invest_Messung*(MOD((AS45-1),Eing_Nutzungsdauer_Messung)=0))*(1+Eing_allg_Teuerung/100)^(AS45-1))\n+(Gesamtinvestition-SUM(E1_Projektdaten!$D$79:$D$80))*SUMPRODUCT((E1_Projektdaten!$D$83:$D$87=B45)*E1_Projektdaten!$F$83:$F$87)/100-AM45\n+AQ44","v":0},0,{"$f":"MAX(B1_Berechnungen!B45-E1_Projektdaten!$D$23,0)","v":2},{"$f":"AT44-B1_Berechnungen!I45","v":0},0,{"$f":"IF((SUM(H$43:H45)-SUM(I$43:I45))<=AU45,MAX((SUM(H$43:H45)-SUM(I$43:I45)),0),AU45)","v":0},0,{"$f":"AX44+AV45-AW45","v":0},0,{"$f":"IF((SUM(H$43:H45)-SUM(I$43:I45)-AV45)<=AY45,MAX((SUM(H$43:H45)-SUM(I$43:I45)-AV45),0),AY45)","v":0},0,{"$f":"BB44+AZ45-BA45","v":0},0,0]
[null,3,{"$f":"(SUMPRODUCT((E3_Verbraucher!$D$21:$XFD$21<B1_Berechnungen!B46)*E3_Verbraucher!$D$18:$XFD$18)+SUMPRODUCT((E3_Verbraucher!$D$21:$XFD$21=B1_Berechnungen!B46)*E3_Verbraucher!$D$18:$XFD$18*E3_Verbraucher!$D$20:$XFD$20))/(100-Eing_Netzverluste)*100*(1-Eing_AbnW/100)^(B1_Berechnungen!B46-Eing_Beginnjahr)","v":0},{"v":0,"d":"0.00"},{"$f":"IF(AS46=0,0,\n(Eing_Kosten_Bau*(MOD((AS46),Eing_Nutzungsdauer_Bau)=0)\n+Eing_Invest_HolzAnlage*(MOD((AS46),Eing_Nutzungsdauer_Holz)=0)\n+Eing_Invest_WKKAnlage*(MOD((AS46),Eing_Nutzungsdauer_WKK)=0)\n+Eing_Invest_WPAnlage*(MOD((AS46),Eing_Nutzungsdauer_WP)=0)\n+Eing_Invest_SondenGrundwasser*(MOD((AS46),Eing_Nutzungsdauer_SondenGW)=0)\n+Eing_Invest_Zusatz*(MOD((AS46),Eing_Nutzungsdauer_Zusatz)=0)\n+Eing_Invest_AWN*(MOD((AS46),Eing_Nutzungsdauer_AWN)=0)\n+Eing_Invest_Spitzenlast*(MOD((AS46),Eing_Nutzungsdauer_Spitzenlast)=0)\n+Eing_Invest_Installationen*(MOD((AS46),Eing_Nutzungsdauer_Installationen)=0)\n+Eing_Invest_Wärmenetz*(MOD((AS46),Eing_Nutzungsdauer_Netz)=0)\n+Eing_Invest_Messung*(MOD((AS46),Eing_Nutzungsdauer_Messung)=0))*(1+Eing_allg_Teuerung/100)^(AS46))\n+Gesamtinvestition*SUMPRODUCT((E1_Projektdaten!$D$83:$D$87=B46)*E1_Projektdaten!$F$83:$F$87)/100","v":0},0,{"$f":"-SUMPRODUCT((E3_Verbraucher!$D$21:$XFD$21=B1_Berechnungen!B46)*E3_Verbraucher!$D$23:$XFD$23)","v":0},0,0,0,0,0,{"$f":"IF(ISNUMBER(IRR((BD$43:BD45,BC46))),IRR((BD$43:BD45,BC46)),\"-\")","v":"-"},{"$f":"SUM((SUMPRODUCT((E3_Verbraucher!$D$21:$XFD$21<B1_Berechnungen!B46)*E3_Verbraucher!$D$26:$XFD$26)+SUMPRODUCT((E3_Verbraucher!$D$21:$XFD$21=B1_Berechnungen!B46)*E3_Verbraucher!$D$26:$XFD$26*E3_Verbraucher!$D$20:$XFD$20))*(1+$G$29)^(B46-B$43),(SUMPRODUCT((E3_Verbraucher!$D$21:$XFD$21<B1_Berechnungen!B46)*E3_Verbraucher!$D$27:$XFD$27)+SUMPRODUCT((E3_Verbraucher!$D$21:$XFD$21=B1_Berechnungen!B46)*E3_Verbraucher!$D$27:$XFD$27*E3_Verbraucher!$D$20:$XFD$20))*((1+$G$29)*(1-E1_Projektdaten!$D$20/100))^(B46-B$43))","v":0},0,0,0,null,null,0,0,0,0,0,0,0,0,{"$f":"($F$21*(1+$G$21)^(B46-B$43)+$F$22*(1+$G$22)^(B46-B$43))*(B46>=Eing_JahrBegWLief)*VLOOKUP(B46,E1_Projektdaten!$D$83:$I$87,6)/100","v":0},{"$f":"$F$23*(1+$G$23)^(B46-B$43)*(B46>=Eing_JahrBegWLief)*VLOOKUP(B46,E1_Projektdaten!$D$83:$I$87,6)/100","v":0},0,null,null,0,0,0,0,0,0,{"$f":"(E1_Projektdaten!$D$68*(1+Eing_allg_Teuerung/100)^(E1_Projektdaten!$I$68*ROUNDDOWN((AS46-1)/E1_Projektdaten!$I$68,0))/E1_Projektdaten!$I$68\n+E1_Projektdaten!$D$69*(1+Eing_allg_Teuerung/100)^(E1_Projektdaten!$I$69*ROUNDDOWN((AS46-1)/E1_Projektdaten!$I$69,0))/E1_Projektdaten!$I$69\n+E1_Projektdaten!$D$70*(1+Eing_allg_Teuerung/100)^(E1_Projektdaten!$I$70*ROUNDDOWN((AS46-1)/E1_Projektdaten!$I$69,0))/E1_Projektdaten!$I$70\n+E1_Projektdaten!$D$71*(1+Eing_allg_Teuerung/100)^(E1_Projektdaten!$I$71*ROUNDDOWN((AS46-1)/E1_Projektdaten!$I$69,0))/E1_Projektdaten!$I$71\n+E1_Projektdaten!$D$72*(1+Eing_allg_Teuerung/100)^(E1_Projektdaten!$I$72*ROUNDDOWN((AS46-1)/E1_Projektdaten!$I$69,0))/E1_Projektdaten!$I$72\n+E1_Projektdaten!$D$74*(1+Eing_allg_Teuerung/100)^(E1_Projektdaten!$I$74*ROUNDDOWN((AS46-1)/E1_Projektdaten!$I$69,0))/E1_Projektdaten!$I$74\n+E1_Projektdaten!$D$75*(1+Eing_allg_Teuerung/100)^(E1_Projektdaten!$I$75*ROUNDDOWN((AS46-1)/E1_Projektdaten!$I$75,0))/E1_Projektdaten!$I$75\n+E1_Projektdaten!$D$76*(1+Eing_allg_Teuerung/100)^(E1_Projektdaten!$I$76*ROUNDDOWN((AS46-1)/E1_Projektdaten!$I$76,0))/E1_Projektdaten!$I$76\n+E1_Projektdaten!$D$77*(1+Eing_allg_Teuerung/100)^(E1_Projektdaten!$I$77*ROUNDDOWN((AS46-1)/E1_Projektdaten!$I$77,0))/E1_Projektdaten!$I$77\n+E1_Projektdaten!$D$78*(1+Eing_allg_Teuerung/100)^(E1_Projektdaten!$I$78*ROUNDDOWN((AS46-1)/E1_Projektdaten!$I$78,0))/E1_Projektdaten!$I$78\n+E1_Projektdaten!$D$80*(1+Eing_allg_Teuerung/100)^(E1_Projektdaten!$I$80*ROUNDDOWN((AS46-1)/E1_Projektdaten!$I$69,0))/E1_Projektdaten!$I$80\n)*((AS46)>0)*VLOOKUP(B46,E1_Projektdaten!$D$83:$I$87,6\n)/100","v":0},0,0,0,{"$f":"IF(AS46-1<=0,0,\n(Eing_Kosten_Bau*(MOD((AS46-1),Eing_Nutzungsdauer_Bau)=0)\n+Eing_Invest_HolzAnlage*(MOD((AS46-1),Eing_Nutzungsdauer_Holz)=0)\n+Eing_Invest_WKKAnlage*(MOD((AS46-1),Eing_Nutzungsdauer_WKK)=0)\n+Eing_Invest_WPAnlage*(MOD((AS46-1),Eing_Nutzungsdauer_WP)=0)\n+Eing_Invest_SondenGrundwasser*(MOD((AS46-1),Eing_Nutzungsdauer_SondenGW)=0)\n+Eing_Invest_AWN*(MOD((AS46-1),Eing_Nutzungsdauer_AWN)=0)\n+Eing_Invest_Spitzenlast*(MOD((AS46-1),Eing_Nutzungsdauer_Spitzenlast)=0)\n+Eing_Invest_Installationen*(MOD((AS46-1),Eing_Nutzungsdauer_Installationen)=0)\n+Eing_Invest_Wärmenetz*(MOD((AS46-1),Eing_Nutzungsdauer_Netz)=0)\n+Eing_Invest_Messung*(MOD((AS46-1),Eing_Nutzungsdauer_Messung)=0))*(1+Eing_allg_Teuerung/100)^(AS46-1))\n+(Gesamtinvestition-SUM(E1_Projektdaten!$D$79:$D$80))*SUMPRODUCT((E1_Projektdaten!$D$83:$D$87=B46)*E1_Projektdaten!$F$83:$F$87)/100-AM46\n+AQ45","v":0},0,{"$f":"MAX(B1_Berechnungen!B46-E1_Projektdaten!$D$23,0)","v":3},{"$f":"AT45-B1_Berechnungen!I46","v":0},0,{"$f":"IF((SUM(H$43:H46)-SUM(I$43:I46))<=AU46,MAX((SUM(H$43:H46)-SUM(I$43:I46)),0),AU46)","v":0},0,0,0,{"$f":"IF((SUM(H$43:H46)-SUM(I$43:I46)-AV46)<=AY46,MAX((SUM(H$43:H46)-SUM(I$43:I46)-AV46),0),AY46)","v":0},0,0,0,0]
[null,4,{"$f":"(SUMPRODUCT((E3_Verbraucher!$D$21:$XFD$21<B1_Berechnungen!B47)*E3_Verbraucher!$D$18:$XFD$18)+SUMPRODUCT((E3_Verbraucher!$D$21:$XFD$21=B1_Berechnungen!B47)*E3_Verbraucher!$D$18:$XFD$18*E3_Verbraucher!$D$20:$XFD$20))/(100-Eing_Netzverluste)*100*(1-Eing_AbnW/100)^(B1_Berechnungen!B47-Eing_Beginnjahr)","v":0},{"v":0,"d":"0.00"},{"$f":"IF(AS47=0,0,\n(Eing_Kosten_Bau*(MOD((AS47),Eing_Nutzungsdauer_Bau)=0)\n+Eing_Invest_HolzAnlage*(MOD((AS47),Eing_Nutzungsdauer_Holz)=0)\n+Eing_Invest_WKKAnlage*(MOD((AS47),Eing_Nutzungsdauer_WKK)=0)\n+Eing_Invest_WPAnlage*(MOD((AS47),Eing_Nutzungsdauer_WP)=0)\n+Eing_Invest_SondenGrundwasser*(MOD((AS47),Eing_Nutzungsdauer_SondenGW)=0)\n+Eing_Invest_Zusatz*(MOD((AS47),Eing_Nutzungsdauer_Zusatz)=0)\n+Eing_Invest_AWN*(MOD((AS47),Eing_Nutzungsdauer_AWN)=0)\n+Eing_Invest_Spitzenlast*(MOD((AS47),Eing_Nutzungsdauer_Spitzenlast)=0)\n+Eing_Invest_Installationen*(MOD((AS47),Eing_Nutzungsdauer_Installationen)=0)\n+Eing_Invest_Wärmenetz*(MOD((AS47),Eing_Nutzungsdauer_Netz)=0)\n+Eing_Invest_Messung*(MOD((AS47),Eing_Nutzungsdauer_Messung)=0))*(1+Eing_allg_Teuerung/100)^(AS47))\n+Gesamtinvestition*SUMPRODUCT((E1_Projektdaten!$D$83:$D$87=B47)*E1_Projektdaten!$F$83:$F$87)/100","v":0},0,{"$f":"-SUMPRODUCT((E3_Verbraucher!$D$21:$XFD$21=B1_Berechnungen!B47)*E3_Verbraucher!$D$23:$XFD$23)","v":0},0,0,0,0,0,{"$f":"IF(ISNUMBER(IRR((BD$43:BD46,BC47))),IRR((BD$43:BD46,BC47)),\"-\")","v":"-"},{"$f":"SUM((SUMPRODUCT((E3_Verbraucher!$D$21:$XFD$21<B1_Berechnungen!B47)*E3_Verbraucher!$D$26:$XFD$26)+SUMPRODUCT((E3_Verbraucher!$D$21:$XFD$21=B1_Berechnungen!B47)*E3_Verbraucher!$D$26:$XFD$26*E3_Verbraucher!$D$20:$XFD$20))*(1+$G$29)^(B47-B$43),(SUMPRODUCT((E3_Verbraucher!$D$21:$XFD$21<B1_Berechnungen!B47)*E3_Verbraucher!$D$27:$XFD$27)+SUMPRODUCT((E3_Verbraucher!$D$21:$XFD$21=B1_Berechnungen!B47)*E3_Verbraucher!$D$27:$XFD$27*E3_Verbraucher!$D$20:$XFD$20))*((1+$G$29)*(1-E1_Projektdaten!$D$20/100))^(B47-B$43))","v":0},0,0,0,null,null,0,0,0,0,0,0,0,0,{"$f":"($F$21*(1+$G$21)^(B47-B$43)+$F$22*(1+$G$22)^(B47-B$43))*(B47>=Eing_JahrBegWLief)*VLOOKUP(B47,E1_Projektdaten!$D$83:$I$87,6)/100","v":0},{"$f":"$F$23*(1+$G$23)^(B47-B$43)*(B47>=Eing_JahrBegWLief)*VLOOKUP(B47,E1_Projektdaten!$D$83:$I$87,6)/100","v":0},0,null,null,0,0,0,0,0,0,{"$f":"(E1_Projektdaten!$D$68*(1+Eing_allg_Teuerung/100)^(E1_Projektdaten!$I$68*ROUNDDOWN((AS47-1)/E1_Projektdaten!$I$68,0))/E1_Projektdaten!$I$68\n+E1_Projektdaten!$D$69*(1+Eing_allg_Teuerung/100)^(E1_Projektdaten!$I$69*ROUNDDOWN((AS47-1)/E1_Projektdaten!$I$69,0))/E1_Projektdaten!$I$69\n+E1_Projektdaten!$D$70*(1+Eing_allg_Teuerung/100)^(E1_Projektdaten!$I$70*ROUNDDOWN((AS47-1)/E1_Projektdaten!$I$69,0))/E1_Projektdaten!$I$70\n+E1_Projektdaten!$D$71*(1+Eing_allg_Teuerung/100)^(E1_Projektdaten!$I$71*ROUNDDOWN((AS47-1)/E1_Projektdaten!$I$69,0))/E1_Projektdaten!$I$71\n+E1_Projektdaten!$D$72*(1+Eing_allg_Teuerung/100)^(E1_Projektdaten!$I$72*ROUNDDOWN((AS47-1)/E1_Projektdaten!$I$69,0))/E1_Projektdaten!$I$72\n+E1_Projektdaten!$D$74*(1+Eing_allg_Teuerung/100)^(E1_Projektdaten!$I$74*ROUNDDOWN((AS47-1)/E1_Projektdaten!$I$69,0))/E1_Projektdaten!$I$74\n+E1_Projektdaten!$D$75*(1+Eing_allg_Teuerung/100)^(E1_Projektdaten!$I$75*ROUNDDOWN((AS47-1)/E1_Projektdaten!$I$75,0))/E1_Projektdaten!$I$75\n+E1_Projektdaten!$D$76*(1+Eing_allg_Teuerung/100)^(E1_Projektdaten!$I$76*ROUNDDOWN((AS47-1)/E1_Projektdaten!$I$76,0))/E1_Projektdaten!$I$76\n+E1_Projektdaten!$D$77*(1+Eing_allg_Teuerung/100)^(E1_Projektdaten!$I$77*ROUNDDOWN((AS47-1)/E1_Projektdaten!$I$77,0))/E1_Projektdaten!$I$77\n+E1_Projektdaten!$D$78*(1+Eing_allg_Teuerung/100)^(E1_Projektdaten!$I$78*ROUNDDOWN((AS47-1)/E1_Projektdaten!$I$78,0))/E1_Projektdaten!$I$78\n+E1_Projektdaten!$D$80*(1+Eing_allg_Teuerung/100)^(E1_Projektdaten!$I$80*ROUNDDOWN((AS47-1)/E1_Projektdaten!$I$69,0))/E1_Projektdaten!$I$80\n)*((AS47)>0)*VLOOKUP(B47,E1_Projektdaten!$D$83:$I$87,6\n)/100","v":0},0,0,0,{"$f":"IF(AS47-1<=0,0,\n(Eing_Kosten_Bau*(MOD((AS47-1),Eing_Nutzungsdauer_Bau)=0)\n+Eing_Invest_HolzAnlage*(MOD((AS47-1),Eing_Nutzungsdauer_Holz)=0)\n+Eing_Invest_WKKAnlage*(MOD((AS47-1),Eing_Nutzungsdauer_WKK)=0)\n+Eing_Invest_WPAnlage*(MOD((AS47-1),Eing_Nutzungsdauer_WP)=0)\n+Eing_Invest_SondenGrundwasser*(MOD((AS47-1),Eing_Nutzungsdauer_SondenGW)=0)\n+Eing_Invest_AWN*(MOD((AS47-1),Eing_Nutzungsdauer_AWN)=0)\n+Eing_Invest_Spitzenlast*(MOD((AS47-1),Eing_Nutzungsdauer_Spitzenlast)=0)\n+Eing_Invest_Installationen*(MOD((AS47-1),Eing_Nutzungsdauer_Installationen)=0)\n+Eing_Invest_Wärmenetz*(MOD((AS47-1),Eing_Nutzungsdauer_Netz)=0)\n+Eing_Invest_Messung*(MOD((AS47-1),Eing_Nutzungsdauer_Messung)=0))*(1+Eing_allg_Teuerung/100)^(AS47-1))\n+(Gesamtinvestition-SUM(E1_Projektdaten!$D$79:$D$80))*SUMPRODUCT((E1_Projektdaten!$D$83:$D$87=B47)*E1_Projektdaten!$F$83:$F$87)/100-AM47\n+AQ46","v":0},0,{"$f":"MAX(B1_Berechnungen!B47-E1_Projektdaten!$D$23,0)","v":4},{"$f":"AT46-B1_Berechnungen!I47","v":0},0,{"$f":"IF((SUM(H$43:H47)-SUM(I$43:I47))<=AU47,MAX((SUM(H$43:H47)-SUM(I$43:I47)),0),AU47)","v":0},0,0,0,{"$f":"IF((SUM(H$43:H47)-SUM(I$43:I47)-AV47)<=AY47,MAX((SUM(H$43:H47)-SUM(I$43:I47)-AV47),0),AY47)","v":0},0,0,0,0]
[null,5,{"$f":"(SUMPRODUCT((E3_Verbraucher!$D$21:$XFD$21<B1_Berechnungen!B48)*E3_Verbraucher!$D$18:$XFD$18)+SUMPRODUCT((E3_Verbraucher!$D$21:$XFD$21=B1_Berechnungen!B48)*E3_Verbraucher!$D$18:$XFD$18*E3_Verbraucher!$D$20:$XFD$20))/(100-Eing_Netzverluste)*100*(1-Eing_AbnW/100)^(B1_Berechnungen!B48-Eing_Beginnjahr)","v":0},{"v":0,"d":"0.00"},{"$f":"IF(AS48=0,0,\n(Eing_Kosten_Bau*(MOD((AS48),Eing_Nutzungsdauer_Bau)=0)\n+Eing_Invest_HolzAnlage*(MOD((AS48),Eing_Nutzungsdauer_Holz)=0)\n+Eing_Invest_WKKAnlage*(MOD((AS48),Eing_Nutzungsdauer_WKK)=0)\n+Eing_Invest_WPAnlage*(MOD((AS48),Eing_Nutzungsdauer_WP)=0)\n+Eing_Invest_SondenGrundwasser*(MOD((AS48),Eing_Nutzungsdauer_SondenGW)=0)\n+Eing_Invest_Zusatz*(MOD((AS48),Eing_Nutzungsdauer_Zusatz)=0)\n+Eing_Invest_AWN*(MOD((AS48),Eing_Nutzungsdauer_AWN)=0)\n+Eing_Invest_Spitzenlast*(MOD((AS48),Eing_Nutzungsdauer_Spitzenlast)=0)\n+Eing_Invest_Installationen*(MOD((AS48),Eing_Nutzungsdauer_Installationen)=0)\n+Eing_Invest_Wärmenetz*(MOD((AS48),Eing_Nutzungsdauer_Netz)=0)\n+Eing_Invest_Messung*(MOD((AS48),Eing_Nutzungsdauer_Messung)=0))*(1+Eing_allg_Teuerung/100)^(AS48))\n+Gesamtinvestition*SUMPRODUCT((E1_Projektdaten!$D$83:$D$87=B48)*E1_Projektdaten!$F$83:$F$87)/100","v":0},0,{"$f":"-SUMPRODUCT((E3_Verbraucher!$D$21:$XFD$21=B1_Berechnungen!B48)*E3_Verbraucher!$D$23:$XFD$23)","v":0},0,0,0,0,0,{"$f":"IF(ISNUMBER(IRR((BD$43:BD47,BC48))),IRR((BD$43:BD47,BC48)),\"-\")","v":"-"},{"$f":"SUM((SUMPRODUCT((E3_Verbraucher!$D$21:$XFD$21<B1_Berechnungen!B48)*E3_Verbraucher!$D$26:$XFD$26)+SUMPRODUCT((E3_Verbraucher!$D$21:$XFD$21=B1_Berechnungen!B48)*E3_Verbraucher!$D$26:$XFD$26*E3_Verbraucher!$D$20:$XFD$20))*(1+$G$29)^(B48-B$43),(SUMPRODUCT((E3_Verbraucher!$D$21:$XFD$21<B1_Berechnungen!B48)*E3_Verbraucher!$D$27:$XFD$27)+SUMPRODUCT((E3_Verbraucher!$D$21:$XFD$21=B1_Berechnungen!B48)*E3_Verbraucher!$D$27:$XFD$27*E3_Verbraucher!$D$20:$XFD$20))*((1+$G$29)*(1-E1_Projektdaten!$D$20/100))^(B48-B$43))","v":0},0,0,0,null,null,0,0,0,0,0,0,0,0,{"$f":"($F$21*(1+$G$21)^(B48-B$43)+$F$22*(1+$G$22)^(B48-B$43))*(B48>=Eing_JahrBegWLief)*VLOOKUP(B48,E1_Projektdaten!$D$83:$I$87,6)/100","v":0},{"$f":"$F$23*(1+$G$23)^(B48-B$43)*(B48>=Eing_JahrBegWLief)*VLOOKUP(B48,E1_Projektdaten!$D$83:$I$87,6)/100","v":0},0,null,null,0,0,0,0,0,0,{"$f":"(E1_Projektdaten!$D$68*(1+Eing_allg_Teuerung/100)^(E1_Projektdaten!$I$68*ROUNDDOWN((AS48-1)/E1_Projektdaten!$I$68,0))/E1_Projektdaten!$I$68\n+E1_Projektdaten!$D$69*(1+Eing_allg_Teuerung/100)^(E1_Projektdaten!$I$69*ROUNDDOWN((AS48-1)/E1_Projektdaten!$I$69,0))/E1_Projektdaten!$I$69\n+E1_Projektdaten!$D$70*(1+Eing_allg_Teuerung/100)^(E1_Projektdaten!$I$70*ROUNDDOWN((AS48-1)/E1_Projektdaten!$I$69,0))/E1_Projektdaten!$I$70\n+E1_Projektdaten!$D$71*(1+Eing_allg_Teuerung/100)^(E1_Projektdaten!$I$71*ROUNDDOWN((AS48-1)/E1_Projektdaten!$I$69,0))/E1_Projektdaten!$I$71\n+E1_Projektdaten!$D$72*(1+Eing_allg_Teuerung/100)^(E1_Projektdaten!$I$72*ROUNDDOWN((AS48-1)/E1_Projektdaten!$I$69,0))/E1_Projektdaten!$I$72\n+E1_Projektdaten!$D$74*(1+Eing_allg_Teuerung/100)^(E1_Projektdaten!$I$74*ROUNDDOWN((AS48-1)/E1_Projektdaten!$I$69,0))/E1_Projektdaten!$I$74\n+E1_Projektdaten!$D$75*(1+Eing_allg_Teuerung/100)^(E1_Projektdaten!$I$75*ROUNDDOWN((AS48-1)/E1_Projektdaten!$I$75,0))/E1_Projektdaten!$I$75\n+E1_Projektdaten!$D$76*(1+Eing_allg_Teuerung/100)^(E1_Projektdaten!$I$76*ROUNDDOWN((AS48-1)/E1_Projektdaten!$I$76,0))/E1_Projektdaten!$I$76\n+E1_Projektdaten!$D$77*(1+Eing_allg_Teuerung/100)^(E1_Projektdaten!$I$77*ROUNDDOWN((AS48-1)/E1_Projektdaten!$I$77,0))/E1_Projektdaten!$I$77\n+E1_Projektdaten!$D$78*(1+Eing_allg_Teuerung/100)^(E1_Projektdaten!$I$78*ROUNDDOWN((AS48-1)/E1_Projektdaten!$I$78,0))/E1_Projektdaten!$I$78\n+E1_Projektdaten!$D$80*(1+Eing_allg_Teuerung/100)^(E1_Projektdaten!$I$80*ROUNDDOWN((AS48-1)/E1_Projektdaten!$I$69,0))/E1_Projektdaten!$I$80\n)*((AS48)>0)*VLOOKUP(B48,E1_Projektdaten!$D$83:$I$87,6\n)/100","v":0},0,0,0,{"$f":"IF(AS48-1<=0,0,\n(Eing_Kosten_Bau*(MOD((AS48-1),Eing_Nutzungsdauer_Bau)=0)\n+Eing_Invest_HolzAnlage*(MOD((AS48-1),Eing_Nutzungsdauer_Holz)=0)\n+Eing_Invest_WKKAnlage*(MOD((AS48-1),Eing_Nutzungsdauer_WKK)=0)\n+Eing_Invest_WPAnlage*(MOD((AS48-1),Eing_Nutzungsdauer_WP)=0)\n+Eing_Invest_SondenGrundwasser*(MOD((AS48-1),Eing_Nutzungsdauer_SondenGW)=0)\n+Eing_Invest_AWN*(MOD((AS48-1),Eing_Nutzungsdauer_AWN)=0)\n+Eing_Invest_Spitzenlast*(MOD((AS48-1),Eing_Nutzungsdauer_Spitzenlast)=0)\n+Eing_Invest_Installationen*(MOD((AS48-1),Eing_Nutzungsdauer_Installationen)=0)\n+Eing_Invest_Wärmenetz*(MOD((AS48-1),Eing_Nutzungsdauer_Netz)=0)\n+Eing_Invest_Messung*(MOD((AS48-1),Eing_Nutzungsdauer_Messung)=0))*(1+Eing_allg_Teuerung/100)^(AS48-1))\n+(Gesamtinvestition-SUM(E1_Projektdaten!$D$79:$D$80))*SUMPRODUCT((E1_Projektdaten!$D$83:$D$87=B48)*E1_Projektdaten!$F$83:$F$87)/100-AM48\n+AQ47","v":0},0,{"$f":"MAX(B1_Berechnungen!B48-E1_Projektdaten!$D$23,0)","v":5},{"$f":"AT47-B1_Berechnungen!I48","v":0},0,{"$f":"IF((SUM(H$43:H48)-SUM(I$43:I48))<=AU48,MAX((SUM(H$43:H48)-SUM(I$43:I48)),0),AU48)","v":0},0,0,0,{"$f":"IF((SUM(H$43:H48)-SUM(I$43:I48)-AV48)<=AY48,MAX((SUM(H$43:H48)-SUM(I$43:I48)-AV48),0),AY48)","v":0},0,0,0,0]
[null,6,{"$f":"(SUMPRODUCT((E3_Verbraucher!$D$21:$XFD$21<B1_Berechnungen!B49)*E3_Verbraucher!$D$18:$XFD$18)+SUMPRODUCT((E3_Verbraucher!$D$21:$XFD$21=B1_Berechnungen!B49)*E3_Verbraucher!$D$18:$XFD$18*E3_Verbraucher!$D$20:$XFD$20))/(100-Eing_Netzverluste)*100*(1-Eing_AbnW/100)^(B1_Berechnungen!B49-Eing_Beginnjahr)","v":0},{"v":0,"d":"0.00"},{"$f":"IF(AS49=0,0,\n(Eing_Kosten_Bau*(MOD((AS49),Eing_Nutzungsdauer_Bau)=0)\n+Eing_Invest_HolzAnlage*(MOD((AS49),Eing_Nutzungsdauer_Holz)=0)\n+Eing_Invest_WKKAnlage*(MOD((AS49),Eing_Nutzungsdauer_WKK)=0)\n+Eing_Invest_WPAnlage*(MOD((AS49),Eing_Nutzungsdauer_WP)=0)\n+Eing_Invest_SondenGrundwasser*(MOD((AS49),Eing_Nutzungsdauer_SondenGW)=0)\n+Eing_Invest_Zusatz*(MOD((AS49),Eing_Nutzungsdauer_Zusatz)=0)\n+Eing_Invest_AWN*(MOD((AS49),Eing_Nutzungsdauer_AWN)=0)\n+Eing_Invest_Spitzenlast*(MOD((AS49),Eing_Nutzungsdauer_Spitzenlast)=0)\n+Eing_Invest_Installationen*(MOD((AS49),Eing_Nutzungsdauer_Installationen)=0)\n+Eing_Invest_Wärmenetz*(MOD((AS49),Eing_Nutzungsdauer_Netz)=0)\n+Eing_Invest_Messung*(MOD((AS49),Eing_Nutzungsdauer_Messung)=0))*(1+Eing_allg_Teuerung/100)^(AS49))\n+Gesamtinvestition*SUMPRODUCT((E1_Projektdaten!$D$83:$D$87=B49)*E1_Projektdaten!$F$83:$F$87)/100","v":0},0,{"$f":"-SUMPRODUCT((E3_Verbraucher!$D$21:$XFD$21=B1_Berechnungen!B49)*E3_Verbraucher!$D$23:$XFD$23)","v":0},0,0,0,0,0,{"$f":"IF(ISNUMBER(IRR((BD$43:BD48,BC49))),IRR((BD$43:BD48,BC49)),\"-\")","v":"-"},{"$f":"SUM((SUMPRODUCT((E3_Verbraucher!$D$21:$XFD$21<B1_Berechnungen!B49)*E3_Verbraucher!$D$26:$XFD$26)+SUMPRODUCT((E3_Verbraucher!$D$21:$XFD$21=B1_Berechnungen!B49)*E3_Verbraucher!$D$26:$XFD$26*E3_Verbraucher!$D$20:$XFD$20))*(1+$G$29)^(B49-B$43),(SUMPRODUCT((E3_Verbraucher!$D$21:$XFD$21<B1_Berechnungen!B49)*E3_Verbraucher!$D$27:$XFD$27)+SUMPRODUCT((E3_Verbraucher!$D$21:$XFD$21=B1_Berechnungen!B49)*E3_Verbraucher!$D$27:$XFD$27*E3_Verbraucher!$D$20:$XFD$20))*((1+$G$29)*(1-E1_Projektdaten!$D$20/100))^(B49-B$43))","v":0},0,0,0,null,null,0,0,0,0,0,0,0,0,{"$f":"($F$21*(1+$G$21)^(B49-B$43)+$F$22*(1+$G$22)^(B49-B$43))*(B49>=Eing_JahrBegWLief)*VLOOKUP(B49,E1_Projektdaten!$D$83:$I$87,6)/100","v":0},{"$f":"$F$23*(1+$G$23)^(B49-B$43)*(B49>=Eing_JahrBegWLief)*VLOOKUP(B49,E1_Projektdaten!$D$83:$I$87,6)/100","v":0},0,null,null,0,0,0,0,0,0,{"$f":"(E1_Projektdaten!$D$68*(1+Eing_allg_Teuerung/100)^(E1_Projektdaten!$I$68*ROUNDDOWN((AS49-1)/E1_Projektdaten!$I$68,0))/E1_Projektdaten!$I$68\n+E1_Projektdaten!$D$69*(1+Eing_allg_Teuerung/100)^(E1_Projektdaten!$I$69*ROUNDDOWN((AS49-1)/E1_Projektdaten!$I$69,0))/E1_Projektdaten!$I$69\n+E1_Projektdaten!$D$70*(1+Eing_allg_Teuerung/100)^(E1_Projektdaten!$I$70*ROUNDDOWN((AS49-1)/E1_Projektdaten!$I$69,0))/E1_Projektdaten!$I$70\n+E1_Projektdaten!$D$71*(1+Eing_allg_Teuerung/100)^(E1_Projektdaten!$I$71*ROUNDDOWN((AS49-1)/E1_Projektdaten!$I$69,0))/E1_Projektdaten!$I$71\n+E1_Projektdaten!$D$72*(1+Eing_allg_Teuerung/100)^(E1_Projektdaten!$I$72*ROUNDDOWN((AS49-1)/E1_Projektdaten!$I$69,0))/E1_Projektdaten!$I$72\n+E1_Projektdaten!$D$74*(1+Eing_allg_Teuerung/100)^(E1_Projektdaten!$I$74*ROUNDDOWN((AS49-1)/E1_Projektdaten!$I$69,0))/E1_Projektdaten!$I$74\n+E1_Projektdaten!$D$75*(1+Eing_allg_Teuerung/100)^(E1_Projektdaten!$I$75*ROUNDDOWN((AS49-1)/E1_Projektdaten!$I$75,0))/E1_Projektdaten!$I$75\n+E1_Projektdaten!$D$76*(1+Eing_allg_Teuerung/100)^(E1_Projektdaten!$I$76*ROUNDDOWN((AS49-1)/E1_Projektdaten!$I$76,0))/E1_Projektdaten!$I$76\n+E1_Projektdaten!$D$77*(1+Eing_allg_Teuerung/100)^(E1_Projektdaten!$I$77*ROUNDDOWN((AS49-1)/E1_Projektdaten!$I$77,0))/E1_Projektdaten!$I$77\n+E1_Projektdaten!$D$78*(1+Eing_allg_Teuerung/100)^(E1_Projektdaten!$I$78*ROUNDDOWN((AS49-1)/E1_Projektdaten!$I$78,0))/E1_Projektdaten!$I$78\n+E1_Projektdaten!$D$80*(1+Eing_allg_Teuerung/100)^(E1_Projektdaten!$I$80*ROUNDDOWN((AS49-1)/E1_Projektdaten!$I$69,0))/E1_Projektdaten!$I$80\n)*((AS49)>0)*VLOOKUP(B49,E1_Projektdaten!$D$83:$I$87,6\n)/100","v":0},0,0,0,{"$f":"IF(AS49-1<=0,0,\n(Eing_Kosten_Bau*(MOD((AS49-1),Eing_Nutzungsdauer_Bau)=0)\n+Eing_Invest_HolzAnlage*(MOD((AS49-1),Eing_Nutzungsdauer_Holz)=0)\n+Eing_Invest_WKKAnlage*(MOD((AS49-1),Eing_Nutzungsdauer_WKK)=0)\n+Eing_Invest_WPAnlage*(MOD((AS49-1),Eing_Nutzungsdauer_WP)=0)\n+Eing_Invest_SondenGrundwasser*(MOD((AS49-1),Eing_Nutzungsdauer_SondenGW)=0)\n+Eing_Invest_AWN*(MOD((AS49-1),Eing_Nutzungsdauer_AWN)=0)\n+Eing_Invest_Spitzenlast*(MOD((AS49-1),Eing_Nutzungsdauer_Spitzenlast)=0)\n+Eing_Invest_Installationen*(MOD((AS49-1),Eing_Nutzungsdauer_Installationen)=0)\n+Eing_Invest_Wärmenetz*(MOD((AS49-1),Eing_Nutzungsdauer_Netz)=0)\n+Eing_Invest_Messung*(MOD((AS49-1),Eing_Nutzungsdauer_Messung)=0))*(1+Eing_allg_Teuerung/100)^(AS49-1))\n+(Gesamtinvestition-SUM(E1_Projektdaten!$D$79:$D$80))*SUMPRODUCT((E1_Projektdaten!$D$83:$D$87=B49)*E1_Projektdaten!$F$83:$F$87)/100-AM49\n+AQ48","v":0},0,{"$f":"MAX(B1_Berechnungen!B49-E1_Projektdaten!$D$23,0)","v":6},{"$f":"AT48-B1_Berechnungen!I49","v":0},0,{"$f":"IF((SUM(H$43:H49)-SUM(I$43:I49))<=AU49,MAX((SUM(H$43:H49)-SUM(I$43:I49)),0),AU49)","v":0},0,0,0,{"$f":"IF((SUM(H$43:H49)-SUM(I$43:I49)-AV49)<=AY49,MAX((SUM(H$43:H49)-SUM(I$43:I49)-AV49),0),AY49)","v":0},0,0,0,0]
[null,7,{"$f":"(SUMPRODUCT((E3_Verbraucher!$D$21:$XFD$21<B1_Berechnungen!B50)*E3_Verbraucher!$D$18:$XFD$18)+SUMPRODUCT((E3_Verbraucher!$D$21:$XFD$21=B1_Berechnungen!B50)*E3_Verbraucher!$D$18:$XFD$18*E3_Verbraucher!$D$20:$XFD$20))/(100-Eing_Netzverluste)*100*(1-Eing_AbnW/100)^(B1_Berechnungen!B50-Eing_Beginnjahr)","v":0},{"v":0,"d":"0.00"},{"$f":"IF(AS50=0,0,\n(Eing_Kosten_Bau*(MOD((AS50),Eing_Nutzungsdauer_Bau)=0)\n+Eing_Invest_HolzAnlage*(MOD((AS50),Eing_Nutzungsdauer_Holz)=0)\n+Eing_Invest_WKKAnlage*(MOD((AS50),Eing_Nutzungsdauer_WKK)=0)\n+Eing_Invest_WPAnlage*(MOD((AS50),Eing_Nutzungsdauer_WP)=0)\n+Eing_Invest_SondenGrundwasser*(MOD((AS50),Eing_Nutzungsdauer_SondenGW)=0)\n+Eing_Invest_Zusatz*(MOD((AS50),Eing_Nutzungsdauer_Zusatz)=0)\n+Eing_Invest_AWN*(MOD((AS50),Eing_Nutzungsdauer_AWN)=0)\n+Eing_Invest_Spitzenlast*(MOD((AS50),Eing_Nutzungsdauer_Spitzenlast)=0)\n+Eing_Invest_Installationen*(MOD((AS50),Eing_Nutzungsdauer_Installationen)=0)\n+Eing_Invest_Wärmenetz*(MOD((AS50),Eing_Nutzungsdauer_Netz)=0)\n+Eing_Invest_Messung*(MOD((AS50),Eing_Nutzungsdauer_Messung)=0))*(1+Eing_allg_Teuerung/100)^(AS50))\n+Gesamtinvestition*SUMPRODUCT((E1_Projektdaten!$D$83:$D$87=B50)*E1_Projektdaten!$F$83:$F$87)/100","v":0},0,{"$f":"-SUMPRODUCT((E3_Verbraucher!$D$21:$XFD$21=B1_Berechnungen!B50)*E3_Verbraucher!$D$23:$XFD$23)","v":0},0,0,0,0,0,{"$f":"IF(ISNUMBER(IRR((BD$43:BD49,BC50))),IRR((BD$43:BD49,BC50)),\"-\")","v":"-"},{"$f":"SUM((SUMPRODUCT((E3_Verbraucher!$D$21:$XFD$21<B1_Berechnungen!B50)*E3_Verbraucher!$D$26:$XFD$26)+SUMPRODUCT((E3_Verbraucher!$D$21:$XFD$21=B1_Berechnungen!B50)*E3_Verbraucher!$D$26:$XFD$26*E3_Verbraucher!$D$20:$XFD$20))*(1+$G$29)^(B50-B$43),(SUMPRODUCT((E3_Verbraucher!$D$21:$XFD$21<B1_Berechnungen!B50)*E3_Verbraucher!$D$27:$XFD$27)+SUMPRODUCT((E3_Verbraucher!$D$21:$XFD$21=B1_Berechnungen!B50)*E3_Verbraucher!$D$27:$XFD$27*E3_Verbraucher!$D$20:$XFD$20))*((1+$G$29)*(1-E1_Projektdaten!$D$20/100))^(B50-B$43))","v":0},0,0,0,null,null,0,0,0,0,0,0,0,0,{"$f":"($F$21*(1+$G$21)^(B50-B$43)+$F$22*(1+$G$22)^(B50-B$43))*(B50>=Eing_JahrBegWLief)*VLOOKUP(B50,E1_Projektdaten!$D$83:$I$87,6)/100","v":0},{"$f":"$F$23*(1+$G$23)^(B50-B$43)*(B50>=Eing_JahrBegWLief)*VLOOKUP(B50,E1_Projektdaten!$D$83:$I$87,6)/100","v":0},0,null,null,0,0,0,0,0,0,{"$f":"(E1_Projektdaten!$D$68*(1+Eing_allg_Teuerung/100)^(E1_Projektdaten!$I$68*ROUNDDOWN((AS50-1)/E1_Projektdaten!$I$68,0))/E1_Projektdaten!$I$68\n+E1_Projektdaten!$D$69*(1+Eing_allg_Teuerung/100)^(E1_Projektdaten!$I$69*ROUNDDOWN((AS50-1)/E1_Projektdaten!$I$69,0))/E1_Projektdaten!$I$69\n+E1_Projektdaten!$D$70*(1+Eing_allg_Teuerung/100)^(E1_Projektdaten!$I$70*ROUNDDOWN((AS50-1)/E1_Projektdaten!$I$69,0))/E1_Projektdaten!$I$70\n+E1_Projektdaten!$D$71*(1+Eing_allg_Teuerung/100)^(E1_Projektdaten!$I$71*ROUNDDOWN((AS50-1)/E1_Projektdaten!$I$69,0))/E1_Projektdaten!$I$71\n+E1_Projektdaten!$D$72*(1+Eing_allg_Teuerung/100)^(E1_Projektdaten!$I$72*ROUNDDOWN((AS50-1)/E1_Projektdaten!$I$69,0))/E1_Projektdaten!$I$72\n+E1_Projektdaten!$D$74*(1+Eing_allg_Teuerung/100)^(E1_Projektdaten!$I$74*ROUNDDOWN((AS50-1)/E1_Projektdaten!$I$69,0))/E1_Projektdaten!$I$74\n+E1_Projektdaten!$D$75*(1+Eing_allg_Teuerung/100)^(E1_Projektdaten!$I$75*ROUNDDOWN((AS50-1)/E1_Projektdaten!$I$75,0))/E1_Projektdaten!$I$75\n+E1_Projektdaten!$D$76*(1+Eing_allg_Teuerung/100)^(E1_Projektdaten!$I$76*ROUNDDOWN((AS50-1)/E1_Projektdaten!$I$76,0))/E1_Projektdaten!$I$76\n+E1_Projektdaten!$D$77*(1+Eing_allg_Teuerung/100)^(E1_Projektdaten!$I$77*ROUNDDOWN((AS50-1)/E1_Projektdaten!$I$77,0))/E1_Projektdaten!$I$77\n+E1_Projektdaten!$D$78*(1+Eing_allg_Teuerung/100)^(E1_Projektdaten!$I$78*ROUNDDOWN((AS50-1)/E1_Projektdaten!$I$78,0))/E1_Projektdaten!$I$78\n+E1_Projektdaten!$D$80*(1+Eing_allg_Teuerung/100)^(E1_Projektdaten!$I$80*ROUNDDOWN((AS50-1)/E1_Projektdaten!$I$69,0))/E1_Projektdaten!$I$80\n)*((AS50)>0)*VLOOKUP(B50,E1_Projektdaten!$D$83:$I$87,6\n)/100","v":0},0,0,0,{"$f":"IF(AS50-1<=0,0,\n(Eing_Kosten_Bau*(MOD((AS50-1),Eing_Nutzungsdauer_Bau)=0)\n+Eing_Invest_HolzAnlage*(MOD((AS50-1),Eing_Nutzungsdauer_Holz)=0)\n+Eing_Invest_WKKAnlage*(MOD((AS50-1),Eing_Nutzungsdauer_WKK)=0)\n+Eing_Invest_WPAnlage*(MOD((AS50-1),Eing_Nutzungsdauer_WP)=0)\n+Eing_Invest_SondenGrundwasser*(MOD((AS50-1),Eing_Nutzungsdauer_SondenGW)=0)\n+Eing_Invest_AWN*(MOD((AS50-1),Eing_Nutzungsdauer_AWN)=0)\n+Eing_Invest_Spitzenlast*(MOD((AS50-1),Eing_Nutzungsdauer_Spitzenlast)=0)\n+Eing_Invest_Installationen*(MOD((AS50-1),Eing_Nutzungsdauer_Installationen)=0)\n+Eing_Invest_Wärmenetz*(MOD((AS50-1),Eing_Nutzungsdauer_Netz)=0)\n+Eing_Invest_Messung*(MOD((AS50-1),Eing_Nutzungsdauer_Messung)=0))*(1+Eing_allg_Teuerung/100)^(AS50-1))\n+(Gesamtinvestition-SUM(E1_Projektdaten!$D$79:$D$80))*SUMPRODUCT((E1_Projektdaten!$D$83:$D$87=B50)*E1_Projektdaten!$F$83:$F$87)/100-AM50\n+AQ49","v":0},0,{"$f":"MAX(B1_Berechnungen!B50-E1_Projektdaten!$D$23,0)","v":7},{"$f":"AT49-B1_Berechnungen!I50","v":0},0,{"$f":"IF((SUM(H$43:H50)-SUM(I$43:I50))<=AU50,MAX((SUM(H$43:H50)-SUM(I$43:I50)),0),AU50)","v":0},0,0,0,{"$f":"IF((SUM(H$43:H50)-SUM(I$43:I50)-AV50)<=AY50,MAX((SUM(H$43:H50)-SUM(I$43:I50)-AV50),0),AY50)","v":0},0,0,0,0]
[null,8,{"$f":"(SUMPRODUCT((E3_Verbraucher!$D$21:$XFD$21<B1_Berechnungen!B51)*E3_Verbraucher!$D$18:$XFD$18)+SUMPRODUCT((E3_Verbraucher!$D$21:$XFD$21=B1_Berechnungen!B51)*E3_Verbraucher!$D$18:$XFD$18*E3_Verbraucher!$D$20:$XFD$20))/(100-Eing_Netzverluste)*100*(1-Eing_AbnW/100)^(B1_Berechnungen!B51-Eing_Beginnjahr)","v":0},{"v":0,"d":"0.00"},{"$f":"IF(AS51=0,0,\n(Eing_Kosten_Bau*(MOD((AS51),Eing_Nutzungsdauer_Bau)=0)\n+Eing_Invest_HolzAnlage*(MOD((AS51),Eing_Nutzungsdauer_Holz)=0)\n+Eing_Invest_WKKAnlage*(MOD((AS51),Eing_Nutzungsdauer_WKK)=0)\n+Eing_Invest_WPAnlage*(MOD((AS51),Eing_Nutzungsdauer_WP)=0)\n+Eing_Invest_SondenGrundwasser*(MOD((AS51),Eing_Nutzungsdauer_SondenGW)=0)\n+Eing_Invest_Zusatz*(MOD((AS51),Eing_Nutzungsdauer_Zusatz)=0)\n+Eing_Invest_AWN*(MOD((AS51),Eing_Nutzungsdauer_AWN)=0)\n+Eing_Invest_Spitzenlast*(MOD((AS51),Eing_Nutzungsdauer_Spitzenlast)=0)\n+Eing_Invest_Installationen*(MOD((AS51),Eing_Nutzungsdauer_Installationen)=0)\n+Eing_Invest_Wärmenetz*(MOD((AS51),Eing_Nutzungsdauer_Netz)=0)\n+Eing_Invest_Messung*(MOD((AS51),Eing_Nutzungsdauer_Messung)=0))*(1+Eing_allg_Teuerung/100)^(AS51))\n+Gesamtinvestition*SUMPRODUCT((E1_Projektdaten!$D$83:$D$87=B51)*E1_Projektdaten!$F$83:$F$87)/100","v":0},0,{"$f":"-SUMPRODUCT((E3_Verbraucher!$D$21:$XFD$21=B1_Berechnungen!B51)*E3_Verbraucher!$D$23:$XFD$23)","v":0},0,0,0,0,0,{"$f":"IF(ISNUMBER(IRR((BD$43:BD50,BC51))),IRR((BD$43:BD50,BC51)),\"-\")","v":"-"},{"$f":"SUM((SUMPRODUCT((E3_Verbraucher!$D$21:$XFD$21<B1_Berechnungen!B51)*E3_Verbraucher!$D$26:$XFD$26)+SUMPRODUCT((E3_Verbraucher!$D$21:$XFD$21=B1_Berechnungen!B51)*E3_Verbraucher!$D$26:$XFD$26*E3_Verbraucher!$D$20:$XFD$20))*(1+$G$29)^(B51-B$43),(SUMPRODUCT((E3_Verbraucher!$D$21:$XFD$21<B1_Berechnungen!B51)*E3_Verbraucher!$D$27:$XFD$27)+SUMPRODUCT((E3_Verbraucher!$D$21:$XFD$21=B1_Berechnungen!B51)*E3_Verbraucher!$D$27:$XFD$27*E3_Verbraucher!$D$20:$XFD$20))*((1+$G$29)*(1-E1_Projektdaten!$D$20/100))^(B51-B$43))","v":0},0,0,0,null,null,0,0,0,0,0,0,0,0,{"$f":"($F$21*(1+$G$21)^(B51-B$43)+$F$22*(1+$G$22)^(B51-B$43))*(B51>=Eing_JahrBegWLief)*VLOOKUP(B51,E1_Projektdaten!$D$83:$I$87,6)/100","v":0},{"$f":"$F$23*(1+$G$23)^(B51-B$43)*(B51>=Eing_JahrBegWLief)*VLOOKUP(B51,E1_Projektdaten!$D$83:$I$87,6)/100","v":0},0,null,null,0,0,0,0,0,0,{"$f":"(E1_Projektdaten!$D$68*(1+Eing_allg_Teuerung/100)^(E1_Projektdaten!$I$68*ROUNDDOWN((AS51-1)/E1_Projektdaten!$I$68,0))/E1_Projektdaten!$I$68\n+E1_Projektdaten!$D$69*(1+Eing_allg_Teuerung/100)^(E1_Projektdaten!$I$69*ROUNDDOWN((AS51-1)/E1_Projektdaten!$I$69,0))/E1_Projektdaten!$I$69\n+E1_Projektdaten!$D$70*(1+Eing_allg_Teuerung/100)^(E1_Projektdaten!$I$70*ROUNDDOWN((AS51-1)/E1_Projektdaten!$I$69,0))/E1_Projektdaten!$I$70\n+E1_Projektdaten!$D$71*(1+Eing_allg_Teuerung/100)^(E1_Projektdaten!$I$71*ROUNDDOWN((AS51-1)/E1_Projektdaten!$I$69,0))/E1_Projektdaten!$I$71\n+E1_Projektdaten!$D$72*(1+Eing_allg_Teuerung/100)^(E1_Projektdaten!$I$72*ROUNDDOWN((AS51-1)/E1_Projektdaten!$I$69,0))/E1_Projektdaten!$I$72\n+E1_Projektdaten!$D$74*(1+Eing_allg_Teuerung/100)^(E1_Projektdaten!$I$74*ROUNDDOWN((AS51-1)/E1_Projektdaten!$I$69,0))/E1_Projektdaten!$I$74\n+E1_Projektdaten!$D$75*(1+Eing_allg_Teuerung/100)^(E1_Projektdaten!$I$75*ROUNDDOWN((AS51-1)/E1_Projektdaten!$I$75,0))/E1_Projektdaten!$I$75\n+E1_Projektdaten!$D$76*(1+Eing_allg_Teuerung/100)^(E1_Projektdaten!$I$76*ROUNDDOWN((AS51-1)/E1_Projektdaten!$I$76,0))/E1_Projektdaten!$I$76\n+E1_Projektdaten!$D$77*(1+Eing_allg_Teuerung/100)^(E1_Projektdaten!$I$77*ROUNDDOWN((AS51-1)/E1_Projektdaten!$I$77,0))/E1_Projektdaten!$I$77\n+E1_Projektdaten!$D$78*(1+Eing_allg_Teuerung/100)^(E1_Projektdaten!$I$78*ROUNDDOWN((AS51-1)/E1_Projektdaten!$I$78,0))/E1_Projektdaten!$I$78\n+E1_Projektdaten!$D$80*(1+Eing_allg_Teuerung/100)^(E1_Projektdaten!$I$80*ROUNDDOWN((AS51-1)/E1_Projektdaten!$I$69,0))/E1_Projektdaten!$I$80\n)*((AS51)>0)*VLOOKUP(B51,E1_Projektdaten!$D$83:$I$87,6\n)/100","v":0},0,0,0,{"$f":"IF(AS51-1<=0,0,\n(Eing_Kosten_Bau*(MOD((AS51-1),Eing_Nutzungsdauer_Bau)=0)\n+Eing_Invest_HolzAnlage*(MOD((AS51-1),Eing_Nutzungsdauer_Holz)=0)\n+Eing_Invest_WKKAnlage*(MOD((AS51-1),Eing_Nutzungsdauer_WKK)=0)\n+Eing_Invest_WPAnlage*(MOD((AS51-1),Eing_Nutzungsdauer_WP)=0)\n+Eing_Invest_SondenGrundwasser*(MOD((AS51-1),Eing_Nutzungsdauer_SondenGW)=0)\n+Eing_Invest_AWN*(MOD((AS51-1),Eing_Nutzungsdauer_AWN)=0)\n+Eing_Invest_Spitzenlast*(MOD((AS51-1),Eing_Nutzungsdauer_Spitzenlast)=0)\n+Eing_Invest_Installationen*(MOD((AS51-1),Eing_Nutzungsdauer_Installationen)=0)\n+Eing_Invest_Wärmenetz*(MOD((AS51-1),Eing_Nutzungsdauer_Netz)=0)\n+Eing_Invest_Messung*(MOD((AS51-1),Eing_Nutzungsdauer_Messung)=0))*(1+Eing_allg_Teuerung/100)^(AS51-1))\n+(Gesamtinvestition-SUM(E1_Projektdaten!$D$79:$D$80))*SUMPRODUCT((E1_Projektdaten!$D$83:$D$87=B51)*E1_Projektdaten!$F$83:$F$87)/100-AM51\n+AQ50","v":0},0,{"$f":"MAX(B1_Berechnungen!B51-E1_Projektdaten!$D$23,0)","v":8},{"$f":"AT50-B1_Berechnungen!I51","v":0},0,{"$f":"IF((SUM(H$43:H51)-SUM(I$43:I51))<=AU51,MAX((SUM(H$43:H51)-SUM(I$43:I51)),0),AU51)","v":0},0,0,0,{"$f":"IF((SUM(H$43:H51)-SUM(I$43:I51)-AV51)<=AY51,MAX((SUM(H$43:H51)-SUM(I$43:I51)-AV51),0),AY51)","v":0},0,0,0,0]
[null,9,{"$f":"(SUMPRODUCT((E3_Verbraucher!$D$21:$XFD$21<B1_Berechnungen!B52)*E3_Verbraucher!$D$18:$XFD$18)+SUMPRODUCT((E3_Verbraucher!$D$21:$XFD$21=B1_Berechnungen!B52)*E3_Verbraucher!$D$18:$XFD$18*E3_Verbraucher!$D$20:$XFD$20))/(100-Eing_Netzverluste)*100*(1-Eing_AbnW/100)^(B1_Berechnungen!B52-Eing_Beginnjahr)","v":0},{"v":0,"d":"0.00"},{"$f":"IF(AS52=0,0,\n(Eing_Kosten_Bau*(MOD((AS52),Eing_Nutzungsdauer_Bau)=0)\n+Eing_Invest_HolzAnlage*(MOD((AS52),Eing_Nutzungsdauer_Holz)=0)\n+Eing_Invest_WKKAnlage*(MOD((AS52),Eing_Nutzungsdauer_WKK)=0)\n+Eing_Invest_WPAnlage*(MOD((AS52),Eing_Nutzungsdauer_WP)=0)\n+Eing_Invest_SondenGrundwasser*(MOD((AS52),Eing_Nutzungsdauer_SondenGW)=0)\n+Eing_Invest_Zusatz*(MOD((AS52),Eing_Nutzungsdauer_Zusatz)=0)\n+Eing_Invest_AWN*(MOD((AS52),Eing_Nutzungsdauer_AWN)=0)\n+Eing_Invest_Spitzenlast*(MOD((AS52),Eing_Nutzungsdauer_Spitzenlast)=0)\n+Eing_Invest_Installationen*(MOD((AS52),Eing_Nutzungsdauer_Installationen)=0)\n+Eing_Invest_Wärmenetz*(MOD((AS52),Eing_Nutzungsdauer_Netz)=0)\n+Eing_Invest_Messung*(MOD((AS52),Eing_Nutzungsdauer_Messung)=0))*(1+Eing_allg_Teuerung/100)^(AS52))\n+Gesamtinvestition*SUMPRODUCT((E1_Projektdaten!$D$83:$D$87=B52)*E1_Projektdaten!$F$83:$F$87)/100","v":0},0,{"$f":"-SUMPRODUCT((E3_Verbraucher!$D$21:$XFD$21=B1_Berechnungen!B52)*E3_Verbraucher!$D$23:$XFD$23)","v":0},0,0,0,0,0,{"$f":"IF(ISNUMBER(IRR((BD$43:BD51,BC52))),IRR((BD$43:BD51,BC52)),\"-\")","v":"-"},{"$f":"SUM((SUMPRODUCT((E3_Verbraucher!$D$21:$XFD$21<B1_Berechnungen!B52)*E3_Verbraucher!$D$26:$XFD$26)+SUMPRODUCT((E3_Verbraucher!$D$21:$XFD$21=B1_Berechnungen!B52)*E3_Verbraucher!$D$26:$XFD$26*E3_Verbraucher!$D$20:$XFD$20))*(1+$G$29)^(B52-B$43),(SUMPRODUCT((E3_Verbraucher!$D$21:$XFD$21<B1_Berechnungen!B52)*E3_Verbraucher!$D$27:$XFD$27)+SUMPRODUCT((E3_Verbraucher!$D$21:$XFD$21=B1_Berechnungen!B52)*E3_Verbraucher!$D$27:$XFD$27*E3_Verbraucher!$D$20:$XFD$20))*((1+$G$29)*(1-E1_Projektdaten!$D$20/100))^(B52-B$43))","v":0},0,0,0,null,null,0,0,0,0,0,0,0,0,{"$f":"($F$21*(1+$G$21)^(B52-B$43)+$F$22*(1+$G$22)^(B52-B$43))*(B52>=Eing_JahrBegWLief)*VLOOKUP(B52,E1_Projektdaten!$D$83:$I$87,6)/100","v":0},{"$f":"$F$23*(1+$G$23)^(B52-B$43)*(B52>=Eing_JahrBegWLief)*VLOOKUP(B52,E1_Projektdaten!$D$83:$I$87,6)/100","v":0},0,null,null,0,0,0,0,0,0,{"$f":"(E1_Projektdaten!$D$68*(1+Eing_allg_Teuerung/100)^(E1_Projektdaten!$I$68*ROUNDDOWN((AS52-1)/E1_Projektdaten!$I$68,0))/E1_Projektdaten!$I$68\n+E1_Projektdaten!$D$69*(1+Eing_allg_Teuerung/100)^(E1_Projektdaten!$I$69*ROUNDDOWN((AS52-1)/E1_Projektdaten!$I$69,0))/E1_Projektdaten!$I$69\n+E1_Projektdaten!$D$70*(1+Eing_allg_Teuerung/100)^(E1_Projektdaten!$I$70*ROUNDDOWN((AS52-1)/E1_Projektdaten!$I$69,0))/E1_Projektdaten!$I$70\n+E1_Projektdaten!$D$71*(1+Eing_allg_Teuerung/100)^(E1_Projektdaten!$I$71*ROUNDDOWN((AS52-1)/E1_Projektdaten!$I$69,0))/E1_Projektdaten!$I$71\n+E1_Projektdaten!$D$72*(1+Eing_allg_Teuerung/100)^(E1_Projektdaten!$I$72*ROUNDDOWN((AS52-1)/E1_Projektdaten!$I$69,0))/E1_Projektdaten!$I$72\n+E1_Projektdaten!$D$74*(1+Eing_allg_Teuerung/100)^(E1_Projektdaten!$I$74*ROUNDDOWN((AS52-1)/E1_Projektdaten!$I$69,0))/E1_Projektdaten!$I$74\n+E1_Projektdaten!$D$75*(1+Eing_allg_Teuerung/100)^(E1_Projektdaten!$I$75*ROUNDDOWN((AS52-1)/E1_Projektdaten!$I$75,0))/E1_Projektdaten!$I$75\n+E1_Projektdaten!$D$76*(1+Eing_allg_Teuerung/100)^(E1_Projektdaten!$I$76*ROUNDDOWN((AS52-1)/E1_Projektdaten!$I$76,0))/E1_Projektdaten!$I$76\n+E1_Projektdaten!$D$77*(1+Eing_allg_Teuerung/100)^(E1_Projektdaten!$I$77*ROUNDDOWN((AS52-1)/E1_Projektdaten!$I$77,0))/E1_Projektdaten!$I$77\n+E1_Projektdaten!$D$78*(1+Eing_allg_Teuerung/100)^(E1_Projektdaten!$I$78*ROUNDDOWN((AS52-1)/E1_Projektdaten!$I$78,0))/E1_Projektdaten!$I$78\n+E1_Projektdaten!$D$80*(1+Eing_allg_Teuerung/100)^(E1_Projektdaten!$I$80*ROUNDDOWN((AS52-1)/E1_Projektdaten!$I$69,0))/E1_Projektdaten!$I$80\n)*((AS52)>0)*VLOOKUP(B52,E1_Projektdaten!$D$83:$I$87,6\n)/100","v":0},0,0,0,{"$f":"IF(AS52-1<=0,0,\n(Eing_Kosten_Bau*(MOD((AS52-1),Eing_Nutzungsdauer_Bau)=0)\n+Eing_Invest_HolzAnlage*(MOD((AS52-1),Eing_Nutzungsdauer_Holz)=0)\n+Eing_Invest_WKKAnlage*(MOD((AS52-1),Eing_Nutzungsdauer_WKK)=0)\n+Eing_Invest_WPAnlage*(MOD((AS52-1),Eing_Nutzungsdauer_WP)=0)\n+Eing_Invest_SondenGrundwasser*(MOD((AS52-1),Eing_Nutzungsdauer_SondenGW)=0)\n+Eing_Invest_AWN*(MOD((AS52-1),Eing_Nutzungsdauer_AWN)=0)\n+Eing_Invest_Spitzenlast*(MOD((AS52-1),Eing_Nutzungsdauer_Spitzenlast)=0)\n+Eing_Invest_Installationen*(MOD((AS52-1),Eing_Nutzungsdauer_Installationen)=0)\n+Eing_Invest_Wärmenetz*(MOD((AS52-1),Eing_Nutzungsdauer_Netz)=0)\n+Eing_Invest_Messung*(MOD((AS52-1),Eing_Nutzungsdauer_Messung)=0))*(1+Eing_allg_Teuerung/100)^(AS52-1))\n+(Gesamtinvestition-SUM(E1_Projektdaten!$D$79:$D$80))*SUMPRODUCT((E1_Projektdaten!$D$83:$D$87=B52)*E1_Projektdaten!$F$83:$F$87)/100-AM52\n+AQ51","v":0},0,{"$f":"MAX(B1_Berechnungen!B52-E1_Projektdaten!$D$23,0)","v":9},{"$f":"AT51-B1_Berechnungen!I52","v":0},0,{"$f":"IF((SUM(H$43:H52)-SUM(I$43:I52))<=AU52,MAX((SUM(H$43:H52)-SUM(I$43:I52)),0),AU52)","v":0},0,0,0,{"$f":"IF((SUM(H$43:H52)-SUM(I$43:I52)-AV52)<=AY52,MAX((SUM(H$43:H52)-SUM(I$43:I52)-AV52),0),AY52)","v":0},0,0,0,0]
[null,10,{"$f":"(SUMPRODUCT((E3_Verbraucher!$D$21:$XFD$21<B1_Berechnungen!B53)*E3_Verbraucher!$D$18:$XFD$18)+SUMPRODUCT((E3_Verbraucher!$D$21:$XFD$21=B1_Berechnungen!B53)*E3_Verbraucher!$D$18:$XFD$18*E3_Verbraucher!$D$20:$XFD$20))/(100-Eing_Netzverluste)*100*(1-Eing_AbnW/100)^(B1_Berechnungen!B53-Eing_Beginnjahr)","v":0},{"v":0,"d":"0.00"},{"$f":"IF(AS53=0,0,\n(Eing_Kosten_Bau*(MOD((AS53),Eing_Nutzungsdauer_Bau)=0)\n+Eing_Invest_HolzAnlage*(MOD((AS53),Eing_Nutzungsdauer_Holz)=0)\n+Eing_Invest_WKKAnlage*(MOD((AS53),Eing_Nutzungsdauer_WKK)=0)\n+Eing_Invest_WPAnlage*(MOD((AS53),Eing_Nutzungsdauer_WP)=0)\n+Eing_Invest_SondenGrundwasser*(MOD((AS53),Eing_Nutzungsdauer_SondenGW)=0)\n+Eing_Invest_Zusatz*(MOD((AS53),Eing_Nutzungsdauer_Zusatz)=0)\n+Eing_Invest_AWN*(MOD((AS53),Eing_Nutzungsdauer_AWN)=0)\n+Eing_Invest_Spitzenlast*(MOD((AS53),Eing_Nutzungsdauer_Spitzenlast)=0)\n+Eing_Invest_Installationen*(MOD((AS53),Eing_Nutzungsdauer_Installationen)=0)\n+Eing_Invest_Wärmenetz*(MOD((AS53),Eing_Nutzungsdauer_Netz)=0)\n+Eing_Invest_Messung*(MOD((AS53),Eing_Nutzungsdauer_Messung)=0))*(1+Eing_allg_Teuerung/100)^(AS53))\n+Gesamtinvestition*SUMPRODUCT((E1_Projektdaten!$D$83:$D$87=B53)*E1_Projektdaten!$F$83:$F$87)/100","v":0},0,{"$f":"-SUMPRODUCT((E3_Verbraucher!$D$21:$XFD$21=B1_Berechnungen!B53)*E3_Verbraucher!$D$23:$XFD$23)","v":0},0,0,0,0,0,{"$f":"IF(ISNUMBER(IRR((BD$43:BD52,BC53))),IRR((BD$43:BD52,BC53)),\"-\")","v":"-"},{"$f":"SUM((SUMPRODUCT((E3_Verbraucher!$D$21:$XFD$21<B1_Berechnungen!B53)*E3_Verbraucher!$D$26:$XFD$26)+SUMPRODUCT((E3_Verbraucher!$D$21:$XFD$21=B1_Berechnungen!B53)*E3_Verbraucher!$D$26:$XFD$26*E3_Verbraucher!$D$20:$XFD$20))*(1+$G$29)^(B53-B$43),(SUMPRODUCT((E3_Verbraucher!$D$21:$XFD$21<B1_Berechnungen!B53)*E3_Verbraucher!$D$27:$XFD$27)+SUMPRODUCT((E3_Verbraucher!$D$21:$XFD$21=B1_Berechnungen!B53)*E3_Verbraucher!$D$27:$XFD$27*E3_Verbraucher!$D$20:$XFD$20))*((1+$G$29)*(1-E1_Projektdaten!$D$20/100))^(B53-B$43))","v":0},0,0,0,null,null,0,0,0,0,0,0,0,0,{"$f":"($F$21*(1+$G$21)^(B53-B$43)+$F$22*(1+$G$22)^(B53-B$43))*(B53>=Eing_JahrBegWLief)*VLOOKUP(B53,E1_Projektdaten!$D$83:$I$87,6)/100","v":0},{"$f":"$F$23*(1+$G$23)^(B53-B$43)*(B53>=Eing_JahrBegWLief)*VLOOKUP(B53,E1_Projektdaten!$D$83:$I$87,6)/100","v":0},0,null,null,0,0,0,0,0,0,{"$f":"(E1_Projektdaten!$D$68*(1+Eing_allg_Teuerung/100)^(E1_Projektdaten!$I$68*ROUNDDOWN((AS53-1)/E1_Projektdaten!$I$68,0))/E1_Projektdaten!$I$68\n+E1_Projektdaten!$D$69*(1+Eing_allg_Teuerung/100)^(E1_Projektdaten!$I$69*ROUNDDOWN((AS53-1)/E1_Projektdaten!$I$69,0))/E1_Projektdaten!$I$69\n+E1_Projektdaten!$D$70*(1+Eing_allg_Teuerung/100)^(E1_Projektdaten!$I$70*ROUNDDOWN((AS53-1)/E1_Projektdaten!$I$69,0))/E1_Projektdaten!$I$70\n+E1_Projektdaten!$D$71*(1+Eing_allg_Teuerung/100)^(E1_Projektdaten!$I$71*ROUNDDOWN((AS53-1)/E1_Projektdaten!$I$69,0))/E1_Projektdaten!$I$71\n+E1_Projektdaten!$D$72*(1+Eing_allg_Teuerung/100)^(E1_Projektdaten!$I$72*ROUNDDOWN((AS53-1)/E1_Projektdaten!$I$69,0))/E1_Projektdaten!$I$72\n+E1_Projektdaten!$D$74*(1+Eing_allg_Teuerung/100)^(E1_Projektdaten!$I$74*ROUNDDOWN((AS53-1)/E1_Projektdaten!$I$69,0))/E1_Projektdaten!$I$74\n+E1_Projektdaten!$D$75*(1+Eing_allg_Teuerung/100)^(E1_Projektdaten!$I$75*ROUNDDOWN((AS53-1)/E1_Projektdaten!$I$75,0))/E1_Projektdaten!$I$75\n+E1_Projektdaten!$D$76*(1+Eing_allg_Teuerung/100)^(E1_Projektdaten!$I$76*ROUNDDOWN((AS53-1)/E1_Projektdaten!$I$76,0))/E1_Projektdaten!$I$76\n+E1_Projektdaten!$D$77*(1+Eing_allg_Teuerung/100)^(E1_Projektdaten!$I$77*ROUNDDOWN((AS53-1)/E1_Projektdaten!$I$77,0))/E1_Projektdaten!$I$77\n+E1_Projektdaten!$D$78*(1+Eing_allg_Teuerung/100)^(E1_Projektdaten!$I$78*ROUNDDOWN((AS53-1)/E1_Projektdaten!$I$78,0))/E1_Projektdaten!$I$78\n+E1_Projektdaten!$D$80*(1+Eing_allg_Teuerung/100)^(E1_Projektdaten!$I$80*ROUNDDOWN((AS53-1)/E1_Projektdaten!$I$69,0))/E1_Projektdaten!$I$80\n)*((AS53)>0)*VLOOKUP(B53,E1_Projektdaten!$D$83:$I$87,6\n)/100","v":0},0,0,0,{"$f":"IF(AS53-1<=0,0,\n(Eing_Kosten_Bau*(MOD((AS53-1),Eing_Nutzungsdauer_Bau)=0)\n+Eing_Invest_HolzAnlage*(MOD((AS53-1),Eing_Nutzungsdauer_Holz)=0)\n+Eing_Invest_WKKAnlage*(MOD((AS53-1),Eing_Nutzungsdauer_WKK)=0)\n+Eing_Invest_WPAnlage*(MOD((AS53-1),Eing_Nutzungsdauer_WP)=0)\n+Eing_Invest_SondenGrundwasser*(MOD((AS53-1),Eing_Nutzungsdauer_SondenGW)=0)\n+Eing_Invest_AWN*(MOD((AS53-1),Eing_Nutzungsdauer_AWN)=0)\n+Eing_Invest_Spitzenlast*(MOD((AS53-1),Eing_Nutzungsdauer_Spitzenlast)=0)\n+Eing_Invest_Installationen*(MOD((AS53-1),Eing_Nutzungsdauer_Installationen)=0)\n+Eing_Invest_Wärmenetz*(MOD((AS53-1),Eing_Nutzungsdauer_Netz)=0)\n+Eing_Invest_Messung*(MOD((AS53-1),Eing_Nutzungsdauer_Messung)=0))*(1+Eing_allg_Teuerung/100)^(AS53-1))\n+(Gesamtinvestition-SUM(E1_Projektdaten!$D$79:$D$80))*SUMPRODUCT((E1_Projektdaten!$D$83:$D$87=B53)*E1_Projektdaten!$F$83:$F$87)/100-AM53\n+AQ52","v":0},0,{"$f":"MAX(B1_Berechnungen!B53-E1_Projektdaten!$D$23,0)","v":10},{"$f":"AT52-B1_Berechnungen!I53","v":0},0,{"$f":"IF((SUM(H$43:H53)-SUM(I$43:I53))<=AU53,MAX((SUM(H$43:H53)-SUM(I$43:I53)),0),AU53)","v":0},0,0,0,{"$f":"IF((SUM(H$43:H53)-SUM(I$43:I53)-AV53)<=AY53,MAX((SUM(H$43:H53)-SUM(I$43:I53)-AV53),0),AY53)","v":0},0,0,0,0]
[null,11,{"$f":"(SUMPRODUCT((E3_Verbraucher!$D$21:$XFD$21<B1_Berechnungen!B54)*E3_Verbraucher!$D$18:$XFD$18)+SUMPRODUCT((E3_Verbraucher!$D$21:$XFD$21=B1_Berechnungen!B54)*E3_Verbraucher!$D$18:$XFD$18*E3_Verbraucher!$D$20:$XFD$20))/(100-Eing_Netzverluste)*100*(1-Eing_AbnW/100)^(B1_Berechnungen!B54-Eing_Beginnjahr)","v":0},{"v":0,"d":"0.00"},{"$f":"IF(AS54=0,0,\n(Eing_Kosten_Bau*(MOD((AS54),Eing_Nutzungsdauer_Bau)=0)\n+Eing_Invest_HolzAnlage*(MOD((AS54),Eing_Nutzungsdauer_Holz)=0)\n+Eing_Invest_WKKAnlage*(MOD((AS54),Eing_Nutzungsdauer_WKK)=0)\n+Eing_Invest_WPAnlage*(MOD((AS54),Eing_Nutzungsdauer_WP)=0)\n+Eing_Invest_SondenGrundwasser*(MOD((AS54),Eing_Nutzungsdauer_SondenGW)=0)\n+Eing_Invest_Zusatz*(MOD((AS54),Eing_Nutzungsdauer_Zusatz)=0)\n+Eing_Invest_AWN*(MOD((AS54),Eing_Nutzungsdauer_AWN)=0)\n+Eing_Invest_Spitzenlast*(MOD((AS54),Eing_Nutzungsdauer_Spitzenlast)=0)\n+Eing_Invest_Installationen*(MOD((AS54),Eing_Nutzungsdauer_Installationen)=0)\n+Eing_Invest_Wärmenetz*(MOD((AS54),Eing_Nutzungsdauer_Netz)=0)\n+Eing_Invest_Messung*(MOD((AS54),Eing_Nutzungsdauer_Messung)=0))*(1+Eing_allg_Teuerung/100)^(AS54))\n+Gesamtinvestition*SUMPRODUCT((E1_Projektdaten!$D$83:$D$87=B54)*E1_Projektdaten!$F$83:$F$87)/100","v":0},0,{"$f":"-SUMPRODUCT((E3_Verbraucher!$D$21:$XFD$21=B1_Berechnungen!B54)*E3_Verbraucher!$D$23:$XFD$23)","v":0},0,0,0,0,0,{"$f":"IF(ISNUMBER(IRR((BD$43:BD53,BC54))),IRR((BD$43:BD53,BC54)),\"-\")","v":"-"},{"$f":"SUM((SUMPRODUCT((E3_Verbraucher!$D$21:$XFD$21<B1_Berechnungen!B54)*E3_Verbraucher!$D$26:$XFD$26)+SUMPRODUCT((E3_Verbraucher!$D$21:$XFD$21=B1_Berechnungen!B54)*E3_Verbraucher!$D$26:$XFD$26*E3_Verbraucher!$D$20:$XFD$20))*(1+$G$29)^(B54-B$43),(SUMPRODUCT((E3_Verbraucher!$D$21:$XFD$21<B1_Berechnungen!B54)*E3_Verbraucher!$D$27:$XFD$27)+SUMPRODUCT((E3_Verbraucher!$D$21:$XFD$21=B1_Berechnungen!B54)*E3_Verbraucher!$D$27:$XFD$27*E3_Verbraucher!$D$20:$XFD$20))*((1+$G$29)*(1-E1_Projektdaten!$D$20/100))^(B54-B$43))","v":0},0,0,0,null,null,0,0,0,0,0,0,0,0,{"$f":"($F$21*(1+$G$21)^(B54-B$43)+$F$22*(1+$G$22)^(B54-B$43))*(B54>=Eing_JahrBegWLief)*VLOOKUP(B54,E1_Projektdaten!$D$83:$I$87,6)/100","v":0},{"$f":"$F$23*(1+$G$23)^(B54-B$43)*(B54>=Eing_JahrBegWLief)*VLOOKUP(B54,E1_Projektdaten!$D$83:$I$87,6)/100","v":0},0,null,null,0,0,0,0,0,0,{"$f":"(E1_Projektdaten!$D$68*(1+Eing_allg_Teuerung/100)^(E1_Projektdaten!$I$68*ROUNDDOWN((AS54-1)/E1_Projektdaten!$I$68,0))/E1_Projektdaten!$I$68\n+E1_Projektdaten!$D$69*(1+Eing_allg_Teuerung/100)^(E1_Projektdaten!$I$69*ROUNDDOWN((AS54-1)/E1_Projektdaten!$I$69,0))/E1_Projektdaten!$I$69\n+E1_Projektdaten!$D$70*(1+Eing_allg_Teuerung/100)^(E1_Projektdaten!$I$70*ROUNDDOWN((AS54-1)/E1_Projektdaten!$I$69,0))/E1_Projektdaten!$I$70\n+E1_Projektdaten!$D$71*(1+Eing_allg_Teuerung/100)^(E1_Projektdaten!$I$71*ROUNDDOWN((AS54-1)/E1_Projektdaten!$I$69,0))/E1_Projektdaten!$I$71\n+E1_Projektdaten!$D$72*(1+Eing_allg_Teuerung/100)^(E1_Projektdaten!$I$72*ROUNDDOWN((AS54-1)/E1_Projektdaten!$I$69,0))/E1_Projektdaten!$I$72\n+E1_Projektdaten!$D$74*(1+Eing_allg_Teuerung/100)^(E1_Projektdaten!$I$74*ROUNDDOWN((AS54-1)/E1_Projektdaten!$I$69,0))/E1_Projektdaten!$I$74\n+E1_Projektdaten!$D$75*(1+Eing_allg_Teuerung/100)^(E1_Projektdaten!$I$75*ROUNDDOWN((AS54-1)/E1_Projektdaten!$I$75,0))/E1_Projektdaten!$I$75\n+E1_Projektdaten!$D$76*(1+Eing_allg_Teuerung/100)^(E1_Projektdaten!$I$76*ROUNDDOWN((AS54-1)/E1_Projektdaten!$I$76,0))/E1_Projektdaten!$I$76\n+E1_Projektdaten!$D$77*(1+Eing_allg_Teuerung/100)^(E1_Projektdaten!$I$77*ROUNDDOWN((AS54-1)/E1_Projektdaten!$I$77,0))/E1_Projektdaten!$I$77\n+E1_Projektdaten!$D$78*(1+Eing_allg_Teuerung/100)^(E1_Projektdaten!$I$78*ROUNDDOWN((AS54-1)/E1_Projektdaten!$I$78,0))/E1_Projektdaten!$I$78\n+E1_Projektdaten!$D$80*(1+Eing_allg_Teuerung/100)^(E1_Projektdaten!$I$80*ROUNDDOWN((AS54-1)/E1_Projektdaten!$I$69,0))/E1_Projektdaten!$I$80\n)*((AS54)>0)*VLOOKUP(B54,E1_Projektdaten!$D$83:$I$87,6\n)/100","v":0},0,0,0,{"$f":"IF(AS54-1<=0,0,\n(Eing_Kosten_Bau*(MOD((AS54-1),Eing_Nutzungsdauer_Bau)=0)\n+Eing_Invest_HolzAnlage*(MOD((AS54-1),Eing_Nutzungsdauer_Holz)=0)\n+Eing_Invest_WKKAnlage*(MOD((AS54-1),Eing_Nutzungsdauer_WKK)=0)\n+Eing_Invest_WPAnlage*(MOD((AS54-1),Eing_Nutzungsdauer_WP)=0)\n+Eing_Invest_SondenGrundwasser*(MOD((AS54-1),Eing_Nutzungsdauer_SondenGW)=0)\n+Eing_Invest_AWN*(MOD((AS54-1),Eing_Nutzungsdauer_AWN)=0)\n+Eing_Invest_Spitzenlast*(MOD((AS54-1),Eing_Nutzungsdauer_Spitzenlast)=0)\n+Eing_Invest_Installationen*(MOD((AS54-1),Eing_Nutzungsdauer_Installationen)=0)\n+Eing_Invest_Wärmenetz*(MOD((AS54-1),Eing_Nutzungsdauer_Netz)=0)\n+Eing_Invest_Messung*(MOD((AS54-1),Eing_Nutzungsdauer_Messung)=0))*(1+Eing_allg_Teuerung/100)^(AS54-1))\n+(Gesamtinvestition-SUM(E1_Projektdaten!$D$79:$D$80))*SUMPRODUCT((E1_Projektdaten!$D$83:$D$87=B54)*E1_Projektdaten!$F$83:$F$87)/100-AM54\n+AQ53","v":0},0,{"$f":"MAX(B1_Berechnungen!B54-E1_Projektdaten!$D$23,0)","v":11},{"$f":"AT53-B1_Berechnungen!I54","v":0},0,{"$f":"IF((SUM(H$43:H54)-SUM(I$43:I54))<=AU54,MAX((SUM(H$43:H54)-SUM(I$43:I54)),0),AU54)","v":0},0,0,0,{"$f":"IF((SUM(H$43:H54)-SUM(I$43:I54)-AV54)<=AY54,MAX((SUM(H$43:H54)-SUM(I$43:I54)-AV54),0),AY54)","v":0},0,0,0,0]
[null,12,{"$f":"(SUMPRODUCT((E3_Verbraucher!$D$21:$XFD$21<B1_Berechnungen!B55)*E3_Verbraucher!$D$18:$XFD$18)+SUMPRODUCT((E3_Verbraucher!$D$21:$XFD$21=B1_Berechnungen!B55)*E3_Verbraucher!$D$18:$XFD$18*E3_Verbraucher!$D$20:$XFD$20))/(100-Eing_Netzverluste)*100*(1-Eing_AbnW/100)^(B1_Berechnungen!B55-Eing_Beginnjahr)","v":0},{"v":0,"d":"0.00"},{"$f":"IF(AS55=0,0,\n(Eing_Kosten_Bau*(MOD((AS55),Eing_Nutzungsdauer_Bau)=0)\n+Eing_Invest_HolzAnlage*(MOD((AS55),Eing_Nutzungsdauer_Holz)=0)\n+Eing_Invest_WKKAnlage*(MOD((AS55),Eing_Nutzungsdauer_WKK)=0)\n+Eing_Invest_WPAnlage*(MOD((AS55),Eing_Nutzungsdauer_WP)=0)\n+Eing_Invest_SondenGrundwasser*(MOD((AS55),Eing_Nutzungsdauer_SondenGW)=0)\n+Eing_Invest_Zusatz*(MOD((AS55),Eing_Nutzungsdauer_Zusatz)=0)\n+Eing_Invest_AWN*(MOD((AS55),Eing_Nutzungsdauer_AWN)=0)\n+Eing_Invest_Spitzenlast*(MOD((AS55),Eing_Nutzungsdauer_Spitzenlast)=0)\n+Eing_Invest_Installationen*(MOD((AS55),Eing_Nutzungsdauer_Installationen)=0)\n+Eing_Invest_Wärmenetz*(MOD((AS55),Eing_Nutzungsdauer_Netz)=0)\n+Eing_Invest_Messung*(MOD((AS55),Eing_Nutzungsdauer_Messung)=0))*(1+Eing_allg_Teuerung/100)^(AS55))\n+Gesamtinvestition*SUMPRODUCT((E1_Projektdaten!$D$83:$D$87=B55)*E1_Projektdaten!$F$83:$F$87)/100","v":0},0,{"$f":"-SUMPRODUCT((E3_Verbraucher!$D$21:$XFD$21=B1_Berechnungen!B55)*E3_Verbraucher!$D$23:$XFD$23)","v":0},0,0,0,0,0,{"$f":"IF(ISNUMBER(IRR((BD$43:BD54,BC55))),IRR((BD$43:BD54,BC55)),\"-\")","v":"-"},{"$f":"SUM((SUMPRODUCT((E3_Verbraucher!$D$21:$XFD$21<B1_Berechnungen!B55)*E3_Verbraucher!$D$26:$XFD$26)+SUMPRODUCT((E3_Verbraucher!$D$21:$XFD$21=B1_Berechnungen!B55)*E3_Verbraucher!$D$26:$XFD$26*E3_Verbraucher!$D$20:$XFD$20))*(1+$G$29)^(B55-B$43),(SUMPRODUCT((E3_Verbraucher!$D$21:$XFD$21<B1_Berechnungen!B55)*E3_Verbraucher!$D$27:$XFD$27)+SUMPRODUCT((E3_Verbraucher!$D$21:$XFD$21=B1_Berechnungen!B55)*E3_Verbraucher!$D$27:$XFD$27*E3_Verbraucher!$D$20:$XFD$20))*((1+$G$29)*(1-E1_Projektdaten!$D$20/100))^(B55-B$43))","v":0},0,0,0,null,null,0,0,0,0,0,0,0,0,{"$f":"($F$21*(1+$G$21)^(B55-B$43)+$F$22*(1+$G$22)^(B55-B$43))*(B55>=Eing_JahrBegWLief)*VLOOKUP(B55,E1_Projektdaten!$D$83:$I$87,6)/100","v":0},{"$f":"$F$23*(1+$G$23)^(B55-B$43)*(B55>=Eing_JahrBegWLief)*VLOOKUP(B55,E1_Projektdaten!$D$83:$I$87,6)/100","v":0},0,null,null,0,0,0,0,0,0,{"$f":"(E1_Projektdaten!$D$68*(1+Eing_allg_Teuerung/100)^(E1_Projektdaten!$I$68*ROUNDDOWN((AS55-1)/E1_Projektdaten!$I$68,0))/E1_Projektdaten!$I$68\n+E1_Projektdaten!$D$69*(1+Eing_allg_Teuerung/100)^(E1_Projektdaten!$I$69*ROUNDDOWN((AS55-1)/E1_Projektdaten!$I$69,0))/E1_Projektdaten!$I$69\n+E1_Projektdaten!$D$70*(1+Eing_allg_Teuerung/100)^(E1_Projektdaten!$I$70*ROUNDDOWN((AS55-1)/E1_Projektdaten!$I$69,0))/E1_Projektdaten!$I$70\n+E1_Projektdaten!$D$71*(1+Eing_allg_Teuerung/100)^(E1_Projektdaten!$I$71*ROUNDDOWN((AS55-1)/E1_Projektdaten!$I$69,0))/E1_Projektdaten!$I$71\n+E1_Projektdaten!$D$72*(1+Eing_allg_Teuerung/100)^(E1_Projektdaten!$I$72*ROUNDDOWN((AS55-1)/E1_Projektdaten!$I$69,0))/E1_Projektdaten!$I$72\n+E1_Projektdaten!$D$74*(1+Eing_allg_Teuerung/100)^(E1_Projektdaten!$I$74*ROUNDDOWN((AS55-1)/E1_Projektdaten!$I$69,0))/E1_Projektdaten!$I$74\n+E1_Projektdaten!$D$75*(1+Eing_allg_Teuerung/100)^(E1_Projektdaten!$I$75*ROUNDDOWN((AS55-1)/E1_Projektdaten!$I$75,0))/E1_Projektdaten!$I$75\n+E1_Projektdaten!$D$76*(1+Eing_allg_Teuerung/100)^(E1_Projektdaten!$I$76*ROUNDDOWN((AS55-1)/E1_Projektdaten!$I$76,0))/E1_Projektdaten!$I$76\n+E1_Projektdaten!$D$77*(1+Eing_allg_Teuerung/100)^(E1_Projektdaten!$I$77*ROUNDDOWN((AS55-1)/E1_Projektdaten!$I$77,0))/E1_Projektdaten!$I$77\n+E1_Projektdaten!$D$78*(1+Eing_allg_Teuerung/100)^(E1_Projektdaten!$I$78*ROUNDDOWN((AS55-1)/E1_Projektdaten!$I$78,0))/E1_Projektdaten!$I$78\n+E1_Projektdaten!$D$80*(1+Eing_allg_Teuerung/100)^(E1_Projektdaten!$I$80*ROUNDDOWN((AS55-1)/E1_Projektdaten!$I$69,0))/E1_Projektdaten!$I$80\n)*((AS55)>0)*VLOOKUP(B55,E1_Projektdaten!$D$83:$I$87,6\n)/100","v":0},0,0,0,{"$f":"IF(AS55-1<=0,0,\n(Eing_Kosten_Bau*(MOD((AS55-1),Eing_Nutzungsdauer_Bau)=0)\n+Eing_Invest_HolzAnlage*(MOD((AS55-1),Eing_Nutzungsdauer_Holz)=0)\n+Eing_Invest_WKKAnlage*(MOD((AS55-1),Eing_Nutzungsdauer_WKK)=0)\n+Eing_Invest_WPAnlage*(MOD((AS55-1),Eing_Nutzungsdauer_WP)=0)\n+Eing_Invest_SondenGrundwasser*(MOD((AS55-1),Eing_Nutzungsdauer_SondenGW)=0)\n+Eing_Invest_AWN*(MOD((AS55-1),Eing_Nutzungsdauer_AWN)=0)\n+Eing_Invest_Spitzenlast*(MOD((AS55-1),Eing_Nutzungsdauer_Spitzenlast)=0)\n+Eing_Invest_Installationen*(MOD((AS55-1),Eing_Nutzungsdauer_Installationen)=0)\n+Eing_Invest_Wärmenetz*(MOD((AS55-1),Eing_Nutzungsdauer_Netz)=0)\n+Eing_Invest_Messung*(MOD((AS55-1),Eing_Nutzungsdauer_Messung)=0))*(1+Eing_allg_Teuerung/100)^(AS55-1))\n+(Gesamtinvestition-SUM(E1_Projektdaten!$D$79:$D$80))*SUMPRODUCT((E1_Projektdaten!$D$83:$D$87=B55)*E1_Projektdaten!$F$83:$F$87)/100-AM55\n+AQ54","v":0},0,{"$f":"MAX(B1_Berechnungen!B55-E1_Projektdaten!$D$23,0)","v":12},{"$f":"AT54-B1_Berechnungen!I55","v":0},0,{"$f":"IF((SUM(H$43:H55)-SUM(I$43:I55))<=AU55,MAX((SUM(H$43:H55)-SUM(I$43:I55)),0),AU55)","v":0},0,0,0,{"$f":"IF((SUM(H$43:H55)-SUM(I$43:I55)-AV55)<=AY55,MAX((SUM(H$43:H55)-SUM(I$43:I55)-AV55),0),AY55)","v":0},0,0,0,0]
[null,13,{"$f":"(SUMPRODUCT((E3_Verbraucher!$D$21:$XFD$21<B1_Berechnungen!B56)*E3_Verbraucher!$D$18:$XFD$18)+SUMPRODUCT((E3_Verbraucher!$D$21:$XFD$21=B1_Berechnungen!B56)*E3_Verbraucher!$D$18:$XFD$18*E3_Verbraucher!$D$20:$XFD$20))/(100-Eing_Netzverluste)*100*(1-Eing_AbnW/100)^(B1_Berechnungen!B56-Eing_Beginnjahr)","v":0},{"v":0,"d":"0.00"},{"$f":"IF(AS56=0,0,\n(Eing_Kosten_Bau*(MOD((AS56),Eing_Nutzungsdauer_Bau)=0)\n+Eing_Invest_HolzAnlage*(MOD((AS56),Eing_Nutzungsdauer_Holz)=0)\n+Eing_Invest_WKKAnlage*(MOD((AS56),Eing_Nutzungsdauer_WKK)=0)\n+Eing_Invest_WPAnlage*(MOD((AS56),Eing_Nutzungsdauer_WP)=0)\n+Eing_Invest_SondenGrundwasser*(MOD((AS56),Eing_Nutzungsdauer_SondenGW)=0)\n+Eing_Invest_Zusatz*(MOD((AS56),Eing_Nutzungsdauer_Zusatz)=0)\n+Eing_Invest_AWN*(MOD((AS56),Eing_Nutzungsdauer_AWN)=0)\n+Eing_Invest_Spitzenlast*(MOD((AS56),Eing_Nutzungsdauer_Spitzenlast)=0)\n+Eing_Invest_Installationen*(MOD((AS56),Eing_Nutzungsdauer_Installationen)=0)\n+Eing_Invest_Wärmenetz*(MOD((AS56),Eing_Nutzungsdauer_Netz)=0)\n+Eing_Invest_Messung*(MOD((AS56),Eing_Nutzungsdauer_Messung)=0))*(1+Eing_allg_Teuerung/100)^(AS56))\n+Gesamtinvestition*SUMPRODUCT((E1_Projektdaten!$D$83:$D$87=B56)*E1_Projektdaten!$F$83:$F$87)/100","v":0},0,{"$f":"-SUMPRODUCT((E3_Verbraucher!$D$21:$XFD$21=B1_Berechnungen!B56)*E3_Verbraucher!$D$23:$XFD$23)","v":0},0,0,0,0,0,{"$f":"IF(ISNUMBER(IRR((BD$43:BD55,BC56))),IRR((BD$43:BD55,BC56)),\"-\")","v":"-"},{"$f":"SUM((SUMPRODUCT((E3_Verbraucher!$D$21:$XFD$21<B1_Berechnungen!B56)*E3_Verbraucher!$D$26:$XFD$26)+SUMPRODUCT((E3_Verbraucher!$D$21:$XFD$21=B1_Berechnungen!B56)*E3_Verbraucher!$D$26:$XFD$26*E3_Verbraucher!$D$20:$XFD$20))*(1+$G$29)^(B56-B$43),(SUMPRODUCT((E3_Verbraucher!$D$21:$XFD$21<B1_Berechnungen!B56)*E3_Verbraucher!$D$27:$XFD$27)+SUMPRODUCT((E3_Verbraucher!$D$21:$XFD$21=B1_Berechnungen!B56)*E3_Verbraucher!$D$27:$XFD$27*E3_Verbraucher!$D$20:$XFD$20))*((1+$G$29)*(1-E1_Projektdaten!$D$20/100))^(B56-B$43))","v":0},0,0,0,null,null,0,0,0,0,0,0,0,0,{"$f":"($F$21*(1+$G$21)^(B56-B$43)+$F$22*(1+$G$22)^(B56-B$43))*(B56>=Eing_JahrBegWLief)*VLOOKUP(B56,E1_Projektdaten!$D$83:$I$87,6)/100","v":0},{"$f":"$F$23*(1+$G$23)^(B56-B$43)*(B56>=Eing_JahrBegWLief)*VLOOKUP(B56,E1_Projektdaten!$D$83:$I$87,6)/100","v":0},0,null,null,0,0,0,0,0,0,{"$f":"(E1_Projektdaten!$D$68*(1+Eing_allg_Teuerung/100)^(E1_Projektdaten!$I$68*ROUNDDOWN((AS56-1)/E1_Projektdaten!$I$68,0))/E1_Projektdaten!$I$68\n+E1_Projektdaten!$D$69*(1+Eing_allg_Teuerung/100)^(E1_Projektdaten!$I$69*ROUNDDOWN((AS56-1)/E1_Projektdaten!$I$69,0))/E1_Projektdaten!$I$69\n+E1_Projektdaten!$D$70*(1+Eing_allg_Teuerung/100)^(E1_Projektdaten!$I$70*ROUNDDOWN((AS56-1)/E1_Projektdaten!$I$69,0))/E1_Projektdaten!$I$70\n+E1_Projektdaten!$D$71*(1+Eing_allg_Teuerung/100)^(E1_Projektdaten!$I$71*ROUNDDOWN((AS56-1)/E1_Projektdaten!$I$69,0))/E1_Projektdaten!$I$71\n+E1_Projektdaten!$D$72*(1+Eing_allg_Teuerung/100)^(E1_Projektdaten!$I$72*ROUNDDOWN((AS56-1)/E1_Projektdaten!$I$69,0))/E1_Projektdaten!$I$72\n+E1_Projektdaten!$D$74*(1+Eing_allg_Teuerung/100)^(E1_Projektdaten!$I$74*ROUNDDOWN((AS56-1)/E1_Projektdaten!$I$69,0))/E1_Projektdaten!$I$74\n+E1_Projektdaten!$D$75*(1+Eing_allg_Teuerung/100)^(E1_Projektdaten!$I$75*ROUNDDOWN((AS56-1)/E1_Projektdaten!$I$75,0))/E1_Projektdaten!$I$75\n+E1_Projektdaten!$D$76*(1+Eing_allg_Teuerung/100)^(E1_Projektdaten!$I$76*ROUNDDOWN((AS56-1)/E1_Projektdaten!$I$76,0))/E1_Projektdaten!$I$76\n+E1_Projektdaten!$D$77*(1+Eing_allg_Teuerung/100)^(E1_Projektdaten!$I$77*ROUNDDOWN((AS56-1)/E1_Projektdaten!$I$77,0))/E1_Projektdaten!$I$77\n+E1_Projektdaten!$D$78*(1+Eing_allg_Teuerung/100)^(E1_Projektdaten!$I$78*ROUNDDOWN((AS56-1)/E1_Projektdaten!$I$78,0))/E1_Projektdaten!$I$78\n+E1_Projektdaten!$D$80*(1+Eing_allg_Teuerung/100)^(E1_Projektdaten!$I$80*ROUNDDOWN((AS56-1)/E1_Projektdaten!$I$69,0))/E1_Projektdaten!$I$80\n)*((AS56)>0)*VLOOKUP(B56,E1_Projektdaten!$D$83:$I$87,6\n)/100","v":0},0,0,0,{"$f":"IF(AS56-1<=0,0,\n(Eing_Kosten_Bau*(MOD((AS56-1),Eing_Nutzungsdauer_Bau)=0)\n+Eing_Invest_HolzAnlage*(MOD((AS56-1),Eing_Nutzungsdauer_Holz)=0)\n+Eing_Invest_WKKAnlage*(MOD((AS56-1),Eing_Nutzungsdauer_WKK)=0)\n+Eing_Invest_WPAnlage*(MOD((AS56-1),Eing_Nutzungsdauer_WP)=0)\n+Eing_Invest_SondenGrundwasser*(MOD((AS56-1),Eing_Nutzungsdauer_SondenGW)=0)\n+Eing_Invest_AWN*(MOD((AS56-1),Eing_Nutzungsdauer_AWN)=0)\n+Eing_Invest_Spitzenlast*(MOD((AS56-1),Eing_Nutzungsdauer_Spitzenlast)=0)\n+Eing_Invest_Installationen*(MOD((AS56-1),Eing_Nutzungsdauer_Installationen)=0)\n+Eing_Invest_Wärmenetz*(MOD((AS56-1),Eing_Nutzungsdauer_Netz)=0)\n+Eing_Invest_Messung*(MOD((AS56-1),Eing_Nutzungsdauer_Messung)=0))*(1+Eing_allg_Teuerung/100)^(AS56-1))\n+(Gesamtinvestition-SUM(E1_Projektdaten!$D$79:$D$80))*SUMPRODUCT((E1_Projektdaten!$D$83:$D$87=B56)*E1_Projektdaten!$F$83:$F$87)/100-AM56\n+AQ55","v":0},0,{"$f":"MAX(B1_Berechnungen!B56-E1_Projektdaten!$D$23,0)","v":13},{"$f":"AT55-B1_Berechnungen!I56","v":0},0,{"$f":"IF((SUM(H$43:H56)-SUM(I$43:I56))<=AU56,MAX((SUM(H$43:H56)-SUM(I$43:I56)),0),AU56)","v":0},0,0,0,{"$f":"IF((SUM(H$43:H56)-SUM(I$43:I56)-AV56)<=AY56,MAX((SUM(H$43:H56)-SUM(I$43:I56)-AV56),0),AY56)","v":0},0,0,0,0]
[null,14,{"$f":"(SUMPRODUCT((E3_Verbraucher!$D$21:$XFD$21<B1_Berechnungen!B57)*E3_Verbraucher!$D$18:$XFD$18)+SUMPRODUCT((E3_Verbraucher!$D$21:$XFD$21=B1_Berechnungen!B57)*E3_Verbraucher!$D$18:$XFD$18*E3_Verbraucher!$D$20:$XFD$20))/(100-Eing_Netzverluste)*100*(1-Eing_AbnW/100)^(B1_Berechnungen!B57-Eing_Beginnjahr)","v":0},{"v":0,"d":"0.00"},{"$f":"IF(AS57=0,0,\n(Eing_Kosten_Bau*(MOD((AS57),Eing_Nutzungsdauer_Bau)=0)\n+Eing_Invest_HolzAnlage*(MOD((AS57),Eing_Nutzungsdauer_Holz)=0)\n+Eing_Invest_WKKAnlage*(MOD((AS57),Eing_Nutzungsdauer_WKK)=0)\n+Eing_Invest_WPAnlage*(MOD((AS57),Eing_Nutzungsdauer_WP)=0)\n+Eing_Invest_SondenGrundwasser*(MOD((AS57),Eing_Nutzungsdauer_SondenGW)=0)\n+Eing_Invest_Zusatz*(MOD((AS57),Eing_Nutzungsdauer_Zusatz)=0)\n+Eing_Invest_AWN*(MOD((AS57),Eing_Nutzungsdauer_AWN)=0)\n+Eing_Invest_Spitzenlast*(MOD((AS57),Eing_Nutzungsdauer_Spitzenlast)=0)\n+Eing_Invest_Installationen*(MOD((AS57),Eing_Nutzungsdauer_Installationen)=0)\n+Eing_Invest_Wärmenetz*(MOD((AS57),Eing_Nutzungsdauer_Netz)=0)\n+Eing_Invest_Messung*(MOD((AS57),Eing_Nutzungsdauer_Messung)=0))*(1+Eing_allg_Teuerung/100)^(AS57))\n+Gesamtinvestition*SUMPRODUCT((E1_Projektdaten!$D$83:$D$87=B57)*E1_Projektdaten!$F$83:$F$87)/100","v":0},0,{"$f":"-SUMPRODUCT((E3_Verbraucher!$D$21:$XFD$21=B1_Berechnungen!B57)*E3_Verbraucher!$D$23:$XFD$23)","v":0},0,0,0,0,0,{"$f":"IF(ISNUMBER(IRR((BD$43:BD56,BC57))),IRR((BD$43:BD56,BC57)),\"-\")","v":"-"},{"$f":"SUM((SUMPRODUCT((E3_Verbraucher!$D$21:$XFD$21<B1_Berechnungen!B57)*E3_Verbraucher!$D$26:$XFD$26)+SUMPRODUCT((E3_Verbraucher!$D$21:$XFD$21=B1_Berechnungen!B57)*E3_Verbraucher!$D$26:$XFD$26*E3_Verbraucher!$D$20:$XFD$20))*(1+$G$29)^(B57-B$43),(SUMPRODUCT((E3_Verbraucher!$D$21:$XFD$21<B1_Berechnungen!B57)*E3_Verbraucher!$D$27:$XFD$27)+SUMPRODUCT((E3_Verbraucher!$D$21:$XFD$21=B1_Berechnungen!B57)*E3_Verbraucher!$D$27:$XFD$27*E3_Verbraucher!$D$20:$XFD$20))*((1+$G$29)*(1-E1_Projektdaten!$D$20/100))^(B57-B$43))","v":0},0,0,0,null,null,0,0,0,0,0,0,0,0,{"$f":"($F$21*(1+$G$21)^(B57-B$43)+$F$22*(1+$G$22)^(B57-B$43))*(B57>=Eing_JahrBegWLief)*VLOOKUP(B57,E1_Projektdaten!$D$83:$I$87,6)/100","v":0},{"$f":"$F$23*(1+$G$23)^(B57-B$43)*(B57>=Eing_JahrBegWLief)*VLOOKUP(B57,E1_Projektdaten!$D$83:$I$87,6)/100","v":0},0,null,null,0,0,0,0,0,0,{"$f":"(E1_Projektdaten!$D$68*(1+Eing_allg_Teuerung/100)^(E1_Projektdaten!$I$68*ROUNDDOWN((AS57-1)/E1_Projektdaten!$I$68,0))/E1_Projektdaten!$I$68\n+E1_Projektdaten!$D$69*(1+Eing_allg_Teuerung/100)^(E1_Projektdaten!$I$69*ROUNDDOWN((AS57-1)/E1_Projektdaten!$I$69,0))/E1_Projektdaten!$I$69\n+E1_Projektdaten!$D$70*(1+Eing_allg_Teuerung/100)^(E1_Projektdaten!$I$70*ROUNDDOWN((AS57-1)/E1_Projektdaten!$I$69,0))/E1_Projektdaten!$I$70\n+E1_Projektdaten!$D$71*(1+Eing_allg_Teuerung/100)^(E1_Projektdaten!$I$71*ROUNDDOWN((AS57-1)/E1_Projektdaten!$I$69,0))/E1_Projektdaten!$I$71\n+E1_Projektdaten!$D$72*(1+Eing_allg_Teuerung/100)^(E1_Projektdaten!$I$72*ROUNDDOWN((AS57-1)/E1_Projektdaten!$I$69,0))/E1_Projektdaten!$I$72\n+E1_Projektdaten!$D$74*(1+Eing_allg_Teuerung/100)^(E1_Projektdaten!$I$74*ROUNDDOWN((AS57-1)/E1_Projektdaten!$I$69,0))/E1_Projektdaten!$I$74\n+E1_Projektdaten!$D$75*(1+Eing_allg_Teuerung/100)^(E1_Projektdaten!$I$75*ROUNDDOWN((AS57-1)/E1_Projektdaten!$I$75,0))/E1_Projektdaten!$I$75\n+E1_Projektdaten!$D$76*(1+Eing_allg_Teuerung/100)^(E1_Projektdaten!$I$76*ROUNDDOWN((AS57-1)/E1_Projektdaten!$I$76,0))/E1_Projektdaten!$I$76\n+E1_Projektdaten!$D$77*(1+Eing_allg_Teuerung/100)^(E1_Projektdaten!$I$77*ROUNDDOWN((AS57-1)/E1_Projektdaten!$I$77,0))/E1_Projektdaten!$I$77\n+E1_Projektdaten!$D$78*(1+Eing_allg_Teuerung/100)^(E1_Projektdaten!$I$78*ROUNDDOWN((AS57-1)/E1_Projektdaten!$I$78,0))/E1_Projektdaten!$I$78\n+E1_Projektdaten!$D$80*(1+Eing_allg_Teuerung/100)^(E1_Projektdaten!$I$80*ROUNDDOWN((AS57-1)/E1_Projektdaten!$I$69,0))/E1_Projektdaten!$I$80\n)*((AS57)>0)*VLOOKUP(B57,E1_Projektdaten!$D$83:$I$87,6\n)/100","v":0},0,0,0,{"$f":"IF(AS57-1<=0,0,\n(Eing_Kosten_Bau*(MOD((AS57-1),Eing_Nutzungsdauer_Bau)=0)\n+Eing_Invest_HolzAnlage*(MOD((AS57-1),Eing_Nutzungsdauer_Holz)=0)\n+Eing_Invest_WKKAnlage*(MOD((AS57-1),Eing_Nutzungsdauer_WKK)=0)\n+Eing_Invest_WPAnlage*(MOD((AS57-1),Eing_Nutzungsdauer_WP)=0)\n+Eing_Invest_SondenGrundwasser*(MOD((AS57-1),Eing_Nutzungsdauer_SondenGW)=0)\n+Eing_Invest_AWN*(MOD((AS57-1),Eing_Nutzungsdauer_AWN)=0)\n+Eing_Invest_Spitzenlast*(MOD((AS57-1),Eing_Nutzungsdauer_Spitzenlast)=0)\n+Eing_Invest_Installationen*(MOD((AS57-1),Eing_Nutzungsdauer_Installationen)=0)\n+Eing_Invest_Wärmenetz*(MOD((AS57-1),Eing_Nutzungsdauer_Netz)=0)\n+Eing_Invest_Messung*(MOD((AS57-1),Eing_Nutzungsdauer_Messung)=0))*(1+Eing_allg_Teuerung/100)^(AS57-1))\n+(Gesamtinvestition-SUM(E1_Projektdaten!$D$79:$D$80))*SUMPRODUCT((E1_Projektdaten!$D$83:$D$87=B57)*E1_Projektdaten!$F$83:$F$87)/100-AM57\n+AQ56","v":0},0,{"$f":"MAX(B1_Berechnungen!B57-E1_Projektdaten!$D$23,0)","v":14},{"$f":"AT56-B1_Berechnungen!I57","v":0},0,{"$f":"IF((SUM(H$43:H57)-SUM(I$43:I57))<=AU57,MAX((SUM(H$43:H57)-SUM(I$43:I57)),0),AU57)","v":0},0,0,0,{"$f":"IF((SUM(H$43:H57)-SUM(I$43:I57)-AV57)<=AY57,MAX((SUM(H$43:H57)-SUM(I$43:I57)-AV57),0),AY57)","v":0},0,0,0,0]
[null,15,{"$f":"(SUMPRODUCT((E3_Verbraucher!$D$21:$XFD$21<B1_Berechnungen!B58)*E3_Verbraucher!$D$18:$XFD$18)+SUMPRODUCT((E3_Verbraucher!$D$21:$XFD$21=B1_Berechnungen!B58)*E3_Verbraucher!$D$18:$XFD$18*E3_Verbraucher!$D$20:$XFD$20))/(100-Eing_Netzverluste)*100*(1-Eing_AbnW/100)^(B1_Berechnungen!B58-Eing_Beginnjahr)","v":0},{"v":0,"d":"0.00"},{"$f":"IF(AS58=0,0,\n(Eing_Kosten_Bau*(MOD((AS58),Eing_Nutzungsdauer_Bau)=0)\n+Eing_Invest_HolzAnlage*(MOD((AS58),Eing_Nutzungsdauer_Holz)=0)\n+Eing_Invest_WKKAnlage*(MOD((AS58),Eing_Nutzungsdauer_WKK)=0)\n+Eing_Invest_WPAnlage*(MOD((AS58),Eing_Nutzungsdauer_WP)=0)\n+Eing_Invest_SondenGrundwasser*(MOD((AS58),Eing_Nutzungsdauer_SondenGW)=0)\n+Eing_Invest_Zusatz*(MOD((AS58),Eing_Nutzungsdauer_Zusatz)=0)\n+Eing_Invest_AWN*(MOD((AS58),Eing_Nutzungsdauer_AWN)=0)\n+Eing_Invest_Spitzenlast*(MOD((AS58),Eing_Nutzungsdauer_Spitzenlast)=0)\n+Eing_Invest_Installationen*(MOD((AS58),Eing_Nutzungsdauer_Installationen)=0)\n+Eing_Invest_Wärmenetz*(MOD((AS58),Eing_Nutzungsdauer_Netz)=0)\n+Eing_Invest_Messung*(MOD((AS58),Eing_Nutzungsdauer_Messung)=0))*(1+Eing_allg_Teuerung/100)^(AS58))\n+Gesamtinvestition*SUMPRODUCT((E1_Projektdaten!$D$83:$D$87=B58)*E1_Projektdaten!$F$83:$F$87)/100","v":0},0,{"$f":"-SUMPRODUCT((E3_Verbraucher!$D$21:$XFD$21=B1_Berechnungen!B58)*E3_Verbraucher!$D$23:$XFD$23)","v":0},0,0,0,0,0,{"$f":"IF(ISNUMBER(IRR((BD$43:BD57,BC58))),IRR((BD$43:BD57,BC58)),\"-\")","v":"-"},{"$f":"SUM((SUMPRODUCT((E3_Verbraucher!$D$21:$XFD$21<B1_Berechnungen!B58)*E3_Verbraucher!$D$26:$XFD$26)+SUMPRODUCT((E3_Verbraucher!$D$21:$XFD$21=B1_Berechnungen!B58)*E3_Verbraucher!$D$26:$XFD$26*E3_Verbraucher!$D$20:$XFD$20))*(1+$G$29)^(B58-B$43),(SUMPRODUCT((E3_Verbraucher!$D$21:$XFD$21<B1_Berechnungen!B58)*E3_Verbraucher!$D$27:$XFD$27)+SUMPRODUCT((E3_Verbraucher!$D$21:$XFD$21=B1_Berechnungen!B58)*E3_Verbraucher!$D$27:$XFD$27*E3_Verbraucher!$D$20:$XFD$20))*((1+$G$29)*(1-E1_Projektdaten!$D$20/100))^(B58-B$43))","v":0},0,0,0,null,null,0,0,0,0,0,0,0,0,{"$f":"($F$21*(1+$G$21)^(B58-B$43)+$F$22*(1+$G$22)^(B58-B$43))*(B58>=Eing_JahrBegWLief)*VLOOKUP(B58,E1_Projektdaten!$D$83:$I$87,6)/100","v":0},{"$f":"$F$23*(1+$G$23)^(B58-B$43)*(B58>=Eing_JahrBegWLief)*VLOOKUP(B58,E1_Projektdaten!$D$83:$I$87,6)/100","v":0},0,null,null,0,0,0,0,0,0,{"$f":"(E1_Projektdaten!$D$68*(1+Eing_allg_Teuerung/100)^(E1_Projektdaten!$I$68*ROUNDDOWN((AS58-1)/E1_Projektdaten!$I$68,0))/E1_Projektdaten!$I$68\n+E1_Projektdaten!$D$69*(1+Eing_allg_Teuerung/100)^(E1_Projektdaten!$I$69*ROUNDDOWN((AS58-1)/E1_Projektdaten!$I$69,0))/E1_Projektdaten!$I$69\n+E1_Projektdaten!$D$70*(1+Eing_allg_Teuerung/100)^(E1_Projektdaten!$I$70*ROUNDDOWN((AS58-1)/E1_Projektdaten!$I$69,0))/E1_Projektdaten!$I$70\n+E1_Projektdaten!$D$71*(1+Eing_allg_Teuerung/100)^(E1_Projektdaten!$I$71*ROUNDDOWN((AS58-1)/E1_Projektdaten!$I$69,0))/E1_Projektdaten!$I$71\n+E1_Projektdaten!$D$72*(1+Eing_allg_Teuerung/100)^(E1_Projektdaten!$I$72*ROUNDDOWN((AS58-1)/E1_Projektdaten!$I$69,0))/E1_Projektdaten!$I$72\n+E1_Projektdaten!$D$74*(1+Eing_allg_Teuerung/100)^(E1_Projektdaten!$I$74*ROUNDDOWN((AS58-1)/E1_Projektdaten!$I$69,0))/E1_Projektdaten!$I$74\n+E1_Projektdaten!$D$75*(1+Eing_allg_Teuerung/100)^(E1_Projektdaten!$I$75*ROUNDDOWN((AS58-1)/E1_Projektdaten!$I$75,0))/E1_Projektdaten!$I$75\n+E1_Projektdaten!$D$76*(1+Eing_allg_Teuerung/100)^(E1_Projektdaten!$I$76*ROUNDDOWN((AS58-1)/E1_Projektdaten!$I$76,0))/E1_Projektdaten!$I$76\n+E1_Projektdaten!$D$77*(1+Eing_allg_Teuerung/100)^(E1_Projektdaten!$I$77*ROUNDDOWN((AS58-1)/E1_Projektdaten!$I$77,0))/E1_Projektdaten!$I$77\n+E1_Projektdaten!$D$78*(1+Eing_allg_Teuerung/100)^(E1_Projektdaten!$I$78*ROUNDDOWN((AS58-1)/E1_Projektdaten!$I$78,0))/E1_Projektdaten!$I$78\n+E1_Projektdaten!$D$80*(1+Eing_allg_Teuerung/100)^(E1_Projektdaten!$I$80*ROUNDDOWN((AS58-1)/E1_Projektdaten!$I$69,0))/E1_Projektdaten!$I$80\n)*((AS58)>0)*VLOOKUP(B58,E1_Projektdaten!$D$83:$I$87,6\n)/100","v":0},0,0,0,{"$f":"IF(AS58-1<=0,0,\n(Eing_Kosten_Bau*(MOD((AS58-1),Eing_Nutzungsdauer_Bau)=0)\n+Eing_Invest_HolzAnlage*(MOD((AS58-1),Eing_Nutzungsdauer_Holz)=0)\n+Eing_Invest_WKKAnlage*(MOD((AS58-1),Eing_Nutzungsdauer_WKK)=0)\n+Eing_Invest_WPAnlage*(MOD((AS58-1),Eing_Nutzungsdauer_WP)=0)\n+Eing_Invest_SondenGrundwasser*(MOD((AS58-1),Eing_Nutzungsdauer_SondenGW)=0)\n+Eing_Invest_AWN*(MOD((AS58-1),Eing_Nutzungsdauer_AWN)=0)\n+Eing_Invest_Spitzenlast*(MOD((AS58-1),Eing_Nutzungsdauer_Spitzenlast)=0)\n+Eing_Invest_Installationen*(MOD((AS58-1),Eing_Nutzungsdauer_Installationen)=0)\n+Eing_Invest_Wärmenetz*(MOD((AS58-1),Eing_Nutzungsdauer_Netz)=0)\n+Eing_Invest_Messung*(MOD((AS58-1),Eing_Nutzungsdauer_Messung)=0))*(1+Eing_allg_Teuerung/100)^(AS58-1))\n+(Gesamtinvestition-SUM(E1_Projektdaten!$D$79:$D$80))*SUMPRODUCT((E1_Projektdaten!$D$83:$D$87=B58)*E1_Projektdaten!$F$83:$F$87)/100-AM58\n+AQ57","v":0},0,{"$f":"MAX(B1_Berechnungen!B58-E1_Projektdaten!$D$23,0)","v":15},{"$f":"AT57-B1_Berechnungen!I58","v":0},0,{"$f":"IF((SUM(H$43:H58)-SUM(I$43:I58))<=AU58,MAX((SUM(H$43:H58)-SUM(I$43:I58)),0),AU58)","v":0},0,0,0,{"$f":"IF((SUM(H$43:H58)-SUM(I$43:I58)-AV58)<=AY58,MAX((SUM(H$43:H58)-SUM(I$43:I58)-AV58),0),AY58)","v":0},0,0,0,0]
[null,16,{"$f":"(SUMPRODUCT((E3_Verbraucher!$D$21:$XFD$21<B1_Berechnungen!B59)*E3_Verbraucher!$D$18:$XFD$18)+SUMPRODUCT((E3_Verbraucher!$D$21:$XFD$21=B1_Berechnungen!B59)*E3_Verbraucher!$D$18:$XFD$18*E3_Verbraucher!$D$20:$XFD$20))/(100-Eing_Netzverluste)*100*(1-Eing_AbnW/100)^(B1_Berechnungen!B59-Eing_Beginnjahr)","v":0},{"v":0,"d":"0.00"},{"$f":"IF(AS59=0,0,\n(Eing_Kosten_Bau*(MOD((AS59),Eing_Nutzungsdauer_Bau)=0)\n+Eing_Invest_HolzAnlage*(MOD((AS59),Eing_Nutzungsdauer_Holz)=0)\n+Eing_Invest_WKKAnlage*(MOD((AS59),Eing_Nutzungsdauer_WKK)=0)\n+Eing_Invest_WPAnlage*(MOD((AS59),Eing_Nutzungsdauer_WP)=0)\n+Eing_Invest_SondenGrundwasser*(MOD((AS59),Eing_Nutzungsdauer_SondenGW)=0)\n+Eing_Invest_Zusatz*(MOD((AS59),Eing_Nutzungsdauer_Zusatz)=0)\n+Eing_Invest_AWN*(MOD((AS59),Eing_Nutzungsdauer_AWN)=0)\n+Eing_Invest_Spitzenlast*(MOD((AS59),Eing_Nutzungsdauer_Spitzenlast)=0)\n+Eing_Invest_Installationen*(MOD((AS59),Eing_Nutzungsdauer_Installationen)=0)\n+Eing_Invest_Wärmenetz*(MOD((AS59),Eing_Nutzungsdauer_Netz)=0)\n+Eing_Invest_Messung*(MOD((AS59),Eing_Nutzungsdauer_Messung)=0))*(1+Eing_allg_Teuerung/100)^(AS59))\n+Gesamtinvestition*SUMPRODUCT((E1_Projektdaten!$D$83:$D$87=B59)*E1_Projektdaten!$F$83:$F$87)/100","v":0},0,{"$f":"-SUMPRODUCT((E3_Verbraucher!$D$21:$XFD$21=B1_Berechnungen!B59)*E3_Verbraucher!$D$23:$XFD$23)","v":0},0,0,0,0,0,{"$f":"IF(ISNUMBER(IRR((BD$43:BD58,BC59))),IRR((BD$43:BD58,BC59)),\"-\")","v":"-"},{"$f":"SUM((SUMPRODUCT((E3_Verbraucher!$D$21:$XFD$21<B1_Berechnungen!B59)*E3_Verbraucher!$D$26:$XFD$26)+SUMPRODUCT((E3_Verbraucher!$D$21:$XFD$21=B1_Berechnungen!B59)*E3_Verbraucher!$D$26:$XFD$26*E3_Verbraucher!$D$20:$XFD$20))*(1+$G$29)^(B59-B$43),(SUMPRODUCT((E3_Verbraucher!$D$21:$XFD$21<B1_Berechnungen!B59)*E3_Verbraucher!$D$27:$XFD$27)+SUMPRODUCT((E3_Verbraucher!$D$21:$XFD$21=B1_Berechnungen!B59)*E3_Verbraucher!$D$27:$XFD$27*E3_Verbraucher!$D$20:$XFD$20))*((1+$G$29)*(1-E1_Projektdaten!$D$20/100))^(B59-B$43))","v":0},0,0,0,null,null,0,0,0,0,0,0,0,0,{"$f":"($F$21*(1+$G$21)^(B59-B$43)+$F$22*(1+$G$22)^(B59-B$43))*(B59>=Eing_JahrBegWLief)*VLOOKUP(B59,E1_Projektdaten!$D$83:$I$87,6)/100","v":0},{"$f":"$F$23*(1+$G$23)^(B59-B$43)*(B59>=Eing_JahrBegWLief)*VLOOKUP(B59,E1_Projektdaten!$D$83:$I$87,6)/100","v":0},0,null,null,0,0,0,0,0,0,{"$f":"(E1_Projektdaten!$D$68*(1+Eing_allg_Teuerung/100)^(E1_Projektdaten!$I$68*ROUNDDOWN((AS59-1)/E1_Projektdaten!$I$68,0))/E1_Projektdaten!$I$68\n+E1_Projektdaten!$D$69*(1+Eing_allg_Teuerung/100)^(E1_Projektdaten!$I$69*ROUNDDOWN((AS59-1)/E1_Projektdaten!$I$69,0))/E1_Projektdaten!$I$69\n+E1_Projektdaten!$D$70*(1+Eing_allg_Teuerung/100)^(E1_Projektdaten!$I$70*ROUNDDOWN((AS59-1)/E1_Projektdaten!$I$69,0))/E1_Projektdaten!$I$70\n+E1_Projektdaten!$D$71*(1+Eing_allg_Teuerung/100)^(E1_Projektdaten!$I$71*ROUNDDOWN((AS59-1)/E1_Projektdaten!$I$69,0))/E1_Projektdaten!$I$71\n+E1_Projektdaten!$D$72*(1+Eing_allg_Teuerung/100)^(E1_Projektdaten!$I$72*ROUNDDOWN((AS59-1)/E1_Projektdaten!$I$69,0))/E1_Projektdaten!$I$72\n+E1_Projektdaten!$D$74*(1+Eing_allg_Teuerung/100)^(E1_Projektdaten!$I$74*ROUNDDOWN((AS59-1)/E1_Projektdaten!$I$69,0))/E1_Projektdaten!$I$74\n+E1_Projektdaten!$D$75*(1+Eing_allg_Teuerung/100)^(E1_Projektdaten!$I$75*ROUNDDOWN((AS59-1)/E1_Projektdaten!$I$75,0))/E1_Projektdaten!$I$75\n+E1_Projektdaten!$D$76*(1+Eing_allg_Teuerung/100)^(E1_Projektdaten!$I$76*ROUNDDOWN((AS59-1)/E1_Projektdaten!$I$76,0))/E1_Projektdaten!$I$76\n+E1_Projektdaten!$D$77*(1+Eing_allg_Teuerung/100)^(E1_Projektdaten!$I$77*ROUNDDOWN((AS59-1)/E1_Projektdaten!$I$77,0))/E1_Projektdaten!$I$77\n+E1_Projektdaten!$D$78*(1+Eing_allg_Teuerung/100)^(E1_Projektdaten!$I$78*ROUNDDOWN((AS59-1)/E1_Projektdaten!$I$78,0))/E1_Projektdaten!$I$78\n+E1_Projektdaten!$D$80*(1+Eing_allg_Teuerung/100)^(E1_Projektdaten!$I$80*ROUNDDOWN((AS59-1)/E1_Projektdaten!$I$69,0))/E1_Projektdaten!$I$80\n)*((AS59)>0)*VLOOKUP(B59,E1_Projektdaten!$D$83:$I$87,6\n)/100","v":0},0,0,0,{"$f":"IF(AS59-1<=0,0,\n(Eing_Kosten_Bau*(MOD((AS59-1),Eing_Nutzungsdauer_Bau)=0)\n+Eing_Invest_HolzAnlage*(MOD((AS59-1),Eing_Nutzungsdauer_Holz)=0)\n+Eing_Invest_WKKAnlage*(MOD((AS59-1),Eing_Nutzungsdauer_WKK)=0)\n+Eing_Invest_WPAnlage*(MOD((AS59-1),Eing_Nutzungsdauer_WP)=0)\n+Eing_Invest_SondenGrundwasser*(MOD((AS59-1),Eing_Nutzungsdauer_SondenGW)=0)\n+Eing_Invest_AWN*(MOD((AS59-1),Eing_Nutzungsdauer_AWN)=0)\n+Eing_Invest_Spitzenlast*(MOD((AS59-1),Eing_Nutzungsdauer_Spitzenlast)=0)\n+Eing_Invest_Installationen*(MOD((AS59-1),Eing_Nutzungsdauer_Installationen)=0)\n+Eing_Invest_Wärmenetz*(MOD((AS59-1),Eing_Nutzungsdauer_Netz)=0)\n+Eing_Invest_Messung*(MOD((AS59-1),Eing_Nutzungsdauer_Messung)=0))*(1+Eing_allg_Teuerung/100)^(AS59-1))\n+(Gesamtinvestition-SUM(E1_Projektdaten!$D$79:$D$80))*SUMPRODUCT((E1_Projektdaten!$D$83:$D$87=B59)*E1_Projektdaten!$F$83:$F$87)/100-AM59\n+AQ58","v":0},0,{"$f":"MAX(B1_Berechnungen!B59-E1_Projektdaten!$D$23,0)","v":16},{"$f":"AT58-B1_Berechnungen!I59","v":0},0,{"$f":"IF((SUM(H$43:H59)-SUM(I$43:I59))<=AU59,MAX((SUM(H$43:H59)-SUM(I$43:I59)),0),AU59)","v":0},0,0,0,{"$f":"IF((SUM(H$43:H59)-SUM(I$43:I59)-AV59)<=AY59,MAX((SUM(H$43:H59)-SUM(I$43:I59)-AV59),0),AY59)","v":0},0,0,0,0]
[null,17,{"$f":"(SUMPRODUCT((E3_Verbraucher!$D$21:$XFD$21<B1_Berechnungen!B60)*E3_Verbraucher!$D$18:$XFD$18)+SUMPRODUCT((E3_Verbraucher!$D$21:$XFD$21=B1_Berechnungen!B60)*E3_Verbraucher!$D$18:$XFD$18*E3_Verbraucher!$D$20:$XFD$20))/(100-Eing_Netzverluste)*100*(1-Eing_AbnW/100)^(B1_Berechnungen!B60-Eing_Beginnjahr)","v":0},{"v":0,"d":"0.00"},{"$f":"IF(AS60=0,0,\n(Eing_Kosten_Bau*(MOD((AS60),Eing_Nutzungsdauer_Bau)=0)\n+Eing_Invest_HolzAnlage*(MOD((AS60),Eing_Nutzungsdauer_Holz)=0)\n+Eing_Invest_WKKAnlage*(MOD((AS60),Eing_Nutzungsdauer_WKK)=0)\n+Eing_Invest_WPAnlage*(MOD((AS60),Eing_Nutzungsdauer_WP)=0)\n+Eing_Invest_SondenGrundwasser*(MOD((AS60),Eing_Nutzungsdauer_SondenGW)=0)\n+Eing_Invest_Zusatz*(MOD((AS60),Eing_Nutzungsdauer_Zusatz)=0)\n+Eing_Invest_AWN*(MOD((AS60),Eing_Nutzungsdauer_AWN)=0)\n+Eing_Invest_Spitzenlast*(MOD((AS60),Eing_Nutzungsdauer_Spitzenlast)=0)\n+Eing_Invest_Installationen*(MOD((AS60),Eing_Nutzungsdauer_Installationen)=0)\n+Eing_Invest_Wärmenetz*(MOD((AS60),Eing_Nutzungsdauer_Netz)=0)\n+Eing_Invest_Messung*(MOD((AS60),Eing_Nutzungsdauer_Messung)=0))*(1+Eing_allg_Teuerung/100)^(AS60))\n+Gesamtinvestition*SUMPRODUCT((E1_Projektdaten!$D$83:$D$87=B60)*E1_Projektdaten!$F$83:$F$87)/100","v":0},0,{"$f":"-SUMPRODUCT((E3_Verbraucher!$D$21:$XFD$21=B1_Berechnungen!B60)*E3_Verbraucher!$D$23:$XFD$23)","v":0},0,0,0,0,0,{"$f":"IF(ISNUMBER(IRR((BD$43:BD59,BC60))),IRR((BD$43:BD59,BC60)),\"-\")","v":"-"},{"$f":"SUM((SUMPRODUCT((E3_Verbraucher!$D$21:$XFD$21<B1_Berechnungen!B60)*E3_Verbraucher!$D$26:$XFD$26)+SUMPRODUCT((E3_Verbraucher!$D$21:$XFD$21=B1_Berechnungen!B60)*E3_Verbraucher!$D$26:$XFD$26*E3_Verbraucher!$D$20:$XFD$20))*(1+$G$29)^(B60-B$43),(SUMPRODUCT((E3_Verbraucher!$D$21:$XFD$21<B1_Berechnungen!B60)*E3_Verbraucher!$D$27:$XFD$27)+SUMPRODUCT((E3_Verbraucher!$D$21:$XFD$21=B1_Berechnungen!B60)*E3_Verbraucher!$D$27:$XFD$27*E3_Verbraucher!$D$20:$XFD$20))*((1+$G$29)*(1-E1_Projektdaten!$D$20/100))^(B60-B$43))","v":0},0,0,0,null,null,0,0,0,0,0,0,0,0,{"$f":"($F$21*(1+$G$21)^(B60-B$43)+$F$22*(1+$G$22)^(B60-B$43))*(B60>=Eing_JahrBegWLief)*VLOOKUP(B60,E1_Projektdaten!$D$83:$I$87,6)/100","v":0},{"$f":"$F$23*(1+$G$23)^(B60-B$43)*(B60>=Eing_JahrBegWLief)*VLOOKUP(B60,E1_Projektdaten!$D$83:$I$87,6)/100","v":0},0,null,null,0,0,0,0,0,0,{"$f":"(E1_Projektdaten!$D$68*(1+Eing_allg_Teuerung/100)^(E1_Projektdaten!$I$68*ROUNDDOWN((AS60-1)/E1_Projektdaten!$I$68,0))/E1_Projektdaten!$I$68\n+E1_Projektdaten!$D$69*(1+Eing_allg_Teuerung/100)^(E1_Projektdaten!$I$69*ROUNDDOWN((AS60-1)/E1_Projektdaten!$I$69,0))/E1_Projektdaten!$I$69\n+E1_Projektdaten!$D$70*(1+Eing_allg_Teuerung/100)^(E1_Projektdaten!$I$70*ROUNDDOWN((AS60-1)/E1_Projektdaten!$I$69,0))/E1_Projektdaten!$I$70\n+E1_Projektdaten!$D$71*(1+Eing_allg_Teuerung/100)^(E1_Projektdaten!$I$71*ROUNDDOWN((AS60-1)/E1_Projektdaten!$I$69,0))/E1_Projektdaten!$I$71\n+E1_Projektdaten!$D$72*(1+Eing_allg_Teuerung/100)^(E1_Projektdaten!$I$72*ROUNDDOWN((AS60-1)/E1_Projektdaten!$I$69,0))/E1_Projektdaten!$I$72\n+E1_Projektdaten!$D$74*(1+Eing_allg_Teuerung/100)^(E1_Projektdaten!$I$74*ROUNDDOWN((AS60-1)/E1_Projektdaten!$I$69,0))/E1_Projektdaten!$I$74\n+E1_Projektdaten!$D$75*(1+Eing_allg_Teuerung/100)^(E1_Projektdaten!$I$75*ROUNDDOWN((AS60-1)/E1_Projektdaten!$I$75,0))/E1_Projektdaten!$I$75\n+E1_Projektdaten!$D$76*(1+Eing_allg_Teuerung/100)^(E1_Projektdaten!$I$76*ROUNDDOWN((AS60-1)/E1_Projektdaten!$I$76,0))/E1_Projektdaten!$I$76\n+E1_Projektdaten!$D$77*(1+Eing_allg_Teuerung/100)^(E1_Projektdaten!$I$77*ROUNDDOWN((AS60-1)/E1_Projektdaten!$I$77,0))/E1_Projektdaten!$I$77\n+E1_Projektdaten!$D$78*(1+Eing_allg_Teuerung/100)^(E1_Projektdaten!$I$78*ROUNDDOWN((AS60-1)/E1_Projektdaten!$I$78,0))/E1_Projektdaten!$I$78\n+E1_Projektdaten!$D$80*(1+Eing_allg_Teuerung/100)^(E1_Projektdaten!$I$80*ROUNDDOWN((AS60-1)/E1_Projektdaten!$I$69,0))/E1_Projektdaten!$I$80\n)*((AS60)>0)*VLOOKUP(B60,E1_Projektdaten!$D$83:$I$87,6\n)/100","v":0},0,0,0,{"$f":"IF(AS60-1<=0,0,\n(Eing_Kosten_Bau*(MOD((AS60-1),Eing_Nutzungsdauer_Bau)=0)\n+Eing_Invest_HolzAnlage*(MOD((AS60-1),Eing_Nutzungsdauer_Holz)=0)\n+Eing_Invest_WKKAnlage*(MOD((AS60-1),Eing_Nutzungsdauer_WKK)=0)\n+Eing_Invest_WPAnlage*(MOD((AS60-1),Eing_Nutzungsdauer_WP)=0)\n+Eing_Invest_SondenGrundwasser*(MOD((AS60-1),Eing_Nutzungsdauer_SondenGW)=0)\n+Eing_Invest_AWN*(MOD((AS60-1),Eing_Nutzungsdauer_AWN)=0)\n+Eing_Invest_Spitzenlast*(MOD((AS60-1),Eing_Nutzungsdauer_Spitzenlast)=0)\n+Eing_Invest_Installationen*(MOD((AS60-1),Eing_Nutzungsdauer_Installationen)=0)\n+Eing_Invest_Wärmenetz*(MOD((AS60-1),Eing_Nutzungsdauer_Netz)=0)\n+Eing_Invest_Messung*(MOD((AS60-1),Eing_Nutzungsdauer_Messung)=0))*(1+Eing_allg_Teuerung/100)^(AS60-1))\n+(Gesamtinvestition-SUM(E1_Projektdaten!$D$79:$D$80))*SUMPRODUCT((E1_Projektdaten!$D$83:$D$87=B60)*E1_Projektdaten!$F$83:$F$87)/100-AM60\n+AQ59","v":0},0,{"$f":"MAX(B1_Berechnungen!B60-E1_Projektdaten!$D$23,0)","v":17},{"$f":"AT59-B1_Berechnungen!I60","v":0},0,{"$f":"IF((SUM(H$43:H60)-SUM(I$43:I60))<=AU60,MAX((SUM(H$43:H60)-SUM(I$43:I60)),0),AU60)","v":0},0,0,0,{"$f":"IF((SUM(H$43:H60)-SUM(I$43:I60)-AV60)<=AY60,MAX((SUM(H$43:H60)-SUM(I$43:I60)-AV60),0),AY60)","v":0},0,0,0,0]
[null,18,{"$f":"(SUMPRODUCT((E3_Verbraucher!$D$21:$XFD$21<B1_Berechnungen!B61)*E3_Verbraucher!$D$18:$XFD$18)+SUMPRODUCT((E3_Verbraucher!$D$21:$XFD$21=B1_Berechnungen!B61)*E3_Verbraucher!$D$18:$XFD$18*E3_Verbraucher!$D$20:$XFD$20))/(100-Eing_Netzverluste)*100*(1-Eing_AbnW/100)^(B1_Berechnungen!B61-Eing_Beginnjahr)","v":0},{"v":0,"d":"0.00"},{"$f":"IF(AS61=0,0,\n(Eing_Kosten_Bau*(MOD((AS61),Eing_Nutzungsdauer_Bau)=0)\n+Eing_Invest_HolzAnlage*(MOD((AS61),Eing_Nutzungsdauer_Holz)=0)\n+Eing_Invest_WKKAnlage*(MOD((AS61),Eing_Nutzungsdauer_WKK)=0)\n+Eing_Invest_WPAnlage*(MOD((AS61),Eing_Nutzungsdauer_WP)=0)\n+Eing_Invest_SondenGrundwasser*(MOD((AS61),Eing_Nutzungsdauer_SondenGW)=0)\n+Eing_Invest_Zusatz*(MOD((AS61),Eing_Nutzungsdauer_Zusatz)=0)\n+Eing_Invest_AWN*(MOD((AS61),Eing_Nutzungsdauer_AWN)=0)\n+Eing_Invest_Spitzenlast*(MOD((AS61),Eing_Nutzungsdauer_Spitzenlast)=0)\n+Eing_Invest_Installationen*(MOD((AS61),Eing_Nutzungsdauer_Installationen)=0)\n+Eing_Invest_Wärmenetz*(MOD((AS61),Eing_Nutzungsdauer_Netz)=0)\n+Eing_Invest_Messung*(MOD((AS61),Eing_Nutzungsdauer_Messung)=0))*(1+Eing_allg_Teuerung/100)^(AS61))\n+Gesamtinvestition*SUMPRODUCT((E1_Projektdaten!$D$83:$D$87=B61)*E1_Projektdaten!$F$83:$F$87)/100","v":0},0,{"$f":"-SUMPRODUCT((E3_Verbraucher!$D$21:$XFD$21=B1_Berechnungen!B61)*E3_Verbraucher!$D$23:$XFD$23)","v":0},0,0,0,0,0,{"$f":"IF(ISNUMBER(IRR((BD$43:BD60,BC61))),IRR((BD$43:BD60,BC61)),\"-\")","v":"-"},{"$f":"SUM((SUMPRODUCT((E3_Verbraucher!$D$21:$XFD$21<B1_Berechnungen!B61)*E3_Verbraucher!$D$26:$XFD$26)+SUMPRODUCT((E3_Verbraucher!$D$21:$XFD$21=B1_Berechnungen!B61)*E3_Verbraucher!$D$26:$XFD$26*E3_Verbraucher!$D$20:$XFD$20))*(1+$G$29)^(B61-B$43),(SUMPRODUCT((E3_Verbraucher!$D$21:$XFD$21<B1_Berechnungen!B61)*E3_Verbraucher!$D$27:$XFD$27)+SUMPRODUCT((E3_Verbraucher!$D$21:$XFD$21=B1_Berechnungen!B61)*E3_Verbraucher!$D$27:$XFD$27*E3_Verbraucher!$D$20:$XFD$20))*((1+$G$29)*(1-E1_Projektdaten!$D$20/100))^(B61-B$43))","v":0},0,0,0,null,null,0,0,0,0,0,0,0,0,{"$f":"($F$21*(1+$G$21)^(B61-B$43)+$F$22*(1+$G$22)^(B61-B$43))*(B61>=Eing_JahrBegWLief)*VLOOKUP(B61,E1_Projektdaten!$D$83:$I$87,6)/100","v":0},{"$f":"$F$23*(1+$G$23)^(B61-B$43)*(B61>=Eing_JahrBegWLief)*VLOOKUP(B61,E1_Projektdaten!$D$83:$I$87,6)/100","v":0},0,null,null,0,0,0,0,0,0,{"$f":"(E1_Projektdaten!$D$68*(1+Eing_allg_Teuerung/100)^(E1_Projektdaten!$I$68*ROUNDDOWN((AS61-1)/E1_Projektdaten!$I$68,0))/E1_Projektdaten!$I$68\n+E1_Projektdaten!$D$69*(1+Eing_allg_Teuerung/100)^(E1_Projektdaten!$I$69*ROUNDDOWN((AS61-1)/E1_Projektdaten!$I$69,0))/E1_Projektdaten!$I$69\n+E1_Projektdaten!$D$70*(1+Eing_allg_Teuerung/100)^(E1_Projektdaten!$I$70*ROUNDDOWN((AS61-1)/E1_Projektdaten!$I$69,0))/E1_Projektdaten!$I$70\n+E1_Projektdaten!$D$71*(1+Eing_allg_Teuerung/100)^(E1_Projektdaten!$I$71*ROUNDDOWN((AS61-1)/E1_Projektdaten!$I$69,0))/E1_Projektdaten!$I$71\n+E1_Projektdaten!$D$72*(1+Eing_allg_Teuerung/100)^(E1_Projektdaten!$I$72*ROUNDDOWN((AS61-1)/E1_Projektdaten!$I$69,0))/E1_Projektdaten!$I$72\n+E1_Projektdaten!$D$74*(1+Eing_allg_Teuerung/100)^(E1_Projektdaten!$I$74*ROUNDDOWN((AS61-1)/E1_Projektdaten!$I$69,0))/E1_Projektdaten!$I$74\n+E1_Projektdaten!$D$75*(1+Eing_allg_Teuerung/100)^(E1_Projektdaten!$I$75*ROUNDDOWN((AS61-1)/E1_Projektdaten!$I$75,0))/E1_Projektdaten!$I$75\n+E1_Projektdaten!$D$76*(1+Eing_allg_Teuerung/100)^(E1_Projektdaten!$I$76*ROUNDDOWN((AS61-1)/E1_Projektdaten!$I$76,0))/E1_Projektdaten!$I$76\n+E1_Projektdaten!$D$77*(1+Eing_allg_Teuerung/100)^(E1_Projektdaten!$I$77*ROUNDDOWN((AS61-1)/E1_Projektdaten!$I$77,0))/E1_Projektdaten!$I$77\n+E1_Projektdaten!$D$78*(1+Eing_allg_Teuerung/100)^(E1_Projektdaten!$I$78*ROUNDDOWN((AS61-1)/E1_Projektdaten!$I$78,0))/E1_Projektdaten!$I$78\n+E1_Projektdaten!$D$80*(1+Eing_allg_Teuerung/100)^(E1_Projektdaten!$I$80*ROUNDDOWN((AS61-1)/E1_Projektdaten!$I$69,0))/E1_Projektdaten!$I$80\n)*((AS61)>0)*VLOOKUP(B61,E1_Projektdaten!$D$83:$I$87,6\n)/100","v":0},0,0,0,{"$f":"IF(AS61-1<=0,0,\n(Eing_Kosten_Bau*(MOD((AS61-1),Eing_Nutzungsdauer_Bau)=0)\n+Eing_Invest_HolzAnlage*(MOD((AS61-1),Eing_Nutzungsdauer_Holz)=0)\n+Eing_Invest_WKKAnlage*(MOD((AS61-1),Eing_Nutzungsdauer_WKK)=0)\n+Eing_Invest_WPAnlage*(MOD((AS61-1),Eing_Nutzungsdauer_WP)=0)\n+Eing_Invest_SondenGrundwasser*(MOD((AS61-1),Eing_Nutzungsdauer_SondenGW)=0)\n+Eing_Invest_AWN*(MOD((AS61-1),Eing_Nutzungsdauer_AWN)=0)\n+Eing_Invest_Spitzenlast*(MOD((AS61-1),Eing_Nutzungsdauer_Spitzenlast)=0)\n+Eing_Invest_Installationen*(MOD((AS61-1),Eing_Nutzungsdauer_Installationen)=0)\n+Eing_Invest_Wärmenetz*(MOD((AS61-1),Eing_Nutzungsdauer_Netz)=0)\n+Eing_Invest_Messung*(MOD((AS61-1),Eing_Nutzungsdauer_Messung)=0))*(1+Eing_allg_Teuerung/100)^(AS61-1))\n+(Gesamtinvestition-SUM(E1_Projektdaten!$D$79:$D$80))*SUMPRODUCT((E1_Projektdaten!$D$83:$D$87=B61)*E1_Projektdaten!$F$83:$F$87)/100-AM61\n+AQ60","v":0},0,{"$f":"MAX(B1_Berechnungen!B61-E1_Projektdaten!$D$23,0)","v":18},{"$f":"AT60-B1_Berechnungen!I61","v":0},0,{"$f":"IF((SUM(H$43:H61)-SUM(I$43:I61))<=AU61,MAX((SUM(H$43:H61)-SUM(I$43:I61)),0),AU61)","v":0},0,0,0,{"$f":"IF((SUM(H$43:H61)-SUM(I$43:I61)-AV61)<=AY61,MAX((SUM(H$43:H61)-SUM(I$43:I61)-AV61),0),AY61)","v":0},0,0,0,0]
[null,19,{"$f":"(SUMPRODUCT((E3_Verbraucher!$D$21:$XFD$21<B1_Berechnungen!B62)*E3_Verbraucher!$D$18:$XFD$18)+SUMPRODUCT((E3_Verbraucher!$D$21:$XFD$21=B1_Berechnungen!B62)*E3_Verbraucher!$D$18:$XFD$18*E3_Verbraucher!$D$20:$XFD$20))/(100-Eing_Netzverluste)*100*(1-Eing_AbnW/100)^(B1_Berechnungen!B62-Eing_Beginnjahr)","v":0},{"v":0,"d":"0.00"},{"$f":"IF(AS62=0,0,\n(Eing_Kosten_Bau*(MOD((AS62),Eing_Nutzungsdauer_Bau)=0)\n+Eing_Invest_HolzAnlage*(MOD((AS62),Eing_Nutzungsdauer_Holz)=0)\n+Eing_Invest_WKKAnlage*(MOD((AS62),Eing_Nutzungsdauer_WKK)=0)\n+Eing_Invest_WPAnlage*(MOD((AS62),Eing_Nutzungsdauer_WP)=0)\n+Eing_Invest_SondenGrundwasser*(MOD((AS62),Eing_Nutzungsdauer_SondenGW)=0)\n+Eing_Invest_Zusatz*(MOD((AS62),Eing_Nutzungsdauer_Zusatz)=0)\n+Eing_Invest_AWN*(MOD((AS62),Eing_Nutzungsdauer_AWN)=0)\n+Eing_Invest_Spitzenlast*(MOD((AS62),Eing_Nutzungsdauer_Spitzenlast)=0)\n+Eing_Invest_Installationen*(MOD((AS62),Eing_Nutzungsdauer_Installationen)=0)\n+Eing_Invest_Wärmenetz*(MOD((AS62),Eing_Nutzungsdauer_Netz)=0)\n+Eing_Invest_Messung*(MOD((AS62),Eing_Nutzungsdauer_Messung)=0))*(1+Eing_allg_Teuerung/100)^(AS62))\n+Gesamtinvestition*SUMPRODUCT((E1_Projektdaten!$D$83:$D$87=B62)*E1_Projektdaten!$F$83:$F$87)/100","v":0},0,{"$f":"-SUMPRODUCT((E3_Verbraucher!$D$21:$XFD$21=B1_Berechnungen!B62)*E3_Verbraucher!$D$23:$XFD$23)","v":0},0,0,0,0,0,{"$f":"IF(ISNUMBER(IRR((BD$43:BD61,BC62))),IRR((BD$43:BD61,BC62)),\"-\")","v":"-"},{"$f":"SUM((SUMPRODUCT((E3_Verbraucher!$D$21:$XFD$21<B1_Berechnungen!B62)*E3_Verbraucher!$D$26:$XFD$26)+SUMPRODUCT((E3_Verbraucher!$D$21:$XFD$21=B1_Berechnungen!B62)*E3_Verbraucher!$D$26:$XFD$26*E3_Verbraucher!$D$20:$XFD$20))*(1+$G$29)^(B62-B$43),(SUMPRODUCT((E3_Verbraucher!$D$21:$XFD$21<B1_Berechnungen!B62)*E3_Verbraucher!$D$27:$XFD$27)+SUMPRODUCT((E3_Verbraucher!$D$21:$XFD$21=B1_Berechnungen!B62)*E3_Verbraucher!$D$27:$XFD$27*E3_Verbraucher!$D$20:$XFD$20))*((1+$G$29)*(1-E1_Projektdaten!$D$20/100))^(B62-B$43))","v":0},0,0,0,null,null,0,0,0,0,0,0,0,0,{"$f":"($F$21*(1+$G$21)^(B62-B$43)+$F$22*(1+$G$22)^(B62-B$43))*(B62>=Eing_JahrBegWLief)*VLOOKUP(B62,E1_Projektdaten!$D$83:$I$87,6)/100","v":0},{"$f":"$F$23*(1+$G$23)^(B62-B$43)*(B62>=Eing_JahrBegWLief)*VLOOKUP(B62,E1_Projektdaten!$D$83:$I$87,6)/100","v":0},0,null,null,0,0,0,0,0,0,{"$f":"(E1_Projektdaten!$D$68*(1+Eing_allg_Teuerung/100)^(E1_Projektdaten!$I$68*ROUNDDOWN((AS62-1)/E1_Projektdaten!$I$68,0))/E1_Projektdaten!$I$68\n+E1_Projektdaten!$D$69*(1+Eing_allg_Teuerung/100)^(E1_Projektdaten!$I$69*ROUNDDOWN((AS62-1)/E1_Projektdaten!$I$69,0))/E1_Projektdaten!$I$69\n+E1_Projektdaten!$D$70*(1+Eing_allg_Teuerung/100)^(E1_Projektdaten!$I$70*ROUNDDOWN((AS62-1)/E1_Projektdaten!$I$69,0))/E1_Projektdaten!$I$70\n+E1_Projektdaten!$D$71*(1+Eing_allg_Teuerung/100)^(E1_Projektdaten!$I$71*ROUNDDOWN((AS62-1)/E1_Projektdaten!$I$69,0))/E1_Projektdaten!$I$71\n+E1_Projektdaten!$D$72*(1+Eing_allg_Teuerung/100)^(E1_Projektdaten!$I$72*ROUNDDOWN((AS62-1)/E1_Projektdaten!$I$69,0))/E1_Projektdaten!$I$72\n+E1_Projektdaten!$D$74*(1+Eing_allg_Teuerung/100)^(E1_Projektdaten!$I$74*ROUNDDOWN((AS62-1)/E1_Projektdaten!$I$69,0))/E1_Projektdaten!$I$74\n+E1_Projektdaten!$D$75*(1+Eing_allg_Teuerung/100)^(E1_Projektdaten!$I$75*ROUNDDOWN((AS62-1)/E1_Projektdaten!$I$75,0))/E1_Projektdaten!$I$75\n+E1_Projektdaten!$D$76*(1+Eing_allg_Teuerung/100)^(E1_Projektdaten!$I$76*ROUNDDOWN((AS62-1)/E1_Projektdaten!$I$76,0))/E1_Projektdaten!$I$76\n+E1_Projektdaten!$D$77*(1+Eing_allg_Teuerung/100)^(E1_Projektdaten!$I$77*ROUNDDOWN((AS62-1)/E1_Projektdaten!$I$77,0))/E1_Projektdaten!$I$77\n+E1_Projektdaten!$D$78*(1+Eing_allg_Teuerung/100)^(E1_Projektdaten!$I$78*ROUNDDOWN((AS62-1)/E1_Projektdaten!$I$78,0))/E1_Projektdaten!$I$78\n+E1_Projektdaten!$D$80*(1+Eing_allg_Teuerung/100)^(E1_Projektdaten!$I$80*ROUNDDOWN((AS62-1)/E1_Projektdaten!$I$69,0))/E1_Projektdaten!$I$80\n)*((AS62)>0)*VLOOKUP(B62,E1_Projektdaten!$D$83:$I$87,6\n)/100","v":0},0,0,0,{"$f":"IF(AS62-1<=0,0,\n(Eing_Kosten_Bau*(MOD((AS62-1),Eing_Nutzungsdauer_Bau)=0)\n+Eing_Invest_HolzAnlage*(MOD((AS62-1),Eing_Nutzungsdauer_Holz)=0)\n+Eing_Invest_WKKAnlage*(MOD((AS62-1),Eing_Nutzungsdauer_WKK)=0)\n+Eing_Invest_WPAnlage*(MOD((AS62-1),Eing_Nutzungsdauer_WP)=0)\n+Eing_Invest_SondenGrundwasser*(MOD((AS62-1),Eing_Nutzungsdauer_SondenGW)=0)\n+Eing_Invest_AWN*(MOD((AS62-1),Eing_Nutzungsdauer_AWN)=0)\n+Eing_Invest_Spitzenlast*(MOD((AS62-1),Eing_Nutzungsdauer_Spitzenlast)=0)\n+Eing_Invest_Installationen*(MOD((AS62-1),Eing_Nutzungsdauer_Installationen)=0)\n+Eing_Invest_Wärmenetz*(MOD((AS62-1),Eing_Nutzungsdauer_Netz)=0)\n+Eing_Invest_Messung*(MOD((AS62-1),Eing_Nutzungsdauer_Messung)=0))*(1+Eing_allg_Teuerung/100)^(AS62-1))\n+(Gesamtinvestition-SUM(E1_Projektdaten!$D$79:$D$80))*SUMPRODUCT((E1_Projektdaten!$D$83:$D$87=B62)*E1_Projektdaten!$F$83:$F$87)/100-AM62\n+AQ61","v":0},0,{"$f":"MAX(B1_Berechnungen!B62-E1_Projektdaten!$D$23,0)","v":19},{"$f":"AT61-B1_Berechnungen!I62","v":0},0,{"$f":"IF((SUM(H$43:H62)-SUM(I$43:I62))<=AU62,MAX((SUM(H$43:H62)-SUM(I$43:I62)),0),AU62)","v":0},0,0,0,{"$f":"IF((SUM(H$43:H62)-SUM(I$43:I62)-AV62)<=AY62,MAX((SUM(H$43:H62)-SUM(I$43:I62)-AV62),0),AY62)","v":0},0,0,0,0]
[null,20,{"$f":"(SUMPRODUCT((E3_Verbraucher!$D$21:$XFD$21<B1_Berechnungen!B63)*E3_Verbraucher!$D$18:$XFD$18)+SUMPRODUCT((E3_Verbraucher!$D$21:$XFD$21=B1_Berechnungen!B63)*E3_Verbraucher!$D$18:$XFD$18*E3_Verbraucher!$D$20:$XFD$20))/(100-Eing_Netzverluste)*100*(1-Eing_AbnW/100)^(B1_Berechnungen!B63-Eing_Beginnjahr)","v":0},{"v":0,"d":"0.00"},{"$f":"IF(AS63=0,0,\n(Eing_Kosten_Bau*(MOD((AS63),Eing_Nutzungsdauer_Bau)=0)\n+Eing_Invest_HolzAnlage*(MOD((AS63),Eing_Nutzungsdauer_Holz)=0)\n+Eing_Invest_WKKAnlage*(MOD((AS63),Eing_Nutzungsdauer_WKK)=0)\n+Eing_Invest_WPAnlage*(MOD((AS63),Eing_Nutzungsdauer_WP)=0)\n+Eing_Invest_SondenGrundwasser*(MOD((AS63),Eing_Nutzungsdauer_SondenGW)=0)\n+Eing_Invest_Zusatz*(MOD((AS63),Eing_Nutzungsdauer_Zusatz)=0)\n+Eing_Invest_AWN*(MOD((AS63),Eing_Nutzungsdauer_AWN)=0)\n+Eing_Invest_Spitzenlast*(MOD((AS63),Eing_Nutzungsdauer_Spitzenlast)=0)\n+Eing_Invest_Installationen*(MOD((AS63),Eing_Nutzungsdauer_Installationen)=0)\n+Eing_Invest_Wärmenetz*(MOD((AS63),Eing_Nutzungsdauer_Netz)=0)\n+Eing_Invest_Messung*(MOD((AS63),Eing_Nutzungsdauer_Messung)=0))*(1+Eing_allg_Teuerung/100)^(AS63))\n+Gesamtinvestition*SUMPRODUCT((E1_Projektdaten!$D$83:$D$87=B63)*E1_Projektdaten!$F$83:$F$87)/100","v":0},0,{"$f":"-SUMPRODUCT((E3_Verbraucher!$D$21:$XFD$21=B1_Berechnungen!B63)*E3_Verbraucher!$D$23:$XFD$23)","v":0},0,0,0,0,0,{"$f":"IF(ISNUMBER(IRR((BD$43:BD62,BC63))),IRR((BD$43:BD62,BC63)),\"-\")","v":"-"},{"$f":"SUM((SUMPRODUCT((E3_Verbraucher!$D$21:$XFD$21<B1_Berechnungen!B63)*E3_Verbraucher!$D$26:$XFD$26)+SUMPRODUCT((E3_Verbraucher!$D$21:$XFD$21=B1_Berechnungen!B63)*E3_Verbraucher!$D$26:$XFD$26*E3_Verbraucher!$D$20:$XFD$20))*(1+$G$29)^(B63-B$43),(SUMPRODUCT((E3_Verbraucher!$D$21:$XFD$21<B1_Berechnungen!B63)*E3_Verbraucher!$D$27:$XFD$27)+SUMPRODUCT((E3_Verbraucher!$D$21:$XFD$21=B1_Berechnungen!B63)*E3_Verbraucher!$D$27:$XFD$27*E3_Verbraucher!$D$20:$XFD$20))*((1+$G$29)*(1-E1_Projektdaten!$D$20/100))^(B63-B$43))","v":0},0,0,0,null,null,0,0,0,0,0,0,0,0,{"$f":"($F$21*(1+$G$21)^(B63-B$43)+$F$22*(1+$G$22)^(B63-B$43))*(B63>=Eing_JahrBegWLief)*VLOOKUP(B63,E1_Projektdaten!$D$83:$I$87,6)/100","v":0},{"$f":"$F$23*(1+$G$23)^(B63-B$43)*(B63>=Eing_JahrBegWLief)*VLOOKUP(B63,E1_Projektdaten!$D$83:$I$87,6)/100","v":0},0,null,null,0,0,0,0,0,0,{"$f":"(E1_Projektdaten!$D$68*(1+Eing_allg_Teuerung/100)^(E1_Projektdaten!$I$68*ROUNDDOWN((AS63-1)/E1_Projektdaten!$I$68,0))/E1_Projektdaten!$I$68\n+E1_Projektdaten!$D$69*(1+Eing_allg_Teuerung/100)^(E1_Projektdaten!$I$69*ROUNDDOWN((AS63-1)/E1_Projektdaten!$I$69,0))/E1_Projektdaten!$I$69\n+E1_Projektdaten!$D$70*(1+Eing_allg_Teuerung/100)^(E1_Projektdaten!$I$70*ROUNDDOWN((AS63-1)/E1_Projektdaten!$I$69,0))/E1_Projektdaten!$I$70\n+E1_Projektdaten!$D$71*(1+Eing_allg_Teuerung/100)^(E1_Projektdaten!$I$71*ROUNDDOWN((AS63-1)/E1_Projektdaten!$I$69,0))/E1_Projektdaten!$I$71\n+E1_Projektdaten!$D$72*(1+Eing_allg_Teuerung/100)^(E1_Projektdaten!$I$72*ROUNDDOWN((AS63-1)/E1_Projektdaten!$I$69,0))/E1_Projektdaten!$I$72\n+E1_Projektdaten!$D$74*(1+Eing_allg_Teuerung/100)^(E1_Projektdaten!$I$74*ROUNDDOWN((AS63-1)/E1_Projektdaten!$I$69,0))/E1_Projektdaten!$I$74\n+E1_Projektdaten!$D$75*(1+Eing_allg_Teuerung/100)^(E1_Projektdaten!$I$75*ROUNDDOWN((AS63-1)/E1_Projektdaten!$I$75,0))/E1_Projektdaten!$I$75\n+E1_Projektdaten!$D$76*(1+Eing_allg_Teuerung/100)^(E1_Projektdaten!$I$76*ROUNDDOWN((AS63-1)/E1_Projektdaten!$I$76,0))/E1_Projektdaten!$I$76\n+E1_Projektdaten!$D$77*(1+Eing_allg_Teuerung/100)^(E1_Projektdaten!$I$77*ROUNDDOWN((AS63-1)/E1_Projektdaten!$I$77,0))/E1_Projektdaten!$I$77\n+E1_Projektdaten!$D$78*(1+Eing_allg_Teuerung/100)^(E1_Projektdaten!$I$78*ROUNDDOWN((AS63-1)/E1_Projektdaten!$I$78,0))/E1_Projektdaten!$I$78\n+E1_Projektdaten!$D$80*(1+Eing_allg_Teuerung/100)^(E1_Projektdaten!$I$80*ROUNDDOWN((AS63-1)/E1_Projektdaten!$I$69,0))/E1_Projektdaten!$I$80\n)*((AS63)>0)*VLOOKUP(B63,E1_Projektdaten!$D$83:$I$87,6\n)/100","v":0},0,0,0,{"$f":"IF(AS63-1<=0,0,\n(Eing_Kosten_Bau*(MOD((AS63-1),Eing_Nutzungsdauer_Bau)=0)\n+Eing_Invest_HolzAnlage*(MOD((AS63-1),Eing_Nutzungsdauer_Holz)=0)\n+Eing_Invest_WKKAnlage*(MOD((AS63-1),Eing_Nutzungsdauer_WKK)=0)\n+Eing_Invest_WPAnlage*(MOD((AS63-1),Eing_Nutzungsdauer_WP)=0)\n+Eing_Invest_SondenGrundwasser*(MOD((AS63-1),Eing_Nutzungsdauer_SondenGW)=0)\n+Eing_Invest_AWN*(MOD((AS63-1),Eing_Nutzungsdauer_AWN)=0)\n+Eing_Invest_Spitzenlast*(MOD((AS63-1),Eing_Nutzungsdauer_Spitzenlast)=0)\n+Eing_Invest_Installationen*(MOD((AS63-1),Eing_Nutzungsdauer_Installationen)=0)\n+Eing_Invest_Wärmenetz*(MOD((AS63-1),Eing_Nutzungsdauer_Netz)=0)\n+Eing_Invest_Messung*(MOD((AS63-1),Eing_Nutzungsdauer_Messung)=0))*(1+Eing_allg_Teuerung/100)^(AS63-1))\n+(Gesamtinvestition-SUM(E1_Projektdaten!$D$79:$D$80))*SUMPRODUCT((E1_Projektdaten!$D$83:$D$87=B63)*E1_Projektdaten!$F$83:$F$87)/100-AM63\n+AQ62","v":0},0,{"$f":"MAX(B1_Berechnungen!B63-E1_Projektdaten!$D$23,0)","v":20},{"$f":"AT62-B1_Berechnungen!I63","v":0},0,{"$f":"IF((SUM(H$43:H63)-SUM(I$43:I63))<=AU63,MAX((SUM(H$43:H63)-SUM(I$43:I63)),0),AU63)","v":0},0,0,0,{"$f":"IF((SUM(H$43:H63)-SUM(I$43:I63)-AV63)<=AY63,MAX((SUM(H$43:H63)-SUM(I$43:I63)-AV63),0),AY63)","v":0},0,0,0,0]
[null,21,{"$f":"(SUMPRODUCT((E3_Verbraucher!$D$21:$XFD$21<B1_Berechnungen!B64)*E3_Verbraucher!$D$18:$XFD$18)+SUMPRODUCT((E3_Verbraucher!$D$21:$XFD$21=B1_Berechnungen!B64)*E3_Verbraucher!$D$18:$XFD$18*E3_Verbraucher!$D$20:$XFD$20))/(100-Eing_Netzverluste)*100*(1-Eing_AbnW/100)^(B1_Berechnungen!B64-Eing_Beginnjahr)","v":0},{"v":0,"d":"0.00"},{"$f":"IF(AS64=0,0,\n(Eing_Kosten_Bau*(MOD((AS64),Eing_Nutzungsdauer_Bau)=0)\n+Eing_Invest_HolzAnlage*(MOD((AS64),Eing_Nutzungsdauer_Holz)=0)\n+Eing_Invest_WKKAnlage*(MOD((AS64),Eing_Nutzungsdauer_WKK)=0)\n+Eing_Invest_WPAnlage*(MOD((AS64),Eing_Nutzungsdauer_WP)=0)\n+Eing_Invest_SondenGrundwasser*(MOD((AS64),Eing_Nutzungsdauer_SondenGW)=0)\n+Eing_Invest_Zusatz*(MOD((AS64),Eing_Nutzungsdauer_Zusatz)=0)\n+Eing_Invest_AWN*(MOD((AS64),Eing_Nutzungsdauer_AWN)=0)\n+Eing_Invest_Spitzenlast*(MOD((AS64),Eing_Nutzungsdauer_Spitzenlast)=0)\n+Eing_Invest_Installationen*(MOD((AS64),Eing_Nutzungsdauer_Installationen)=0)\n+Eing_Invest_Wärmenetz*(MOD((AS64),Eing_Nutzungsdauer_Netz)=0)\n+Eing_Invest_Messung*(MOD((AS64),Eing_Nutzungsdauer_Messung)=0))*(1+Eing_allg_Teuerung/100)^(AS64))\n+Gesamtinvestition*SUMPRODUCT((E1_Projektdaten!$D$83:$D$87=B64)*E1_Projektdaten!$F$83:$F$87)/100","v":0},0,{"$f":"-SUMPRODUCT((E3_Verbraucher!$D$21:$XFD$21=B1_Berechnungen!B64)*E3_Verbraucher!$D$23:$XFD$23)","v":0},0,0,0,0,0,{"$f":"IF(ISNUMBER(IRR((BD$43:BD63,BC64))),IRR((BD$43:BD63,BC64)),\"-\")","v":"-"},{"$f":"SUM((SUMPRODUCT((E3_Verbraucher!$D$21:$XFD$21<B1_Berechnungen!B64)*E3_Verbraucher!$D$26:$XFD$26)+SUMPRODUCT((E3_Verbraucher!$D$21:$XFD$21=B1_Berechnungen!B64)*E3_Verbraucher!$D$26:$XFD$26*E3_Verbraucher!$D$20:$XFD$20))*(1+$G$29)^(B64-B$43),(SUMPRODUCT((E3_Verbraucher!$D$21:$XFD$21<B1_Berechnungen!B64)*E3_Verbraucher!$D$27:$XFD$27)+SUMPRODUCT((E3_Verbraucher!$D$21:$XFD$21=B1_Berechnungen!B64)*E3_Verbraucher!$D$27:$XFD$27*E3_Verbraucher!$D$20:$XFD$20))*((1+$G$29)*(1-E1_Projektdaten!$D$20/100))^(B64-B$43))","v":0},0,0,0,null,null,0,0,0,0,0,0,0,0,{"$f":"($F$21*(1+$G$21)^(B64-B$43)+$F$22*(1+$G$22)^(B64-B$43))*(B64>=Eing_JahrBegWLief)*VLOOKUP(B64,E1_Projektdaten!$D$83:$I$87,6)/100","v":0},{"$f":"$F$23*(1+$G$23)^(B64-B$43)*(B64>=Eing_JahrBegWLief)*VLOOKUP(B64,E1_Projektdaten!$D$83:$I$87,6)/100","v":0},0,null,null,0,0,0,0,0,0,{"$f":"(E1_Projektdaten!$D$68*(1+Eing_allg_Teuerung/100)^(E1_Projektdaten!$I$68*ROUNDDOWN((AS64-1)/E1_Projektdaten!$I$68,0))/E1_Projektdaten!$I$68\n+E1_Projektdaten!$D$69*(1+Eing_allg_Teuerung/100)^(E1_Projektdaten!$I$69*ROUNDDOWN((AS64-1)/E1_Projektdaten!$I$69,0))/E1_Projektdaten!$I$69\n+E1_Projektdaten!$D$70*(1+Eing_allg_Teuerung/100)^(E1_Projektdaten!$I$70*ROUNDDOWN((AS64-1)/E1_Projektdaten!$I$69,0))/E1_Projektdaten!$I$70\n+E1_Projektdaten!$D$71*(1+Eing_allg_Teuerung/100)^(E1_Projektdaten!$I$71*ROUNDDOWN((AS64-1)/E1_Projektdaten!$I$69,0))/E1_Projektdaten!$I$71\n+E1_Projektdaten!$D$72*(1+Eing_allg_Teuerung/100)^(E1_Projektdaten!$I$72*ROUNDDOWN((AS64-1)/E1_Projektdaten!$I$69,0))/E1_Projektdaten!$I$72\n+E1_Projektdaten!$D$74*(1+Eing_allg_Teuerung/100)^(E1_Projektdaten!$I$74*ROUNDDOWN((AS64-1)/E1_Projektdaten!$I$69,0))/E1_Projektdaten!$I$74\n+E1_Projektdaten!$D$75*(1+Eing_allg_Teuerung/100)^(E1_Projektdaten!$I$75*ROUNDDOWN((AS64-1)/E1_Projektdaten!$I$75,0))/E1_Projektdaten!$I$75\n+E1_Projektdaten!$D$76*(1+Eing_allg_Teuerung/100)^(E1_Projektdaten!$I$76*ROUNDDOWN((AS64-1)/E1_Projektdaten!$I$76,0))/E1_Projektdaten!$I$76\n+E1_Projektdaten!$D$77*(1+Eing_allg_Teuerung/100)^(E1_Projektdaten!$I$77*ROUNDDOWN((AS64-1)/E1_Projektdaten!$I$77,0))/E1_Projektdaten!$I$77\n+E1_Projektdaten!$D$78*(1+Eing_allg_Teuerung/100)^(E1_Projektdaten!$I$78*ROUNDDOWN((AS64-1)/E1_Projektdaten!$I$78,0))/E1_Projektdaten!$I$78\n+E1_Projektdaten!$D$80*(1+Eing_allg_Teuerung/100)^(E1_Projektdaten!$I$80*ROUNDDOWN((AS64-1)/E1_Projektdaten!$I$69,0))/E1_Projektdaten!$I$80\n)*((AS64)>0)*VLOOKUP(B64,E1_Projektdaten!$D$83:$I$87,6\n)/100","v":0},0,0,0,{"$f":"IF(AS64-1<=0,0,\n(Eing_Kosten_Bau*(MOD((AS64-1),Eing_Nutzungsdauer_Bau)=0)\n+Eing_Invest_HolzAnlage*(MOD((AS64-1),Eing_Nutzungsdauer_Holz)=0)\n+Eing_Invest_WKKAnlage*(MOD((AS64-1),Eing_Nutzungsdauer_WKK)=0)\n+Eing_Invest_WPAnlage*(MOD((AS64-1),Eing_Nutzungsdauer_WP)=0)\n+Eing_Invest_SondenGrundwasser*(MOD((AS64-1),Eing_Nutzungsdauer_SondenGW)=0)\n+Eing_Invest_AWN*(MOD((AS64-1),Eing_Nutzungsdauer_AWN)=0)\n+Eing_Invest_Spitzenlast*(MOD((AS64-1),Eing_Nutzungsdauer_Spitzenlast)=0)\n+Eing_Invest_Installationen*(MOD((AS64-1),Eing_Nutzungsdauer_Installationen)=0)\n+Eing_Invest_Wärmenetz*(MOD((AS64-1),Eing_Nutzungsdauer_Netz)=0)\n+Eing_Invest_Messung*(MOD((AS64-1),Eing_Nutzungsdauer_Messung)=0))*(1+Eing_allg_Teuerung/100)^(AS64-1))\n+(Gesamtinvestition-SUM(E1_Projektdaten!$D$79:$D$80))*SUMPRODUCT((E1_Projektdaten!$D$83:$D$87=B64)*E1_Projektdaten!$F$83:$F$87)/100-AM64\n+AQ63","v":0},0,{"$f":"MAX(B1_Berechnungen!B64-E1_Projektdaten!$D$23,0)","v":21},{"$f":"AT63-B1_Berechnungen!I64","v":0},0,{"$f":"IF((SUM(H$43:H64)-SUM(I$43:I64))<=AU64,MAX((SUM(H$43:H64)-SUM(I$43:I64)),0),AU64)","v":0},0,0,0,{"$f":"IF((SUM(H$43:H64)-SUM(I$43:I64)-AV64)<=AY64,MAX((SUM(H$43:H64)-SUM(I$43:I64)-AV64),0),AY64)","v":0},0,0,0,0]
[null,22,{"$f":"(SUMPRODUCT((E3_Verbraucher!$D$21:$XFD$21<B1_Berechnungen!B65)*E3_Verbraucher!$D$18:$XFD$18)+SUMPRODUCT((E3_Verbraucher!$D$21:$XFD$21=B1_Berechnungen!B65)*E3_Verbraucher!$D$18:$XFD$18*E3_Verbraucher!$D$20:$XFD$20))/(100-Eing_Netzverluste)*100*(1-Eing_AbnW/100)^(B1_Berechnungen!B65-Eing_Beginnjahr)","v":0},{"v":0,"d":"0.00"},{"$f":"IF(AS65=0,0,\n(Eing_Kosten_Bau*(MOD((AS65),Eing_Nutzungsdauer_Bau)=0)\n+Eing_Invest_HolzAnlage*(MOD((AS65),Eing_Nutzungsdauer_Holz)=0)\n+Eing_Invest_WKKAnlage*(MOD((AS65),Eing_Nutzungsdauer_WKK)=0)\n+Eing_Invest_WPAnlage*(MOD((AS65),Eing_Nutzungsdauer_WP)=0)\n+Eing_Invest_SondenGrundwasser*(MOD((AS65),Eing_Nutzungsdauer_SondenGW)=0)\n+Eing_Invest_Zusatz*(MOD((AS65),Eing_Nutzungsdauer_Zusatz)=0)\n+Eing_Invest_AWN*(MOD((AS65),Eing_Nutzungsdauer_AWN)=0)\n+Eing_Invest_Spitzenlast*(MOD((AS65),Eing_Nutzungsdauer_Spitzenlast)=0)\n+Eing_Invest_Installationen*(MOD((AS65),Eing_Nutzungsdauer_Installationen)=0)\n+Eing_Invest_Wärmenetz*(MOD((AS65),Eing_Nutzungsdauer_Netz)=0)\n+Eing_Invest_Messung*(MOD((AS65),Eing_Nutzungsdauer_Messung)=0))*(1+Eing_allg_Teuerung/100)^(AS65))\n+Gesamtinvestition*SUMPRODUCT((E1_Projektdaten!$D$83:$D$87=B65)*E1_Projektdaten!$F$83:$F$87)/100","v":0},0,{"$f":"-SUMPRODUCT((E3_Verbraucher!$D$21:$XFD$21=B1_Berechnungen!B65)*E3_Verbraucher!$D$23:$XFD$23)","v":0},0,0,0,0,0,{"$f":"IF(ISNUMBER(IRR((BD$43:BD64,BC65))),IRR((BD$43:BD64,BC65)),\"-\")","v":"-"},{"$f":"SUM((SUMPRODUCT((E3_Verbraucher!$D$21:$XFD$21<B1_Berechnungen!B65)*E3_Verbraucher!$D$26:$XFD$26)+SUMPRODUCT((E3_Verbraucher!$D$21:$XFD$21=B1_Berechnungen!B65)*E3_Verbraucher!$D$26:$XFD$26*E3_Verbraucher!$D$20:$XFD$20))*(1+$G$29)^(B65-B$43),(SUMPRODUCT((E3_Verbraucher!$D$21:$XFD$21<B1_Berechnungen!B65)*E3_Verbraucher!$D$27:$XFD$27)+SUMPRODUCT((E3_Verbraucher!$D$21:$XFD$21=B1_Berechnungen!B65)*E3_Verbraucher!$D$27:$XFD$27*E3_Verbraucher!$D$20:$XFD$20))*((1+$G$29)*(1-E1_Projektdaten!$D$20/100))^(B65-B$43))","v":0},0,0,0,null,null,0,0,0,0,0,0,0,0,{"$f":"($F$21*(1+$G$21)^(B65-B$43)+$F$22*(1+$G$22)^(B65-B$43))*(B65>=Eing_JahrBegWLief)*VLOOKUP(B65,E1_Projektdaten!$D$83:$I$87,6)/100","v":0},{"$f":"$F$23*(1+$G$23)^(B65-B$43)*(B65>=Eing_JahrBegWLief)*VLOOKUP(B65,E1_Projektdaten!$D$83:$I$87,6)/100","v":0},0,null,null,0,0,0,0,0,0,{"$f":"(E1_Projektdaten!$D$68*(1+Eing_allg_Teuerung/100)^(E1_Projektdaten!$I$68*ROUNDDOWN((AS65-1)/E1_Projektdaten!$I$68,0))/E1_Projektdaten!$I$68\n+E1_Projektdaten!$D$69*(1+Eing_allg_Teuerung/100)^(E1_Projektdaten!$I$69*ROUNDDOWN((AS65-1)/E1_Projektdaten!$I$69,0))/E1_Projektdaten!$I$69\n+E1_Projektdaten!$D$70*(1+Eing_allg_Teuerung/100)^(E1_Projektdaten!$I$70*ROUNDDOWN((AS65-1)/E1_Projektdaten!$I$69,0))/E1_Projektdaten!$I$70\n+E1_Projektdaten!$D$71*(1+Eing_allg_Teuerung/100)^(E1_Projektdaten!$I$71*ROUNDDOWN((AS65-1)/E1_Projektdaten!$I$69,0))/E1_Projektdaten!$I$71\n+E1_Projektdaten!$D$72*(1+Eing_allg_Teuerung/100)^(E1_Projektdaten!$I$72*ROUNDDOWN((AS65-1)/E1_Projektdaten!$I$69,0))/E1_Projektdaten!$I$72\n+E1_Projektdaten!$D$74*(1+Eing_allg_Teuerung/100)^(E1_Projektdaten!$I$74*ROUNDDOWN((AS65-1)/E1_Projektdaten!$I$69,0))/E1_Projektdaten!$I$74\n+E1_Projektdaten!$D$75*(1+Eing_allg_Teuerung/100)^(E1_Projektdaten!$I$75*ROUNDDOWN((AS65-1)/E1_Projektdaten!$I$75,0))/E1_Projektdaten!$I$75\n+E1_Projektdaten!$D$76*(1+Eing_allg_Teuerung/100)^(E1_Projektdaten!$I$76*ROUNDDOWN((AS65-1)/E1_Projektdaten!$I$76,0))/E1_Projektdaten!$I$76\n+E1_Projektdaten!$D$77*(1+Eing_allg_Teuerung/100)^(E1_Projektdaten!$I$77*ROUNDDOWN((AS65-1)/E1_Projektdaten!$I$77,0))/E1_Projektdaten!$I$77\n+E1_Projektdaten!$D$78*(1+Eing_allg_Teuerung/100)^(E1_Projektdaten!$I$78*ROUNDDOWN((AS65-1)/E1_Projektdaten!$I$78,0))/E1_Projektdaten!$I$78\n+E1_Projektdaten!$D$80*(1+Eing_allg_Teuerung/100)^(E1_Projektdaten!$I$80*ROUNDDOWN((AS65-1)/E1_Projektdaten!$I$69,0))/E1_Projektdaten!$I$80\n)*((AS65)>0)*VLOOKUP(B65,E1_Projektdaten!$D$83:$I$87,6\n)/100","v":0},0,0,0,{"$f":"IF(AS65-1<=0,0,\n(Eing_Kosten_Bau*(MOD((AS65-1),Eing_Nutzungsdauer_Bau)=0)\n+Eing_Invest_HolzAnlage*(MOD((AS65-1),Eing_Nutzungsdauer_Holz)=0)\n+Eing_Invest_WKKAnlage*(MOD((AS65-1),Eing_Nutzungsdauer_WKK)=0)\n+Eing_Invest_WPAnlage*(MOD((AS65-1),Eing_Nutzungsdauer_WP)=0)\n+Eing_Invest_SondenGrundwasser*(MOD((AS65-1),Eing_Nutzungsdauer_SondenGW)=0)\n+Eing_Invest_AWN*(MOD((AS65-1),Eing_Nutzungsdauer_AWN)=0)\n+Eing_Invest_Spitzenlast*(MOD((AS65-1),Eing_Nutzungsdauer_Spitzenlast)=0)\n+Eing_Invest_Installationen*(MOD((AS65-1),Eing_Nutzungsdauer_Installationen)=0)\n+Eing_Invest_Wärmenetz*(MOD((AS65-1),Eing_Nutzungsdauer_Netz)=0)\n+Eing_Invest_Messung*(MOD((AS65-1),Eing_Nutzungsdauer_Messung)=0))*(1+Eing_allg_Teuerung/100)^(AS65-1))\n+(Gesamtinvestition-SUM(E1_Projektdaten!$D$79:$D$80))*SUMPRODUCT((E1_Projektdaten!$D$83:$D$87=B65)*E1_Projektdaten!$F$83:$F$87)/100-AM65\n+AQ64","v":0},0,{"$f":"MAX(B1_Berechnungen!B65-E1_Projektdaten!$D$23,0)","v":22},{"$f":"AT64-B1_Berechnungen!I65","v":0},0,{"$f":"IF((SUM(H$43:H65)-SUM(I$43:I65))<=AU65,MAX((SUM(H$43:H65)-SUM(I$43:I65)),0),AU65)","v":0},0,0,0,{"$f":"IF((SUM(H$43:H65)-SUM(I$43:I65)-AV65)<=AY65,MAX((SUM(H$43:H65)-SUM(I$43:I65)-AV65),0),AY65)","v":0},0,0,0,0]
[null,23,{"$f":"(SUMPRODUCT((E3_Verbraucher!$D$21:$XFD$21<B1_Berechnungen!B66)*E3_Verbraucher!$D$18:$XFD$18)+SUMPRODUCT((E3_Verbraucher!$D$21:$XFD$21=B1_Berechnungen!B66)*E3_Verbraucher!$D$18:$XFD$18*E3_Verbraucher!$D$20:$XFD$20))/(100-Eing_Netzverluste)*100*(1-Eing_AbnW/100)^(B1_Berechnungen!B66-Eing_Beginnjahr)","v":0},{"v":0,"d":"0.00"},{"$f":"IF(AS66=0,0,\n(Eing_Kosten_Bau*(MOD((AS66),Eing_Nutzungsdauer_Bau)=0)\n+Eing_Invest_HolzAnlage*(MOD((AS66),Eing_Nutzungsdauer_Holz)=0)\n+Eing_Invest_WKKAnlage*(MOD((AS66),Eing_Nutzungsdauer_WKK)=0)\n+Eing_Invest_WPAnlage*(MOD((AS66),Eing_Nutzungsdauer_WP)=0)\n+Eing_Invest_SondenGrundwasser*(MOD((AS66),Eing_Nutzungsdauer_SondenGW)=0)\n+Eing_Invest_Zusatz*(MOD((AS66),Eing_Nutzungsdauer_Zusatz)=0)\n+Eing_Invest_AWN*(MOD((AS66),Eing_Nutzungsdauer_AWN)=0)\n+Eing_Invest_Spitzenlast*(MOD((AS66),Eing_Nutzungsdauer_Spitzenlast)=0)\n+Eing_Invest_Installationen*(MOD((AS66),Eing_Nutzungsdauer_Installationen)=0)\n+Eing_Invest_Wärmenetz*(MOD((AS66),Eing_Nutzungsdauer_Netz)=0)\n+Eing_Invest_Messung*(MOD((AS66),Eing_Nutzungsdauer_Messung)=0))*(1+Eing_allg_Teuerung/100)^(AS66))\n+Gesamtinvestition*SUMPRODUCT((E1_Projektdaten!$D$83:$D$87=B66)*E1_Projektdaten!$F$83:$F$87)/100","v":0},0,{"$f":"-SUMPRODUCT((E3_Verbraucher!$D$21:$XFD$21=B1_Berechnungen!B66)*E3_Verbraucher!$D$23:$XFD$23)","v":0},0,0,0,0,0,{"$f":"IF(ISNUMBER(IRR((BD$43:BD65,BC66))),IRR((BD$43:BD65,BC66)),\"-\")","v":"-"},{"$f":"SUM((SUMPRODUCT((E3_Verbraucher!$D$21:$XFD$21<B1_Berechnungen!B66)*E3_Verbraucher!$D$26:$XFD$26)+SUMPRODUCT((E3_Verbraucher!$D$21:$XFD$21=B1_Berechnungen!B66)*E3_Verbraucher!$D$26:$XFD$26*E3_Verbraucher!$D$20:$XFD$20))*(1+$G$29)^(B66-B$43),(SUMPRODUCT((E3_Verbraucher!$D$21:$XFD$21<B1_Berechnungen!B66)*E3_Verbraucher!$D$27:$XFD$27)+SUMPRODUCT((E3_Verbraucher!$D$21:$XFD$21=B1_Berechnungen!B66)*E3_Verbraucher!$D$27:$XFD$27*E3_Verbraucher!$D$20:$XFD$20))*((1+$G$29)*(1-E1_Projektdaten!$D$20/100))^(B66-B$43))","v":0},0,0,0,null,null,0,0,0,0,0,0,0,0,{"$f":"($F$21*(1+$G$21)^(B66-B$43)+$F$22*(1+$G$22)^(B66-B$43))*(B66>=Eing_JahrBegWLief)*VLOOKUP(B66,E1_Projektdaten!$D$83:$I$87,6)/100","v":0},{"$f":"$F$23*(1+$G$23)^(B66-B$43)*(B66>=Eing_JahrBegWLief)*VLOOKUP(B66,E1_Projektdaten!$D$83:$I$87,6)/100","v":0},0,null,null,0,0,0,0,0,0,{"$f":"(E1_Projektdaten!$D$68*(1+Eing_allg_Teuerung/100)^(E1_Projektdaten!$I$68*ROUNDDOWN((AS66-1)/E1_Projektdaten!$I$68,0))/E1_Projektdaten!$I$68\n+E1_Projektdaten!$D$69*(1+Eing_allg_Teuerung/100)^(E1_Projektdaten!$I$69*ROUNDDOWN((AS66-1)/E1_Projektdaten!$I$69,0))/E1_Projektdaten!$I$69\n+E1_Projektdaten!$D$70*(1+Eing_allg_Teuerung/100)^(E1_Projektdaten!$I$70*ROUNDDOWN((AS66-1)/E1_Projektdaten!$I$69,0))/E1_Projektdaten!$I$70\n+E1_Projektdaten!$D$71*(1+Eing_allg_Teuerung/100)^(E1_Projektdaten!$I$71*ROUNDDOWN((AS66-1)/E1_Projektdaten!$I$69,0))/E1_Projektdaten!$I$71\n+E1_Projektdaten!$D$72*(1+Eing_allg_Teuerung/100)^(E1_Projektdaten!$I$72*ROUNDDOWN((AS66-1)/E1_Projektdaten!$I$69,0))/E1_Projektdaten!$I$72\n+E1_Projektdaten!$D$74*(1+Eing_allg_Teuerung/100)^(E1_Projektdaten!$I$74*ROUNDDOWN((AS66-1)/E1_Projektdaten!$I$69,0))/E1_Projektdaten!$I$74\n+E1_Projektdaten!$D$75*(1+Eing_allg_Teuerung/100)^(E1_Projektdaten!$I$75*ROUNDDOWN((AS66-1)/E1_Projektdaten!$I$75,0))/E1_Projektdaten!$I$75\n+E1_Projektdaten!$D$76*(1+Eing_allg_Teuerung/100)^(E1_Projektdaten!$I$76*ROUNDDOWN((AS66-1)/E1_Projektdaten!$I$76,0))/E1_Projektdaten!$I$76\n+E1_Projektdaten!$D$77*(1+Eing_allg_Teuerung/100)^(E1_Projektdaten!$I$77*ROUNDDOWN((AS66-1)/E1_Projektdaten!$I$77,0))/E1_Projektdaten!$I$77\n+E1_Projektdaten!$D$78*(1+Eing_allg_Teuerung/100)^(E1_Projektdaten!$I$78*ROUNDDOWN((AS66-1)/E1_Projektdaten!$I$78,0))/E1_Projektdaten!$I$78\n+E1_Projektdaten!$D$80*(1+Eing_allg_Teuerung/100)^(E1_Projektdaten!$I$80*ROUNDDOWN((AS66-1)/E1_Projektdaten!$I$69,0))/E1_Projektdaten!$I$80\n)*((AS66)>0)*VLOOKUP(B66,E1_Projektdaten!$D$83:$I$87,6\n)/100","v":0},0,0,0,{"$f":"IF(AS66-1<=0,0,\n(Eing_Kosten_Bau*(MOD((AS66-1),Eing_Nutzungsdauer_Bau)=0)\n+Eing_Invest_HolzAnlage*(MOD((AS66-1),Eing_Nutzungsdauer_Holz)=0)\n+Eing_Invest_WKKAnlage*(MOD((AS66-1),Eing_Nutzungsdauer_WKK)=0)\n+Eing_Invest_WPAnlage*(MOD((AS66-1),Eing_Nutzungsdauer_WP)=0)\n+Eing_Invest_SondenGrundwasser*(MOD((AS66-1),Eing_Nutzungsdauer_SondenGW)=0)\n+Eing_Invest_AWN*(MOD((AS66-1),Eing_Nutzungsdauer_AWN)=0)\n+Eing_Invest_Spitzenlast*(MOD((AS66-1),Eing_Nutzungsdauer_Spitzenlast)=0)\n+Eing_Invest_Installationen*(MOD((AS66-1),Eing_Nutzungsdauer_Installationen)=0)\n+Eing_Invest_Wärmenetz*(MOD((AS66-1),Eing_Nutzungsdauer_Netz)=0)\n+Eing_Invest_Messung*(MOD((AS66-1),Eing_Nutzungsdauer_Messung)=0))*(1+Eing_allg_Teuerung/100)^(AS66-1))\n+(Gesamtinvestition-SUM(E1_Projektdaten!$D$79:$D$80))*SUMPRODUCT((E1_Projektdaten!$D$83:$D$87=B66)*E1_Projektdaten!$F$83:$F$87)/100-AM66\n+AQ65","v":0},0,{"$f":"MAX(B1_Berechnungen!B66-E1_Projektdaten!$D$23,0)","v":23},{"$f":"AT65-B1_Berechnungen!I66","v":0},0,{"$f":"IF((SUM(H$43:H66)-SUM(I$43:I66))<=AU66,MAX((SUM(H$43:H66)-SUM(I$43:I66)),0),AU66)","v":0},0,0,0,{"$f":"IF((SUM(H$43:H66)-SUM(I$43:I66)-AV66)<=AY66,MAX((SUM(H$43:H66)-SUM(I$43:I66)-AV66),0),AY66)","v":0},0,0,0,0]
[null,24,{"$f":"(SUMPRODUCT((E3_Verbraucher!$D$21:$XFD$21<B1_Berechnungen!B67)*E3_Verbraucher!$D$18:$XFD$18)+SUMPRODUCT((E3_Verbraucher!$D$21:$XFD$21=B1_Berechnungen!B67)*E3_Verbraucher!$D$18:$XFD$18*E3_Verbraucher!$D$20:$XFD$20))/(100-Eing_Netzverluste)*100*(1-Eing_AbnW/100)^(B1_Berechnungen!B67-Eing_Beginnjahr)","v":0},{"v":0,"d":"0.00"},{"$f":"IF(AS67=0,0,\n(Eing_Kosten_Bau*(MOD((AS67),Eing_Nutzungsdauer_Bau)=0)\n+Eing_Invest_HolzAnlage*(MOD((AS67),Eing_Nutzungsdauer_Holz)=0)\n+Eing_Invest_WKKAnlage*(MOD((AS67),Eing_Nutzungsdauer_WKK)=0)\n+Eing_Invest_WPAnlage*(MOD((AS67),Eing_Nutzungsdauer_WP)=0)\n+Eing_Invest_SondenGrundwasser*(MOD((AS67),Eing_Nutzungsdauer_SondenGW)=0)\n+Eing_Invest_Zusatz*(MOD((AS67),Eing_Nutzungsdauer_Zusatz)=0)\n+Eing_Invest_AWN*(MOD((AS67),Eing_Nutzungsdauer_AWN)=0)\n+Eing_Invest_Spitzenlast*(MOD((AS67),Eing_Nutzungsdauer_Spitzenlast)=0)\n+Eing_Invest_Installationen*(MOD((AS67),Eing_Nutzungsdauer_Installationen)=0)\n+Eing_Invest_Wärmenetz*(MOD((AS67),Eing_Nutzungsdauer_Netz)=0)\n+Eing_Invest_Messung*(MOD((AS67),Eing_Nutzungsdauer_Messung)=0))*(1+Eing_allg_Teuerung/100)^(AS67))\n+Gesamtinvestition*SUMPRODUCT((E1_Projektdaten!$D$83:$D$87=B67)*E1_Projektdaten!$F$83:$F$87)/100","v":0},0,{"$f":"-SUMPRODUCT((E3_Verbraucher!$D$21:$XFD$21=B1_Berechnungen!B67)*E3_Verbraucher!$D$23:$XFD$23)","v":0},0,0,0,0,0,{"$f":"IF(ISNUMBER(IRR((BD$43:BD66,BC67))),IRR((BD$43:BD66,BC67)),\"-\")","v":"-"},{"$f":"SUM((SUMPRODUCT((E3_Verbraucher!$D$21:$XFD$21<B1_Berechnungen!B67)*E3_Verbraucher!$D$26:$XFD$26)+SUMPRODUCT((E3_Verbraucher!$D$21:$XFD$21=B1_Berechnungen!B67)*E3_Verbraucher!$D$26:$XFD$26*E3_Verbraucher!$D$20:$XFD$20))*(1+$G$29)^(B67-B$43),(SUMPRODUCT((E3_Verbraucher!$D$21:$XFD$21<B1_Berechnungen!B67)*E3_Verbraucher!$D$27:$XFD$27)+SUMPRODUCT((E3_Verbraucher!$D$21:$XFD$21=B1_Berechnungen!B67)*E3_Verbraucher!$D$27:$XFD$27*E3_Verbraucher!$D$20:$XFD$20))*((1+$G$29)*(1-E1_Projektdaten!$D$20/100))^(B67-B$43))","v":0},0,0,0,null,null,0,0,0,0,0,0,0,0,{"$f":"($F$21*(1+$G$21)^(B67-B$43)+$F$22*(1+$G$22)^(B67-B$43))*(B67>=Eing_JahrBegWLief)*VLOOKUP(B67,E1_Projektdaten!$D$83:$I$87,6)/100","v":0},{"$f":"$F$23*(1+$G$23)^(B67-B$43)*(B67>=Eing_JahrBegWLief)*VLOOKUP(B67,E1_Projektdaten!$D$83:$I$87,6)/100","v":0},0,null,null,0,0,0,0,0,0,{"$f":"(E1_Projektdaten!$D$68*(1+Eing_allg_Teuerung/100)^(E1_Projektdaten!$I$68*ROUNDDOWN((AS67-1)/E1_Projektdaten!$I$68,0))/E1_Projektdaten!$I$68\n+E1_Projektdaten!$D$69*(1+Eing_allg_Teuerung/100)^(E1_Projektdaten!$I$69*ROUNDDOWN((AS67-1)/E1_Projektdaten!$I$69,0))/E1_Projektdaten!$I$69\n+E1_Projektdaten!$D$70*(1+Eing_allg_Teuerung/100)^(E1_Projektdaten!$I$70*ROUNDDOWN((AS67-1)/E1_Projektdaten!$I$69,0))/E1_Projektdaten!$I$70\n+E1_Projektdaten!$D$71*(1+Eing_allg_Teuerung/100)^(E1_Projektdaten!$I$71*ROUNDDOWN((AS67-1)/E1_Projektdaten!$I$69,0))/E1_Projektdaten!$I$71\n+E1_Projektdaten!$D$72*(1+Eing_allg_Teuerung/100)^(E1_Projektdaten!$I$72*ROUNDDOWN((AS67-1)/E1_Projektdaten!$I$69,0))/E1_Projektdaten!$I$72\n+E1_Projektdaten!$D$74*(1+Eing_allg_Teuerung/100)^(E1_Projektdaten!$I$74*ROUNDDOWN((AS67-1)/E1_Projektdaten!$I$69,0))/E1_Projektdaten!$I$74\n+E1_Projektdaten!$D$75*(1+Eing_allg_Teuerung/100)^(E1_Projektdaten!$I$75*ROUNDDOWN((AS67-1)/E1_Projektdaten!$I$75,0))/E1_Projektdaten!$I$75\n+E1_Projektdaten!$D$76*(1+Eing_allg_Teuerung/100)^(E1_Projektdaten!$I$76*ROUNDDOWN((AS67-1)/E1_Projektdaten!$I$76,0))/E1_Projektdaten!$I$76\n+E1_Projektdaten!$D$77*(1+Eing_allg_Teuerung/100)^(E1_Projektdaten!$I$77*ROUNDDOWN((AS67-1)/E1_Projektdaten!$I$77,0))/E1_Projektdaten!$I$77\n+E1_Projektdaten!$D$78*(1+Eing_allg_Teuerung/100)^(E1_Projektdaten!$I$78*ROUNDDOWN((AS67-1)/E1_Projektdaten!$I$78,0))/E1_Projektdaten!$I$78\n+E1_Projektdaten!$D$80*(1+Eing_allg_Teuerung/100)^(E1_Projektdaten!$I$80*ROUNDDOWN((AS67-1)/E1_Projektdaten!$I$69,0))/E1_Projektdaten!$I$80\n)*((AS67)>0)*VLOOKUP(B67,E1_Projektdaten!$D$83:$I$87,6\n)/100","v":0},0,0,0,{"$f":"IF(AS67-1<=0,0,\n(Eing_Kosten_Bau*(MOD((AS67-1),Eing_Nutzungsdauer_Bau)=0)\n+Eing_Invest_HolzAnlage*(MOD((AS67-1),Eing_Nutzungsdauer_Holz)=0)\n+Eing_Invest_WKKAnlage*(MOD((AS67-1),Eing_Nutzungsdauer_WKK)=0)\n+Eing_Invest_WPAnlage*(MOD((AS67-1),Eing_Nutzungsdauer_WP)=0)\n+Eing_Invest_SondenGrundwasser*(MOD((AS67-1),Eing_Nutzungsdauer_SondenGW)=0)\n+Eing_Invest_AWN*(MOD((AS67-1),Eing_Nutzungsdauer_AWN)=0)\n+Eing_Invest_Spitzenlast*(MOD((AS67-1),Eing_Nutzungsdauer_Spitzenlast)=0)\n+Eing_Invest_Installationen*(MOD((AS67-1),Eing_Nutzungsdauer_Installationen)=0)\n+Eing_Invest_Wärmenetz*(MOD((AS67-1),Eing_Nutzungsdauer_Netz)=0)\n+Eing_Invest_Messung*(MOD((AS67-1),Eing_Nutzungsdauer_Messung)=0))*(1+Eing_allg_Teuerung/100)^(AS67-1))\n+(Gesamtinvestition-SUM(E1_Projektdaten!$D$79:$D$80))*SUMPRODUCT((E1_Projektdaten!$D$83:$D$87=B67)*E1_Projektdaten!$F$83:$F$87)/100-AM67\n+AQ66","v":0},0,{"$f":"MAX(B1_Berechnungen!B67-E1_Projektdaten!$D$23,0)","v":24},{"$f":"AT66-B1_Berechnungen!I67","v":0},0,{"$f":"IF((SUM(H$43:H67)-SUM(I$43:I67))<=AU67,MAX((SUM(H$43:H67)-SUM(I$43:I67)),0),AU67)","v":0},0,0,0,{"$f":"IF((SUM(H$43:H67)-SUM(I$43:I67)-AV67)<=AY67,MAX((SUM(H$43:H67)-SUM(I$43:I67)-AV67),0),AY67)","v":0},0,0,0,0]

{"sheet":"A1_Ergebnisse","index":5,"n_rows":44,"n_cols":14,"rows_kept":44,"merged":[[11,2,11,6],[43,7,59,12]]}
[600,"QM Holzheizwerke - Wirtschaftlichkeitsmodell - Ergebnisse",{"$nulls":5},"QM Holzheizwerke - Wirtschaftlichkeitsmodell - Ergebnisse"]
[]
["101a",null,"Eingabefeld",{"$nulls":4},"Energie",null,{"$f":"D34","v":0},{"$f":"E34","v":0},{"$f":"\"bis \"&B1_Berechnungen!B67","v":"bis 24"},null,650]
["101k","(exkl. MWST)",{"$nulls":6},"Netzauslastung",{"$f":"_xlfn.XLOOKUP(J$3,B1_Berechnungen!$B$43:$B$67,B1_Berechnungen!$D$43:$D$67)/100","v":{"v":0,"d":"0%"}},{"$f":"_xlfn.XLOOKUP(K$3,B1_Berechnungen!$B$43:$B$67,B1_Berechnungen!$D$43:$D$67)/100","v":{"v":0,"d":"0%"}},null,null,533]
[{"$nulls":8},"gelieferte Wärmemenge",{"$f":"_xlfn.XLOOKUP(J$3,B1_Berechnungen!$B$43:$B$67,B1_Berechnungen!$C$43:$C$67)*(100-Eing_Netzverluste)/100","v":0},{"$f":"_xlfn.XLOOKUP(K$3,B1_Berechnungen!$B$43:$B$67,B1_Berechnungen!$C$43:$C$67)*(100-Eing_Netzverluste)/100","v":0},{"$f":"SUM(B1_Berechnungen!C43:C67)*((100-Eing_Netzverluste))/100","v":0},"MWh/a",532]
[106,"Projekt/Variante:",{"$f":"IF(E1_Projektdaten!C8=0,\"\",E1_Projektdaten!C8)","v":""}]
[null,null,{"$f":"IF(E1_Projektdaten!C9=0,\"\",E1_Projektdaten!C9)","v":""},{"$nulls":4},"Entwicklung Netzauslastung",{"$nulls":5},655]
[null,null,{"$f":"IF(E1_Projektdaten!C10=0,\"\",E1_Projektdaten!C10)","v":""}]
[]
[107,"Erfasst von:",{"$f":"IF(E1_Projektdaten!C12=0,\"\",E1_Projektdaten!C12)","v":""}]
[]
[501,"Warnungen:",{"$f":"IF(E1_Projektdaten!C14<>\"\",E1_Projektdaten!Y15,\"\")","v":"Es existieren Warnungen im Register 'E1_Projektdaten'!"}]
[]
[110,"Wärmemengen, Netz, Projektstart"]
["a",null,"Gesamter Wärmebezug der Abnehmer",{"$f":"max_verkaufteWM","v":0},"MWh/a"]
["b",null,"Netzverluste",{"$f":"Eing_Netzverluste","v":10},"%"]
[]
["g",null,"Jahr des Projektbeginns",{"$f":"Eing_Beginnjahr","v":0}]
["h",null,"Jahr der Inbetriebnahme / erste Wärmelieferung",{"$f":"E1_Projektdaten!D23","v":0}]
[]
[610,"Investitionskosten",{"$nulls":7},{"$f":"D34","v":0},{"$f":"E34","v":0},{"$f":"B1_Berechnungen!B67","v":24}]
["145a",null,"Baukosten Gebäude Umgebung",{"$f":"Eing_Kosten_Bau","v":0},"EUR",{"$nulls":4},"[EUR]","[EUR]","[EUR]"]
[612,null,"Wärmeerzeugung und Installationen",{"$f":"SUM(E1_Projektdaten!D69:D76)","v":0},"EUR",null,null,"Bilanz","Kreditstand",{"$f":"_xlfn.XLOOKUP(J$21,B1_Berechnungen!$B$43:$B$67,B1_Berechnungen!$AR$43:$AR$67)","v":0},{"$f":"_xlfn.XLOOKUP(K$21,B1_Berechnungen!$B$43:$B$67,B1_Berechnungen!$AR$43:$AR$67)","v":0},{"$f":"_xlfn.XLOOKUP(L$21,B1_Berechnungen!$B$43:$B$67,B1_Berechnungen!$AR$43:$AR$67)","v":0},null,592]
["145j",null,"Wärmenetz inkl. Tiefbau",{"$f":"E1_Projektdaten!D77","v":0},"EUR",{"$nulls":3},"Restwert der Anlage",{"$f":"_xlfn.XLOOKUP(J$21,B1_Berechnungen!$B$43:$B$67,B1_Berechnungen!$AQ$43:$AQ$67)","v":0},{"$f":"_xlfn.XLOOKUP(K$21,B1_Berechnungen!$B$43:$B$67,B1_Berechnungen!$AQ$43:$AQ$67)","v":0},{"$f":"_xlfn.XLOOKUP(L$21,B1_Berechnungen!$B$43:$B$67,B1_Berechnungen!$AQ$43:$AQ$67)","v":0},null,591]
[613,null,"Hausstationen, Wärmemessung, -übergabe",{"$f":"SUM(E1_Projektdaten!D78:D79)","v":0},"EUR"]
["145m",null,"Planung und Unvorhergesehenes",{"$f":"Eing_Kosten_Planung_QM","v":0},"EUR",{"$nulls":8},506]
[145,null,"Gesamte Investitionskosten",{"$f":"Gesamtinvestition","v":0},"EUR"]
[615,"Finanzierung"]
[155,null,"Eigenkapital",{"$f":"Eing_Eigenkapital","v":0},"EUR"]
[160,null,"Kredite/Darlehen",{"$f":"B1_Berechnungen!F36","v":0},"EUR"]
[165,null,"Gesamtsumme Förderung",{"$f":"B1_Berechnungen!F33","v":0},"EUR"]
[543,null,"Total Anschlusbeiträge",{"$f":"B1_Berechnungen!F34","v":0},"EUR"]
[]
[620,"Jahreskosten",null,{"$f":"D19","v":0},null,{"$f":"\"bis \"&B1_Berechnungen!B67","v":"bis 24"}]
[{"$nulls":3},"[EUR/a]","[EUR/a]","[EUR]"]
[621,"Aufwand","Energiekosten",{"$f":"SUM(_xlfn.XLOOKUP(D34,B1_Berechnungen!$B$43:$B$67,B1_Berechnungen!$U$43:$U$67):_xlfn.XLOOKUP(D34,B1_Berechnungen!$B$43:$B$67,B1_Berechnungen!$AA$43:$AA$67))","v":0},{"$f":"SUM(_xlfn.XLOOKUP(E34,B1_Berechnungen!$B$43:$B$67,B1_Berechnungen!$U$43:$U$67):_xlfn.XLOOKUP(E34,B1_Berechnungen!$B$43:$B$67,B1_Berechnungen!$AA$43:$AA$67))","v":{"$error":"#N/A"}},{"$f":"SUM(B1_Berechnungen!U43:AA67)","v":0}]
[622,null,"Betrieb, Unterhalt , Sonstiges",{"$f":"SUM(_xlfn.XLOOKUP(D34,B1_Berechnungen!$B$43:$B$67,B1_Berechnungen!$AB$43:$AB$67):_xlfn.XLOOKUP(D34,B1_Berechnungen!$B$43:$B$67,B1_Berechnungen!$AE$43:$AE$67))","v":0},{"$f":"SUM(_xlfn.XLOOKUP(E34,B1_Berechnungen!$B$43:$B$67,B1_Berechnungen!$AB$43:$AB$67):_xlfn.XLOOKUP(E34,B1_Berechnungen!$B$43:$B$67,B1_Berechnungen!$AE$43:$AE$67))","v":{"$error":"#N/A"}},{"$f":"SUM(B1_Berechnungen!AB43:AE67)","v":0}]
[623,null,"Zinsen",{"$f":"_xlfn.XLOOKUP(D34,B1_Berechnungen!$B$43:$B$67,B1_Berechnungen!$AG$43:$AG$67)","v":0},{"$f":"_xlfn.XLOOKUP(E34,B1_Berechnungen!$B$43:$B$67,B1_Berechnungen!$AG$43:$AG$67)","v":{"$error":"#N/A"}},{"$f":"SUM(B1_Berechnungen!AG43:AG67)","v":0}]
[624,null,"Total Aufwand",{"$f":"SUM(D36:D38)","v":0},{"$error":"#N/A"},0]
[625,"Ertrag","Wärme- und Energieverkauf",{"$f":"SUM(_xlfn.XLOOKUP(D$34,B1_Berechnungen!$B$43:$B$67,B1_Berechnungen!$N$43:$N$67):_xlfn.XLOOKUP(D$34,B1_Berechnungen!$B$43:$B$67,B1_Berechnungen!$P$43:$P$67))","v":0},{"$f":"SUM(_xlfn.XLOOKUP(E$34,B1_Berechnungen!$B$43:$B$67,B1_Berechnungen!$N$43:$N$67):_xlfn.XLOOKUP(E$34,B1_Berechnungen!$B$43:$B$67,B1_Berechnungen!$P$43:$P$67))","v":{"$error":"#N/A"}},{"$f":"SUM(B1_Berechnungen!N43:P67)","v":0}]
[626,null,"jährl. Fördergelder, Sonstiges",{"$f":"SUM(_xlfn.XLOOKUP(D$34,B1_Berechnungen!$B$43:$B$67,B1_Berechnungen!$Q$43:$Q$67):_xlfn.XLOOKUP(D$34,B1_Berechnungen!$B$43:$B$67,B1_Berechnungen!$S$43:$S$67))","v":0},{"$f":"SUM(_xlfn.XLOOKUP(E$34,B1_Berechnungen!$B$43:$B$67,B1_Berechnungen!$Q$43:$Q$67):_xlfn.XLOOKUP(E$34,B1_Berechnungen!$B$43:$B$67,B1_Berechnungen!$S$43:$S$67))","v":{"$error":"#N/A"}},{"$f":"SUM(B1_Berechnungen!Q43:S67)","v":0}]
[627,null,"Total Ertrag",{"$f":"SUM(D40:D41)","v":0},{"$f":"SUM(E40:E41)","v":{"$error":"#N/A"}},{"$f":"SUM(F40:F41)","v":0},null,"Bemerkungen",{"$nulls":5},690]
[]
[505]

{"sheet":"A2_Planerfolgsrechnung","index":6,"n_rows":43,"n_cols":29,"rows_kept":43,"merged":[[3,2,3,7],[12,2,12,6]]}
[700,"QM Holzheizwerke - Wirtschaftlichkeitsmodell - Planerfolgsrechnung"]
[]
["101a",null,"Eingabefeld"]
["101b",null,"Standardwert oder Berechnung (kann geändert werden)"]
["101k","(exkl. MWST)"]
[]
[106,"Projekt/Variante:",{"$f":"IF(E1_Projektdaten!C8=0,\"\",E1_Projektdaten!C8)","v":""}]
[null,null,{"$f":"IF(E1_Projektdaten!C9=0,\"\",E1_Projektdaten!C9)","v":""}]
[null,null,{"$f":"IF(E1_Projektdaten!C10=0,\"\",E1_Projektdaten!C10)","v":""}]
[]
[107,"Erfasst von:",{"$f":"IF(E1_Projektdaten!C12=0,\"\",E1_Projektdaten!C12)","v":""}]
[]
[501,"Warnungen:",{"$f":"IF(E1_Projektdaten!C14<>\"\",E1_Projektdaten!Y15,\"\")","v":"Es existieren Warnungen im Register 'E1_Projektdaten'!"}]
[]
[531,"Ertrag",null,null,{"$f":"TRANSPOSE(B1_Berechnungen!B$43:B$67)","v":0},1,2,3,4,5,6,7,8,9,10,11,12,13,14,15,16,17,18,19,20,21,22,23,24]
[561,null,"Wärmeverkauf\n(inkl. jährl. Grundpreis)","[EUR]",{"$f":"TRANSPOSE(B1_Berechnungen!N$43:N$67)","v":0},0,0,0,0,0,0,0,0,0,0,0,0,0,0,0,0,0,0,0,0,0,0,0,0]
[562,null,"Stromeinspeisung","[EUR]",{"$f":"TRANSPOSE(B1_Berechnungen!O$43:O$67)","v":0},0,0,0,0,0,0,0,0,0,0,0,0,0,0,0,0,0,0,0,0,0,0,0,0]
[563,null,"Pflanzenkohle","[EUR]",{"$f":"TRANSPOSE(B1_Berechnungen!P$43:P$67)","v":0},0,0,0,0,0,0,0,0,0,0,0,0,0,0,0,0,0,0,0,0,0,0,0,0]
[564,null,"Förderung\njährlich","[EUR]",{"$f":"TRANSPOSE(B1_Berechnungen!Q$43:Q$67)","v":0},0,0,0,0,0,0,0,0,0,0,0,0,0,0,0,0,0,0,0,0,0,0,0,0]
[566,null,"Zusätzlicher Ertrag","[EUR]",{"$f":"TRANSPOSE(B1_Berechnungen!R$43:R$67)","v":0},0,0,0,0,0,0,0,0,0,0,0,0,0,0,0,0,0,0,0,0,0,0,0,0]
[569,"Gesamtertrag",null,"[EUR]",{"$f":"SUM(E16:E20)","v":0},{"$f":"SUM(F16:F20)","v":0},0,0,0,0,0,0,0,0,0,0,0,0,0,0,0,0,0,0,0,0,0,0,0]
[]
[null,"Aufwand",null,null,{"$f":"TRANSPOSE(B1_Berechnungen!B$43:B$67)","v":0},1,2,3,4,5,6,7,8,9,10,11,12,13,14,15,16,17,18,19,20,21,22,23,24]
["571a","Energie","Holzschnitzel","[EUR]",{"$f":"TRANSPOSE(B1_Berechnungen!U$43:U$67)","v":0},0,0,0,0,0,0,0,0,0,0,0,0,0,0,0,0,0,0,0,0,0,0,0,0]
["571b",null,"WKK","[EUR]",{"$f":"TRANSPOSE(B1_Berechnungen!V$43:V$67)","v":0},0,0,0,0,0,0,0,0,0,0,0,0,0,0,0,0,0,0,0,0,0,0,0,0]
["571c",null,"Zusatzwärmeerzeuger","[EUR]",{"$f":"TRANSPOSE(B1_Berechnungen!W$43:W$67)","v":0},0,0,0,0,0,0,0,0,0,0,0,0,0,0,0,0,0,0,0,0,0,0,0,0]
["571d",null,"Abwärmenutzung","[EUR]",{"$f":"TRANSPOSE(B1_Berechnungen!X$43:X$67)","v":0},0,0,0,0,0,0,0,0,0,0,0,0,0,0,0,0,0,0,0,0,0,0,0,0]
["571e",null,"Brennstoff fossil","[EUR]",{"$f":"TRANSPOSE(B1_Berechnungen!Y$43:Y$67)","v":0},0,0,0,0,0,0,0,0,0,0,0,0,0,0,0,0,0,0,0,0,0,0,0,0]
["572a",null,"Strom WP","[EUR]",{"$f":"TRANSPOSE(B1_Berechnungen!Z$43:Z$67)","v":0},0,0,0,0,0,0,0,0,0,0,0,0,0,0,0,0,0,0,0,0,0,0,0,0]
["572b",null,"Strom (Hilfsenergie)","[EUR]",{"$f":"TRANSPOSE(B1_Berechnungen!AA$43:AA$67)","v":0},0,0,0,0,0,0,0,0,0,0,0,0,0,0,0,0,0,0,0,0,0,0,0,0]
[710,"Bruttoergebnis",null,"[EUR]",{"$f":"E21-SUM(E24:E30)","v":0},{"$f":"F21-SUM(F24:F30)","v":0},0,0,0,0,0,0,0,0,0,0,0,0,0,0,0,0,0,0,0,0,0,0,0]
["574a","Betrieb/Unterhalt","Betrieb + Administration","[EUR]",{"$f":"TRANSPOSE(B1_Berechnungen!AB$43:AB$67)","v":0},0,0,0,0,0,0,0,0,0,0,0,0,0,0,0,0,0,0,0,0,0,0,0,0]
["574b",null,"Unterhalt","[EUR]",{"$f":"TRANSPOSE(B1_Berechnungen!AC$43:AC$67)","v":0},0,0,0,0,0,0,0,0,0,0,0,0,0,0,0,0,0,0,0,0,0,0,0,0]
[575,null,"Sonstige\n+ Miete/\nPacht","[EUR]",{"$f":"TRANSPOSE(B1_Berechnungen!AD$43:AD$67)","v":0},0,0,0,0,0,0,0,0,0,0,0,0,0,0,0,0,0,0,0,0,0,0,0,0]
[576,null,"Zusätzlicher Aufwand","[EUR]",{"$f":"TRANSPOSE(B1_Berechnungen!AE$43:AE$67)","v":0},0,0,0,0,0,0,0,0,0,0,0,0,0,0,0,0,0,0,0,0,0,0,0,0]
[711,"EBITDA",null,"[EUR]",{"$f":"E31-SUM(E32:E35)","v":0},{"$f":"F31-SUM(F32:F35)","v":0},0,0,0,0,0,0,0,0,0,0,0,0,0,0,0,0,0,0,0,0,0,0,0]
[585,null,"Abschreibung","[EUR]",{"$f":"TRANSPOSE(B1_Berechnungen!AM$43:AM$67)","v":0},0,0,0,0,0,0,0,0,0,0,0,0,0,0,0,0,0,0,0,0,0,0,0,0]
[712,"EBIT",null,"[EUR]",{"$f":"E36-E37","v":0},{"$f":"F36-F37","v":0},0,0,0,0,0,0,0,0,0,0,0,0,0,0,0,0,0,0,0,0,0,0,0]
[578,null,"Zins Kredite","[EUR]",{"$f":"TRANSPOSE(B1_Berechnungen!AG$43:AG$67)","v":0},0,0,0,0,0,0,0,0,0,0,0,0,0,0,0,0,0,0,0,0,0,0,0,0]
[713,null,"übriger Finanzaufwand","[EUR]",0,0,0,0,0,0,0,0,0,0,0,0,0,0,0,0,0,0,0,0,0,0,0,0,0]
[714,null,"Steuern","[EUR]",0,0,0,0,0,0,0,0,0,0,0,0,0,0,0,0,0,0,0,0,0,0,0,0,0]
[715,"Reingewinn /-Verlust",null,"[EUR]",{"$f":"E38-SUM(E39:E41)","v":0},{"$f":"F38-SUM(F39:F41)","v":0},0,0,0,0,0,0,0,0,0,0,0,0,0,0,0,0,0,0,0,0,0,0,0]
[716,"Kummulierter Reingewinn / -Verlust",null,"[EUR]",{"$f":"E42","v":0},{"$f":"E43+F42","v":0},{"$f":"F43+G42","v":0},0,0,0,0,0,0,0,0,0,0,0,0,0,0,0,0,0,0,0,0,0,0]

{"sheet":"A9_NPV-Daten","index":7,"n_rows":80,"n_cols":22,"rows_kept":80,"merged":[[6,2,7,2],[6,3,7,3],[6,4,7,4],[6,5,7,5]]}
[900,"QM Holzheizwerke - Zusammenstellung für KliK-Tool \"Nachweis der Zusätzlichkeit von Fernwärmeprojekten\""]
[]
[104,null,"Ausgabefelder"]
[]
[910,"Register Inputgrössen; Abschnitt Referenzentwicklung"]
[911,null,"Schlüsselkunden (oder Gruppe von Schlüsselkunden gleicher Charakteristik)"]
[null,null,"Bezeichnung","Gebäudetyp & Bezugscharakteristik","Leistung [kW]","Jahreswärmebedarf [MWh/a]"]
[]
[null,null,{"$f":"E3_Verbraucher!$D15","v":0},null,{"$f":"E3_Verbraucher!$D19","v":0},{"$f":"E3_Verbraucher!$D18","v":0}]
[null,null,{"$f":"E3_Verbraucher!$E15","v":0},null,{"$f":"E3_Verbraucher!$E19","v":0},{"$f":"E3_Verbraucher!$E18","v":0}]
[null,null,{"$f":"E3_Verbraucher!$F15","v":0},null,{"$f":"E3_Verbraucher!$F19","v":0},{"$f":"E3_Verbraucher!$F18","v":0}]
[null,null,{"$f":"E3_Verbraucher!$G15","v":0},null,{"$f":"E3_Verbraucher!$G19","v":0},{"$f":"E3_Verbraucher!$G18","v":0}]
[null,null,{"$f":"E3_Verbraucher!$H15","v":0},null,{"$f":"E3_Verbraucher!$H19","v":0},{"$f":"E3_Verbraucher!$H18","v":0}]
[null,null,{"$f":"E3_Verbraucher!$I15","v":0},null,{"$f":"E3_Verbraucher!$I19","v":0},{"$f":"E3_Verbraucher!$I18","v":0}]
[null,null,{"$f":"E3_Verbraucher!$J15","v":0},null,{"$f":"E3_Verbraucher!$J19","v":0},{"$f":"E3_Verbraucher!$J18","v":0}]
[null,null,{"$f":"E3_Verbraucher!$K15","v":0},null,{"$f":"E3_Verbraucher!$K19","v":0},{"$f":"E3_Verbraucher!$K18","v":0}]
[null,null,{"$f":"E3_Verbraucher!$L15","v":0},null,{"$f":"E3_Verbraucher!$L19","v":0},{"$f":"E3_Verbraucher!$L18","v":0}]
[null,null,{"$f":"E3_Verbraucher!$M15","v":0},null,{"$f":"E3_Verbraucher!$M19","v":0},{"$f":"E3_Verbraucher!$M18","v":0}]
[null,null,{"$f":"E3_Verbraucher!$N15","v":0},null,{"$f":"E3_Verbraucher!$N19","v":0},{"$f":"E3_Verbraucher!$N18","v":0}]
[null,null,{"$f":"E3_Verbraucher!$O15","v":0},null,{"$f":"E3_Verbraucher!$O19","v":0},{"$f":"E3_Verbraucher!$O18","v":0}]
[null,null,{"$f":"E3_Verbraucher!$P15","v":0},null,{"$f":"E3_Verbraucher!$P19","v":0},{"$f":"E3_Verbraucher!$P18","v":0}]
[null,null,{"$f":"E3_Verbraucher!$Q15","v":0},null,{"$f":"E3_Verbraucher!$Q19","v":0},{"$f":"E3_Verbraucher!$Q18","v":0}]
[null,null,{"$f":"E3_Verbraucher!$R15","v":0},null,{"$f":"E3_Verbraucher!$R19","v":0},{"$f":"E3_Verbraucher!$R18","v":0}]
[null,null,"Schlüsselkunden (oder Gruppe von Schlüsselkunden gleicher Charakteristik)"]
[912,null,null,"Jahr Anschluss","Leistung im Vollausbau [kW] "]
[null,null,{"$f":"C9","v":0},{"$f":"E3_Verbraucher!$D21","v":0},{"$f":"E9","v":0}]
[null,null,{"$f":"C10","v":0},{"$f":"E3_Verbraucher!$E21","v":0},0]
[null,null,0,{"$f":"E3_Verbraucher!$F21","v":0},0]
[null,null,0,{"$f":"E3_Verbraucher!$G21","v":0},0]
[null,null,0,{"$f":"E3_Verbraucher!$H21","v":0},0]
[null,null,0,{"$f":"E3_Verbraucher!$I21","v":0},0]
[null,null,0,{"$f":"E3_Verbraucher!$J21","v":0},0]
[null,null,0,{"$f":"E3_Verbraucher!$K21","v":0},0]
[null,null,0,{"$f":"E3_Verbraucher!$L21","v":0},0]
[null,null,0,{"$f":"E3_Verbraucher!$M21","v":0},0]
[null,null,0,{"$f":"E3_Verbraucher!$N21","v":0},0]
[null,null,0,{"$f":"E3_Verbraucher!$O21","v":0},0]
[null,null,0,{"$f":"E3_Verbraucher!$P21","v":0},0]
[null,null,0,{"$f":"E3_Verbraucher!$Q21","v":0},0]
[null,null,0,{"$f":"E3_Verbraucher!$R21","v":0},0]
[]
[920,"Register Wärmebezug; Abschnitt Referenzentwicklung",null,{"$f":"E1_Projektdaten!D23","v":0},{"$f":"D42+1","v":1},{"$f":"E42+1","v":2},3,4,5,6,7,8,9,10,11,12,13,14,15]
[null,"Schlüsselkunden"]
[921,"Wärmebezug (Nutzenergie) (inkl. Auswirkungen Gebäudesanierung)"]
[null,{"$f":"C9","v":0},"[MWh/a]",{"$f":"E3_Verbraucher!$D18*(E3_Verbraucher!$D21<D$42)+E3_Verbraucher!$D18*(E3_Verbraucher!$D21=D$42)*E3_Verbraucher!$D20","v":0},{"$f":"E3_Verbraucher!$D18*(E3_Verbraucher!$D21<E$42)+E3_Verbraucher!$D18*(E3_Verbraucher!$D21=E$42)*E3_Verbraucher!$D20","v":0},{"$f":"E3_Verbraucher!$D18*(E3_Verbraucher!$D21<F$42)+E3_Verbraucher!$D18*(E3_Verbraucher!$D21=F$42)*E3_Verbraucher!$D20","v":0},{"$f":"E3_Verbraucher!$D18*(E3_Verbraucher!$D21<G$42)+E3_Verbraucher!$D18*(E3_Verbraucher!$D21=G$42)*E3_Verbraucher!$D20","v":0},{"$f":"E3_Verbraucher!$D18*(E3_Verbraucher!$D21<H$42)+E3_Verbraucher!$D18*(E3_Verbraucher!$D21=H$42)*E3_Verbraucher!$D20","v":0},{"$f":"E3_Verbraucher!$D18*(E3_Verbraucher!$D21<I$42)+E3_Verbraucher!$D18*(E3_Verbraucher!$D21=I$42)*E3_Verbraucher!$D20","v":0},{"$f":"E3_Verbraucher!$D18*(E3_Verbraucher!$D21<J$42)+E3_Verbraucher!$D18*(E3_Verbraucher!$D21=J$42)*E3_Verbraucher!$D20","v":0},{"$f":"E3_Verbraucher!$D18*(E3_Verbraucher!$D21<K$42)+E3_Verbraucher!$D18*(E3_Verbraucher!$D21=K$42)*E3_Verbraucher!$D20","v":0},{"$f":"E3_Verbraucher!$D18*(E3_Verbraucher!$D21<L$42)+E3_Verbraucher!$D18*(E3_Verbraucher!$D21=L$42)*E3_Verbraucher!$D20","v":0},{"$f":"E3_Verbraucher!$D18*(E3_Verbraucher!$D21<M$42)+E3_Verbraucher!$D18*(E3_Verbraucher!$D21=M$42)*E3_Verbraucher!$D20","v":0},{"$f":"E3_Verbraucher!$D18*(E3_Verbraucher!$D21<N$42)+E3_Verbraucher!$D18*(E3_Verbraucher!$D21=N$42)*E3_Verbraucher!$D20","v":0},{"$f":"E3_Verbraucher!$D18*(E3_Verbraucher!$D21<O$42)+E3_Verbraucher!$D18*(E3_Verbraucher!$D21=O$42)*E3_Verbraucher!$D20","v":0},{"$f":"E3_Verbraucher!$D18*(E3_Verbraucher!$D21<P$42)+E3_Verbraucher!$D18*(E3_Verbraucher!$D21=P$42)*E3_Verbraucher!$D20","v":0},{"$f":"E3_Verbraucher!$D18*(E3_Verbraucher!$D21<Q$42)+E3_Verbraucher!$D18*(E3_Verbraucher!$D21=Q$42)*E3_Verbraucher!$D20","v":0},{"$f":"E3_Verbraucher!$D18*(E3_Verbraucher!$D21<R$42)+E3_Verbraucher!$D18*(E3_Verbraucher!$D21=R$42)*E3_Verbraucher!$D20","v":0},{"$f":"E3_Verbraucher!$D18*(E3_Verbraucher!$D21<S$42)+E3_Verbraucher!$D18*(E3_Verbraucher!$D21=S$42)*E3_Verbraucher!$D20","v":0}]
[null,{"$f":"C10","v":0},"[MWh/a]",{"$f":"E3_Verbraucher!$E18*(E3_Verbraucher!$E21<D$42)+E3_Verbraucher!$E18*(E3_Verbraucher!$E21=D$42)*E3_Verbraucher!$E20","v":0},{"$f":"E3_Verbraucher!$E18*(E3_Verbraucher!$E21<E$42)+E3_Verbraucher!$E18*(E3_Verbraucher!$E21=E$42)*E3_Verbraucher!$E20","v":0},{"$f":"E3_Verbraucher!$E18*(E3_Verbraucher!$E21<F$42)+E3_Verbraucher!$E18*(E3_Verbraucher!$E21=F$42)*E3_Verbraucher!$E20","v":0},{"$f":"E3_Verbraucher!$E18*(E3_Verbraucher!$E21<G$42)+E3_Verbraucher!$E18*(E3_Verbraucher!$E21=G$42)*E3_Verbraucher!$E20","v":0},{"$f":"E3_Verbraucher!$E18*(E3_Verbraucher!$E21<H$42)+E3_Verbraucher!$E18*(E3_Verbraucher!$E21=H$42)*E3_Verbraucher!$E20","v":0},{"$f":"E3_Verbraucher!$E18*(E3_Verbraucher!$E21<I$42)+E3_Verbraucher!$E18*(E3_Verbraucher!$E21=I$42)*E3_Verbraucher!$E20","v":0},{"$f":"E3_Verbraucher!$E18*(E3_Verbraucher!$E21<J$42)+E3_Verbraucher!$E18*(E3_Verbraucher!$E21=J$42)*E3_Verbraucher!$E20","v":0},{"$f":"E3_Verbraucher!$E18*(E3_Verbraucher!$E21<K$42)+E3_Verbraucher!$E18*(E3_Verbraucher!$E21=K$42)*E3_Verbraucher!$E20","v":0},{"$f":"E3_Verbraucher!$E18*(E3_Verbraucher!$E21<L$42)+E3_Verbraucher!$E18*(E3_Verbraucher!$E21=L$42)*E3_Verbraucher!$E20","v":0},{"$f":"E3_Verbraucher!$E18*(E3_Verbraucher!$E21<M$42)+E3_Verbraucher!$E18*(E3_Verbraucher!$E21=M$42)*E3_Verbraucher!$E20","v":0},{"$f":"E3_Verbraucher!$E18*(E3_Verbraucher!$E21<N$42)+E3_Verbraucher!$E18*(E3_Verbraucher!$E21=N$42)*E3_Verbraucher!$E20","v":0},{"$f":"E3_Verbraucher!$E18*(E3_Verbraucher!$E21<O$42)+E3_Verbraucher!$E18*(E3_Verbraucher!$E21=O$42)*E3_Verbraucher!$E20","v":0},{"$f":"E3_Verbraucher!$E18*(E3_Verbraucher!$E21<P$42)+E3_Verbraucher!$E18*(E3_Verbraucher!$E21=P$42)*E3_Verbraucher!$E20","v":0},{"$f":"E3_Verbraucher!$E18*(E3_Verbraucher!$E21<Q$42)+E3_Verbraucher!$E18*(E3_Verbraucher!$E21=Q$42)*E3_Verbraucher!$E20","v":0},{"$f":"E3_Verbraucher!$E18*(E3_Verbraucher!$E21<R$42)+E3_Verbraucher!$E18*(E3_Verbraucher!$E21=R$42)*E3_Verbraucher!$E20","v":0},{"$f":"E3_Verbraucher!$E18*(E3_Verbraucher!$E21<S$42)+E3_Verbraucher!$E18*(E3_Verbraucher!$E21=S$42)*E3_Verbraucher!$E20","v":0}]
[null,0,"[MWh/a]",{"$f":"E3_Verbraucher!$F18*(E3_Verbraucher!$F21<D$42)+E3_Verbraucher!$F18*(E3_Verbraucher!$F21=D$42)*E3_Verbraucher!$F20","v":0},{"$f":"E3_Verbraucher!$F18*(E3_Verbraucher!$F21<E$42)+E3_Verbraucher!$F18*(E3_Verbraucher!$F21=E$42)*E3_Verbraucher!$F20","v":0},{"$f":"E3_Verbraucher!$F18*(E3_Verbraucher!$F21<F$42)+E3_Verbraucher!$F18*(E3_Verbraucher!$F21=F$42)*E3_Verbraucher!$F20","v":0},{"$f":"E3_Verbraucher!$F18*(E3_Verbraucher!$F21<G$42)+E3_Verbraucher!$F18*(E3_Verbraucher!$F21=G$42)*E3_Verbraucher!$F20","v":0},{"$f":"E3_Verbraucher!$F18*(E3_Verbraucher!$F21<H$42)+E3_Verbraucher!$F18*(E3_Verbraucher!$F21=H$42)*E3_Verbraucher!$F20","v":0},{"$f":"E3_Verbraucher!$F18*(E3_Verbraucher!$F21<I$42)+E3_Verbraucher!$F18*(E3_Verbraucher!$F21=I$42)*E3_Verbraucher!$F20","v":0},{"$f":"E3_Verbraucher!$F18*(E3_Verbraucher!$F21<J$42)+E3_Verbraucher!$F18*(E3_Verbraucher!$F21=J$42)*E3_Verbraucher!$F20","v":0},{"$f":"E3_Verbraucher!$F18*(E3_Verbraucher!$F21<K$42)+E3_Verbraucher!$F18*(E3_Verbraucher!$F21=K$42)*E3_Verbraucher!$F20","v":0},{"$f":"E3_Verbraucher!$F18*(E3_Verbraucher!$F21<L$42)+E3_Verbraucher!$F18*(E3_Verbraucher!$F21=L$42)*E3_Verbraucher!$F20","v":0},{"$f":"E3_Verbraucher!$F18*(E3_Verbraucher!$F21<M$42)+E3_Verbraucher!$F18*(E3_Verbraucher!$F21=M$42)*E3_Verbraucher!$F20","v":0},{"$f":"E3_Verbraucher!$F18*(E3_Verbraucher!$F21<N$42)+E3_Verbraucher!$F18*(E3_Verbraucher!$F21=N$42)*E3_Verbraucher!$F20","v":0},{"$f":"E3_Verbraucher!$F18*(E3_Verbraucher!$F21<O$42)+E3_Verbraucher!$F18*(E3_Verbraucher!$F21=O$42)*E3_Verbraucher!$F20","v":0},{"$f":"E3_Verbraucher!$F18*(E3_Verbraucher!$F21<P$42)+E3_Verbraucher!$F18*(E3_Verbraucher!$F21=P$42)*E3_Verbraucher!$F20","v":0},{"$f":"E3_Verbraucher!$F18*(E3_Verbraucher!$F21<Q$42)+E3_Verbraucher!$F18*(E3_Verbraucher!$F21=Q$42)*E3_Verbraucher!$F20","v":0},{"$f":"E3_Verbraucher!$F18*(E3_Verbraucher!$F21<R$42)+E3_Verbraucher!$F18*(E3_Verbraucher!$F21=R$42)*E3_Verbraucher!$F20","v":0},{"$f":"E3_Verbraucher!$F18*(E3_Verbraucher!$F21<S$42)+E3_Verbraucher!$F18*(E3_Verbraucher!$F21=S$42)*E3_Verbraucher!$F20","v":0}]
[null,0,"[MWh/a]",{"$f":"E3_Verbraucher!$G18*(E3_Verbraucher!$G21<D$42)+E3_Verbraucher!$G18*(E3_Verbraucher!$G21=D$42)*E3_Verbraucher!$G20","v":0},{"$f":"E3_Verbraucher!$G18*(E3_Verbraucher!$G21<E$42)+E3_Verbraucher!$G18*(E3_Verbraucher!$G21=E$42)*E3_Verbraucher!$G20","v":0},{"$f":"E3_Verbraucher!$G18*(E3_Verbraucher!$G21<F$42)+E3_Verbraucher!$G18*(E3_Verbraucher!$G21=F$42)*E3_Verbraucher!$G20","v":0},{"$f":"E3_Verbraucher!$G18*(E3_Verbraucher!$G21<G$42)+E3_Verbraucher!$G18*(E3_Verbraucher!$G21=G$42)*E3_Verbraucher!$G20","v":0},{"$f":"E3_Verbraucher!$G18*(E3_Verbraucher!$G21<H$42)+E3_Verbraucher!$G18*(E3_Verbraucher!$G21=H$42)*E3_Verbraucher!$G20","v":0},{"$f":"E3_Verbraucher!$G18*(E3_Verbraucher!$G21<I$42)+E3_Verbraucher!$G18*(E3_Verbraucher!$G21=I$42)*E3_Verbraucher!$G20","v":0},{"$f":"E3_Verbraucher!$G18*(E3_Verbraucher!$G21<J$42)+E3_Verbraucher!$G18*(E3_Verbraucher!$G21=J$42)*E3_Verbraucher!$G20","v":0},{"$f":"E3_Verbraucher!$G18*(E3_Verbraucher!$G21<K$42)+E3_Verbraucher!$G18*(E3_Verbraucher!$G21=K$42)*E3_Verbraucher!$G20","v":0},{"$f":"E3_Verbraucher!$G18*(E3_Verbraucher!$G21<L$42)+E3_Verbraucher!$G18*(E3_Verbraucher!$G21=L$42)*E3_Verbraucher!$G20","v":0},{"$f":"E3_Verbraucher!$G18*(E3_Verbraucher!$G21<M$42)+E3_Verbraucher!$G18*(E3_Verbraucher!$G21=M$42)*E3_Verbraucher!$G20","v":0},{"$f":"E3_Verbraucher!$G18*(E3_Verbraucher!$G21<N$42)+E3_Verbraucher!$G18*(E3_Verbraucher!$G21=N$42)*E3_Verbraucher!$G20","v":0},{"$f":"E3_Verbraucher!$G18*(E3_Verbraucher!$G21<O$42)+E3_Verbraucher!$G18*(E3_Verbraucher!$G21=O$42)*E3_Verbraucher!$G20","v":0},{"$f":"E3_Verbraucher!$G18*(E3_Verbraucher!$G21<P$42)+E3_Verbraucher!$G18*(E3_Verbraucher!$G21=P$42)*E3_Verbraucher!$G20","v":0},{"$f":"E3_Verbraucher!$G18*(E3_Verbraucher!$G21<Q$42)+E3_Verbraucher!$G18*(E3_Verbraucher!$G21=Q$42)*E3_Verbraucher!$G20","v":0},{"$f":"E3_Verbraucher!$G18*(E3_Verbraucher!$G21<R$42)+E3_Verbraucher!$G18*(E3_Verbraucher!$G21=R$42)*E3_Verbraucher!$G20","v":0},{"$f":"E3_Verbraucher!$G18*(E3_Verbraucher!$G21<S$42)+E3_Verbraucher!$G18*(E3_Verbraucher!$G21=S$42)*E3_Verbraucher!$G20","v":0}]
[null,0,"[MWh/a]",{"$f":"E3_Verbraucher!$H18*(E3_Verbraucher!$H21<D$42)+E3_Verbraucher!$H18*(E3_Verbraucher!$H21=D$42)*E3_Verbraucher!$H20","v":0},{"$f":"E3_Verbraucher!$H18*(E3_Verbraucher!$H21<E$42)+E3_Verbraucher!$H18*(E3_Verbraucher!$H21=E$42)*E3_Verbraucher!$H20","v":0},{"$f":"E3_Verbraucher!$H18*(E3_Verbraucher!$H21<F$42)+E3_Verbraucher!$H18*(E3_Verbraucher!$H21=F$42)*E3_Verbraucher!$H20","v":0},{"$f":"E3_Verbraucher!$H18*(E3_Verbraucher!$H21<G$42)+E3_Verbraucher!$H18*(E3_Verbraucher!$H21=G$42)*E3_Verbraucher!$H20","v":0},{"$f":"E3_Verbraucher!$H18*(E3_Verbraucher!$H21<H$42)+E3_Verbraucher!$H18*(E3_Verbraucher!$H21=H$42)*E3_Verbraucher!$H20","v":0},{"$f":"E3_Verbraucher!$H18*(E3_Verbraucher!$H21<I$42)+E3_Verbraucher!$H18*(E3_Verbraucher!$H21=I$42)*E3_Verbraucher!$H20","v":0},{"$f":"E3_Verbraucher!$H18*(E3_Verbraucher!$H21<J$42)+E3_Verbraucher!$H18*(E3_Verbraucher!$H21=J$42)*E3_Verbraucher!$H20","v":0},{"$f":"E3_Verbraucher!$H18*(E3_Verbraucher!$H21<K$42)+E3_Verbraucher!$H18*(E3_Verbraucher!$H21=K$42)*E3_Verbraucher!$H20","v":0},{"$f":"E3_Verbraucher!$H18*(E3_Verbraucher!$H21<L$42)+E3_Verbraucher!$H18*(E3_Verbraucher!$H21=L$42)*E3_Verbraucher!$H20","v":0},{"$f":"E3_Verbraucher!$H18*(E3_Verbraucher!$H21<M$42)+E3_Verbraucher!$H18*(E3_Verbraucher!$H21=M$42)*E3_Verbraucher!$H20","v":0},{"$f":"E3_Verbraucher!$H18*(E3_Verbraucher!$H21<N$42)+E3_Verbraucher!$H18*(E3_Verbraucher!$H21=N$42)*E3_Verbraucher!$H20","v":0},{"$f":"E3_Verbraucher!$H18*(E3_Verbraucher!$H21<O$42)+E3_Verbraucher!$H18*(E3_Verbraucher!$H21=O$42)*E3_Verbraucher!$H20","v":0},{"$f":"E3_Verbraucher!$H18*(E3_Verbraucher!$H21<P$42)+E3_Verbraucher!$H18*(E3_Verbraucher!$H21=P$42)*E3_Verbraucher!$H20","v":0},{"$f":"E3_Verbraucher!$H18*(E3_Verbraucher!$H21<Q$42)+E3_Verbraucher!$H18*(E3_Verbraucher!$H21=Q$42)*E3_Verbraucher!$H20","v":0},{"$f":"E3_Verbraucher!$H18*(E3_Verbraucher!$H21<R$42)+E3_Verbraucher!$H18*(E3_Verbraucher!$H21=R$42)*E3_Verbraucher!$H20","v":0},{"$f":"E3_Verbraucher!$H18*(E3_Verbraucher!$H21<S$42)+E3_Verbraucher!$H18*(E3_Verbraucher!$H21=S$42)*E3_Verbraucher!$H20","v":0}]
[null,0,"[MWh/a]",{"$f":"E3_Verbraucher!$I18*(E3_Verbraucher!$I21<D$42)+E3_Verbraucher!$I18*(E3_Verbraucher!$I21=D$42)*E3_Verbraucher!$I20","v":0},{"$f":"E3_Verbraucher!$I18*(E3_Verbraucher!$I21<E$42)+E3_Verbraucher!$I18*(E3_Verbraucher!$I21=E$42)*E3_Verbraucher!$I20","v":0},{"$f":"E3_Verbraucher!$I18*(E3_Verbraucher!$I21<F$42)+E3_Verbraucher!$I18*(E3_Verbraucher!$I21=F$42)*E3_Verbraucher!$I20","v":0},{"$f":"E3_Verbraucher!$I18*(E3_Verbraucher!$I21<G$42)+E3_Verbraucher!$I18*(E3_Verbraucher!$I21=G$42)*E3_Verbraucher!$I20","v":0},{"$f":"E3_Verbraucher!$I18*(E3_Verbraucher!$I21<H$42)+E3_Verbraucher!$I18*(E3_Verbraucher!$I21=H$42)*E3_Verbraucher!$I20","v":0},{"$f":"E3_Verbraucher!$I18*(E3_Verbraucher!$I21<I$42)+E3_Verbraucher!$I18*(E3_Verbraucher!$I21=I$42)*E3_Verbraucher!$I20","v":0},{"$f":"E3_Verbraucher!$I18*(E3_Verbraucher!$I21<J$42)+E3_Verbraucher!$I18*(E3_Verbraucher!$I21=J$42)*E3_Verbraucher!$I20","v":0},{"$f":"E3_Verbraucher!$I18*(E3_Verbraucher!$I21<K$42)+E3_Verbraucher!$I18*(E3_Verbraucher!$I21=K$42)*E3_Verbraucher!$I20","v":0},{"$f":"E3_Verbraucher!$I18*(E3_Verbraucher!$I21<L$42)+E3_Verbraucher!$I18*(E3_Verbraucher!$I21=L$42)*E3_Verbraucher!$I20","v":0},{"$f":"E3_Verbraucher!$I18*(E3_Verbraucher!$I21<M$42)+E3_Verbraucher!$I18*(E3_Verbraucher!$I21=M$42)*E3_Verbraucher!$I20","v":0},{"$f":"E3_Verbraucher!$I18*(E3_Verbraucher!$I21<N$42)+E3_Verbraucher!$I18*(E3_Verbraucher!$I21=N$42)*E3_Verbraucher!$I20","v":0},{"$f":"E3_Verbraucher!$I18*(E3_Verbraucher!$I21<O$42)+E3_Verbraucher!$I18*(E3_Verbraucher!$I21=O$42)*E3_Verbraucher!$I20","v":0},{"$f":"E3_Verbraucher!$I18*(E3_Verbraucher!$I21<P$42)+E3_Verbraucher!$I18*(E3_Verbraucher!$I21=P$42)*E3_Verbraucher!$I20","v":0},{"$f":"E3_Verbraucher!$I18*(E3_Verbraucher!$I21<Q$42)+E3_Verbraucher!$I18*(E3_Verbraucher!$I21=Q$42)*E3_Verbraucher!$I20","v":0},{"$f":"E3_Verbraucher!$I18*(E3_Verbraucher!$I21<R$42)+E3_Verbraucher!$I18*(E3_Verbraucher!$I21=R$42)*E3_Verbraucher!$I20","v":0},{"$f":"E3_Verbraucher!$I18*(E3_Verbraucher!$I21<S$42)+E3_Verbraucher!$I18*(E3_Verbraucher!$I21=S$42)*E3_Verbraucher!$I20","v":0}]
[null,0,"[MWh/a]",{"$f":"E3_Verbraucher!$J18*(E3_Verbraucher!$J21<D$42)+E3_Verbraucher!$J18*(E3_Verbraucher!$J21=D$42)*E3_Verbraucher!$J20","v":0},{"$f":"E3_Verbraucher!$J18*(E3_Verbraucher!$J21<E$42)+E3_Verbraucher!$J18*(E3_Verbraucher!$J21=E$42)*E3_Verbraucher!$J20","v":0},{"$f":"E3_Verbraucher!$J18*(E3_Verbraucher!$J21<F$42)+E3_Verbraucher!$J18*(E3_Verbraucher!$J21=F$42)*E3_Verbraucher!$J20","v":0},{"$f":"E3_Verbraucher!$J18*(E3_Verbraucher!$J21<G$42)+E3_Verbraucher!$J18*(E3_Verbraucher!$J21=G$42)*E3_Verbraucher!$J20","v":0},{"$f":"E3_Verbraucher!$J18*(E3_Verbraucher!$J21<H$42)+E3_Verbraucher!$J18*(E3_Verbraucher!$J21=H$42)*E3_Verbraucher!$J20","v":0},{"$f":"E3_Verbraucher!$J18*(E3_Verbraucher!$J21<I$42)+E3_Verbraucher!$J18*(E3_Verbraucher!$J21=I$42)*E3_Verbraucher!$J20","v":0},{"$f":"E3_Verbraucher!$J18*(E3_Verbraucher!$J21<J$42)+E3_Verbraucher!$J18*(E3_Verbraucher!$J21=J$42)*E3_Verbraucher!$J20","v":0},{"$f":"E3_Verbraucher!$J18*(E3_Verbraucher!$J21<K$42)+E3_Verbraucher!$J18*(E3_Verbraucher!$J21=K$42)*E3_Verbraucher!$J20","v":0},{"$f":"E3_Verbraucher!$J18*(E3_Verbraucher!$J21<L$42)+E3_Verbraucher!$J18*(E3_Verbraucher!$J21=L$42)*E3_Verbraucher!$J20","v":0},{"$f":"E3_Verbraucher!$J18*(E3_Verbraucher!$J21<M$42)+E3_Verbraucher!$J18*(E3_Verbraucher!$J21=M$42)*E3_Verbraucher!$J20","v":0},{"$f":"E3_Verbraucher!$J18*(E3_Verbraucher!$J21<N$42)+E3_Verbraucher!$J18*(E3_Verbraucher!$J21=N$42)*E3_Verbraucher!$J20","v":0},{"$f":"E3_Verbraucher!$J18*(E3_Verbraucher!$J21<O$42)+E3_Verbraucher!$J18*(E3_Verbraucher!$J21=O$42)*E3_Verbraucher!$J20","v":0},{"$f":"E3_Verbraucher!$J18*(E3_Verbraucher!$J21<P$42)+E3_Verbraucher!$J18*(E3_Verbraucher!$J21=P$42)*E3_Verbraucher!$J20","v":0},{"$f":"E3_Verbraucher!$J18*(E3_Verbraucher!$J21<Q$42)+E3_Verbraucher!$J18*(E3_Verbraucher!$J21=Q$42)*E3_Verbraucher!$J20","v":0},{"$f":"E3_Verbraucher!$J18*(E3_Verbraucher!$J21<R$42)+E3_Verbraucher!$J18*(E3_Verbraucher!$J21=R$42)*E3_Verbraucher!$J20","v":0},{"$f":"E3_Verbraucher!$J18*(E3_Verbraucher!$J21<S$42)+E3_Verbraucher!$J18*(E3_Verbraucher!$J21=S$42)*E3_Verbraucher!$J20","v":0}]
[null,0,"[MWh/a]",{"$f":"E3_Verbraucher!$K18*(E3_Verbraucher!$K21<D$42)+E3_Verbraucher!$K18*(E3_Verbraucher!$K21=D$42)*E3_Verbraucher!$K20","v":0},{"$f":"E3_Verbraucher!$K18*(E3_Verbraucher!$K21<E$42)+E3_Verbraucher!$K18*(E3_Verbraucher!$K21=E$42)*E3_Verbraucher!$K20","v":0},{"$f":"E3_Verbraucher!$K18*(E3_Verbraucher!$K21<F$42)+E3_Verbraucher!$K18*(E3_Verbraucher!$K21=F$42)*E3_Verbraucher!$K20","v":0},{"$f":"E3_Verbraucher!$K18*(E3_Verbraucher!$K21<G$42)+E3_Verbraucher!$K18*(E3_Verbraucher!$K21=G$42)*E3_Verbraucher!$K20","v":0},{"$f":"E3_Verbraucher!$K18*(E3_Verbraucher!$K21<H$42)+E3_Verbraucher!$K18*(E3_Verbraucher!$K21=H$42)*E3_Verbraucher!$K20","v":0},{"$f":"E3_Verbraucher!$K18*(E3_Verbraucher!$K21<I$42)+E3_Verbraucher!$K18*(E3_Verbraucher!$K21=I$42)*E3_Verbraucher!$K20","v":0},{"$f":"E3_Verbraucher!$K18*(E3_Verbraucher!$K21<J$42)+E3_Verbraucher!$K18*(E3_Verbraucher!$K21=J$42)*E3_Verbraucher!$K20","v":0},{"$f":"E3_Verbraucher!$K18*(E3_Verbraucher!$K21<K$42)+E3_Verbraucher!$K18*(E3_Verbraucher!$K21=K$42)*E3_Verbraucher!$K20","v":0},{"$f":"E3_Verbraucher!$K18*(E3_Verbraucher!$K21<L$42)+E3_Verbraucher!$K18*(E3_Verbraucher!$K21=L$42)*E3_Verbraucher!$K20","v":0},{"$f":"E3_Verbraucher!$K18*(E3_Verbraucher!$K21<M$42)+E3_Verbraucher!$K18*(E3_Verbraucher!$K21=M$42)*E3_Verbraucher!$K20","v":0},{"$f":"E3_Verbraucher!$K18*(E3_Verbraucher!$K21<N$42)+E3_Verbraucher!$K18*(E3_Verbraucher!$K21=N$42)*E3_Verbraucher!$K20","v":0},{"$f":"E3_Verbraucher!$K18*(E3_Verbraucher!$K21<O$42)+E3_Verbraucher!$K18*(E3_Verbraucher!$K21=O$42)*E3_Verbraucher!$K20","v":0},{"$f":"E3_Verbraucher!$K18*(E3_Verbraucher!$K21<P$42)+E3_Verbraucher!$K18*(E3_Verbraucher!$K21=P$42)*E3_Verbraucher!$K20","v":0},{"$f":"E3_Verbraucher!$K18*(E3_Verbraucher!$K21<Q$42)+E3_Verbraucher!$K18*(E3_Verbraucher!$K21=Q$42)*E3_Verbraucher!$K20","v":0},{"$f":"E3_Verbraucher!$K18*(E3_Verbraucher!$K21<R$42)+E3_Verbraucher!$K18*(E3_Verbraucher!$K21=R$42)*E3_Verbraucher!$K20","v":0},{"$f":"E3_Verbraucher!$K18*(E3_Verbraucher!$K21<S$42)+E3_Verbraucher!$K18*(E3_Verbraucher!$K21=S$42)*E3_Verbraucher!$K20","v":0}]
[null,0,"[MWh/a]",{"$f":"E3_Verbraucher!$L18*(E3_Verbraucher!$L21<D$42)+E3_Verbraucher!$L18*(E3_Verbraucher!$L21=D$42)*E3_Verbraucher!$L20","v":0},{"$f":"E3_Verbraucher!$L18*(E3_Verbraucher!$L21<E$42)+E3_Verbraucher!$L18*(E3_Verbraucher!$L21=E$42)*E3_Verbraucher!$L20","v":0},{"$f":"E3_Verbraucher!$L18*(E3_Verbraucher!$L21<F$42)+E3_Verbraucher!$L18*(E3_Verbraucher!$L21=F$42)*E3_Verbraucher!$L20","v":0},{"$f":"E3_Verbraucher!$L18*(E3_Verbraucher!$L21<G$42)+E3_Verbraucher!$L18*(E3_Verbraucher!$L21=G$42)*E3_Verbraucher!$L20","v":0},{"$f":"E3_Verbraucher!$L18*(E3_Verbraucher!$L21<H$42)+E3_Verbraucher!$L18*(E3_Verbraucher!$L21=H$42)*E3_Verbraucher!$L20","v":0},{"$f":"E3_Verbraucher!$L18*(E3_Verbraucher!$L21<I$42)+E3_Verbraucher!$L18*(E3_Verbraucher!$L21=I$42)*E3_Verbraucher!$L20","v":0},{"$f":"E3_Verbraucher!$L18*(E3_Verbraucher!$L21<J$42)+E3_Verbraucher!$L18*(E3_Verbraucher!$L21=J$42)*E3_Verbraucher!$L20","v":0},{"$f":"E3_Verbraucher!$L18*(E3_Verbraucher!$L21<K$42)+E3_Verbraucher!$L18*(E3_Verbraucher!$L21=K$42)*E3_Verbraucher!$L20","v":0},{"$f":"E3_Verbraucher!$L18*(E3_Verbraucher!$L21<L$42)+E3_Verbraucher!$L18*(E3_Verbraucher!$L21=L$42)*E3_Verbraucher!$L20","v":0},{"$f":"E3_Verbraucher!$L18*(E3_Verbraucher!$L21<M$42)+E3_Verbraucher!$L18*(E3_Verbraucher!$L21=M$42)*E3_Verbraucher!$L20","v":0},{"$f":"E3_Verbraucher!$L18*(E3_Verbraucher!$L21<N$42)+E3_Verbraucher!$L18*(E3_Verbraucher!$L21=N$42)*E3_Verbraucher!$L20","v":0},{"$f":"E3_Verbraucher!$L18*(E3_Verbraucher!$L21<O$42)+E3_Verbraucher!$L18*(E3_Verbraucher!$L21=O$42)*E3_Verbraucher!$L20","v":0},{"$f":"E3_Verbraucher!$L18*(E3_Verbraucher!$L21<P$42)+E3_Verbraucher!$L18*(E3_Verbraucher!$L21=P$42)*E3_Verbraucher!$L20","v":0},{"$f":"E3_Verbraucher!$L18*(E3_Verbraucher!$L21<Q$42)+E3_Verbraucher!$L18*(E3_Verbraucher!$L21=Q$42)*E3_Verbraucher!$L20","v":0},{"$f":"E3_Verbraucher!$L18*(E3_Verbraucher!$L21<R$42)+E3_Verbraucher!$L18*(E3_Verbraucher!$L21=R$42)*E3_Verbraucher!$L20","v":0},{"$f":"E3_Verbraucher!$L18*(E3_Verbraucher!$L21<S$42)+E3_Verbraucher!$L18*(E3_Verbraucher!$L21=S$42)*E3_Verbraucher!$L20","v":0}]
[null,0,"[MWh/a]",{"$f":"E3_Verbraucher!$M18*(E3_Verbraucher!$M21<D$42)+E3_Verbraucher!$M18*(E3_Verbraucher!$M21=D$42)*E3_Verbraucher!$M20","v":0},{"$f":"E3_Verbraucher!$M18*(E3_Verbraucher!$M21<E$42)+E3_Verbraucher!$M18*(E3_Verbraucher!$M21=E$42)*E3_Verbraucher!$M20","v":0},{"$f":"E3_Verbraucher!$M18*(E3_Verbraucher!$M21<F$42)+E3_Verbraucher!$M18*(E3_Verbraucher!$M21=F$42)*E3_Verbraucher!$M20","v":0},{"$f":"E3_Verbraucher!$M18*(E3_Verbraucher!$M21<G$42)+E3_Verbraucher!$M18*(E3_Verbraucher!$M21=G$42)*E3_Verbraucher!$M20","v":0},{"$f":"E3_Verbraucher!$M18*(E3_Verbraucher!$M21<H$42)+E3_Verbraucher!$M18*(E3_Verbraucher!$M21=H$42)*E3_Verbraucher!$M20","v":0},{"$f":"E3_Verbraucher!$M18*(E3_Verbraucher!$M21<I$42)+E3_Verbraucher!$M18*(E3_Verbraucher!$M21=I$42)*E3_Verbraucher!$M20","v":0},{"$f":"E3_Verbraucher!$M18*(E3_Verbraucher!$M21<J$42)+E3_Verbraucher!$M18*(E3_Verbraucher!$M21=J$42)*E3_Verbraucher!$M20","v":0},{"$f":"E3_Verbraucher!$M18*(E3_Verbraucher!$M21<K$42)+E3_Verbraucher!$M18*(E3_Verbraucher!$M21=K$42)*E3_Verbraucher!$M20","v":0},{"$f":"E3_Verbraucher!$M18*(E3_Verbraucher!$M21<L$42)+E3_Verbraucher!$M18*(E3_Verbraucher!$M21=L$42)*E3_Verbraucher!$M20","v":0},{"$f":"E3_Verbraucher!$M18*(E3_Verbraucher!$M21<M$42)+E3_Verbraucher!$M18*(E3_Verbraucher!$M21=M$42)*E3_Verbraucher!$M20","v":0},{"$f":"E3_Verbraucher!$M18*(E3_Verbraucher!$M21<N$42)+E3_Verbraucher!$M18*(E3_Verbraucher!$M21=N$42)*E3_Verbraucher!$M20","v":0},{"$f":"E3_Verbraucher!$M18*(E3_Verbraucher!$M21<O$42)+E3_Verbraucher!$M18*(E3_Verbraucher!$M21=O$42)*E3_Verbraucher!$M20","v":0},{"$f":"E3_Verbraucher!$M18*(E3_Verbraucher!$M21<P$42)+E3_Verbraucher!$M18*(E3_Verbraucher!$M21=P$42)*E3_Verbraucher!$M20","v":0},{"$f":"E3_Verbraucher!$M18*(E3_Verbraucher!$M21<Q$42)+E3_Verbraucher!$M18*(E3_Verbraucher!$M21=Q$42)*E3_Verbraucher!$M20","v":0},{"$f":"E3_Verbraucher!$M18*(E3_Verbraucher!$M21<R$42)+E3_Verbraucher!$M18*(E3_Verbraucher!$M21=R$42)*E3_Verbraucher!$M20","v":0},{"$f":"E3_Verbraucher!$M18*(E3_Verbraucher!$M21<S$42)+E3_Verbraucher!$M18*(E3_Verbraucher!$M21=S$42)*E3_Verbraucher!$M20","v":0}]
[null,0,"[MWh/a]",{"$f":"E3_Verbraucher!$N18*(E3_Verbraucher!$N21<D$42)+E3_Verbraucher!$N18*(E3_Verbraucher!$N21=D$42)*E3_Verbraucher!$N20","v":0},{"$f":"E3_Verbraucher!$N18*(E3_Verbraucher!$N21<E$42)+E3_Verbraucher!$N18*(E3_Verbraucher!$N21=E$42)*E3_Verbraucher!$N20","v":0},{"$f":"E3_Verbraucher!$N18*(E3_Verbraucher!$N21<F$42)+E3_Verbraucher!$N18*(E3_Verbraucher!$N21=F$42)*E3_Verbraucher!$N20","v":0},{"$f":"E3_Verbraucher!$N18*(E3_Verbraucher!$N21<G$42)+E3_Verbraucher!$N18*(E3_Verbraucher!$N21=G$42)*E3_Verbraucher!$N20","v":0},{"$f":"E3_Verbraucher!$N18*(E3_Verbraucher!$N21<H$42)+E3_Verbraucher!$N18*(E3_Verbraucher!$N21=H$42)*E3_Verbraucher!$N20","v":0},{"$f":"E3_Verbraucher!$N18*(E3_Verbraucher!$N21<I$42)+E3_Verbraucher!$N18*(E3_Verbraucher!$N21=I$42)*E3_Verbraucher!$N20","v":0},{"$f":"E3_Verbraucher!$N18*(E3_Verbraucher!$N21<J$42)+E3_Verbraucher!$N18*(E3_Verbraucher!$N21=J$42)*E3_Verbraucher!$N20","v":0},{"$f":"E3_Verbraucher!$N18*(E3_Verbraucher!$N21<K$42)+E3_Verbraucher!$N18*(E3_Verbraucher!$N21=K$42)*E3_Verbraucher!$N20","v":0},{"$f":"E3_Verbraucher!$N18*(E3_Verbraucher!$N21<L$42)+E3_Verbraucher!$N18*(E3_Verbraucher!$N21=L$42)*E3_Verbraucher!$N20","v":0},{"$f":"E3_Verbraucher!$N18*(E3_Verbraucher!$N21<M$42)+E3_Verbraucher!$N18*(E3_Verbraucher!$N21=M$42)*E3_Verbraucher!$N20","v":0},{"$f":"E3_Verbraucher!$N18*(E3_Verbraucher!$N21<N$42)+E3_Verbraucher!$N18*(E3_Verbraucher!$N21=N$42)*E3_Verbraucher!$N20","v":0},{"$f":"E3_Verbraucher!$N18*(E3_Verbraucher!$N21<O$42)+E3_Verbraucher!$N18*(E3_Verbraucher!$N21=O$42)*E3_Verbraucher!$N20","v":0},{"$f":"E3_Verbraucher!$N18*(E3_Verbraucher!$N21<P$42)+E3_Verbraucher!$N18*(E3_Verbraucher!$N21=P$42)*E3_Verbraucher!$N20","v":0},{"$f":"E3_Verbraucher!$N18*(E3_Verbraucher!$N21<Q$42)+E3_Verbraucher!$N18*(E3_Verbraucher!$N21=Q$42)*E3_Verbraucher!$N20","v":0},{"$f":"E3_Verbraucher!$N18*(E3_Verbraucher!$N21<R$42)+E3_Verbraucher!$N18*(E3_Verbraucher!$N21=R$42)*E3_Verbraucher!$N20","v":0},{"$f":"E3_Verbraucher!$N18*(E3_Verbraucher!$N21<S$42)+E3_Verbraucher!$N18*(E3_Verbraucher!$N21=S$42)*E3_Verbraucher!$N20","v":0}]
[null,0,"[MWh/a]",{"$f":"E3_Verbraucher!$O18*(E3_Verbraucher!$O21<D$42)+E3_Verbraucher!$O18*(E3_Verbraucher!$O21=D$42)*E3_Verbraucher!$O20","v":0},{"$f":"E3_Verbraucher!$O18*(E3_Verbraucher!$O21<E$42)+E3_Verbraucher!$O18*(E3_Verbraucher!$O21=E$42)*E3_Verbraucher!$O20","v":0},{"$f":"E3_Verbraucher!$O18*(E3_Verbraucher!$O21<F$42)+E3_Verbraucher!$O18*(E3_Verbraucher!$O21=F$42)*E3_Verbraucher!$O20","v":0},{"$f":"E3_Verbraucher!$O18*(E3_Verbraucher!$O21<G$42)+E3_Verbraucher!$O18*(E3_Verbraucher!$O21=G$42)*E3_Verbraucher!$O20","v":0},{"$f":"E3_Verbraucher!$O18*(E3_Verbraucher!$O21<H$42)+E3_Verbraucher!$O18*(E3_Verbraucher!$O21=H$42)*E3_Verbraucher!$O20","v":0},{"$f":"E3_Verbraucher!$O18*(E3_Verbraucher!$O21<I$42)+E3_Verbraucher!$O18*(E3_Verbraucher!$O21=I$42)*E3_Verbraucher!$O20","v":0},{"$f":"E3_Verbraucher!$O18*(E3_Verbraucher!$O21<J$42)+E3_Verbraucher!$O18*(E3_Verbraucher!$O21=J$42)*E3_Verbraucher!$O20","v":0},{"$f":"E3_Verbraucher!$O18*(E3_Verbraucher!$O21<K$42)+E3_Verbraucher!$O18*(E3_Verbraucher!$O21=K$42)*E3_Verbraucher!$O20","v":0},{"$f":"E3_Verbraucher!$O18*(E3_Verbraucher!$O21<L$42)+E3_Verbraucher!$O18*(E3_Verbraucher!$O21=L$42)*E3_Verbraucher!$O20","v":0},{"$f":"E3_Verbraucher!$O18*(E3_Verbraucher!$O21<M$42)+E3_Verbraucher!$O18*(E3_Verbraucher!$O21=M$42)*E3_Verbraucher!$O20","v":0},{"$f":"E3_Verbraucher!$O18*(E3_Verbraucher!$O21<N$42)+E3_Verbraucher!$O18*(E3_Verbraucher!$O21=N$42)*E3_Verbraucher!$O20","v":0},{"$f":"E3_Verbraucher!$O18*(E3_Verbraucher!$O21<O$42)+E3_Verbraucher!$O18*(E3_Verbraucher!$O21=O$42)*E3_Verbraucher!$O20","v":0},{"$f":"E3_Verbraucher!$O18*(E3_Verbraucher!$O21<P$42)+E3_Verbraucher!$O18*(E3_Verbraucher!$O21=P$42)*E3_Verbraucher!$O20","v":0},{"$f":"E3_Verbraucher!$O18*(E3_Verbraucher!$O21<Q$42)+E3_Verbraucher!$O18*(E3_Verbraucher!$O21=Q$42)*E3_Verbraucher!$O20","v":0},{"$f":"E3_Verbraucher!$O18*(E3_Verbraucher!$O21<R$42)+E3_Verbraucher!$O18*(E3_Verbraucher!$O21=R$42)*E3_Verbraucher!$O20","v":0},{"$f":"E3_Verbraucher!$O18*(E3_Verbraucher!$O21<S$42)+E3_Verbraucher!$O18*(E3_Verbraucher!$O21=S$42)*E3_Verbraucher!$O20","v":0}]
[null,0,"[MWh/a]",{"$f":"E3_Verbraucher!$P18*(E3_Verbraucher!$P21<D$42)+E3_Verbraucher!$P18*(E3_Verbraucher!$P21=D$42)*E3_Verbraucher!$P20","v":0},{"$f":"E3_Verbraucher!$P18*(E3_Verbraucher!$P21<E$42)+E3_Verbraucher!$P18*(E3_Verbraucher!$P21=E$42)*E3_Verbraucher!$P20","v":0},{"$f":"E3_Verbraucher!$P18*(E3_Verbraucher!$P21<F$42)+E3_Verbraucher!$P18*(E3_Verbraucher!$P21=F$42)*E3_Verbraucher!$P20","v":0},{"$f":"E3_Verbraucher!$P18*(E3_Verbraucher!$P21<G$42)+E3_Verbraucher!$P18*(E3_Verbraucher!$P21=G$42)*E3_Verbraucher!$P20","v":0},{"$f":"E3_Verbraucher!$P18*(E3_Verbraucher!$P21<H$42)+E3_Verbraucher!$P18*(E3_Verbraucher!$P21=H$42)*E3_Verbraucher!$P20","v":0},{"$f":"E3_Verbraucher!$P18*(E3_Verbraucher!$P21<I$42)+E3_Verbraucher!$P18*(E3_Verbraucher!$P21=I$42)*E3_Verbraucher!$P20","v":0},{"$f":"E3_Verbraucher!$P18*(E3_Verbraucher!$P21<J$42)+E3_Verbraucher!$P18*(E3_Verbraucher!$P21=J$42)*E3_Verbraucher!$P20","v":0},{"$f":"E3_Verbraucher!$P18*(E3_Verbraucher!$P21<K$42)+E3_Verbraucher!$P18*(E3_Verbraucher!$P21=K$42)*E3_Verbraucher!$P20","v":0},{"$f":"E3_Verbraucher!$P18*(E3_Verbraucher!$P21<L$42)+E3_Verbraucher!$P18*(E3_Verbraucher!$P21=L$42)*E3_Verbraucher!$P20","v":0},{"$f":"E3_Verbraucher!$P18*(E3_Verbraucher!$P21<M$42)+E3_Verbraucher!$P18*(E3_Verbraucher!$P21=M$42)*E3_Verbraucher!$P20","v":0},{"$f":"E3_Verbraucher!$P18*(E3_Verbraucher!$P21<N$42)+E3_Verbraucher!$P18*(E3_Verbraucher!$P21=N$42)*E3_Verbraucher!$P20","v":0},{"$f":"E3_Verbraucher!$P18*(E3_Verbraucher!$P21<O$42)+E3_Verbraucher!$P18*(E3_Verbraucher!$P21=O$42)*E3_Verbraucher!$P20","v":0},{"$f":"E3_Verbraucher!$P18*(E3_Verbraucher!$P21<P$42)+E3_Verbraucher!$P18*(E3_Verbraucher!$P21=P$42)*E3_Verbraucher!$P20","v":0},{"$f":"E3_Verbraucher!$P18*(E3_Verbraucher!$P21<Q$42)+E3_Verbraucher!$P18*(E3_Verbraucher!$P21=Q$42)*E3_Verbraucher!$P20","v":0},{"$f":"E3_Verbraucher!$P18*(E3_Verbraucher!$P21<R$42)+E3_Verbraucher!$P18*(E3_Verbraucher!$P21=R$42)*E3_Verbraucher!$P20","v":0},{"$f":"E3_Verbraucher!$P18*(E3_Verbraucher!$P21<S$42)+E3_Verbraucher!$P18*(E3_Verbraucher!$P21=S$42)*E3_Verbraucher!$P20","v":0}]
[null,0,"[MWh/a]",{"$f":"E3_Verbraucher!$Q18*(E3_Verbraucher!$Q21<D$42)+E3_Verbraucher!$Q18*(E3_Verbraucher!$Q21=D$42)*E3_Verbraucher!$Q20","v":0},{"$f":"E3_Verbraucher!$Q18*(E3_Verbraucher!$Q21<E$42)+E3_Verbraucher!$Q18*(E3_Verbraucher!$Q21=E$42)*E3_Verbraucher!$Q20","v":0},{"$f":"E3_Verbraucher!$Q18*(E3_Verbraucher!$Q21<F$42)+E3_Verbraucher!$Q18*(E3_Verbraucher!$Q21=F$42)*E3_Verbraucher!$Q20","v":0},{"$f":"E3_Verbraucher!$Q18*(E3_Verbraucher!$Q21<G$42)+E3_Verbraucher!$Q18*(E3_Verbraucher!$Q21=G$42)*E3_Verbraucher!$Q20","v":0},{"$f":"E3_Verbraucher!$Q18*(E3_Verbraucher!$Q21<H$42)+E3_Verbraucher!$Q18*(E3_Verbraucher!$Q21=H$42)*E3_Verbraucher!$Q20","v":0},{"$f":"E3_Verbraucher!$Q18*(E3_Verbraucher!$Q21<I$42)+E3_Verbraucher!$Q18*(E3_Verbraucher!$Q21=I$42)*E3_Verbraucher!$Q20","v":0},{"$f":"E3_Verbraucher!$Q18*(E3_Verbraucher!$Q21<J$42)+E3_Verbraucher!$Q18*(E3_Verbraucher!$Q21=J$42)*E3_Verbraucher!$Q20","v":0},{"$f":"E3_Verbraucher!$Q18*(E3_Verbraucher!$Q21<K$42)+E3_Verbraucher!$Q18*(E3_Verbraucher!$Q21=K$42)*E3_Verbraucher!$Q20","v":0},{"$f":"E3_Verbraucher!$Q18*(E3_Verbraucher!$Q21<L$42)+E3_Verbraucher!$Q18*(E3_Verbraucher!$Q21=L$42)*E3_Verbraucher!$Q20","v":0},{"$f":"E3_Verbraucher!$Q18*(E3_Verbraucher!$Q21<M$42)+E3_Verbraucher!$Q18*(E3_Verbraucher!$Q21=M$42)*E3_Verbraucher!$Q20","v":0},{"$f":"E3_Verbraucher!$Q18*(E3_Verbraucher!$Q21<N$42)+E3_Verbraucher!$Q18*(E3_Verbraucher!$Q21=N$42)*E3_Verbraucher!$Q20","v":0},{"$f":"E3_Verbraucher!$Q18*(E3_Verbraucher!$Q21<O$42)+E3_Verbraucher!$Q18*(E3_Verbraucher!$Q21=O$42)*E3_Verbraucher!$Q20","v":0},{"$f":"E3_Verbraucher!$Q18*(E3_Verbraucher!$Q21<P$42)+E3_Verbraucher!$Q18*(E3_Verbraucher!$Q21=P$42)*E3_Verbraucher!$Q20","v":0},{"$f":"E3_Verbraucher!$Q18*(E3_Verbraucher!$Q21<Q$42)+E3_Verbraucher!$Q18*(E3_Verbraucher!$Q21=Q$42)*E3_Verbraucher!$Q20","v":0},{"$f":"E3_Verbraucher!$Q18*(E3_Verbraucher!$Q21<R$42)+E3_Verbraucher!$Q18*(E3_Verbraucher!$Q21=R$42)*E3_Verbraucher!$Q20","v":0},{"$f":"E3_Verbraucher!$Q18*(E3_Verbraucher!$Q21<S$42)+E3_Verbraucher!$Q18*(E3_Verbraucher!$Q21=S$42)*E3_Verbraucher!$Q20","v":0}]
[null,0,"[MWh/a]",{"$f":"E3_Verbraucher!$R18*(E3_Verbraucher!$R21<D$42)+E3_Verbraucher!$R18*(E3_Verbraucher!$R21=D$42)*E3_Verbraucher!$R20","v":0},{"$f":"E3_Verbraucher!$R18*(E3_Verbraucher!$R21<E$42)+E3_Verbraucher!$R18*(E3_Verbraucher!$R21=E$42)*E3_Verbraucher!$R20","v":0},{"$f":"E3_Verbraucher!$R18*(E3_Verbraucher!$R21<F$42)+E3_Verbraucher!$R18*(E3_Verbraucher!$R21=F$42)*E3_Verbraucher!$R20","v":0},{"$f":"E3_Verbraucher!$R18*(E3_Verbraucher!$R21<G$42)+E3_Verbraucher!$R18*(E3_Verbraucher!$R21=G$42)*E3_Verbraucher!$R20","v":0},{"$f":"E3_Verbraucher!$R18*(E3_Verbraucher!$R21<H$42)+E3_Verbraucher!$R18*(E3_Verbraucher!$R21=H$42)*E3_Verbraucher!$R20","v":0},{"$f":"E3_Verbraucher!$R18*(E3_Verbraucher!$R21<I$42)+E3_Verbraucher!$R18*(E3_Verbraucher!$R21=I$42)*E3_Verbraucher!$R20","v":0},{"$f":"E3_Verbraucher!$R18*(E3_Verbraucher!$R21<J$42)+E3_Verbraucher!$R18*(E3_Verbraucher!$R21=J$42)*E3_Verbraucher!$R20","v":0},{"$f":"E3_Verbraucher!$R18*(E3_Verbraucher!$R21<K$42)+E3_Verbraucher!$R18*(E3_Verbraucher!$R21=K$42)*E3_Verbraucher!$R20","v":0},{"$f":"E3_Verbraucher!$R18*(E3_Verbraucher!$R21<L$42)+E3_Verbraucher!$R18*(E3_Verbraucher!$R21=L$42)*E3_Verbraucher!$R20","v":0},{"$f":"E3_Verbraucher!$R18*(E3_Verbraucher!$R21<M$42)+E3_Verbraucher!$R18*(E3_Verbraucher!$R21=M$42)*E3_Verbraucher!$R20","v":0},{"$f":"E3_Verbraucher!$R18*(E3_Verbraucher!$R21<N$42)+E3_Verbraucher!$R18*(E3_Verbraucher!$R21=N$42)*E3_Verbraucher!$R20","v":0},{"$f":"E3_Verbraucher!$R18*(E3_Verbraucher!$R21<O$42)+E3_Verbraucher!$R18*(E3_Verbraucher!$R21=O$42)*E3_Verbraucher!$R20","v":0},{"$f":"E3_Verbraucher!$R18*(E3_Verbraucher!$R21<P$42)+E3_Verbraucher!$R18*(E3_Verbraucher!$R21=P$42)*E3_Verbraucher!$R20","v":0},{"$f":"E3_Verbraucher!$R18*(E3_Verbraucher!$R21<Q$42)+E3_Verbraucher!$R18*(E3_Verbraucher!$R21=Q$42)*E3_Verbraucher!$R20","v":0},{"$f":"E3_Verbraucher!$R18*(E3_Verbraucher!$R21<R$42)+E3_Verbraucher!$R18*(E3_Verbraucher!$R21=R$42)*E3_Verbraucher!$R20","v":0},{"$f":"E3_Verbraucher!$R18*(E3_Verbraucher!$R21<S$42)+E3_Verbraucher!$R18*(E3_Verbraucher!$R21=S$42)*E3_Verbraucher!$R20","v":0}]
[null,"Elektrizitätsverbrauch Fernwärmezentrale"]
[922,"Total Elektrizitätsverbrauch pro Jahr","[MWh/a]",{"$f":"_xlfn.XLOOKUP(D42,B1_Berechnungen!$B$43:$B$67,B1_Berechnungen!$C$43:$C$67)*Eing_Spez_Stromverbrauch/100","v":0},{"$f":"_xlfn.XLOOKUP(E42,B1_Berechnungen!$B$43:$B$67,B1_Berechnungen!$C$43:$C$67)*Eing_Spez_Stromverbrauch/100","v":0},{"$f":"_xlfn.XLOOKUP(F42,B1_Berechnungen!$B$43:$B$67,B1_Berechnungen!$C$43:$C$67)*Eing_Spez_Stromverbrauch/100","v":0},{"$f":"_xlfn.XLOOKUP(G42,B1_Berechnungen!$B$43:$B$67,B1_Berechnungen!$C$43:$C$67)*Eing_Spez_Stromverbrauch/100","v":0},{"$f":"_xlfn.XLOOKUP(H42,B1_Berechnungen!$B$43:$B$67,B1_Berechnungen!$C$43:$C$67)*Eing_Spez_Stromverbrauch/100","v":0},{"$f":"_xlfn.XLOOKUP(I42,B1_Berechnungen!$B$43:$B$67,B1_Berechnungen!$C$43:$C$67)*Eing_Spez_Stromverbrauch/100","v":0},{"$f":"_xlfn.XLOOKUP(J42,B1_Berechnungen!$B$43:$B$67,B1_Berechnungen!$C$43:$C$67)*Eing_Spez_Stromverbrauch/100","v":0},{"$f":"_xlfn.XLOOKUP(K42,B1_Berechnungen!$B$43:$B$67,B1_Berechnungen!$C$43:$C$67)*Eing_Spez_Stromverbrauch/100","v":0},{"$f":"_xlfn.XLOOKUP(L42,B1_Berechnungen!$B$43:$B$67,B1_Berechnungen!$C$43:$C$67)*Eing_Spez_Stromverbrauch/100","v":0},{"$f":"_xlfn.XLOOKUP(M42,B1_Berechnungen!$B$43:$B$67,B1_Berechnungen!$C$43:$C$67)*Eing_Spez_Stromverbrauch/100","v":0},{"$f":"_xlfn.XLOOKUP(N42,B1_Berechnungen!$B$43:$B$67,B1_Berechnungen!$C$43:$C$67)*Eing_Spez_Stromverbrauch/100","v":0},{"$f":"_xlfn.XLOOKUP(O42,B1_Berechnungen!$B$43:$B$67,B1_Berechnungen!$C$43:$C$67)*Eing_Spez_Stromverbrauch/100","v":0},{"$f":"_xlfn.XLOOKUP(P42,B1_Berechnungen!$B$43:$B$67,B1_Berechnungen!$C$43:$C$67)*Eing_Spez_Stromverbrauch/100","v":0},{"$f":"_xlfn.XLOOKUP(Q42,B1_Berechnungen!$B$43:$B$67,B1_Berechnungen!$C$43:$C$67)*Eing_Spez_Stromverbrauch/100","v":0},{"$f":"_xlfn.XLOOKUP(R42,B1_Berechnungen!$B$43:$B$67,B1_Berechnungen!$C$43:$C$67)*Eing_Spez_Stromverbrauch/100","v":0},{"$f":"_xlfn.XLOOKUP(S42,B1_Berechnungen!$B$43:$B$67,B1_Berechnungen!$C$43:$C$67)*Eing_Spez_Stromverbrauch/100","v":0}]
[null,"Register Wirtschaftlichkeit; Projektaktivität",null,{"$f":"Eing_Beginnjahr","v":0},{"$f":"D62+1","v":1},{"$f":"E62+1","v":2},3,4,5,6,7,8,9,10,11,12,13,14,15,16,17,{"$f":"U62+1","v":18}]
[null,"Aufwand"]
[null,"Investitionen und Ersatzinvestitionen","[EUR/a]"]
[923,"Fernwärmenetz (40 Jahre)","[EUR/a]",{"$f":"_xlfn.XLOOKUP(D42,B1_Berechnungen!$B$43:$B$67,B1_Berechnungen!$E$43:$E$67)*Kapitalkosten_Wärmeverteilung/SUM(E1_Projektdaten!$D$155:$D$156)","v":{"$error":"#DIV/0!"}},{"$f":"_xlfn.XLOOKUP(E42,B1_Berechnungen!$B$43:$B$67,B1_Berechnungen!$E$43:$E$67)*Kapitalkosten_Wärmeverteilung/SUM(E1_Projektdaten!$D$155:$D$156)","v":{"$error":"#DIV/0!"}},{"$f":"_xlfn.XLOOKUP(F42,B1_Berechnungen!$B$43:$B$67,B1_Berechnungen!$E$43:$E$67)*Kapitalkosten_Wärmeverteilung/SUM(E1_Projektdaten!$D$155:$D$156)","v":{"$error":"#DIV/0!"}},{"$f":"_xlfn.XLOOKUP(G42,B1_Berechnungen!$B$43:$B$67,B1_Berechnungen!$E$43:$E$67)*Kapitalkosten_Wärmeverteilung/SUM(E1_Projektdaten!$D$155:$D$156)","v":{"$error":"#DIV/0!"}},{"$f":"_xlfn.XLOOKUP(H42,B1_Berechnungen!$B$43:$B$67,B1_Berechnungen!$E$43:$E$67)*Kapitalkosten_Wärmeverteilung/SUM(E1_Projektdaten!$D$155:$D$156)","v":{"$error":"#DIV/0!"}},{"$f":"_xlfn.XLOOKUP(I42,B1_Berechnungen!$B$43:$B$67,B1_Berechnungen!$E$43:$E$67)*Kapitalkosten_Wärmeverteilung/SUM(E1_Projektdaten!$D$155:$D$156)","v":{"$error":"#DIV/0!"}},{"$f":"_xlfn.XLOOKUP(J42,B1_Berechnungen!$B$43:$B$67,B1_Berechnungen!$E$43:$E$67)*Kapitalkosten_Wärmeverteilung/SUM(E1_Projektdaten!$D$155:$D$156)","v":{"$error":"#DIV/0!"}},{"$f":"_xlfn.XLOOKUP(K42,B1_Berechnungen!$B$43:$B$67,B1_Berechnungen!$E$43:$E$67)*Kapitalkosten_Wärmeverteilung/SUM(E1_Projektdaten!$D$155:$D$156)","v":{"$error":"#DIV/0!"}},{"$f":"_xlfn.XLOOKUP(L42,B1_Berechnungen!$B$43:$B$67,B1_Berechnungen!$E$43:$E$67)*Kapitalkosten_Wärmeverteilung/SUM(E1_Projektdaten!$D$155:$D$156)","v":{"$error":"#DIV/0!"}},{"$f":"_xlfn.XLOOKUP(M42,B1_Berechnungen!$B$43:$B$67,B1_Berechnungen!$E$43:$E$67)*Kapitalkosten_Wärmeverteilung/SUM(E1_Projektdaten!$D$155:$D$156)","v":{"$error":"#DIV/0!"}},{"$f":"_xlfn.XLOOKUP(N42,B1_Berechnungen!$B$43:$B$67,B1_Berechnungen!$E$43:$E$67)*Kapitalkosten_Wärmeverteilung/SUM(E1_Projektdaten!$D$155:$D$156)","v":{"$error":"#DIV/0!"}},{"$f":"_xlfn.XLOOKUP(O42,B1_Berechnungen!$B$43:$B$67,B1_Berechnungen!$E$43:$E$67)*Kapitalkosten_Wärmeverteilung/SUM(E1_Projektdaten!$D$155:$D$156)","v":{"$error":"#DIV/0!"}},{"$f":"_xlfn.XLOOKUP(P42,B1_Berechnungen!$B$43:$B$67,B1_Berechnungen!$E$43:$E$67)*Kapitalkosten_Wärmeverteilung/SUM(E1_Projektdaten!$D$155:$D$156)","v":{"$error":"#DIV/0!"}},{"$f":"_xlfn.XLOOKUP(Q42,B1_Berechnungen!$B$43:$B$67,B1_Berechnungen!$E$43:$E$67)*Kapitalkosten_Wärmeverteilung/SUM(E1_Projektdaten!$D$155:$D$156)","v":{"$error":"#DIV/0!"}},{"$f":"_xlfn.XLOOKUP(R42,B1_Berechnungen!$B$43:$B$67,B1_Berechnungen!$E$43:$E$67)*Kapitalkosten_Wärmeverteilung/SUM(E1_Projektdaten!$D$155:$D$156)","v":{"$error":"#DIV/0!"}},{"$f":"_xlfn.XLOOKUP(S42,B1_Berechnungen!$B$43:$B$67,B1_Berechnungen!$E$43:$E$67)*Kapitalkosten_Wärmeverteilung/SUM(E1_Projektdaten!$D$155:$D$156)","v":{"$error":"#DIV/0!"}},{"$f":"(VLOOKUP('A9_NPV-Daten'!T$62,B1_Berechnungen!$B$43:$BE$67,23)*SUM(E1_Projektdaten!$D$77,E1_Projektdaten!$D$79,E1_Projektdaten!$D$80)/Gesamtinvestition)","v":{"$error":"#DIV/0!"}},{"$f":"(VLOOKUP('A9_NPV-Daten'!U$62,B1_Berechnungen!$B$43:$BE$67,23)*SUM(E1_Projektdaten!$D$77,E1_Projektdaten!$D$79,E1_Projektdaten!$D$80)/Gesamtinvestition)","v":{"$error":"#DIV/0!"}},{"$f":"(VLOOKUP('A9_NPV-Daten'!V$62,B1_Berechnungen!$B$43:$BE$67,23)*SUM(E1_Projektdaten!$D$77,E1_Projektdaten!$D$79,E1_Projektdaten!$D$80)/Gesamtinvestition)","v":{"$error":"#DIV/0!"}}]
[924,"Heizzentrale bzw. dezentrale Wärmesysteme (15 Jahre)","[EUR/a]",{"$f":"_xlfn.XLOOKUP(D42,B1_Berechnungen!$B$43:$B$67,B1_Berechnungen!$E$43:$E$67)-D65","v":{"$error":"#DIV/0!"}},{"$f":"_xlfn.XLOOKUP(E42,B1_Berechnungen!$B$43:$B$67,B1_Berechnungen!$E$43:$E$67)-E65","v":{"$error":"#DIV/0!"}},{"$f":"_xlfn.XLOOKUP(F42,B1_Berechnungen!$B$43:$B$67,B1_Berechnungen!$E$43:$E$67)-F65","v":{"$error":"#DIV/0!"}},{"$f":"_xlfn.XLOOKUP(G42,B1_Berechnungen!$B$43:$B$67,B1_Berechnungen!$E$43:$E$67)-G65","v":{"$error":"#DIV/0!"}},{"$f":"_xlfn.XLOOKUP(H42,B1_Berechnungen!$B$43:$B$67,B1_Berechnungen!$E$43:$E$67)-H65","v":{"$error":"#DIV/0!"}},{"$f":"_xlfn.XLOOKUP(I42,B1_Berechnungen!$B$43:$B$67,B1_Berechnungen!$E$43:$E$67)-I65","v":{"$error":"#DIV/0!"}},{"$f":"_xlfn.XLOOKUP(J42,B1_Berechnungen!$B$43:$B$67,B1_Berechnungen!$E$43:$E$67)-J65","v":{"$error":"#DIV/0!"}},{"$f":"_xlfn.XLOOKUP(K42,B1_Berechnungen!$B$43:$B$67,B1_Berechnungen!$E$43:$E$67)-K65","v":{"$error":"#DIV/0!"}},{"$f":"_xlfn.XLOOKUP(L42,B1_Berechnungen!$B$43:$B$67,B1_Berechnungen!$E$43:$E$67)-L65","v":{"$error":"#DIV/0!"}},{"$f":"_xlfn.XLOOKUP(M42,B1_Berechnungen!$B$43:$B$67,B1_Berechnungen!$E$43:$E$67)-M65","v":{"$error":"#DIV/0!"}},{"$f":"_xlfn.XLOOKUP(N42,B1_Berechnungen!$B$43:$B$67,B1_Berechnungen!$E$43:$E$67)-N65","v":{"$error":"#DIV/0!"}},{"$f":"_xlfn.XLOOKUP(O42,B1_Berechnungen!$B$43:$B$67,B1_Berechnungen!$E$43:$E$67)-O65","v":{"$error":"#DIV/0!"}},{"$f":"_xlfn.XLOOKUP(P42,B1_Berechnungen!$B$43:$B$67,B1_Berechnungen!$E$43:$E$67)-P65","v":{"$error":"#DIV/0!"}},{"$f":"_xlfn.XLOOKUP(Q42,B1_Berechnungen!$B$43:$B$67,B1_Berechnungen!$E$43:$E$67)-Q65","v":{"$error":"#DIV/0!"}},{"$f":"_xlfn.XLOOKUP(R42,B1_Berechnungen!$B$43:$B$67,B1_Berechnungen!$E$43:$E$67)-R65","v":{"$error":"#DIV/0!"}},{"$f":"_xlfn.XLOOKUP(S42,B1_Berechnungen!$B$43:$B$67,B1_Berechnungen!$E$43:$E$67)-S65","v":{"$error":"#DIV/0!"}},{"$f":"(VLOOKUP('A9_NPV-Daten'!T$62,B1_Berechnungen!$B$43:$BE$67,23)-T65)","v":{"$error":"#DIV/0!"}},{"$f":"(VLOOKUP('A9_NPV-Daten'!U$62,B1_Berechnungen!$B$43:$BE$67,23)-U65)","v":{"$error":"#DIV/0!"}},{"$f":"(VLOOKUP('A9_NPV-Daten'!V$62,B1_Berechnungen!$B$43:$BE$67,23)-V65)","v":{"$error":"#DIV/0!"}}]
[null,"Restwert Fernwärmenetz","[EUR]",{"$f":"IF(D62=E1_Projektdaten!$D$23+15,-VLOOKUP(D62,B1_Berechnungen!$B$43:$AS$67,31),\"\")","v":""},{"$f":"IF(E62=E1_Projektdaten!$D$23+15,-VLOOKUP(E62,B1_Berechnungen!$B$43:$AS$67,31),\"\")","v":""},{"$f":"IF(F62=E1_Projektdaten!$D$23+15,-VLOOKUP(F62,B1_Berechnungen!$B$43:$AS$67,31),\"\")","v":""},{"$f":"IF(G62=E1_Projektdaten!$D$23+15,-VLOOKUP(G62,B1_Berechnungen!$B$43:$AS$67,31),\"\")","v":""},{"$f":"IF(H62=E1_Projektdaten!$D$23+15,-VLOOKUP(H62,B1_Berechnungen!$B$43:$AS$67,31),\"\")","v":""},{"$f":"IF(I62=E1_Projektdaten!$D$23+15,-VLOOKUP(I62,B1_Berechnungen!$B$43:$AS$67,31),\"\")","v":""},{"$f":"IF(J62=E1_Projektdaten!$D$23+15,-VLOOKUP(J62,B1_Berechnungen!$B$43:$AS$67,31),\"\")","v":""},{"$f":"IF(K62=E1_Projektdaten!$D$23+15,-VLOOKUP(K62,B1_Berechnungen!$B$43:$AS$67,31),\"\")","v":""},{"$f":"IF(L62=E1_Projektdaten!$D$23+15,-VLOOKUP(L62,B1_Berechnungen!$B$43:$AS$67,31),\"\")","v":""},{"$f":"IF(M62=E1_Projektdaten!$D$23+15,-VLOOKUP(M62,B1_Berechnungen!$B$43:$AS$67,31),\"\")","v":""},{"$f":"IF(N62=E1_Projektdaten!$D$23+15,-VLOOKUP(N62,B1_Berechnungen!$B$43:$AS$67,31),\"\")","v":""},{"$f":"IF(O62=E1_Projektdaten!$D$23+15,-VLOOKUP(O62,B1_Berechnungen!$B$43:$AS$67,31),\"\")","v":""},{"$f":"IF(P62=E1_Projektdaten!$D$23+15,-VLOOKUP(P62,B1_Berechnungen!$B$43:$AS$67,31),\"\")","v":""},{"$f":"IF(Q62=E1_Projektdaten!$D$23+15,-VLOOKUP(Q62,B1_Berechnungen!$B$43:$AS$67,31),\"\")","v":""},{"$f":"IF(R62=E1_Projektdaten!$D$23+15,-VLOOKUP(R62,B1_Berechnungen!$B$43:$AS$67,31),\"\")","v":""},{"$f":"IF(S62=E1_Projektdaten!$D$23+15,-VLOOKUP(S62,B1_Berechnungen!$B$43:$AS$67,31),\"\")","v":0},{"$f":"IF(T62=E1_Projektdaten!$D$23+15,-VLOOKUP(T62,B1_Berechnungen!$B$43:$AS$67,31),\"\")","v":""},{"$f":"IF(U62=E1_Projektdaten!$D$23+15,-VLOOKUP(U62,B1_Berechnungen!$B$43:$AS$67,31),\"\")","v":""},{"$f":"IF(V62=E1_Projektdaten!$D$23+15,-VLOOKUP(V62,B1_Berechnungen!$B$43:$AS$67,31),\"\")","v":""}]
[null,"Kosten","[EUR/a]"]
[925,"Betrieb und Unterhalt","[EUR/a]",{"$f":"SUM(_xlfn.XLOOKUP(D42,B1_Berechnungen!$B$43:$B$67,B1_Berechnungen!$AB$43:$AB$67):_xlfn.XLOOKUP(D42,B1_Berechnungen!$B$43:$B$67,B1_Berechnungen!$AF$43:$AF$67))","v":0},{"$f":"SUM(_xlfn.XLOOKUP(E42,B1_Berechnungen!$B$43:$B$67,B1_Berechnungen!$AB$43:$AB$67):_xlfn.XLOOKUP(E42,B1_Berechnungen!$B$43:$B$67,B1_Berechnungen!$AF$43:$AF$67))","v":0},{"$f":"SUM(_xlfn.XLOOKUP(F42,B1_Berechnungen!$B$43:$B$67,B1_Berechnungen!$AB$43:$AB$67):_xlfn.XLOOKUP(F42,B1_Berechnungen!$B$43:$B$67,B1_Berechnungen!$AF$43:$AF$67))","v":0},{"$f":"SUM(_xlfn.XLOOKUP(G42,B1_Berechnungen!$B$43:$B$67,B1_Berechnungen!$AB$43:$AB$67):_xlfn.XLOOKUP(G42,B1_Berechnungen!$B$43:$B$67,B1_Berechnungen!$AF$43:$AF$67))","v":0},{"$f":"SUM(_xlfn.XLOOKUP(H42,B1_Berechnungen!$B$43:$B$67,B1_Berechnungen!$AB$43:$AB$67):_xlfn.XLOOKUP(H42,B1_Berechnungen!$B$43:$B$67,B1_Berechnungen!$AF$43:$AF$67))","v":0},{"$f":"SUM(_xlfn.XLOOKUP(I42,B1_Berechnungen!$B$43:$B$67,B1_Berechnungen!$AB$43:$AB$67):_xlfn.XLOOKUP(I42,B1_Berechnungen!$B$43:$B$67,B1_Berechnungen!$AF$43:$AF$67))","v":0},{"$f":"SUM(_xlfn.XLOOKUP(J42,B1_Berechnungen!$B$43:$B$67,B1_Berechnungen!$AB$43:$AB$67):_xlfn.XLOOKUP(J42,B1_Berechnungen!$B$43:$B$67,B1_Berechnungen!$AF$43:$AF$67))","v":0},{"$f":"SUM(_xlfn.XLOOKUP(K42,B1_Berechnungen!$B$43:$B$67,B1_Berechnungen!$AB$43:$AB$67):_xlfn.XLOOKUP(K42,B1_Berechnungen!$B$43:$B$67,B1_Berechnungen!$AF$43:$AF$67))","v":0},{"$f":"SUM(_xlfn.XLOOKUP(L42,B1_Berechnungen!$B$43:$B$67,B1_Berechnungen!$AB$43:$AB$67):_xlfn.XLOOKUP(L42,B1_Berechnungen!$B$43:$B$67,B1_Berechnungen!$AF$43:$AF$67))","v":0},{"$f":"SUM(_xlfn.XLOOKUP(M42,B1_Berechnungen!$B$43:$B$67,B1_Berechnungen!$AB$43:$AB$67):_xlfn.XLOOKUP(M42,B1_Berechnungen!$B$43:$B$67,B1_Berechnungen!$AF$43:$AF$67))","v":0},{"$f":"SUM(_xlfn.XLOOKUP(N42,B1_Berechnungen!$B$43:$B$67,B1_Berechnungen!$AB$43:$AB$67):_xlfn.XLOOKUP(N42,B1_Berechnungen!$B$43:$B$67,B1_Berechnungen!$AF$43:$AF$67))","v":0},{"$f":"SUM(_xlfn.XLOOKUP(O42,B1_Berechnungen!$B$43:$B$67,B1_Berechnungen!$AB$43:$AB$67):_xlfn.XLOOKUP(O42,B1_Berechnungen!$B$43:$B$67,B1_Berechnungen!$AF$43:$AF$67))","v":0},{"$f":"SUM(_xlfn.XLOOKUP(P42,B1_Berechnungen!$B$43:$B$67,B1_Berechnungen!$AB$43:$AB$67):_xlfn.XLOOKUP(P42,B1_Berechnungen!$B$43:$B$67,B1_Berechnungen!$AF$43:$AF$67))","v":0},{"$f":"SUM(_xlfn.XLOOKUP(Q42,B1_Berechnungen!$B$43:$B$67,B1_Berechnungen!$AB$43:$AB$67):_xlfn.XLOOKUP(Q42,B1_Berechnungen!$B$43:$B$67,B1_Berechnungen!$AF$43:$AF$67))","v":0},{"$f":"SUM(_xlfn.XLOOKUP(R42,B1_Berechnungen!$B$43:$B$67,B1_Berechnungen!$AB$43:$AB$67):_xlfn.XLOOKUP(R42,B1_Berechnungen!$B$43:$B$67,B1_Berechnungen!$AF$43:$AF$67))","v":0},{"$f":"SUM(_xlfn.XLOOKUP(S42,B1_Berechnungen!$B$43:$B$67,B1_Berechnungen!$AB$43:$AB$67):_xlfn.XLOOKUP(S42,B1_Berechnungen!$B$43:$B$67,B1_Berechnungen!$AF$43:$AF$67))","v":0},{"$f":"VLOOKUP('A9_NPV-Daten'!T$62,B1_Berechnungen!$B$43:$AS$67,7)+VLOOKUP('A9_NPV-Daten'!T$62,B1_Berechnungen!$B$43:$AS$67,8)+VLOOKUP('A9_NPV-Daten'!T$62,B1_Berechnungen!$B$43:$AS$67,9)","v":0},{"$f":"VLOOKUP('A9_NPV-Daten'!U$62,B1_Berechnungen!$B$43:$AS$67,7)+VLOOKUP('A9_NPV-Daten'!U$62,B1_Berechnungen!$B$43:$AS$67,8)+VLOOKUP('A9_NPV-Daten'!U$62,B1_Berechnungen!$B$43:$AS$67,9)","v":0},{"$f":"VLOOKUP('A9_NPV-Daten'!V$62,B1_Berechnungen!$B$43:$AS$67,7)+VLOOKUP('A9_NPV-Daten'!V$62,B1_Berechnungen!$B$43:$AS$67,8)+VLOOKUP('A9_NPV-Daten'!V$62,B1_Berechnungen!$B$43:$AS$67,9)","v":0}]
[926,"Energiekosten","[EUR/a]",{"$f":"SUM(_xlfn.XLOOKUP(D42,B1_Berechnungen!$B$43:$B$67,B1_Berechnungen!$U$43:$U$67):_xlfn.XLOOKUP(D42,B1_Berechnungen!$B$43:$B$67,B1_Berechnungen!$AA$43:$AA$67))","v":0},{"$f":"SUM(_xlfn.XLOOKUP(E42,B1_Berechnungen!$B$43:$B$67,B1_Berechnungen!$U$43:$U$67):_xlfn.XLOOKUP(E42,B1_Berechnungen!$B$43:$B$67,B1_Berechnungen!$AA$43:$AA$67))","v":0},{"$f":"SUM(_xlfn.XLOOKUP(F42,B1_Berechnungen!$B$43:$B$67,B1_Berechnungen!$U$43:$U$67):_xlfn.XLOOKUP(F42,B1_Berechnungen!$B$43:$B$67,B1_Berechnungen!$AA$43:$AA$67))","v":0},{"$f":"SUM(_xlfn.XLOOKUP(G42,B1_Berechnungen!$B$43:$B$67,B1_Berechnungen!$U$43:$U$67):_xlfn.XLOOKUP(G42,B1_Berechnungen!$B$43:$B$67,B1_Berechnungen!$AA$43:$AA$67))","v":0},{"$f":"SUM(_xlfn.XLOOKUP(H42,B1_Berechnungen!$B$43:$B$67,B1_Berechnungen!$U$43:$U$67):_xlfn.XLOOKUP(H42,B1_Berechnungen!$B$43:$B$67,B1_Berechnungen!$AA$43:$AA$67))","v":0},{"$f":"SUM(_xlfn.XLOOKUP(I42,B1_Berechnungen!$B$43:$B$67,B1_Berechnungen!$U$43:$U$67):_xlfn.XLOOKUP(I42,B1_Berechnungen!$B$43:$B$67,B1_Berechnungen!$AA$43:$AA$67))","v":0},{"$f":"SUM(_xlfn.XLOOKUP(J42,B1_Berechnungen!$B$43:$B$67,B1_Berechnungen!$U$43:$U$67):_xlfn.XLOOKUP(J42,B1_Berechnungen!$B$43:$B$67,B1_Berechnungen!$AA$43:$AA$67))","v":0},{"$f":"SUM(_xlfn.XLOOKUP(K42,B1_Berechnungen!$B$43:$B$67,B1_Berechnungen!$U$43:$U$67):_xlfn.XLOOKUP(K42,B1_Berechnungen!$B$43:$B$67,B1_Berechnungen!$AA$43:$AA$67))","v":0},{"$f":"SUM(_xlfn.XLOOKUP(L42,B1_Berechnungen!$B$43:$B$67,B1_Berechnungen!$U$43:$U$67):_xlfn.XLOOKUP(L42,B1_Berechnungen!$B$43:$B$67,B1_Berechnungen!$AA$43:$AA$67))","v":0},{"$f":"SUM(_xlfn.XLOOKUP(M42,B1_Berechnungen!$B$43:$B$67,B1_Berechnungen!$U$43:$U$67):_xlfn.XLOOKUP(M42,B1_Berechnungen!$B$43:$B$67,B1_Berechnungen!$AA$43:$AA$67))","v":0},{"$f":"SUM(_xlfn.XLOOKUP(N42,B1_Berechnungen!$B$43:$B$67,B1_Berechnungen!$U$43:$U$67):_xlfn.XLOOKUP(N42,B1_Berechnungen!$B$43:$B$67,B1_Berechnungen!$AA$43:$AA$67))","v":0},{"$f":"SUM(_xlfn.XLOOKUP(O42,B1_Berechnungen!$B$43:$B$67,B1_Berechnungen!$U$43:$U$67):_xlfn.XLOOKUP(O42,B1_Berechnungen!$B$43:$B$67,B1_Berechnungen!$AA$43:$AA$67))","v":0},{"$f":"SUM(_xlfn.XLOOKUP(P42,B1_Berechnungen!$B$43:$B$67,B1_Berechnungen!$U$43:$U$67):_xlfn.XLOOKUP(P42,B1_Berechnungen!$B$43:$B$67,B1_Berechnungen!$AA$43:$AA$67))","v":0},{"$f":"SUM(_xlfn.XLOOKUP(Q42,B1_Berechnungen!$B$43:$B$67,B1_Berechnungen!$U$43:$U$67):_xlfn.XLOOKUP(Q42,B1_Berechnungen!$B$43:$B$67,B1_Berechnungen!$AA$43:$AA$67))","v":0},{"$f":"SUM(_xlfn.XLOOKUP(R42,B1_Berechnungen!$B$43:$B$67,B1_Berechnungen!$U$43:$U$67):_xlfn.XLOOKUP(R42,B1_Berechnungen!$B$43:$B$67,B1_Berechnungen!$AA$43:$AA$67))","v":0},{"$f":"SUM(_xlfn.XLOOKUP(S42,B1_Berechnungen!$B$43:$B$67,B1_Berechnungen!$U$43:$U$67):_xlfn.XLOOKUP(S42,B1_Berechnungen!$B$43:$B$67,B1_Berechnungen!$AA$43:$AA$67))","v":0},{"$f":"VLOOKUP('A9_NPV-Daten'!T$62,B1_Berechnungen!$B$43:$AS$67,4)+VLOOKUP('A9_NPV-Daten'!T$62,B1_Berechnungen!$B$43:$AS$67,5)+VLOOKUP('A9_NPV-Daten'!T$62,B1_Berechnungen!$B$43:$AS$67,6)","v":0},{"$f":"VLOOKUP('A9_NPV-Daten'!U$62,B1_Berechnungen!$B$43:$AS$67,4)+VLOOKUP('A9_NPV-Daten'!U$62,B1_Berechnungen!$B$43:$AS$67,5)+VLOOKUP('A9_NPV-Daten'!U$62,B1_Berechnungen!$B$43:$AS$67,6)","v":0},{"$f":"VLOOKUP('A9_NPV-Daten'!V$62,B1_Berechnungen!$B$43:$AS$67,4)+VLOOKUP('A9_NPV-Daten'!V$62,B1_Berechnungen!$B$43:$AS$67,5)+VLOOKUP('A9_NPV-Daten'!V$62,B1_Berechnungen!$B$43:$AS$67,6)","v":0}]
[null,"Total Aufwand pro Jahr","[EUR/a]"]
[]
[null,"Ertrag (ohne Abgeltung)"]
[927,"Anschlussbeiträge / einmalige Erträge","[EUR/a]",{"$f":"_xlfn.XLOOKUP(D$42,B1_Berechnungen!$B$43:$B$67,B1_Berechnungen!$G$43:$G$67)","v":0},{"$f":"_xlfn.XLOOKUP(E$42,B1_Berechnungen!$B$43:$B$67,B1_Berechnungen!$G$43:$G$67)","v":0},{"$f":"_xlfn.XLOOKUP(F$42,B1_Berechnungen!$B$43:$B$67,B1_Berechnungen!$G$43:$G$67)","v":0},{"$f":"_xlfn.XLOOKUP(G$42,B1_Berechnungen!$B$43:$B$67,B1_Berechnungen!$G$43:$G$67)","v":0},{"$f":"_xlfn.XLOOKUP(H$42,B1_Berechnungen!$B$43:$B$67,B1_Berechnungen!$G$43:$G$67)","v":0},{"$f":"_xlfn.XLOOKUP(I$42,B1_Berechnungen!$B$43:$B$67,B1_Berechnungen!$G$43:$G$67)","v":0},{"$f":"_xlfn.XLOOKUP(J$42,B1_Berechnungen!$B$43:$B$67,B1_Berechnungen!$G$43:$G$67)","v":0},{"$f":"_xlfn.XLOOKUP(K$42,B1_Berechnungen!$B$43:$B$67,B1_Berechnungen!$G$43:$G$67)","v":0},{"$f":"_xlfn.XLOOKUP(L$42,B1_Berechnungen!$B$43:$B$67,B1_Berechnungen!$G$43:$G$67)","v":0},{"$f":"_xlfn.XLOOKUP(M$42,B1_Berechnungen!$B$43:$B$67,B1_Berechnungen!$G$43:$G$67)","v":0},{"$f":"_xlfn.XLOOKUP(N$42,B1_Berechnungen!$B$43:$B$67,B1_Berechnungen!$G$43:$G$67)","v":0},{"$f":"_xlfn.XLOOKUP(O$42,B1_Berechnungen!$B$43:$B$67,B1_Berechnungen!$G$43:$G$67)","v":0},{"$f":"_xlfn.XLOOKUP(P$42,B1_Berechnungen!$B$43:$B$67,B1_Berechnungen!$G$43:$G$67)","v":0},{"$f":"_xlfn.XLOOKUP(Q$42,B1_Berechnungen!$B$43:$B$67,B1_Berechnungen!$G$43:$G$67)","v":0},{"$f":"_xlfn.XLOOKUP(R$42,B1_Berechnungen!$B$43:$B$67,B1_Berechnungen!$G$43:$G$67)","v":0},{"$f":"_xlfn.XLOOKUP(S$42,B1_Berechnungen!$B$43:$B$67,B1_Berechnungen!$G$43:$G$67)","v":0},{"$f":"VLOOKUP('A9_NPV-Daten'!T$62,B1_Berechnungen!$B$43:$S$67,16)","v":0},{"$f":"VLOOKUP('A9_NPV-Daten'!U$62,B1_Berechnungen!$B$43:$S$67,16)","v":0},{"$f":"VLOOKUP('A9_NPV-Daten'!V$62,B1_Berechnungen!$B$43:$S$67,16)","v":0}]
[928,"Wärmeverkauf / wiederkehrende Erträge","[EUR/a]",{"$f":"_xlfn.XLOOKUP(D$42,B1_Berechnungen!$B$43:$B$67,B1_Berechnungen!$N$43:$N$67)","v":0},{"$f":"_xlfn.XLOOKUP(E$42,B1_Berechnungen!$B$43:$B$67,B1_Berechnungen!$N$43:$N$67)","v":0},{"$f":"_xlfn.XLOOKUP(F$42,B1_Berechnungen!$B$43:$B$67,B1_Berechnungen!$N$43:$N$67)","v":0},{"$f":"_xlfn.XLOOKUP(G$42,B1_Berechnungen!$B$43:$B$67,B1_Berechnungen!$N$43:$N$67)","v":0},{"$f":"_xlfn.XLOOKUP(H$42,B1_Berechnungen!$B$43:$B$67,B1_Berechnungen!$N$43:$N$67)","v":0},{"$f":"_xlfn.XLOOKUP(I$42,B1_Berechnungen!$B$43:$B$67,B1_Berechnungen!$N$43:$N$67)","v":0},{"$f":"_xlfn.XLOOKUP(J$42,B1_Berechnungen!$B$43:$B$67,B1_Berechnungen!$N$43:$N$67)","v":0},{"$f":"_xlfn.XLOOKUP(K$42,B1_Berechnungen!$B$43:$B$67,B1_Berechnungen!$N$43:$N$67)","v":0},{"$f":"_xlfn.XLOOKUP(L$42,B1_Berechnungen!$B$43:$B$67,B1_Berechnungen!$N$43:$N$67)","v":0},{"$f":"_xlfn.XLOOKUP(M$42,B1_Berechnungen!$B$43:$B$67,B1_Berechnungen!$N$43:$N$67)","v":0},{"$f":"_xlfn.XLOOKUP(N$42,B1_Berechnungen!$B$43:$B$67,B1_Berechnungen!$N$43:$N$67)","v":0},{"$f":"_xlfn.XLOOKUP(O$42,B1_Berechnungen!$B$43:$B$67,B1_Berechnungen!$N$43:$N$67)","v":0},{"$f":"_xlfn.XLOOKUP(P$42,B1_Berechnungen!$B$43:$B$67,B1_Berechnungen!$N$43:$N$67)","v":0},{"$f":"_xlfn.XLOOKUP(Q$42,B1_Berechnungen!$B$43:$B$67,B1_Berechnungen!$N$43:$N$67)","v":0},{"$f":"_xlfn.XLOOKUP(R$42,B1_Berechnungen!$B$43:$B$67,B1_Berechnungen!$N$43:$N$67)","v":0},{"$f":"_xlfn.XLOOKUP(S$42,B1_Berechnungen!$B$43:$B$67,B1_Berechnungen!$N$43:$N$67)","v":0},{"$f":"VLOOKUP('A9_NPV-Daten'!T$62,B1_Berechnungen!$B$43:$S$67,15)","v":0},{"$f":"VLOOKUP('A9_NPV-Daten'!U$62,B1_Berechnungen!$B$43:$S$67,15)","v":0},{"$f":"VLOOKUP('A9_NPV-Daten'!V$62,B1_Berechnungen!$B$43:$S$67,15)","v":0}]
[929,"Förderbeiträge Dritter (Kanton, Bund, Gemeinde)","[EUR/a]",{"$f":"_xlfn.XLOOKUP(D$42,B1_Berechnungen!$B$43:$B$67,B1_Berechnungen!$F$43:$F$67)","v":0},{"$f":"_xlfn.XLOOKUP(E$42,B1_Berechnungen!$B$43:$B$67,B1_Berechnungen!$F$43:$F$67)","v":0},{"$f":"_xlfn.XLOOKUP(F$42,B1_Berechnungen!$B$43:$B$67,B1_Berechnungen!$F$43:$F$67)","v":0},{"$f":"_xlfn.XLOOKUP(G$42,B1_Berechnungen!$B$43:$B$67,B1_Berechnungen!$F$43:$F$67)","v":0},{"$f":"_xlfn.XLOOKUP(H$42,B1_Berechnungen!$B$43:$B$67,B1_Berechnungen!$F$43:$F$67)","v":0},{"$f":"_xlfn.XLOOKUP(I$42,B1_Berechnungen!$B$43:$B$67,B1_Berechnungen!$F$43:$F$67)","v":0},{"$f":"_xlfn.XLOOKUP(J$42,B1_Berechnungen!$B$43:$B$67,B1_Berechnungen!$F$43:$F$67)","v":0},{"$f":"_xlfn.XLOOKUP(K$42,B1_Berechnungen!$B$43:$B$67,B1_Berechnungen!$F$43:$F$67)","v":0},{"$f":"_xlfn.XLOOKUP(L$42,B1_Berechnungen!$B$43:$B$67,B1_Berechnungen!$F$43:$F$67)","v":0},{"$f":"_xlfn.XLOOKUP(M$42,B1_Berechnungen!$B$43:$B$67,B1_Berechnungen!$F$43:$F$67)","v":0},{"$f":"_xlfn.XLOOKUP(N$42,B1_Berechnungen!$B$43:$B$67,B1_Berechnungen!$F$43:$F$67)","v":0},{"$f":"_xlfn.XLOOKUP(O$42,B1_Berechnungen!$B$43:$B$67,B1_Berechnungen!$F$43:$F$67)","v":0},{"$f":"_xlfn.XLOOKUP(P$42,B1_Berechnungen!$B$43:$B$67,B1_Berechnungen!$F$43:$F$67)","v":0},{"$f":"_xlfn.XLOOKUP(Q$42,B1_Berechnungen!$B$43:$B$67,B1_Berechnungen!$F$43:$F$67)","v":0},{"$f":"_xlfn.XLOOKUP(R$42,B1_Berechnungen!$B$43:$B$67,B1_Berechnungen!$F$43:$F$67)","v":0},{"$f":"_xlfn.XLOOKUP(S$42,B1_Berechnungen!$B$43:$B$67,B1_Berechnungen!$F$43:$F$67)","v":0},{"$f":"((T62=E1_Projektdaten!$D$109)*E1_Projektdaten!$D$108+(T62=E1_Projektdaten!$D$111)*E1_Projektdaten!$D$110)*('A9_NPV-Daten'!T62>0)","v":0},{"$f":"((U62=E1_Projektdaten!$D$109)*E1_Projektdaten!$D$108+(U62=E1_Projektdaten!$D$111)*E1_Projektdaten!$D$110)*('A9_NPV-Daten'!U62>0)","v":0},{"$f":"((V62=E1_Projektdaten!$D$109)*E1_Projektdaten!$D$108+(V62=E1_Projektdaten!$D$111)*E1_Projektdaten!$D$110)*('A9_NPV-Daten'!V62>0)","v":0}]
[]
[930,"nicht eingerechneter Aufwand und Ertrag"]
[561,"Zusätzlicher Aufwand","[EUR/a]",{"$f":"VLOOKUP('A9_NPV-Daten'!D$62,B1_Berechnungen!$B$43:$S$67,10)","v":0},{"$f":"VLOOKUP('A9_NPV-Daten'!E$62,B1_Berechnungen!$B$43:$S$67,10)","v":0},{"$f":"VLOOKUP('A9_NPV-Daten'!F$62,B1_Berechnungen!$B$43:$S$67,10)","v":0},{"$f":"VLOOKUP('A9_NPV-Daten'!G$62,B1_Berechnungen!$B$43:$S$67,10)","v":0},{"$f":"VLOOKUP('A9_NPV-Daten'!H$62,B1_Berechnungen!$B$43:$S$67,10)","v":0},{"$f":"VLOOKUP('A9_NPV-Daten'!I$62,B1_Berechnungen!$B$43:$S$67,10)","v":0},{"$f":"VLOOKUP('A9_NPV-Daten'!J$62,B1_Berechnungen!$B$43:$S$67,10)","v":0},{"$f":"VLOOKUP('A9_NPV-Daten'!K$62,B1_Berechnungen!$B$43:$S$67,10)","v":0},{"$f":"VLOOKUP('A9_NPV-Daten'!L$62,B1_Berechnungen!$B$43:$S$67,10)","v":0},{"$f":"VLOOKUP('A9_NPV-Daten'!M$62,B1_Berechnungen!$B$43:$S$67,10)","v":0},{"$f":"VLOOKUP('A9_NPV-Daten'!N$62,B1_Berechnungen!$B$43:$S$67,10)","v":0},{"$f":"VLOOKUP('A9_NPV-Daten'!O$62,B1_Berechnungen!$B$43:$S$67,10)","v":0},{"$f":"VLOOKUP('A9_NPV-Daten'!P$62,B1_Berechnungen!$B$43:$S$67,10)","v":0},{"$f":"VLOOKUP('A9_NPV-Daten'!Q$62,B1_Berechnungen!$B$43:$S$67,10)","v":0},{"$f":"VLOOKUP('A9_NPV-Daten'!R$62,B1_Berechnungen!$B$43:$S$67,10)","v":0},{"$f":"VLOOKUP('A9_NPV-Daten'!S$62,B1_Berechnungen!$B$43:$S$67,10)","v":0},{"$f":"VLOOKUP('A9_NPV-Daten'!T$62,B1_Berechnungen!$B$43:$S$67,10)","v":0},{"$f":"VLOOKUP('A9_NPV-Daten'!U$62,B1_Berechnungen!$B$43:$S$67,10)","v":0}]
[574,"Zusätzlicher Ertrag","[EUR/a]",{"$f":"VLOOKUP('A9_NPV-Daten'!D$62,B1_Berechnungen!$B$43:$S$67,18)","v":0},{"$f":"VLOOKUP('A9_NPV-Daten'!E$62,B1_Berechnungen!$B$43:$S$67,18)","v":0},{"$f":"VLOOKUP('A9_NPV-Daten'!F$62,B1_Berechnungen!$B$43:$S$67,18)","v":0},{"$f":"VLOOKUP('A9_NPV-Daten'!G$62,B1_Berechnungen!$B$43:$S$67,18)","v":0},{"$f":"VLOOKUP('A9_NPV-Daten'!H$62,B1_Berechnungen!$B$43:$S$67,18)","v":0},{"$f":"VLOOKUP('A9_NPV-Daten'!I$62,B1_Berechnungen!$B$43:$S$67,18)","v":0},{"$f":"VLOOKUP('A9_NPV-Daten'!J$62,B1_Berechnungen!$B$43:$S$67,18)","v":0},{"$f":"VLOOKUP('A9_NPV-Daten'!K$62,B1_Berechnungen!$B$43:$S$67,18)","v":0},{"$f":"VLOOKUP('A9_NPV-Daten'!L$62,B1_Berechnungen!$B$43:$S$67,18)","v":0},{"$f":"VLOOKUP('A9_NPV-Daten'!M$62,B1_Berechnungen!$B$43:$S$67,18)","v":0},{"$f":"VLOOKUP('A9_NPV-Daten'!N$62,B1_Berechnungen!$B$43:$S$67,18)","v":0},{"$f":"VLOOKUP('A9_NPV-Daten'!O$62,B1_Berechnungen!$B$43:$S$67,18)","v":0},{"$f":"VLOOKUP('A9_NPV-Daten'!P$62,B1_Berechnungen!$B$43:$S$67,18)","v":0},{"$f":"VLOOKUP('A9_NPV-Daten'!Q$62,B1_Berechnungen!$B$43:$S$67,18)","v":0},{"$f":"VLOOKUP('A9_NPV-Daten'!R$62,B1_Berechnungen!$B$43:$S$67,18)","v":0},{"$f":"VLOOKUP('A9_NPV-Daten'!S$62,B1_Berechnungen!$B$43:$S$67,18)","v":0},{"$f":"VLOOKUP('A9_NPV-Daten'!T$62,B1_Berechnungen!$B$43:$S$67,18)","v":0},{"$f":"VLOOKUP('A9_NPV-Daten'!U$62,B1_Berechnungen!$B$43:$S$67,18)","v":0}]